Workbook

Sheet Innledning
A2: Sjekkliste bokføringsloven:
A4: 2024:
A5: For de som har gjennomgått sjekklisten tidligere har vi laget en egen versjon som kun viser endringene fra sist publiserte versjon.
A6: Her har vi tatt med både nye krav, endrede krav samt krav som ikke er endret, men hvor det har kommet nye aktuelle uttalelser.
A7: Dersom man har gjennomgått full sjekkliste tidligere samt alle etterfølgende endringssjekklister, og det verken har blitt avdekket noen feil eller mangler eller har vært noen endringer i selskapets systemer eller rutiner, er det tilstrekkelig å gjennomgå endringssjekklisten pr 01.08.2024.
A9: Trykk på knapp for å gå til sjekkliste med kun endringer per 1. august 2024:
A14: Trykk på knapp for å gå til full sjekkliste:
A19: For veiledning om de tekniske funksjonene i denne sjekklisten trykk på denne knappen:

Sheet Endringer pr 01.08.2024
A1: Sjekkliste bokføringsloven | D1: Utfylt:
A2: Klient: | D2: Review:
A3: År: | B3: 2024 | I3: Fyll ut med "X"
B4: Spørsmål | D4: Ref. | I4: Ja | J4: Nei | K4: I/A | L4: Kommentar
A5: Informasjon om denne endringslisten
B6: Denne listen viser kun endringer fra 15. august 2023 til 1. august 2024.
B7: Både nye krav, endrede krav samt krav som ikke er endret, men hvor det har kommet nye uttalelser, er tatt med her.
B8: Endringene vises som "track changes", sånn at man lett ser hva som er endret. Det vil si at ny tekst er understreket og skrevet med rødt, mens tekst som er tatt bort er skrevet med rødt og streket over.
A9: Spesifikasjoner av pliktig regnskapsrapportering | F9: =IF(J9<>"",1,0) -> 0
B10: Poster kan fremkomme som totaler dersom transaksjoner og andre regnskapsmessige disposisjoner fremkommer enkeltvis og oppsummert i underliggende spesifikasjon, og er kontrollerbare mot totalene. Dette gjelder likevel ikke i kunde- og leverandørspesifikasjoner. | D10: BF § 3-1, 5. ledd
B11: Spesifikasjon av merverdiavgift | E11: =IF(I11<>"",1,0) -> 0 | F11: 0 | G11: 0 | H11: =IF(SUM(E11:G11)>1,"Velg kun et alt.","") -> 
B12: Fra 01.01.2017 ble merverdiavgiftsloven endret slik at det stilles krav om at avgiftssubjektet selv skal beregne merverdiavgift ved innførsel av varer. Som en følge av dette ble det foreslått en endring i bokføringsforskriftens krav til spesifikasjon av merverdiavgift og dokumentasjon av grunnlaget for beregning av merverdiavgift ved innførsel av varer. | D12: Høringsnotat - Endringer i bokføringsforskriften mv. punkt 2.5
B13: Endringene i bokføringsforskriften ble først formelt vedtatt ved forskrift 27.06.2024, med virkning fra 01.03.2025, men GBS 9 "Spesifikasjon av grunnlaget for inngående merverdiavgift ved innførsel av varer samt dokumentasjons- og oppbevaringskrav" ble oppdatert allerede i desember 2016 på grunnlag av de foreslåtte endringene. Vi har tidligere valgt å innarbeide forskriftstekst fra høringsforslaget fra 2016 i sjekklisten, dette er nå oppdatert til vedtatt forskriftstekst, selv om endringene først formelt trer i kraft fra 01.03.2025. Her vises de formelle forskriftsendringene fra forskrift 27.06.2024 som track changes: | D13: GBS 9
A14: =+'Sjekkliste for utfylling'!A81 -> 33 | B14: Inneholder spesifikasjonen grunnlaget for utgående merverdiavgift, fradragsberettiget innenlands inngående merverdiavgift og fradragsberettiget innførselsmerverdiavgift, fordelt på de forskjellige avgiftssatsene spesifisert pr. termin? | D14: BF § 3-1, 1. ledd nr. 8 pkt a
A15: =+'Sjekkliste for utfylling'!A82 -> 34 | B15: Viser spesifikasjonen også innenlands omsetning og uttak fritatt for merverdiavgift, innenlands omsetning med omvendt avgiftsplikt, omsetning av varer og tjenester til utlandet fritatt for merverdiavgift, samt omsetning og uttak som faller utenfor avgiftsområdet? | D15: BF § 3-1, 1. ledd nr. 8 pkt b
A16: =+'Sjekkliste for utfylling'!A83 -> 35 | B16: Viser spesifikasjonen også kjøp med omvendt avgiftsplikt, fordelt på tjenester kjøpt fra utlandet og innenlands kjøp av varer og tjenester? | D16: BF § 3-1, 1. ledd nr. 8 pkt c
A17: =+'Sjekkliste for utfylling'!A84 -> 36 | B17: Er beløpene i spesifikasjonene i pkt a-c vist pr konto og totalt? | D17: BF § 3-1, 1. ledd nr. 8 pkt d
A18: =+'Sjekkliste for utfylling'!A85 -> 37 | B18: Kan avgiftsgrunnlaget for utgående merverdiavgift spesifiseres pr. transaksjon? | D18: BF § 3-1, 1. ledd nr. 8 pkt d
A19: =+'Sjekkliste for utfylling'!A86 -> 38 | B19: Viser spesifikasjonen eventuelle forskjeller mellom beregnet grunnlag i henhold til kontospesifikasjonen og innberettet avgiftsgrunnlag, spesifisert pr transaksjon for hver avgiftssats ? | D19: BF § 3-1, 1. ledd nr. 8 pkt d
A20: =+'Sjekkliste for utfylling'!A87 -> 39 | B20: Viser spesifikasjonen i tillegg grunnlaget for beregning av merverdiavgift ved innførsel av varer fordelt på de forskjellige avgiftssatsene, samt grunnlag knyttet til innførsel av varer som det ikke skal beregnes merverdiavgift av? | D20: BF § 3-1, 1. ledd nr. 8 pkt e
A21: Dokumentasjon av bokførte opplysninger
B22: Forbud mot forskuddsfakturering
A23: =+'Sjekkliste for utfylling'!A202 -> 118 | B23: Er salgsdokument for alle leveranser, med unntak som nevnt nedenfor, først utstedt inklusive merverdiavgift etter at den avgiftspliktige varen eller tjenesten er levert? | D23: BF § 5-2-6 GBS 13 Skds uttalelse 18. mai 2006, 3. mai 2007, 23. mai 2007, 9. februar 2010 og 20. juni 2011
B24: Unntak fra forbudet mot forskuddsfakturering:
B25: Salgsdokument for persontransport, servering, abonnementer, leier, avgifter og lignende, adgang til museer, gallerier, fornøyelsesparker, opplevelsessentre og rett til å overvære idrettsarrangementer kan utstedes før levering har funnet sted, begrenset til en periode på ett år. Salgsdokumentet skal så vidt mulig utstedes innenfor det kalenderår levering finner sted. | D25: BF § 5-2-6, 1. ledd
B26: Varer og tjenester som er unntatt fra merverdiavgiftsloven kan forskuddsfaktureres. | D26: BF § 5-2-6, 2. ledd
B27: Varer og tjenester som er fritatt for merverdiavgift kan forskuddsfaktureres dersom avgiftsfritaket kan dokumenteres etter bestemmelene i merverdiavgiftsforskriften kapittel 6 på det tidspunktet salgsdokumentet utstedes. | D27: BF § 5-2-6, 2. ledd
B28: Skattedirektoratet kan etter søknad i særlige tilfelle tillate at det utstedes salgsdokument inklusiv merverdiavgift for andre typer leveranser før den avgiftpliktige varen eller tjenesten er levert. | D28: BF § 5-2-8, 2. ledd
B29: Dokumentasjon av lønn mv.
A30: =+'Sjekkliste for utfylling'!A326 -> 192 | B30: Inneholder dokumentasjonen av lønn følgende opplysninger pr. ansatt: b. Navn og stilling? | D30: BF § 5-6, 1. ledd
A31: Bygge- og anleggsvirksomhet og verftsindustri
A32: =+'Sjekkliste for utfylling'!A543 -> 330 | B32: Prosjektregnskap Kan det, for hver periode med pliktig regnskapsrapportering, og ikke sjeldnere enn hver fjerde måned, utarbeides egne spesifikasjoner (prosjektregnskap) etter § 8-1-4 for prosjekter der anbudspris eller anslått omsetningsverdi overstiger 5 ganger folketrygdens grunnbeløp kr 300 000 ekskl mva? | D32: BF § 8-1-3

Sheet Sjekkliste for utfylling
A1: Sjekkliste bokføringsloven | D1: Utfylt: | O1: Ordinær | P1: Bransje | Q1: Sum
A2: Klient: | D2: Review: | N2: Ikke besvart: | O2: =+'Ikke besvart'!E1 -> 300 | P2: =+'Ikke besvart'!F1 -> 0 | Q2: =SUM(O2:P2) -> 300
A3: År: | B3: 2024 | N3: Ja-svar: | O3: =+'Ja-svar'!C1 -> 0 | P3: =+'Ja-svar'!D1 -> 0 | Q3: =SUM(O3:P3) -> 0 | S3: Endringer 2024 - til engelsk oversettelse | T3: intern henvisning
N4: Nei-svar: | O4: =+'Nei-svar'!C1 -> 0 | P4: =+'Nei-svar'!D1 -> 0 | Q4: =SUM(O4:P4) -> 0
I5: Fyll ut med "X" | N5: IA-svar: | O5: =+'IA-svar'!C1 -> 0 | P5: =+'IA-svar'!D1 -> 152 | Q5: =SUM(O5:P5) -> 152
B6: Spørsmål | D6: Ref. | I6: Ja | J6: Nei | K6: IA | L6: Kommentar | N6: Sum: | O6: =SUM(O2:O5) -> 300 | P6: =SUM(P2:P5) -> 152 | Q6: =SUM(Q2:Q5) -> 452
A7: Generelt
B8: I denne sjekklisten brukes følgende forkortelser:
B9: • bkfl. - Lov av 19.11.2004 nr 73 Lov om bokføring
B10: • BF - Forskrift av 01.12.2004 nr 1558 Forskrift om bokføring
B11: Følgende foretak er bokføringspliktige etter bokføringsloven: | D11: bkfl. § 2
B12: • Regnskapspliktige etter regnskapsloven
B13: • Alle som driver virksomhet og har plikt til å levere skattemelding for formues- og inntektsskatt etter skatteforvaltningsloven § 8-2
B14: • Alle som må levere skattemelding for merverdiavgift etter skatteforvaltningsloven § 8-3, med unntak av tilbydere som leverer skattemelding for merverdiavgift som nevnt i skatteforvaltningsloven § 8-3 første ledd bokstav e, og som er bokføringspliktig utelukkende på grunnlag av plikten til å levere skattemelding etter denne bestemmelsen.
B15: Bokføringsplikten for de to nederste gjelder "for den virksomhet som drives". Det innebærer at aktiviteter/virksomhetsområder som ikke er av betydning for den pliktige regnskapsrapporteringen ikke er omfattet av bokføringsplikten. | D15: Prinsipp-uttalelse av 19.02.2020 | S15: tatt inn ny setning nr 2
B16: For de to nederste kan det gis unntak for noen særlige tilfeller. Følgende er delvis unntatt fra bokføringsplikt: | D16: BF § 1-1 | S16: Lagt inn setning fra gamle linje 16 her + tatt inn "delvis" unntatt fra bokføringsplikt
B17: • Konkursbo som ikke er næringsdrivende og som plikter å levere skattemelding for merverdiavgift etter skatteforvaltningsloven, unntas fra bokføringsloven § 5 første ledd nr 2-7 (utarbeidelse av spesifikasjoner)
B18: Pliktig regnskapsrapportering etter bokføringsloven § 3 omfatter regnskapsrapportering fastsatt med hjemmel i: | D18: BF § 2-1
B19: • Regnskapsloven
B20: • Skatteforvaltningsloven, med følgende unntak:
B21: - tilbydere i forenklet registreringsordning etter merverdiavgiftsloven - § 8-3, første ledd bokstav e
B22: - skattemelding for særavgifter - § 8-4
B23: - motorkjøretøyavgifter - § 8-5
B24: - merverdiavgiftskompensasjon - § 8-7
B25: • Skattebetalingsloven
A27: Bokføring | N27: =IF(J27<>"","Du har satt X for at forholdet ikke er avklart. Gi en nærmere foklaring i kommentarfeltet.","") -> 
A28: 1 | B28: Er alle opplysninger bokført som er nødvendige for å kunne utarbeide: • Pliktig regnskapsrapportering? | D28: bkfl. § 7, 1. ledd | E28: =IF(I28<>"",1,0) -> 0 | F28: =IF(J28<>"",1,0) -> 0 | G28: =IF(K28<>"",1,0) -> 0 | H28: =IF(SUM(E28:G28)>1,"Velg kun et alt.","") -> 
A29: =+A28+1 -> 2 | B29: • Spesifikasjoner av pliktig regnskapsrapportering (se spørsmålene 5 – 46)? | E29: 0 | F29: 0 | G29: 0 | T29: intern henvisning
A30: =1+A29 -> 3 | B30: • Andre pliktige spesifikasjoner - se også under "Bransjemessige forhold" for hver bransje | E30: 0 | F30: 0 | G30: 0
A31: =1+A30 -> 4 | B31: Er bilagene fortløpende nummerert? | D31: Skds uttalelse 30. mars 2006 | E31: 0 | F31: 0 | G31: 0
A32: Spesifikasjoner av pliktig regnskapsrapportering | F32: 0
B33: Det er ikke et krav om at spesifikasjoner av pliktig regnskapsrapportering skal utarbeides, men at den bokføringspliktige skal være i stand til å kunne utarbeide det. Dette forutsetter følgende: - Spesifikasjoner må kunne utarbeides like lenge som de skal lagres. Opplysninger som er nødvendige for utarbeidelsen må derfor oppbevares like lenge som spesifikasjonene skal lagres. - Dato for utarbeidelse må fremgå av spesifikasjonene - Lukking av regnskapsperioder må skje på en måte som gir tilstrekkelig sikkerhet mot endring eller sletting av bokførte opplysninger. | D33: bkfl. § 5 bkfl. § 13, 1. ledd pkt 2 BF § 3-1, 2. ledd BF § 7-6 | E33: Denne endringen gjelder for regnskapsår påbegynt etter 31.12.2012, og for tidligere regnskapsår hvor den bokføringspliktige hadde regnskapssystem som oppfylte kravene til stenging.
B34: Skattedirektoratet har uttalt at spesifikasjoner av pliktig regnskapsrapportering kan utarbeides i et regnearkprogram når de bokførte opplysningene hentes direkte fra regnskapssystemet, forutsatt tilstrekkelige sikringstiltak. | D34: Prinsipputtalelse 01.07.2021
B35: Poster kan fremkomme som totaler dersom transaksjoner og andre regnskapsmessige disposisjoner fremkommer enkeltvis og oppsummert i underliggende spesifikasjon, og er kontrollerbare mot totalene. | D35: BF § 3-1, 5. ledd | S35: unntak for kunde- og leverandørspesifikasjoner er fjernet ved forskriftsendring
A36: =1+A31 -> 5 | B36: Bokføringsspesifikasjon Inneholder spesifikasjonen alle bokførte opplysninger pr. periode? | D36: bkfl. § 5, 1. ledd nr. 1 NBS 8 | E36: 0 | F36: 0 | G36: 0
A37: =+A36+1 -> 6 | B37: Fremgår postene i ordnet rekkefølge med dokumentasjonsdato, dokumentasjonshenvisning, tilordningskoder, mva-koder og andre relevante behandlingskoder? | D37: BF § 3-1, 1. ledd nr. 1 | E37: =IF(I37<>"",1,0) -> 0 | F37: =IF(J37<>"",1,0) -> 0 | G37: =IF(K37<>"",1,0) -> 0 | H37: =IF(SUM(E37:G37)>1,"Velg kun et alt.","") -> 
A38: 7 | B38: Er systemgenererte poster lett kontrollerbare? | E38: 0 | F38: 0 | G38: 0
A39: 8 | B39: Kontospesifikasjon Inneholder spesifikasjonen alle kontoer pr. periode? | D39: bkfl. § 5, 1. ledd nr. 2 | E39: 0 | F39: 0 | G39: 0
A40: 9 | B40: Er det for hver konto angitt: • Kontokode og kontonavn? | D40: BF § 3-1, 1. ledd nr. 2 | E40: 0 | F40: 0 | G40: 0
A41: 10 | B41: • Alle poster i ordnet rekkefølge med dokumentasjonsdato og dokumentasjonshenvisning samt andre relevante behandlingskoder? | E41: 0 | F41: 0 | G41: 0
A42: 11 | B42: • Inn- og utgående saldo?
A43: 12 | B43: • Kan inngående og utgående merverdiavgift spesifiseres pr transaksjon? | D43: BF § 3-1, 1. ledd nr. 2 | E43: 0 | F43: 0 | G43: 0
B44: Kundespesifikasjon
A45: =+A43+1 -> 13 | B45: Inneholder spesifikasjonen alle transaksjoner med kunder pr. periode? | D45: bkfl. § 5, 1. ledd nr. 3 BF § 3-1, 1. ledd nr. 3 | E45: =IF(I45<>"",1,0) -> 0 | F45: =IF(J45<>"",1,0) -> 0 | G45: =IF(K45<>"",1,0) -> 0 | H45: =IF(SUM(E45:G45)>1,"Velg kun et alt.","") -> 
A46: =+A45+1 -> 14 | B46: Fremgår følgende av spesifikasjonen: • Kundens kode og navn? | E46: 0 | F46: 0 | G46: 0
A47: 15 | B47: • Alle poster i ordnet rekkefølge med dokumentasjonsdato og dokumentasjonshenvisning? | E47: 0 | F47: 0 | G47: 0
A48: 16 | B48: • Inn- og utgående saldo? | E48: 0 | F48: 0 | G48: 0
A49: 17 | B49: Inneholder spesifikasjonen også kontantsalg av varer og tjenester • som er beregnet for videresalg? | D49: BF § 3-1, 2. ledd | E49: 0 | F49: 0 | G49: 0
A50: 18 | B50: • som skal brukes som direkte innsatsfaktor i produksjon eller tjenesteleveranse? | E50: 0 | F50: 0 | G50: 0
A51: 19 | B51: • der vederlaget utgjør mer enn kr 40 000 inkl mva? | E51: 0 | F51: 0 | G51: 0
B52: Bokføringspliktige som i hovedsak selger kontant, kan spesifisere slike salg og unntaksvise kredittsalg ved fremleggelse av kopier av salgsdokumentasjonen ordnet pr. kunde. | E52: 0 | F52: 0 | G52: 0
B53: Tilfeldige salg kan spesifiseres på felles kundekonto med relevante identifikasjonskoder slik at opplysningsplikten kan ivaretas.
B54: Leverandørspesifikasjon | E54: 0 | F54: 0 | G54: 0 | N54: =IF(J54<>"","Du har satt X for at forholdet ikke er avklart. Gi en nærmere foklaring i kommentarfeltet.","") -> 
A55: =+A51+1 -> 20 | B55: Inneholder spesifikasjonen alle transaksjoner med leverandører pr. periode? | D55: bkfl. § 5, 1. ledd nr. 4 BF § 3-1, 1. ledd nr. 4 | E55: =IF(I55<>"",1,0) -> 0 | F55: =IF(J55<>"",1,0) -> 0 | G55: =IF(K55<>"",1,0) -> 0 | H55: =IF(SUM(E55:G55)>1,"Velg kun et alt.","") -> 
A56: =+A55+1 -> 21 | B56: Fremgår følgende av spesifikasjonen: • Leverandørens kode, navn og organisasjonsnummer? (Org.nr. må bare fremkomme dersom det er levert varer/tjenester etter at loven er tatt i bruk) | E56: 0 | F56: 0 | G56: 0
A57: =+A56+1 -> 22 | B57: • Alle poster i ordnet rekkefølge med dokumentasjonsdato og dokumentasjonshenvisning? | E57: 0 | F57: 0 | G57: 0
A58: =+A57+1 -> 23 | B58: • Inn- og utgående saldo? | E58: 0 | F58: 0 | G58: 0
B59: Når det er utstedt felles salgsdokument etter § 8-15-1 (felles fakturering av nettjenester og elektrisk energi), kan transaksjonene registreres i leverandørspesifikasjonen over fakturautsteders konto.
B60: Inneholder spesifikasjonen også kontantkjøp av varer og tjenester | D60: BF § 3-1, 2. ledd | E60: 0 | F60: 0 | G60: 0
A61: =+A58+1 -> 24 | B61: • som er beregnet for videresalg? | E61: 0 | F61: 0 | G61: 0
A62: =+A61+1 -> 25 | B62: • som skal brukes som direkte innsatsfaktor i produksjon eller tjenestelevaranse? | E62: 0 | F62: 0 | G62: 0
A63: =+A62+1 -> 26 | B63: • der vederlaget utgjør mer enn kr 40 000 inkl mva? | E63: 0 | F63: 0 | G63: 0
B64: Tilfeldige kjøp kan spesifiseres på felles leverandørkonto med relevante identifikasjonskoder slik at opplysningsplikten kan ivaretas.
B65: Spesifikasjon av uttak til eiere, deltakere og egen virksomhet
A66: =+A63+1 -> 27 | B66: Inneholder spesifikasjonen alle uttak av eiendeler og tjenester spesifisert pr. eier, deltaker eller på egen virksomhet? | D66: bkfl. § 5, 1. ledd nr. 5 | E66: 0 | F66: 0 | G66: 0
A67: =+A66+1 -> 28 | B67: Vises uttakene i ordnet rekkefølge til virkelig verdi med dokumentasjonsdato og dokumentasjonshenvisning? | D67: BF § 3-1, 1. ledd nr. 5 | E67: 0 | F67: 0 | G67: 0
B68: Spesifikasjon av salg til eiere og deltakere i foretak med færre enn 10 eiere eller deltakere
A69: =+A67+1 -> 29 | B69: Inneholder spesifikasjonen alle salg av varer og tjenester spesifisert pr. eier eller deltaker? | D69: bkfl. § 5, 1. ledd nr. 6 | E69: =IF(I69<>"",1,0) -> 0 | F69: 0 | G69: 0 | H69: =IF(SUM(E69:G69)>1,"Velg kun et alt.","") -> 
A70: =+A69+1 -> 30 | B70: Vises salget i ordnet rekkefølge til virkelig verdi med dokumentasjonsdato og dokumentasjonshenvisning? | D70: BF § 3-1, 1. ledd nr. 6 | E70: 0 | F70: 0 | G70: 0 | H70: =IF(SUM(E70:G70)>1,"Velg kun et alt.","") -> 
B71: (Kravet gjelder selv om eier eller deltaker opptrer som forbruker.) | F71: =IF(J71<>"",1,0) -> 0
B74: Spesifikasjon av salg og andre ytelser til ledende ansatte
B75: Med ledende ansatte forstås daglig leder, butikksjefer, avdelingssjefer og andre som har bestemmende myndighet over prisfastsettelsen knyttet til eget kjøp av varer og tjenester. Kravet gjelder selv om den ledende ansatte opptrer som forbruker. Bokføringspliktige som i hovedsak selger kontant, kan spesifisere slike salg og unntaksvise kredittsalg til ledende ansatte ved fremleggelse av kopier av salgsdokumentasjonen spesifisert pr kunde (dvs pr ledende ansatt). | D75: BF § 3-1, 1. ledd nr. 7 BF § 3-1, 2. ledd
A76: =+A70+1 -> 31 | B76: Inneholder spesifikasjonen alle salg av varer og tjenester spesifisert pr. ansatt? | D76: bkfl. § 5, 1. ledd nr. 7 | E76: =IF(I76<>"",1,0) -> 0 | F76: 0 | G76: 0 | H76: =IF(SUM(E76:G76)>1,"Velg kun et alt.","") -> 
A77: =+A76+1 -> 32 | B77: Vises salget i ordnet rekkefølge til virkelig verdi med dokumentasjonsdato og dokumentasjonshenvisning? | D77: BF § 3-1, 1. ledd nr. 7 | E77: 0 | F77: 0 | G77: 0 | H77: =IF(SUM(E77:G77)>1,"Velg kun et alt.","") -> 
B78: Spesifikasjon av merverdiavgift | E78: 0 | F78: 0 | G78: 0 | H78: =IF(SUM(E78:G78)>1,"Velg kun et alt.","") ->  | N78: =IF(J78<>"","Du har satt X for at forholdet ikke er avklart. Gi en nærmere foklaring i kommentarfeltet.","") -> 
B79: Fra 01.01.2017 ble merverdiavgiftsloven endret slik at det stilles krav om at avgiftssubjektet selv skal beregne merverdiavgift ved innførsel av varer. Som en følge av dette ble det foreslått en endring i bokføringsforskriftens krav til spesifikasjon av merverdiavgift og dokumentasjon av grunnlaget for beregning av merverdiavgift ved innførsel av varer. | D79: Høringsnotat - Endringer i bokføringsforskriften mv. punkt 2.5 | S79: Tatt med dette som endringer, men skrevet inn innledningsvis hvorfor det er tatt med og fra hvilket tidspunkt det gjelder
B80: Endringene i bokføringsforskriften ble først formelt vedtatt ved forskrift 27.06.2024, med virkning fra 01.03.2025, men GBS 9 "Spesifikasjon av grunnlaget for inngående merverdiavgift ved innførsel av varer samt dokumentasjons- og oppbevaringskrav" ble oppdatert allerede i desember 2016 på grunnlag av de foreslåtte endringene. Vi har tidligere valgt å innarbeide forskriftstekst fra høringsforslaget fra 2016 i sjekklisten, dette er nå oppdatert til vedtatt forskriftstekst, selv om endringene først formelt trer i kraft fra 01.03.2025. | D80: GBS 9
A81: =+A77+1 -> 33 | B81: Inneholder spesifikasjonen grunnlaget for utgående merverdiavgift, fradragsberettiget innenlands inngående merverdiavgift og fradragsberettiget innførselsmerverdiavgift, fordelt på de forskjellige avgiftssatsene spesifisert pr. termin etter beløp per konto og totalt i regnskapssystemet? | D81: BF § 3-1, 1. ledd nr. 8 a
A82: =+A81+1 -> 34 | B82: Viser spesifikasjonen også innenlands omsetning og uttak fritatt for merverdiavgift, utførsel av varer og tjenester fritatt for merverdiavgift, innenlands omsetning med omvendt avgiftsplikt, samt omsetning og uttak som faller utenfor avgiftsområdet? | D82: BF § 3-1, 1. ledd nr. 8 b | E82: =IF(I82<>"",1,0) -> 0 | F82: =IF(J82<>"",1,0) -> 0 | G82: =IF(K82<>"",1,0) -> 0 | H82: =IF(SUM(E82:G82)>1,"Velg kun et alt.","") -> 
A83: 35 | B83: Viser spesifikasjonen også kjøp med omvendt avgiftsplikt, fordelt på tjenester kjøpt fra utlandet og innenlands kjøp av varer og tjenester? | D83: BF § 3-1, 1. ledd nr. 8 c
A84: 36 | B84: Er beløpene i spesifikasjonene i pkt a-c vist pr konto og totalt? | D84: BF § 3-1, 1. ledd nr. 8 pkt d | S84: Denne er lagt inn på egen linje (sto tidligere under spørsmål 33)
A85: 37 | B85: Kan avgiftsgrunnlaget for utgående merverdiavgift spesifiseres pr. transaksjon? | D85: BF § 3-1, 1. ledd nr. 8 d | E85: =IF(I85<>"",1,0) -> 0 | F85: =IF(J85<>"",1,0) -> 0 | G85: =IF(K85<>"",1,0) -> 0 | H85: =IF(SUM(E85:G85)>1,"Velg kun et alt.","") -> 
A86: 38 | B86: Viser spesifikasjonen eventuelle forskjeller mellom beregnet grunnlag i henhold til kontospesifikasjonen og innberettet avgiftsgrunnlag, spesifisert pr transaksjon for hver avgiftssats ? | D86: BF § 3-1, 1. ledd nr. 8 d
A87: 39 | B87: Viser spesifikasjonen i tillegg grunnlaget for beregning av merverdiavgift ved innførsel av varer fordelt på de forskjellige avgiftssatsene, samt grunnlag knyttet til innførsel av varer som det ikke skal beregnes merverdiavgift av? | D87: BF § 3-1, 1. ledd nr. 8 e
B88: Spesifikasjon av lønnsopplysningspliktige ytelser
A89: =+A87+1 -> 40 | B89: Inneholder spesifikasjonen lønnsopplysningspliktige ytelser spesifisert pr. periode etter kontoene i regnskapssystemet? | D89: bkfl. § 5, 2. ledd nr. 2 | E89: =IF(I89<>"",1,0) -> 0 | F89: 0 | G89: 0 | H89: =IF(SUM(E89:G89)>1,"Velg kun et alt.","") -> 
A90: =+A89+1 -> 41 | B90: Kan arbeidsgiveravgiftspliktige ytelser gjengis samlet, pr. avgiftssats og kommune? | D90: BF § 3-1, 1. ledd nr. 9 | E90: 0 | F90: 0 | G90: 0 | H90: =IF(SUM(E90:G90)>1,"Velg kun et alt.","") -> 
B91: Elimineringer og andre posteringer ved utarbeidelse av konsernregnskap
A92: =+A90+1 -> 42 | B92: Er alle elimineringer og andre posteringer ved utarbeidelse av konsernregnskap spesifisert? | D92: bkfl. § 5, 2. ledd nr 3
A93: =+A92+1 -> 43 | B93: Er alle poster spesifisert enkeltvis med dokumentasjonshenvisning? | D93: BF § 3-1, nr 10
B94: Underspesifikasjoner
A95: =+A93+1 -> 44 | B95: Dersom poster fremkommer som totaler i bokførings- eller kontospesifikasjoner, fremkommer da transaksjonene og andre regnskapsmessige disposisjoner enkeltvis og oppsummert i underliggende spesifikasjon? | D95: Artikkel i R&R nr 5>2010, jf. BSS sin gjennomgang delrapport II punkt 12
A96: =+A95+1 -> 45 | B96: Er underspesifikasjonene kontrollerbare mot totalene?
B97: Dato for utarbeidelse av spesifikasjoner
A98: =+A96+1 -> 46 | B98: Fremgår dato for utarbeidelse av spesifikasjoner av pliktig regnskapsrapportering direkte av spesifikasjonene? | D98: BF § 3-1, 7. ledd
A99: Sporbarhet
A100: =+A98+1 -> 47 | B100: Kan bokførte opplysninger lett følges fra dokumentasjon via spesifikasjoner frem til pliktig regnskapsrapportering? | D100: bkfl. § 6, 1. ledd | H100: =IF(SUM(E100:G100)>1,"Velg kun et alt.","") -> 
A101: =+A100+1 -> 48 | B101: Er det mulig med utgangspunkt i pliktig regnskapsrapportering på en lett kontrollerbar måte å finne tilbake til dokumentasjonen av de enkelte bokførte opplysningene? | D101: bkfl. § 6, 1. ledd | H101: =IF(SUM(E101:G101)>1,"Velg kun et alt.","") -> 
A102: =+A101+1 -> 49 | B102: I de tilfellene det er nødvendig for å kunne kontrollere bokførte opplysninger på en enkel måte, foreligger det dokumentasjon av kontrollsporet, herunder hvordan systemgenererte poster kan etterprøves? | H102: =IF(SUM(E102:G102)>1,"Velg kun et alt.","") -> 
A103: =+A102+1 -> 50 | B103: Er dokumentasjonen nummerert eller identifisert på annen måte som gjør det mulig å kontrollere at den er fullstendig? Departementet kan ved enkeltvedtak gjøre unntak fra kravet i annet ledd om nummerering av dokumentasjon. | D103: bkfl. § 6, 2. ledd bkfl. § 6, 4. ledd
A104: =+A103+1 -> 51 | B104: Når foretaket har dokumentasjon både elektronisk og på papir, foreligger det en redegjørelse for hva som er originaldokumentasjonen? | E104: =IF(I104<>"",1,0) -> 0 | F104: 0 | G104: 0 | H104: =IF(SUM(E104:G104)>1,"Velg kun et alt.","") -> 
A105: =+A104+1 -> 52 | B105: Dersom den bokføringspliktige har eget lønnsystem, foreligger det en lettfattelig systembeskrivelse av lønnssystemets oppbygging og funksjoner? | D105: bkfl. § 6, 2. ledd BF § 5-6, 7. ledd | E105: 0 | F105: 0 | G105: 0 | H105: =IF(SUM(E105:G105)>1,"Velg kun et alt.","") -> 
A106: Ajourhold
A107: =+A105+1 -> 53 | B107: Er bokføringen tilfredsstillende à jour sett hen til virksomhetens og transaksjonenes art og omfang? | D107: bkfl. § 7, 2. ledd | E107: =IF(I107<>"",1,0) -> 0 | F107: 0 | G107: 0 | H107: =IF(SUM(E107:G107)>1,"Velg kun et alt.","") -> 
A108: =+A107+1 -> 54 | B108: Er bokføringen à jour innen fristene for pliktig regnskapsrapportering? | E108: 0 | F108: 0 | G108: 0 | H108: =IF(SUM(E108:G108)>1,"Velg kun et alt.","") -> 
B109: Pliktig regnskapsrapportering på lønnsområdet medfører ikke plikt til å ajourføre bokføringen, med mindre det er annen pliktig regnskapsrapportering i perioden.
A110: =+A108+1 -> 55 | B110: For bokføringspliktige som ikke har pliktig regnskapsrapportering gjennom året, men har mer enn 600 bilag, er bokføringen à jour hver fjerde måned? Ved kjøp og salg av verdipapirer skal hvert enkelt kjøp og salg medregnes som bilag ifht denne bestemmelsen. | D110: BF § 4-1 | E110: =IF(I110<>"",1,0) -> 0 | F110: 0 | G110: 0 | H110: =IF(SUM(E110:G110)>1,"Velg kun et alt.","") -> 
A111: =+A110+1 -> 56 | B111: Er kontanttransaksjoner registrert daglig, med mindre det benyttes fast kasse? | D111: bkfl. § 7, 3. ledd | E111: 0 | F111: 0 | G111: 0 | H111: =IF(SUM(E111:G111)>1,"Velg kun et alt.","") -> 
A112: Bokføring i annen valuta enn norske kroner
A113: =+A111+1 -> 57 | B113: Dersom bokføringen skjer i annen valuta enn norske kroner, er vilkårene for å benytte funksjonell valuta oppfylt? | D113: bkfl. § 8 BF § 4-2, 1. ledd | E113: =IF(I113<>"",1,0) -> 0 | F113: =IF(J113<>"",1,0) -> 0 | G113: =IF(K113<>"",1,0) -> 0 | H113: =IF(SUM(E113:G113)>1,"Velg kun et alt.","") -> 
B114: (Funksjonell valuta er den valuta som den bokføringspliktiges økonomiske virksomhet i hovedsak er knyttet til.)
A115: =+A113+1 -> 58 | B115: Har foretaket filialer i utlandet, benyttes da fremmed valuta ved bokføringen? | E115: =IF(I115<>"",1,0) -> 0 | F115: 0 | G115: 0 | H115: =IF(SUM(E115:G115)>1,"Velg kun et alt.","") -> 
A116: =+A115+1 -> 59 | B116: Ved bokføring i utenlandsk valuta, er • beløp som inngår i pliktig rapportering knyttet til merverdiavgift fastlåst i norske kroner til kursen på fakturatidspunktet? | E116: 0 | F116: 0 | G116: 0
A117: =+A116+1 -> 60 | B117: • beløp som inngår i pliktig rapportering knyttet til lønn fastlåst i norske kroner til kursen på utbetalingstidspunktet? | E117: =IF(I117<>"",1,0) -> 0 | F117: 0 | G117: 0
A118: =+A117+1 -> 61 | B118: • beløp knyttet til eiendeler og gjeld hvor skatteloven har egne vurderingsregler om valuta, fastlåst i norske kroner til transaksjonsdagens kurs? | E118: 0 | F118: 0 | G118: 0
A119: =+A118+1 -> 62 | B119: Omregnes beløp som inngår i pliktig regnskapsrapportering til norske kroner minst en gang i året ved bruk av gjennomsnittskurser? | D119: BF § 4-2, 3. ledd | E119: =IF(I119<>"",1,0) -> 0 | F119: 0 | G119: 0
A120: =+A119+1 -> 63 | B120: Er det dokumentert hvordan omregningen har skjedd og hvilke kurser som er benyttet? | E120: 0 | F120: 0 | G120: 0 | N120: =IF(J120<>"","Du har satt X for at forholdet ikke er avklart. Gi en nærmere foklaring i kommentarfeltet.","") -> 
A121: Bokføringspliktige som ikke utarbeider balanse ved pliktig regnskapsrapportering til skattemyndighetene
A122: =+A120+1 -> 64 | B122: Er kursen på transaksjonstidspunktet benyttet ved omregning til norske kroner? | D122: BF § 4-2, 4. ledd | E122: =IF(I122<>"",1,0) -> 0 | F122: 0 | G122: 0 | H122: =IF(SUM(E122:G122)>1,"Velg kun et alt.","") -> 
A123: =+A122+1 -> 65 | B123: Dersom månedens offisielle gjennomsnittskurs er benyttet fordi kursen i perioden ikke har avvik på mer enn 5 %, er store enkelttransaksjoner likevel omregnet til transaksjonsdagens kurs? | E123: 0 | F123: 0 | G123: 0 | H123: =IF(SUM(E123:G123)>1,"Velg kun et alt.","") -> 
A124: Retting av bokførte opplysninger
A125: =+A123+1 -> 66 | B125: Etter at bokføringen er ajourført, er retting skjedd med ny dokumentert postering? | D125: bkfl. § 9, 1. ledd | E125: =IF(I125<>"",1,0) -> 0 | F125: 0 | G125: 0 | H125: =IF(SUM(E125:G125)>1,"Velg kun et alt.","") -> 
A126: =+A125+1 -> 67 | B126: Er hele den opprinnelige posteringen reversert? | E126: 0 | F126: 0 | G126: 0 | H126: =IF(SUM(E126:G126)>1,"Velg kun et alt.","") -> 
A127: =+A126+1 -> 68 | B127: Er det praktisk mulig å påføre en gjensidig referanse mellom den nye og den opprinnelige dokumentasjonen? | D127: BF § 5-12 | E127: 0 | F127: 0 | G127: 0 | H127: =IF(SUM(E127:G127)>1,"Velg kun et alt.","") -> 
A128: =+A127+1 -> 69 | B128: Fremgår det av dokumentasjonen eller spesifikasjonen når en bokført opplysning er slettet? | D128: bkfl. § 9, 2. ledd | E128: 0 | F128: 0 | G128: 0 | H128: =IF(SUM(E128:G128)>1,"Velg kun et alt.","") -> 
A129: Dokumentasjon av bokførte opplysninger
A130: =+A128+1 -> 70 | B130: Er bokførte opplysninger dokumentert? | D130: bkfl. § 10, 1. ledd | E130: 0 | F130: 0 | G130: 0 | H130: =IF(SUM(E130:G130)>1,"Velg kun et alt.","") -> 
A131: =+A130+1 -> 71 | B131: Er dokumentasjonen utstedt med et korrekt og fullstendig innhold som viser de bokførte opplysningenes berettigelse? | E131: =IF(I131<>"",1,0) -> 0 | F131: =IF(J131<>"",1,0) -> 0 | G131: =IF(K131<>"",1,0) -> 0 | H131: =IF(SUM(E131:G131)>1,"Velg kun et alt.","") -> 
A132: =+A131+1 -> 72 | B132: Er dokumentasjonen sikret mot endringer etter utstedelse? | E132: 0 | F132: 0 | G132: 0
A133: =+A132+1 -> 73 | B133: Dersom dokumentasjonen består av flere dokumenter, er det referanser fra primærdokumentet til de øvrige dokumentene? | E133: 0 | F133: 0 | G133: 0
B134: Dokumentasjon av salg av varer og tjenester
B135: Inneholder dokumentasjonen minst: | D135: BF § 5-1-1
A136: =+A133+1 -> 74 | B136: 1. Nummer og dokumentasjonsdato? Plikten til nummerering av salgsdokument, jfr §5-1-1 nr 1, gjelder ikke konkursbo. | D136: BF § 5-1-1 BF § 5-1-3, 5. ledd | E136: 0 | F136: 0 | G136: 0 | N136: =IF(J136<>"","Du har satt X for at forholdet ikke er avklart. Gi en nærmere foklaring i kommentarfeltet.","") -> 
A137: =+A136+1 -> 75 | B137: 2. Angivelse av partene? Salgsdokument skal utstedes til det subjektet som inngår avtale/kontrakt om kjøp av varer eller tjenester, eventuelt den fysiske eller juridiske personen vedkommende opptrer på vegne av på avtaletidspunktet etter fullmakt. | D137: Skds uttalelse 23.05.2023 | E137: 0 | F137: 0 | G137: 0 | N137: =IF(J137<>"","Du har satt X for at forholdet ikke er avklart. Gi en nærmere foklaring i kommentarfeltet.","") -> 
A138: =+A137+1 -> 76 | B138: 3. Ytelsens art og omfang? | D138: Skds uttalelser 21. juni 2006 og 1. nov 2007 | E138: 0 | F138: 0 | G138: 0 | N138: =IF(J138<>"","Du har satt X for at forholdet ikke er avklart. Gi en nærmere foklaring i kommentarfeltet.","") -> 
B139: Ved kontantsalg fra detaljist kan enkeltinnslag angis per varegruppe dersom detaljert beskrivelse av art vanskelig lar seg gjennomføre. Selger plikter i slike tilfeller å utstede ytterligere spesifikasjon dersom kjøper ber om dette. | D139: BF § 5-3-12, 4. ledd
B140: Merverdiavgiftskompensasjonsloven - dokumentasjonskrav for organisasjoner og private virksomheter som fakturerer kommunene for omsorgstjenester eller sosiale tjenester/barnevernstjenester: For at salgsdokumentet skal kunne dokumentere at det ikke skal beregnes merverdiavgift på salget må salgsdoumentet kunne kobles mot kommunenes vedtak eller annen dokumentasjon som gir tilsvarende informasjon | D140: Prinsipputtalelse 08.04.2022
A141: =+A138+1 -> 77 | B141: 4. Tidspunkt og sted for leving av ytelsen? (Plikt til å angi leveringsdato gjelder ikke når varen ekspederes gjennom speditør, ved postordre og lignende og salgsdokument følger forsendelsen.) | D141: BF § 5-1-4 | E141: 0 | F141: 0 | G141: 0 | N141: =IF(J141<>"","Du har satt X for at forholdet ikke er avklart. Gi en nærmere foklaring i kommentarfeltet.","") -> 
A142: 78 | B142: 5. Vederlag og betalingsforfall? | E142: 0 | F142: 0 | G142: 0 | N142: =IF(J142<>"","Du har satt X for at forholdet ikke er avklart. Gi en nærmere foklaring i kommentarfeltet.","") -> 
B143: Vederlaget i salgsdokumentet skal ikke avrundes ved elektronisk betaling. Ved kontant betaling med sedler og mynter skal totalvederlaget avrundes til nærmeste hele krone. | D143: Skds uttalelse 13. juni 2019
A144: =+A142+1 -> 79 | B144: 6. Eventuell merverdiavgift og andre avgifter knyttet til transaksjonen som kreves spesifisert i lov eller forskrift? | E144: 0 | F144: 0 | G144: 0 | N144: =IF(J144<>"","Du har satt X for at forholdet ikke er avklart. Gi en nærmere foklaring i kommentarfeltet.","") -> 
A145: 80 | B145: Er merverdiavgift angitt i norske kroner? | D145: Skds uttalelse 25. sept 2006 | E145: 0 | F145: 0 | G145: 0 | N145: =IF(J145<>"","Du har satt X for at forholdet ikke er avklart. Gi en nærmere foklaring i kommentarfeltet.","") -> 
A146: =+A145+1 -> 81 | B146: Har kjøpere som skal beregne og betale merverdiavgift etter mval. §11-1 annet ledd, og merket salgsdokumentet ”Omvendt avgiftsplikt – Merverdiavgift ikke beregnet”? | D146: BF § 5-1-1 nr. 7 | E146: =IF(I146<>"",1,0) -> 0 | F146: =IF(J146<>"",1,0) -> 0 | G146: =IF(K146<>"",1,0) -> 0 | H146: =IF(SUM(E146:G146)>1,"Velg kun et alt.","") ->  | N146: =IF(J146<>"","Du har satt X for at forholdet ikke er avklart. Gi en nærmere foklaring i kommentarfeltet.","") -> 
A147: =+A146+1 -> 82 | B147: Er salgsdokumentet utstedt på norsk, svensk, dansk eller engelsk? Bokføringspliktige med filialer i utlandet kan utstede filialens salgsdokument på det lokale språket. | D147: BF § 5-1-1a
A148: =+A147+1 -> 83 | B148: Er kjøper angitt med navn, og adresse eller organisasjonsnummer? | D148: BF § 5-1-2, 1. ledd Skds uttalelse 2. mars 2010 Skds uttalelse 19.01.2015 | E148: =IF(I148<>"",1,0) -> 0 | F148: 0 | G148: 0 | H148: =IF(SUM(E148:G148)>1,"Velg kun et alt.","") ->  | N148: =IF(J148<>"","Du har satt X for at forholdet ikke er avklart. Gi en nærmere foklaring i kommentarfeltet.","") -> 
B149: Ved kontant salg fra detaljist kan kjøpers navn unnlates påført dokumentasjonen. Dette gjelder likevel ikke når kjøper er bokføringspliktig, herunder når en ansatt kjøper på vegne av sin bokføringspliktige arbeidsgiver og: • Vederlaget er over kr 1000 inkl mva og varen eller tjenesten er beregnet for videresalg • Vederlaget er over kr 1000 inkl mva og varen eller tjenesten skal brukes som direkte innsatsfaktor i produksjon eller tjenesteleveranse • Kjøpet gjelder drivstoff til bruk i person-eller varetransport • Blir betalt med kontanter for et beløp på kr 40 000 eller mer inkl mva | D149: BF § 5-3-12, 3. ledd | E149: 0 | F149: 0 | G149: 0 | H149: =IF(SUM(E149:G149)>1,"Velg kun et alt.","") ->  | N149: =IF(J149<>"","Du har satt X for at forholdet ikke er avklart. Gi en nærmere foklaring i kommentarfeltet.","") -> 
A150: =+A148+1 -> 84 | B150: Har selger rutiner for å angi kjøper på dennes dokumentasjon, med signatur og stempel, dersom kjøper anmoder om det? | E150: 0 | F150: 0 | G150: 0 | H150: =IF(SUM(E150:G150)>1,"Velg kun et alt.","") ->  | N150: =IF(J150<>"","Du har satt X for at forholdet ikke er avklart. Gi en nærmere foklaring i kommentarfeltet.","") -> 
A151: =+A150+1 -> 85 | B151: Omfatter angivelse av selger minst navn og organisasjonsnummer, samt MVA dersom selger er registrert i merverdiavgiftsmanntallet? | D151: BF § 5-1-2, 2. ledd Skds uttalelse 25. sept 2006 | E151: 0 | F151: 0 | G151: 0 | H151: =IF(SUM(E151:G151)>1,"Velg kun et alt.","") ->  | N151: =IF(J151<>"","Du har satt X for at forholdet ikke er avklart. Gi en nærmere foklaring i kommentarfeltet.","") -> 
B152: Dersom selger er aksjeselskap, allmennaksjeselskap eller filial av utenlandsk selskap, fremgår følgende av salgsdokumentet: | D152: BF § 5-1-2, 2. ledd jf Foretaks-registerloven § 10-2
A153: =+A151+1 -> 86 | B153: • Ordet "Foretaksregisteret"?
A154: =+A153+1 -> 87 | B154: • Hovedkontorets adresse?
A155: 88 | B155: • Når det er aktuelt, at selger er under avvikling?
A156: 89 | B156: Er salgsdokumentet merket på en av følgende måter: • Forhåndsnummerert på trykte blanketter? (kvitteringsblokker fra bokhandler el. kan kun benyttes dersom det er tilstrekkelig med én blokk innenfor et år eller over flere år) • Nummerert ved maskinelt tildelte nummer med en kontrollerbar sekvens? • Merket på en annen måte slik at fullstendig registrering av utfakturerte salg kan etterprøves på en enkel måte? | D156: BF § 5-1-3, 1. ledd Skds uttalelse 30.11.2012 Skds uttalelse 26. okt 2006, 5. febr 2007 og 24. april 2007 | E156: =IF(I156<>"",1,0) -> 0 | F156: =IF(J156<>"",1,0) -> 0 | G156: =IF(K156<>"",1,0) -> 0 | H156: =IF(SUM(E156:G156)>1,"Velg kun et alt.","") ->  | N156: =IF(J156<>"","Du har satt X for at forholdet ikke er avklart. Gi en nærmere foklaring i kommentarfeltet.","") -> 
A157: 90 | B157: Har bokføringspliktige kjøpere som utsteder salgsdokumentasjon på vegne av selger etter BF § 5-2-1 tredje ledd, i stedet for fortløpende nummerering av hver enkelt selgers salgsdokument, anført hvor mye som er avregnet hittil i regnskapsåret? | D157: BF § 5-1-3, 2. ledd | E157: 0 | F157: 0 | G157: 0 | N157: =IF(J157<>"","Du har satt X for at forholdet ikke er avklart. Gi en nærmere foklaring i kommentarfeltet.","") -> 
A158: 91 | B158: Fremgår avgiftspliktig og avgiftsfritt salg, samt salg utenfor avgiftsområdet, hver for seg med særskilt summering? | D158: BF § 5-1-5 Skds uttalelse 25. sept 2006 | E158: 0 | F158: 0 | G158: 0 | N158: =IF(J158<>"","Du har satt X for at forholdet ikke er avklart. Gi en nærmere foklaring i kommentarfeltet.","") -> 
A159: 92 | B159: Er avgiftspliktig salg som avgiftsberegnes etter forskjellige satser spesifisert og summert for seg? | D159: Skds uttalelse 9. februar 2010 | E159: 0 | F159: 0 | G159: 0 | N159: =IF(J159<>"","Du har satt X for at forholdet ikke er avklart. Gi en nærmere foklaring i kommentarfeltet.","") -> 
A160: 93 | B160: Er sykkelens kjennemerke angitt i dokumentasjonen ved salg av beltemotorsykkel, firehjuls terrenggående motorsykkel eller salg av tjenester til vedlikehold, reparasjon, påkostning og ombygging av slike samt omsetning av varer ved utføring av slike tjenester? | D160: BF § 5-1-7 | E160: 0 | F160: 0 | G160: 0 | N160: =IF(J160<>"","Du har satt X for at forholdet ikke er avklart. Gi en nærmere foklaring i kommentarfeltet.","") -> 
B161: Selger som er registrert med representant
A162: =+A160+1 -> 94 | B162: Omfatter dokumentasjonen også representantens navn og adresse? | D162: BF § 5-1-2, 2. ledd | E162: 0 | F162: 0 | G162: 0 | N162: =IF(J162<>"","Du har satt X for at forholdet ikke er avklart. Gi en nærmere foklaring i kommentarfeltet.","") -> 
B163: Utstedelse av salgsdokument
A164: =+A162+1 -> 95 | B164: Er salgsdokumentet utstedt av selger, med mindre annet er tillatt etter lov eller forskrift? | D164: BF § 5-2 BF § 5-2-1, 1. ledd | E164: =IF(I164<>"",1,0) -> 0 | F164: =IF(J164<>"",1,0) -> 0 | G164: =IF(K164<>"",1,0) -> 0 | H164: =IF(SUM(E164:G164)>1,"Velg kun et alt.","") ->  | N164: =IF(J164<>"","Du har satt X for at forholdet ikke er avklart. Gi en nærmere foklaring i kommentarfeltet.","") -> 
B165: Følgende bokføringspliktige kjøpere kan utstede salgsdokument på vegne av selger: • Kjøpere av varer og tjenester fra ikke bokføringspliktige selgere • Foreninger og samvirkelag som hovedsakelig tilvirker eller forhandler produkter fra medlemmenes fiske, skogbruk eller gårdsbruk med binæringer, samt hagebruk, gartneri, husdyrhold og reindrift, og som foretar avregning ved alle sine kjøp av produkter fra medlemmer og ikke-medlemmer • Andre tilvirkere eller forhandlere som kjøper opp produkter som nevnt i punktet foran direkte fra produsent og som har tillatelse til å anføre avgift i salgsdokumentet etter § 15-14-1 tredje ledd i forskrift 15. desember 2009 nr. 1540 til merverdiavgiftsloven. • Husflidsutsalg som kjøper produkter fra hjemmeprodusenter av håndverks- og husflidsarbeid • Andre forretninger som kjøper opp produkter fra hjemmeprodusenter av håndverks- og husflidsarbeid og som har tillatelse til å anføre avgift i salgsdokumentet etter § 15-14-2 tredje ledd i forskrift 15. desember 2009 nr. 1540 til merverdiavgiftsloven . • Kjøpere som alene besitter hele eller deler av materialet for beregning av omfang, vekt, kvalitet eller lignende som grunnlag for utbetaling av provisjon eller annet vederlag til selgeren. | D165: BF § 5-2-1, 1. og 3. ledd | N165: =IF(J165<>"","Du har satt X for at forholdet ikke er avklart. Gi en nærmere foklaring i kommentarfeltet.","") -> 
B166: I tillegg kan en av partene i handelen utstede salgsdokumentet når det ved salg av vare mottas innbytte (kjøp). | D166: BF § 5-2-1, 2. ledd GBS 8
B167: Skattedirektoratet kan etter søknad tillate at også andre kjøpere utsteder salgsdokumentasjon på vegne av selger. | D167: BF § 5-2-8, 1. ledd
B168: Tidspunkt for utstedelse av salgsdokument og dokumentasjon av uttak
B169: Salgsdokument som utstedes innen de femten første virkedager i måneden, kan angi siste dato i foregående måned som dokumentasjonsdato, forutsatt at varen eller tjenesten er levert på dette tidspunkt. Gjelder tilsvarende ved utstedelse av dokumentasjon for uttak. Ved utleie av fast eiendom hvor det utstedes salgsdokumenter på papir for flere perioder på samme tidspunkt, kan dokumentasjonsdato settes lik forfallsdato. | D169: BF § 5-1-3, 4. ledd BF § 5-1-3, 3. ledd
A170: =+A164+1 -> 96 | B170: Er dokumentasjonen utstedt senest en måned etter levering? (Gjelder dersom ikke annet følger av spørsmålene 97 - 104.) | D170: BF § 5-2-2 | E170: =IF(I170<>"",1,0) -> 0 | F170: =IF(J170<>"",1,0) -> 0 | G170: =IF(K170<>"",1,0) -> 0 | H170: =IF(SUM(E170:G170)>1,"Velg kun et alt.","") ->  | N170: =IF(J170<>"","Du har satt X for at forholdet ikke er avklart. Gi en nærmere foklaring i kommentarfeltet.","") ->  | T170: intern henvisning
A171: =+A170+1 -> 97 | B171: Er dokumentasjonen utstedt snarest mulig etter uttakstidspunktet og senest innen femten virkedager i måneden etter at uttaket fant sted? | D171: BF § 5-2-2
A172: 98 | B172: Dersom den bokføringspliktige leverer årsoppgave eller årsterminoppgave etter skatteforvaltningsforskriften §§ 8-3-3 eller 8-3-7 - er dokumentasjonen utstedet senest det kalenderåret uttaket fant sted?
A173: 99 | B173: Dersom den bokføringspliktige leverer årsoppgave eller årsterminoppgave etter skatteforvaltningsforskriften §§ 8-3-3 eller 8-3-7 - er uttaket betryggende registert i perioden mellom uttakstidspunkt og dokumentasjonsutstedelse?
A174: 100 | B174: Er dokumentasjon utstedt senest i det kalenderår levering finner sted? (Gjelder for de som leverer årsoppgave eller årsterminoppgave for merverdiavgift) | E174: =IF(I174<>"",1,0) -> 0 | F174: 0 | G174: 0 | H174: =IF(SUM(E174:G174)>1,"Velg kun et alt.","") ->  | N174: =IF(J174<>"","Du har satt X for at forholdet ikke er avklart. Gi en nærmere foklaring i kommentarfeltet.","") -> 
A175: 101 | B175: Er leveranser som faktureres månedlig, fakturert innen femten virkedager etter leveringsmåneden? | D175: BF § 5-2-3 | E175: 0 | F175: 0 | G175: 0 | H175: =IF(SUM(E175:G175)>1,"Velg kun et alt.","") ->  | N175: =IF(J175<>"","Du har satt X for at forholdet ikke er avklart. Gi en nærmere foklaring i kommentarfeltet.","") -> 
A176: 102 | B176: Er tjenester som leveres løpende og varer som leveres i den forbindelse, fakturert senest en måned etter utløpet av den alminnelige oppgaveterminen, jf skatteforvaltningsforskriften § 8-3-1? (Utstedelse av salgsdokumentasjon for ubetydelige leveranser kan utsettes til neste termin.) | D176: BF § 5-2-4 | E176: 0 | F176: 0 | G176: 0 | H176: =IF(SUM(E176:G176)>1,"Velg kun et alt.","") ->  | N176: =IF(J176<>"","Du har satt X for at forholdet ikke er avklart. Gi en nærmere foklaring i kommentarfeltet.","") -> 
A177: 103 | B177: Er tjenester som leveres basert på måling av faktisk forbruk, fakturert minst en gang i året? (Salgsdokumentet skal så vidt mulig utstedes innenfor det kalenderår levering finner sted.) | D177: BF § 5-2-5 GBS 7 | E177: 0 | F177: 0 | G177: 0 | H177: =IF(SUM(E177:G177)>1,"Velg kun et alt.","") ->  | N177: =IF(J177<>"","Du har satt X for at forholdet ikke er avklart. Gi en nærmere foklaring i kommentarfeltet.","") -> 
A178: 104 | B178: Er tjenester som leveres etter anbud eller tilsvarende forhåndsavtalt pris, fakturert i henhold til avtale mellom partene? (Kan ikke benyttes dersom avtalt fakturering (betaling) avviker vesentlig fra reell fremdrift.) | D178: BF § 5-2-4 | E178: 0 | F178: 0 | G178: 0 | H178: =IF(SUM(E178:G178)>1,"Velg kun et alt.","") ->  | N178: =IF(J178<>"","Du har satt X for at forholdet ikke er avklart. Gi en nærmere foklaring i kommentarfeltet.","") -> 
B179: Løpende ytelser
B180: Salg av ikke avgiftspliktige tjenester som leveres løpende til fast beløp per periode, i henhold til skriftlig inngått avtale, kan dokumenteres med betalingsdokumentasjon og avtale. | D180: BF § 5-1-6a
A181: =+A178+1 -> 105 | B181: Har betalingsdokumentasjon referanse til avtalen?
A182: =+A181+1 -> 106 | B182: Inneholder avtalen alle opplysninger som nevnt i §5-1-1 (se spm 74 - 81) | T182: intern henvisning
B183: Medlemskontingenter
A184: =+A182+1 -> 107 | B184: Dersom ideelle organisasjoner har ikke avgiftspliktige medlemskontingenter som regnskapsmessig anses opptjent på betalingstidspunktet, og som ikke er dokumentert med salgsdokument ihht § 5-1-1, er medlemskontigentene dokumentert med betalingsdokumentasjon? | D184: BF § 5-1-6b | S184: Her var spørsmålsstillingen skrevet feil. Ingen faglig endring, derfor ikke lagt inn som endring
A185: =+A184+1 -> 108 | B185: Inneholder betalingsdokumentasjonen alle opplysningene som nevnt i §5-1-1 nr 2 - 5?
B186: Utstedelse av salgsdokument ved formidling
A187: =+A185+1 -> 109 | B187: Har formidler oversendt en gjenpart av salgsdokumentet til selger når formidleren har utstedet ett salgsdokument på vegne av selger? | D187: BF § 5-2-1a
A188: =+A187+1 -> 110 | B188: Formidler kan likevel utstede avregning til selger for dennes del av salget. - Inneholder slik avregning til den enkelte selger opplysningene som er angitt i salgsdokumentet til kjøper?
B189: Oversendelse av salgsdokument eller avregning til selger kan unnlates dersom selger utsteder et særskilt salgsdokument til formidler, på grunnlag av en skriftlig undertegnet avtale om dette.
A190: =+A188+1 -> 111 | B190: - Fremgår det av avtalen at dette gjelder formidling?
A191: =+A190+1 -> 112 | B191: - Oppbevares avtalen av både selger og formidler?
A192: =+A191+1 -> 113 | B192: - Er selgers salgsdokumentasjon tydelig merket "Formidling - ikke kjøpsdokumentasjon" og har en henvisnig til avtalen?
B193: Kreditnota - bonus for varekjøp utbetalt via et mellomledd
B194: Bonus for varekjøp utbetalt via et mellomledd (kjedeforening, medlemsforening e.l.) kan avgifts- og bokføringsmessig håndteres på samme måte som formidling av varer og tjenester. Salgsdokumentene (kreditnotaene) mellom partene må da tilpasses iht. Dette. Dersom dette er tilfelle for mellomleddet: | D194: Skds uttalelse 24.02.2020
A195: =+A192+1 -> 114 | B195: Når mellomleddet utsteder kreditnota til medlemmene på vegne av leverandørene, fremgår det hvilken leverandør dette gjelder, med angivelse av navn og organisasjonsnummer etterfulgt av bokstavene MVA?
A196: =+A195+1 -> 115 | B196: Oppbevarer mellomleddet dokumentasjon som viser hvordan mottatt bonus fra leverandørene fordeles på medlemmene, som del av sin dokumentasjon for bokføringen av bonus til medlemmene?
B197: Oversendelse av salgsdokument
A198: =+A196+1 -> 116 | B198: Oversendes salgsdokumentet uoppfordret til kjøper med mindre annet fremgår av skriftlig, undertegnet avtale mellom partene eller er bestemt i lov eller forskrift? | D198: BF § 5-2-1 4. ledd
B199: Filformat ved elektronisk utstedelse av salgsdokumenter
A200: =+A198+1 -> 117 | B200: Er elektroniske salgsdokumenter utsted i et filformat som ikke enkelt lar seg redigere i et allment kjent sluttbrukerverktøy for tekstbehandling, regneark, e-post mv uten at endringen fremgår direkte av salgsdokumentet? | D200: BF § 5-2-9
B201: Forbud mot forskuddsfakturering | S201: Overskriften er endret fra "Forskuddsfakturering" til "Forbud mot forskuddsfakturering" - for å lettere få fram at det finnes unntak fra dette forbudet. Ikke noe faglig endring, derfor ikke lagt inn som endring i endringssjekklisten
A202: =+A200+1 -> 118 | B202: Er salgsdokument for alle leveranser, med unntak som nevnt nedenfor, først utstedt inklusive merverdiavgift etter at den avgiftspliktige varen eller tjenesten er levert? | D202: BF § 5-2-6 GBS 13 Skds uttalelse 18. mai 2006, 3. mai 2007, 23. mai 2007, 9. februar 2010 og 20. juni 2011 | E202: =IF(I202<>"",1,0) -> 0 | F202: 0 | G202: 0 | H202: =IF(SUM(E202:G202)>1,"Velg kun et alt.","") ->  | N202: =IF(J202<>"","Du har satt X for at forholdet ikke er avklart. Gi en nærmere foklaring i kommentarfeltet.","") ->  | S202: veiledningstekst fra dette spørsmålet er flyttet ned til egne linjer og omarbeidet ihht forskriftsendring
B203: Unntak fra forbudet mot forskuddsfakturering: | S203: lagt inn ny overskrift for å få fram at dette er unntak fra forbudet
... 495 more rows

Sheet Ikke besvart (hidden)
E1: =COUNTIF(E2:E507,"=0")-F1 -> 300 | F1: =SUM(F2:F507) -> 0 | G1: Ikke besvart | H1: ='Sjekkliste for utfylling'!B2 -> 0 | I1: ='Sjekkliste for utfylling'!B3 -> 2024 | K1: Kommentarer
A2: ='Sjekkliste for utfylling'!A28 -> 1 | B2: =IF('Sjekkliste for utfylling'!I28<>"",1,0) -> 0 | C2: =IF('Sjekkliste for utfylling'!J28<>"",1,0) -> 0 | D2: =IF('Sjekkliste for utfylling'!K28<>"",1,0) -> 0 | E2: =SUM(B2:D2) -> 0 | G2: =IF($E2=0,'Sjekkliste for utfylling'!A28,"") -> 1 | H2: =IF($E2=0,'Sjekkliste for utfylling'!B28,"") -> Er alle opplysninger bokført som er nødvendige for å kunne utarbeide: • Pliktig regnskapsrapportering? | K2: =IF(E2=0,'Sjekkliste for utfylling'!L28," ") -> 0
A3: ='Sjekkliste for utfylling'!A29 -> 2 | B3: =IF('Sjekkliste for utfylling'!I29<>"",1,0) -> 0 | C3: =IF('Sjekkliste for utfylling'!J29<>"",1,0) -> 0 | D3: =IF('Sjekkliste for utfylling'!K29<>"",1,0) -> 0 | E3: 0 | G3: =IF($E3=0,'Sjekkliste for utfylling'!A29,"") -> 2 | H3: =IF($E3=0,'Sjekkliste for utfylling'!B29,"") -> • Spesifikasjoner av pliktig regnskapsrapportering (se spørsmålene 5 – 46)? | K3: =IF(E3=0,'Sjekkliste for utfylling'!L29," ") -> 0
A4: ='Sjekkliste for utfylling'!A30 -> 3 | B4: =IF('Sjekkliste for utfylling'!I30<>"",1,0) -> 0 | C4: =IF('Sjekkliste for utfylling'!J30<>"",1,0) -> 0 | D4: =IF('Sjekkliste for utfylling'!K30<>"",1,0) -> 0 | E4: 0 | G4: =IF($E4=0,'Sjekkliste for utfylling'!A30,"") -> 3 | H4: =IF($E4=0,'Sjekkliste for utfylling'!B30,"") -> • Andre pliktige spesifikasjoner - se også under "Bransjemessige forhold" for hver bransje | K4: =IF(E4=0,'Sjekkliste for utfylling'!L30," ") -> 0
A5: ='Sjekkliste for utfylling'!A31 -> 4 | B5: =IF('Sjekkliste for utfylling'!I31<>"",1,0) -> 0 | C5: =IF('Sjekkliste for utfylling'!J31<>"",1,0) -> 0 | D5: =IF('Sjekkliste for utfylling'!K31<>"",1,0) -> 0 | E5: 0 | G5: =IF($E5=0,'Sjekkliste for utfylling'!A31,"") -> 4 | H5: =IF($E5=0,'Sjekkliste for utfylling'!B31,"") -> Er bilagene fortløpende nummerert? | K5: =IF(E5=0,'Sjekkliste for utfylling'!L31," ") -> 0
A6: ='Sjekkliste for utfylling'!A36 -> 5 | B6: =IF('Sjekkliste for utfylling'!I36<>"",1,0) -> 0 | C6: =IF('Sjekkliste for utfylling'!J36<>"",1,0) -> 0 | D6: =IF('Sjekkliste for utfylling'!K36<>"",1,0) -> 0 | E6: 0 | G6: =IF($E6=0,'Sjekkliste for utfylling'!A36,"") -> 5 | H6: =IF($E6=0,'Sjekkliste for utfylling'!B36,"") -> Bokføringsspesifikasjon Inneholder spesifikasjonen alle bokførte opplysninger pr. periode? | K6: =IF(E6=0,'Sjekkliste for utfylling'!L36," ") -> 0
A7: ='Sjekkliste for utfylling'!A37 -> 6 | B7: =IF('Sjekkliste for utfylling'!I37<>"",1,0) -> 0 | C7: =IF('Sjekkliste for utfylling'!J37<>"",1,0) -> 0 | D7: =IF('Sjekkliste for utfylling'!K37<>"",1,0) -> 0 | E7: 0 | G7: =IF($E7=0,'Sjekkliste for utfylling'!A37,"") -> 6 | H7: =IF($E7=0,'Sjekkliste for utfylling'!B37,"") -> Fremgår postene i ordnet rekkefølge med dokumentasjonsdato, dokumentasjonshenvisning, tilordningskoder, mva-koder og andre relevante behandlingskoder? | K7: =IF(E7=0,'Sjekkliste for utfylling'!L37," ") -> 0
A8: ='Sjekkliste for utfylling'!A38 -> 7 | B8: =IF('Sjekkliste for utfylling'!I38<>"",1,0) -> 0 | C8: =IF('Sjekkliste for utfylling'!J38<>"",1,0) -> 0 | D8: =IF('Sjekkliste for utfylling'!K38<>"",1,0) -> 0 | E8: 0 | G8: =IF($E8=0,'Sjekkliste for utfylling'!A38,"") -> 7 | H8: =IF($E8=0,'Sjekkliste for utfylling'!B38,"") -> Er systemgenererte poster lett kontrollerbare? | K8: =IF(E8=0,'Sjekkliste for utfylling'!L38," ") -> 0
A9: ='Sjekkliste for utfylling'!A39 -> 8 | B9: =IF('Sjekkliste for utfylling'!I39<>"",1,0) -> 0 | C9: =IF('Sjekkliste for utfylling'!J39<>"",1,0) -> 0 | D9: =IF('Sjekkliste for utfylling'!K39<>"",1,0) -> 0 | E9: 0 | G9: =IF($E9=0,'Sjekkliste for utfylling'!A39,"") -> 8 | H9: =IF($E9=0,'Sjekkliste for utfylling'!B39,"") -> Kontospesifikasjon Inneholder spesifikasjonen alle kontoer pr. periode? | K9: =IF(E9=0,'Sjekkliste for utfylling'!L39," ") -> 0
A10: ='Sjekkliste for utfylling'!A40 -> 9 | B10: =IF('Sjekkliste for utfylling'!I40<>"",1,0) -> 0 | C10: =IF('Sjekkliste for utfylling'!J40<>"",1,0) -> 0 | D10: =IF('Sjekkliste for utfylling'!K40<>"",1,0) -> 0 | E10: 0 | G10: =IF($E10=0,'Sjekkliste for utfylling'!A40,"") -> 9 | H10: =IF($E10=0,'Sjekkliste for utfylling'!B40,"") -> Er det for hver konto angitt: • Kontokode og kontonavn? | K10: =IF(E10=0,'Sjekkliste for utfylling'!L40," ") -> 0
A11: ='Sjekkliste for utfylling'!A41 -> 10 | B11: =IF('Sjekkliste for utfylling'!I41<>"",1,0) -> 0 | C11: =IF('Sjekkliste for utfylling'!J41<>"",1,0) -> 0 | D11: =IF('Sjekkliste for utfylling'!K41<>"",1,0) -> 0 | E11: 0 | G11: =IF($E11=0,'Sjekkliste for utfylling'!A41,"") -> 10 | H11: =IF($E11=0,'Sjekkliste for utfylling'!B41,"") -> • Alle poster i ordnet rekkefølge med dokumentasjonsdato og dokumentasjonshenvisning samt andre relevante behandlingskoder? | K11: =IF(E11=0,'Sjekkliste for utfylling'!L41," ") -> 0
A12: ='Sjekkliste for utfylling'!A42 -> 11 | B12: =IF('Sjekkliste for utfylling'!I42<>"",1,0) -> 0 | C12: =IF('Sjekkliste for utfylling'!J42<>"",1,0) -> 0 | D12: =IF('Sjekkliste for utfylling'!K42<>"",1,0) -> 0 | E12: 0 | G12: =IF($E12=0,'Sjekkliste for utfylling'!A42,"") -> 11 | H12: =IF($E12=0,'Sjekkliste for utfylling'!B42,"") -> • Inn- og utgående saldo? | K12: =IF(E12=0,'Sjekkliste for utfylling'!L42," ") -> 0
A13: ='Sjekkliste for utfylling'!A43 -> 12 | B13: =IF('Sjekkliste for utfylling'!I43<>"",1,0) -> 0 | C13: =IF('Sjekkliste for utfylling'!J43<>"",1,0) -> 0 | D13: =IF('Sjekkliste for utfylling'!K43<>"",1,0) -> 0 | E13: 0 | G13: =IF($E13=0,'Sjekkliste for utfylling'!A43,"") -> 12 | H13: =IF($E13=0,'Sjekkliste for utfylling'!B43,"") -> • Kan inngående og utgående merverdiavgift spesifiseres pr transaksjon? | K13: =IF(E13=0,'Sjekkliste for utfylling'!L43," ") -> 0
A14: ='Sjekkliste for utfylling'!A45 -> 13 | B14: =IF('Sjekkliste for utfylling'!I45<>"",1,0) -> 0 | C14: =IF('Sjekkliste for utfylling'!J45<>"",1,0) -> 0 | D14: =IF('Sjekkliste for utfylling'!K45<>"",1,0) -> 0 | E14: 0 | G14: =IF($E14=0,'Sjekkliste for utfylling'!A45,"") -> 13 | H14: =IF($E14=0,'Sjekkliste for utfylling'!B45,"") -> Inneholder spesifikasjonen alle transaksjoner med kunder pr. periode? | K14: =IF(E14=0,'Sjekkliste for utfylling'!L45," ") -> 0
A15: ='Sjekkliste for utfylling'!A46 -> 14 | B15: =IF('Sjekkliste for utfylling'!I46<>"",1,0) -> 0 | C15: =IF('Sjekkliste for utfylling'!J46<>"",1,0) -> 0 | D15: =IF('Sjekkliste for utfylling'!K46<>"",1,0) -> 0 | E15: 0 | G15: =IF($E15=0,'Sjekkliste for utfylling'!A46,"") -> 14 | H15: =IF($E15=0,'Sjekkliste for utfylling'!B46,"") -> Fremgår følgende av spesifikasjonen: • Kundens kode og navn? | K15: =IF(E15=0,'Sjekkliste for utfylling'!L46," ") -> 0
A16: ='Sjekkliste for utfylling'!A47 -> 15 | B16: =IF('Sjekkliste for utfylling'!I47<>"",1,0) -> 0 | C16: =IF('Sjekkliste for utfylling'!J47<>"",1,0) -> 0 | D16: =IF('Sjekkliste for utfylling'!K47<>"",1,0) -> 0 | E16: 0 | G16: =IF($E16=0,'Sjekkliste for utfylling'!A47,"") -> 15 | H16: =IF($E16=0,'Sjekkliste for utfylling'!B47,"") -> • Alle poster i ordnet rekkefølge med dokumentasjonsdato og dokumentasjonshenvisning? | K16: =IF(E16=0,'Sjekkliste for utfylling'!L47," ") -> 0
A17: ='Sjekkliste for utfylling'!A48 -> 16 | B17: =IF('Sjekkliste for utfylling'!I48<>"",1,0) -> 0 | C17: =IF('Sjekkliste for utfylling'!J48<>"",1,0) -> 0 | D17: =IF('Sjekkliste for utfylling'!K48<>"",1,0) -> 0 | E17: 0 | G17: =IF($E17=0,'Sjekkliste for utfylling'!A48,"") -> 16 | H17: =IF($E17=0,'Sjekkliste for utfylling'!B48,"") -> • Inn- og utgående saldo? | K17: =IF(E17=0,'Sjekkliste for utfylling'!L48," ") -> 0
A18: ='Sjekkliste for utfylling'!A49 -> 17 | B18: =IF('Sjekkliste for utfylling'!I49<>"",1,0) -> 0 | C18: =IF('Sjekkliste for utfylling'!J49<>"",1,0) -> 0 | D18: =IF('Sjekkliste for utfylling'!K49<>"",1,0) -> 0 | E18: 0 | G18: =IF($E18=0,'Sjekkliste for utfylling'!A49,"") -> 17 | H18: =IF($E18=0,'Sjekkliste for utfylling'!B49,"") -> Inneholder spesifikasjonen også kontantsalg av varer og tjenester • som er beregnet for videresalg? | K18: =IF(E18=0,'Sjekkliste for utfylling'!L49," ") -> 0
A19: ='Sjekkliste for utfylling'!A50 -> 18 | B19: =IF('Sjekkliste for utfylling'!I50<>"",1,0) -> 0 | C19: =IF('Sjekkliste for utfylling'!J50<>"",1,0) -> 0 | D19: =IF('Sjekkliste for utfylling'!K50<>"",1,0) -> 0 | E19: 0 | G19: =IF($E19=0,'Sjekkliste for utfylling'!A50,"") -> 18 | H19: =IF($E19=0,'Sjekkliste for utfylling'!B50,"") -> • som skal brukes som direkte innsatsfaktor i produksjon eller tjenesteleveranse? | K19: =IF(E19=0,'Sjekkliste for utfylling'!L50," ") -> 0
A20: ='Sjekkliste for utfylling'!A51 -> 19 | B20: =IF('Sjekkliste for utfylling'!I51<>"",1,0) -> 0 | C20: =IF('Sjekkliste for utfylling'!J51<>"",1,0) -> 0 | D20: =IF('Sjekkliste for utfylling'!K51<>"",1,0) -> 0 | E20: 0 | G20: =IF($E20=0,'Sjekkliste for utfylling'!A51,"") -> 19 | H20: =IF($E20=0,'Sjekkliste for utfylling'!B51,"") -> • der vederlaget utgjør mer enn kr 40 000 inkl mva? | K20: =IF(E20=0,'Sjekkliste for utfylling'!L51," ") -> 0
A21: ='Sjekkliste for utfylling'!A55 -> 20 | B21: =IF('Sjekkliste for utfylling'!I55<>"",1,0) -> 0 | C21: =IF('Sjekkliste for utfylling'!J55<>"",1,0) -> 0 | D21: =IF('Sjekkliste for utfylling'!K55<>"",1,0) -> 0 | E21: 0 | G21: =IF($E21=0,'Sjekkliste for utfylling'!A55,"") -> 20 | H21: =IF($E21=0,'Sjekkliste for utfylling'!B55,"") -> Inneholder spesifikasjonen alle transaksjoner med leverandører pr. periode? | K21: =IF(E21=0,'Sjekkliste for utfylling'!L55," ") -> 0
A22: ='Sjekkliste for utfylling'!A56 -> 21 | B22: =IF('Sjekkliste for utfylling'!I56<>"",1,0) -> 0 | C22: =IF('Sjekkliste for utfylling'!J56<>"",1,0) -> 0 | D22: =IF('Sjekkliste for utfylling'!K56<>"",1,0) -> 0 | E22: 0 | G22: =IF($E22=0,'Sjekkliste for utfylling'!A56,"") -> 21 | H22: =IF($E22=0,'Sjekkliste for utfylling'!B56,"") -> Fremgår følgende av spesifikasjonen: • Leverandørens kode, navn og organisasjonsnummer? (Org.nr. må bare fremkomme dersom det er levert varer/tjenester etter at loven er tatt i bruk) | K22: =IF(E22=0,'Sjekkliste for utfylling'!L56," ") -> 0
A23: ='Sjekkliste for utfylling'!A57 -> 22 | B23: =IF('Sjekkliste for utfylling'!I57<>"",1,0) -> 0 | C23: =IF('Sjekkliste for utfylling'!J57<>"",1,0) -> 0 | D23: =IF('Sjekkliste for utfylling'!K57<>"",1,0) -> 0 | E23: 0 | G23: =IF($E23=0,'Sjekkliste for utfylling'!A57,"") -> 22 | H23: =IF($E23=0,'Sjekkliste for utfylling'!B57,"") -> • Alle poster i ordnet rekkefølge med dokumentasjonsdato og dokumentasjonshenvisning? | K23: =IF(E23=0,'Sjekkliste for utfylling'!L57," ") -> 0
A24: ='Sjekkliste for utfylling'!A58 -> 23 | B24: =IF('Sjekkliste for utfylling'!I58<>"",1,0) -> 0 | C24: =IF('Sjekkliste for utfylling'!J58<>"",1,0) -> 0 | D24: =IF('Sjekkliste for utfylling'!K58<>"",1,0) -> 0 | E24: 0 | G24: =IF($E24=0,'Sjekkliste for utfylling'!A58,"") -> 23 | H24: =IF($E24=0,'Sjekkliste for utfylling'!B58,"") -> • Inn- og utgående saldo? | K24: =IF(E24=0,'Sjekkliste for utfylling'!L58," ") -> 0
A25: ='Sjekkliste for utfylling'!A61 -> 24 | B25: =IF('Sjekkliste for utfylling'!I61<>"",1,0) -> 0 | C25: =IF('Sjekkliste for utfylling'!J61<>"",1,0) -> 0 | D25: =IF('Sjekkliste for utfylling'!K61<>"",1,0) -> 0 | E25: 0 | G25: =IF($E25=0,'Sjekkliste for utfylling'!A61,"") -> 24 | H25: =IF($E25=0,'Sjekkliste for utfylling'!B61,"") -> • som er beregnet for videresalg? | K25: =IF(E25=0,'Sjekkliste for utfylling'!L61," ") -> 0
A26: ='Sjekkliste for utfylling'!A62 -> 25 | B26: =IF('Sjekkliste for utfylling'!I62<>"",1,0) -> 0 | C26: =IF('Sjekkliste for utfylling'!J62<>"",1,0) -> 0 | D26: =IF('Sjekkliste for utfylling'!K62<>"",1,0) -> 0 | E26: 0 | G26: =IF($E26=0,'Sjekkliste for utfylling'!A62,"") -> 25 | H26: =IF($E26=0,'Sjekkliste for utfylling'!B62,"") -> • som skal brukes som direkte innsatsfaktor i produksjon eller tjenestelevaranse? | K26: =IF(E26=0,'Sjekkliste for utfylling'!L62," ") -> 0
A27: ='Sjekkliste for utfylling'!A63 -> 26 | B27: =IF('Sjekkliste for utfylling'!I63<>"",1,0) -> 0 | C27: =IF('Sjekkliste for utfylling'!J63<>"",1,0) -> 0 | D27: =IF('Sjekkliste for utfylling'!K63<>"",1,0) -> 0 | E27: 0 | G27: =IF($E27=0,'Sjekkliste for utfylling'!A63,"") -> 26 | H27: =IF($E27=0,'Sjekkliste for utfylling'!B63,"") -> • der vederlaget utgjør mer enn kr 40 000 inkl mva? | K27: =IF(E27=0,'Sjekkliste for utfylling'!L63," ") -> 0
A28: ='Sjekkliste for utfylling'!A66 -> 27 | B28: =IF('Sjekkliste for utfylling'!I66<>"",1,0) -> 0 | C28: =IF('Sjekkliste for utfylling'!J66<>"",1,0) -> 0 | D28: =IF('Sjekkliste for utfylling'!K66<>"",1,0) -> 0 | E28: 0 | G28: =IF($E28=0,'Sjekkliste for utfylling'!A66,"") -> 27 | H28: =IF($E28=0,'Sjekkliste for utfylling'!B66,"") -> Inneholder spesifikasjonen alle uttak av eiendeler og tjenester spesifisert pr. eier, deltaker eller på egen virksomhet? | K28: =IF(E28=0,'Sjekkliste for utfylling'!L66," ") -> 0
A29: ='Sjekkliste for utfylling'!A67 -> 28 | B29: =IF('Sjekkliste for utfylling'!I67<>"",1,0) -> 0 | C29: =IF('Sjekkliste for utfylling'!J67<>"",1,0) -> 0 | D29: =IF('Sjekkliste for utfylling'!K67<>"",1,0) -> 0 | E29: 0 | G29: =IF($E29=0,'Sjekkliste for utfylling'!A67,"") -> 28 | H29: =IF($E29=0,'Sjekkliste for utfylling'!B67,"") -> Vises uttakene i ordnet rekkefølge til virkelig verdi med dokumentasjonsdato og dokumentasjonshenvisning? | K29: =IF(E29=0,'Sjekkliste for utfylling'!L67," ") -> 0
A30: ='Sjekkliste for utfylling'!A69 -> 29 | B30: =IF('Sjekkliste for utfylling'!I69<>"",1,0) -> 0 | C30: =IF('Sjekkliste for utfylling'!J69<>"",1,0) -> 0 | D30: =IF('Sjekkliste for utfylling'!K69<>"",1,0) -> 0 | E30: 0 | G30: =IF($E30=0,'Sjekkliste for utfylling'!A69,"") -> 29 | H30: =IF($E30=0,'Sjekkliste for utfylling'!B69,"") -> Inneholder spesifikasjonen alle salg av varer og tjenester spesifisert pr. eier eller deltaker? | K30: =IF(E30=0,'Sjekkliste for utfylling'!L69," ") -> 0
A31: ='Sjekkliste for utfylling'!A70 -> 30 | B31: =IF('Sjekkliste for utfylling'!I70<>"",1,0) -> 0 | C31: =IF('Sjekkliste for utfylling'!J70<>"",1,0) -> 0 | D31: =IF('Sjekkliste for utfylling'!K70<>"",1,0) -> 0 | E31: 0 | G31: =IF($E31=0,'Sjekkliste for utfylling'!A70,"") -> 30 | H31: =IF($E31=0,'Sjekkliste for utfylling'!B70,"") -> Vises salget i ordnet rekkefølge til virkelig verdi med dokumentasjonsdato og dokumentasjonshenvisning? | K31: =IF(E31=0,'Sjekkliste for utfylling'!L70," ") -> 0
A32: ='Sjekkliste for utfylling'!A76 -> 31 | B32: =IF('Sjekkliste for utfylling'!I76<>"",1,0) -> 0 | C32: =IF('Sjekkliste for utfylling'!J76<>"",1,0) -> 0 | D32: =IF('Sjekkliste for utfylling'!K76<>"",1,0) -> 0 | E32: 0 | G32: =IF($E32=0,'Sjekkliste for utfylling'!A76,"") -> 31 | H32: =IF($E32=0,'Sjekkliste for utfylling'!B76,"") -> Inneholder spesifikasjonen alle salg av varer og tjenester spesifisert pr. ansatt? | K32: =IF(E32=0,'Sjekkliste for utfylling'!L76," ") -> 0
A33: ='Sjekkliste for utfylling'!A77 -> 32 | B33: =IF('Sjekkliste for utfylling'!I77<>"",1,0) -> 0 | C33: =IF('Sjekkliste for utfylling'!J77<>"",1,0) -> 0 | D33: =IF('Sjekkliste for utfylling'!K77<>"",1,0) -> 0 | E33: 0 | G33: =IF($E33=0,'Sjekkliste for utfylling'!A77,"") -> 32 | H33: =IF($E33=0,'Sjekkliste for utfylling'!B77,"") -> Vises salget i ordnet rekkefølge til virkelig verdi med dokumentasjonsdato og dokumentasjonshenvisning? | K33: =IF(E33=0,'Sjekkliste for utfylling'!L77," ") -> 0
A34: ='Sjekkliste for utfylling'!A81 -> 33 | B34: =IF('Sjekkliste for utfylling'!I81<>"",1,0) -> 0 | C34: =IF('Sjekkliste for utfylling'!J81<>"",1,0) -> 0 | D34: =IF('Sjekkliste for utfylling'!K81<>"",1,0) -> 0 | E34: 0 | G34: =IF($E34=0,'Sjekkliste for utfylling'!A81,"") -> 33 | H34: =IF($E34=0,'Sjekkliste for utfylling'!B81,"") -> Inneholder spesifikasjonen grunnlaget for utgående merverdiavgift, fradragsberettiget innenlands inngående merverdiavgift og fradragsberettiget innførselsmerverdiavgift, fordelt på de forskjellige avgiftssatsene spesifisert pr. termin etter beløp per konto og totalt i regnskapssystemet? | K34: =IF(E34=0,'Sjekkliste for utfylling'!L81," ") -> 0
A35: ='Sjekkliste for utfylling'!A82 -> 34 | B35: =IF('Sjekkliste for utfylling'!I82<>"",1,0) -> 0 | C35: =IF('Sjekkliste for utfylling'!J82<>"",1,0) -> 0 | D35: =IF('Sjekkliste for utfylling'!K82<>"",1,0) -> 0 | E35: 0 | G35: =IF($E35=0,'Sjekkliste for utfylling'!A82,"") -> 34 | H35: =IF($E35=0,'Sjekkliste for utfylling'!B82,"") -> Viser spesifikasjonen også innenlands omsetning og uttak fritatt for merverdiavgift, utførsel av varer og tjenester fritatt for merverdiavgift, innenlands omsetning med omvendt avgiftsplikt, samt omsetning og uttak som faller utenfor avgiftsområdet? | K35: =IF(E35=0,'Sjekkliste for utfylling'!L82," ") -> 0
A36: ='Sjekkliste for utfylling'!A83 -> 35 | B36: =IF('Sjekkliste for utfylling'!I83<>"",1,0) -> 0 | C36: =IF('Sjekkliste for utfylling'!J83<>"",1,0) -> 0 | D36: =IF('Sjekkliste for utfylling'!K83<>"",1,0) -> 0 | E36: 0 | G36: =IF($E36=0,'Sjekkliste for utfylling'!A83,"") -> 35 | H36: =IF($E36=0,'Sjekkliste for utfylling'!B83,"") -> Viser spesifikasjonen også kjøp med omvendt avgiftsplikt, fordelt på tjenester kjøpt fra utlandet og innenlands kjøp av varer og tjenester? | K36: =IF(E36=0,'Sjekkliste for utfylling'!L83," ") -> 0
A37: ='Sjekkliste for utfylling'!A84 -> 36 | B37: =IF('Sjekkliste for utfylling'!I84<>"",1,0) -> 0 | C37: =IF('Sjekkliste for utfylling'!J84<>"",1,0) -> 0 | D37: =IF('Sjekkliste for utfylling'!K84<>"",1,0) -> 0 | E37: 0 | G37: =IF($E37=0,'Sjekkliste for utfylling'!A84,"") -> 36 | H37: =IF($E37=0,'Sjekkliste for utfylling'!B84,"") -> Er beløpene i spesifikasjonene i pkt a-c vist pr konto og totalt? | K37: =IF(E37=0,'Sjekkliste for utfylling'!L84," ") -> 0
A38: ='Sjekkliste for utfylling'!A85 -> 37 | B38: =IF('Sjekkliste for utfylling'!I85<>"",1,0) -> 0 | C38: =IF('Sjekkliste for utfylling'!J85<>"",1,0) -> 0 | D38: =IF('Sjekkliste for utfylling'!K85<>"",1,0) -> 0 | E38: 0 | G38: =IF($E38=0,'Sjekkliste for utfylling'!A85,"") -> 37 | H38: =IF($E38=0,'Sjekkliste for utfylling'!B85,"") -> Kan avgiftsgrunnlaget for utgående merverdiavgift spesifiseres pr. transaksjon? | K38: =IF(E38=0,'Sjekkliste for utfylling'!L85," ") -> 0
A39: ='Sjekkliste for utfylling'!A86 -> 38 | B39: =IF('Sjekkliste for utfylling'!I86<>"",1,0) -> 0 | C39: =IF('Sjekkliste for utfylling'!J86<>"",1,0) -> 0 | D39: =IF('Sjekkliste for utfylling'!K86<>"",1,0) -> 0 | E39: 0 | G39: =IF($E39=0,'Sjekkliste for utfylling'!A86,"") -> 38 | H39: =IF($E39=0,'Sjekkliste for utfylling'!B86,"") -> Viser spesifikasjonen eventuelle forskjeller mellom beregnet grunnlag i henhold til kontospesifikasjonen og innberettet avgiftsgrunnlag, spesifisert pr transaksjon for hver avgiftssats ? | K39: =IF(E39=0,'Sjekkliste for utfylling'!L86," ") -> 0
A40: ='Sjekkliste for utfylling'!A87 -> 39 | B40: =IF('Sjekkliste for utfylling'!I87<>"",1,0) -> 0 | C40: =IF('Sjekkliste for utfylling'!J87<>"",1,0) -> 0 | D40: =IF('Sjekkliste for utfylling'!K87<>"",1,0) -> 0 | E40: 0 | G40: =IF($E40=0,'Sjekkliste for utfylling'!A87,"") -> 39 | H40: =IF($E40=0,'Sjekkliste for utfylling'!B87,"") -> Viser spesifikasjonen i tillegg grunnlaget for beregning av merverdiavgift ved innførsel av varer fordelt på de forskjellige avgiftssatsene, samt grunnlag knyttet til innførsel av varer som det ikke skal beregnes merverdiavgift av? | K40: =IF(E40=0,'Sjekkliste for utfylling'!L87," ") -> 0
A41: ='Sjekkliste for utfylling'!A89 -> 40 | B41: =IF('Sjekkliste for utfylling'!I89<>"",1,0) -> 0 | C41: =IF('Sjekkliste for utfylling'!J89<>"",1,0) -> 0 | D41: =IF('Sjekkliste for utfylling'!K89<>"",1,0) -> 0 | E41: 0 | G41: =IF($E41=0,'Sjekkliste for utfylling'!A89,"") -> 40 | H41: =IF($E41=0,'Sjekkliste for utfylling'!B89,"") -> Inneholder spesifikasjonen lønnsopplysningspliktige ytelser spesifisert pr. periode etter kontoene i regnskapssystemet? | K41: =IF(E41=0,'Sjekkliste for utfylling'!L89," ") -> 0
A42: ='Sjekkliste for utfylling'!A90 -> 41 | B42: =IF('Sjekkliste for utfylling'!I90<>"",1,0) -> 0 | C42: =IF('Sjekkliste for utfylling'!J90<>"",1,0) -> 0 | D42: =IF('Sjekkliste for utfylling'!K90<>"",1,0) -> 0 | E42: 0 | G42: =IF($E42=0,'Sjekkliste for utfylling'!A90,"") -> 41 | H42: =IF($E42=0,'Sjekkliste for utfylling'!B90,"") -> Kan arbeidsgiveravgiftspliktige ytelser gjengis samlet, pr. avgiftssats og kommune? | K42: =IF(E42=0,'Sjekkliste for utfylling'!L90," ") -> 0
A43: ='Sjekkliste for utfylling'!A92 -> 42 | B43: =IF('Sjekkliste for utfylling'!I92<>"",1,0) -> 0 | C43: =IF('Sjekkliste for utfylling'!J92<>"",1,0) -> 0 | D43: =IF('Sjekkliste for utfylling'!K92<>"",1,0) -> 0 | E43: 0 | G43: =IF($E43=0,'Sjekkliste for utfylling'!A92,"") -> 42 | H43: =IF($E43=0,'Sjekkliste for utfylling'!B92,"") -> Er alle elimineringer og andre posteringer ved utarbeidelse av konsernregnskap spesifisert? | K43: =IF(E43=0,'Sjekkliste for utfylling'!L92," ") -> 0
A44: ='Sjekkliste for utfylling'!A93 -> 43 | B44: =IF('Sjekkliste for utfylling'!I93<>"",1,0) -> 0 | C44: =IF('Sjekkliste for utfylling'!J93<>"",1,0) -> 0 | D44: =IF('Sjekkliste for utfylling'!K93<>"",1,0) -> 0 | E44: 0 | G44: =IF($E44=0,'Sjekkliste for utfylling'!A93,"") -> 43 | H44: =IF($E44=0,'Sjekkliste for utfylling'!B93,"") -> Er alle poster spesifisert enkeltvis med dokumentasjonshenvisning? | K44: =IF(E44=0,'Sjekkliste for utfylling'!L93," ") -> 0
A45: ='Sjekkliste for utfylling'!A95 -> 44 | B45: =IF('Sjekkliste for utfylling'!I95<>"",1,0) -> 0 | C45: =IF('Sjekkliste for utfylling'!J95<>"",1,0) -> 0 | D45: =IF('Sjekkliste for utfylling'!K95<>"",1,0) -> 0 | E45: 0 | G45: =IF($E45=0,'Sjekkliste for utfylling'!A95,"") -> 44 | H45: =IF($E45=0,'Sjekkliste for utfylling'!B95,"") -> Dersom poster fremkommer som totaler i bokførings- eller kontospesifikasjoner, fremkommer da transaksjonene og andre regnskapsmessige disposisjoner enkeltvis og oppsummert i underliggende spesifikasjon? | K45: =IF(E45=0,'Sjekkliste for utfylling'!L95," ") -> 0
A46: ='Sjekkliste for utfylling'!A96 -> 45 | B46: =IF('Sjekkliste for utfylling'!I96<>"",1,0) -> 0 | C46: =IF('Sjekkliste for utfylling'!J96<>"",1,0) -> 0 | D46: =IF('Sjekkliste for utfylling'!K96<>"",1,0) -> 0 | E46: 0 | G46: =IF($E46=0,'Sjekkliste for utfylling'!A96,"") -> 45 | H46: =IF($E46=0,'Sjekkliste for utfylling'!B96,"") -> Er underspesifikasjonene kontrollerbare mot totalene? | K46: =IF(E46=0,'Sjekkliste for utfylling'!L96," ") -> 0
A47: ='Sjekkliste for utfylling'!A98 -> 46 | B47: =IF('Sjekkliste for utfylling'!I98<>"",1,0) -> 0 | C47: =IF('Sjekkliste for utfylling'!J98<>"",1,0) -> 0 | D47: =IF('Sjekkliste for utfylling'!K98<>"",1,0) -> 0 | E47: 0 | G47: =IF($E47=0,'Sjekkliste for utfylling'!A98,"") -> 46 | H47: =IF($E47=0,'Sjekkliste for utfylling'!B98,"") -> Fremgår dato for utarbeidelse av spesifikasjoner av pliktig regnskapsrapportering direkte av spesifikasjonene? | K47: =IF(E47=0,'Sjekkliste for utfylling'!L98," ") -> 0
A48: ='Sjekkliste for utfylling'!A100 -> 47 | B48: =IF('Sjekkliste for utfylling'!I100<>"",1,0) -> 0 | C48: =IF('Sjekkliste for utfylling'!J100<>"",1,0) -> 0 | D48: =IF('Sjekkliste for utfylling'!K100<>"",1,0) -> 0 | E48: 0 | G48: =IF($E48=0,'Sjekkliste for utfylling'!A100,"") -> 47 | H48: =IF($E48=0,'Sjekkliste for utfylling'!B100,"") -> Kan bokførte opplysninger lett følges fra dokumentasjon via spesifikasjoner frem til pliktig regnskapsrapportering? | K48: =IF(E48=0,'Sjekkliste for utfylling'!L100," ") -> 0
A49: ='Sjekkliste for utfylling'!A101 -> 48 | B49: =IF('Sjekkliste for utfylling'!I101<>"",1,0) -> 0 | C49: =IF('Sjekkliste for utfylling'!J101<>"",1,0) -> 0 | D49: =IF('Sjekkliste for utfylling'!K101<>"",1,0) -> 0 | E49: 0 | G49: =IF($E49=0,'Sjekkliste for utfylling'!A101,"") -> 48 | H49: =IF($E49=0,'Sjekkliste for utfylling'!B101,"") -> Er det mulig med utgangspunkt i pliktig regnskapsrapportering på en lett kontrollerbar måte å finne tilbake til dokumentasjonen av de enkelte bokførte opplysningene? | K49: =IF(E49=0,'Sjekkliste for utfylling'!L101," ") -> 0
A50: ='Sjekkliste for utfylling'!A102 -> 49 | B50: =IF('Sjekkliste for utfylling'!I102<>"",1,0) -> 0 | C50: =IF('Sjekkliste for utfylling'!J102<>"",1,0) -> 0 | D50: =IF('Sjekkliste for utfylling'!K102<>"",1,0) -> 0 | E50: 0 | G50: =IF($E50=0,'Sjekkliste for utfylling'!A102,"") -> 49 | H50: =IF($E50=0,'Sjekkliste for utfylling'!B102,"") -> I de tilfellene det er nødvendig for å kunne kontrollere bokførte opplysninger på en enkel måte, foreligger det dokumentasjon av kontrollsporet, herunder hvordan systemgenererte poster kan etterprøves? | K50: =IF(E50=0,'Sjekkliste for utfylling'!L102," ") -> 0
A51: ='Sjekkliste for utfylling'!A103 -> 50 | B51: =IF('Sjekkliste for utfylling'!I103<>"",1,0) -> 0 | C51: =IF('Sjekkliste for utfylling'!J103<>"",1,0) -> 0 | D51: =IF('Sjekkliste for utfylling'!K103<>"",1,0) -> 0 | E51: 0 | G51: =IF($E51=0,'Sjekkliste for utfylling'!A103,"") -> 50 | H51: =IF($E51=0,'Sjekkliste for utfylling'!B103,"") -> Er dokumentasjonen nummerert eller identifisert på annen måte som gjør det mulig å kontrollere at den er fullstendig? Departementet kan ved enkeltvedtak gjøre unntak fra kravet i annet ledd om nummerering av dokumentasjon. | K51: =IF(E51=0,'Sjekkliste for utfylling'!L103," ") -> 0
A52: ='Sjekkliste for utfylling'!A104 -> 51 | B52: =IF('Sjekkliste for utfylling'!I104<>"",1,0) -> 0 | C52: =IF('Sjekkliste for utfylling'!J104<>"",1,0) -> 0 | D52: =IF('Sjekkliste for utfylling'!K104<>"",1,0) -> 0 | E52: 0 | G52: =IF($E52=0,'Sjekkliste for utfylling'!A104,"") -> 51 | H52: =IF($E52=0,'Sjekkliste for utfylling'!B104,"") -> Når foretaket har dokumentasjon både elektronisk og på papir, foreligger det en redegjørelse for hva som er originaldokumentasjonen? | K52: =IF(E52=0,'Sjekkliste for utfylling'!L104," ") -> 0
A53: ='Sjekkliste for utfylling'!A105 -> 52 | B53: =IF('Sjekkliste for utfylling'!I105<>"",1,0) -> 0 | C53: =IF('Sjekkliste for utfylling'!J105<>"",1,0) -> 0 | D53: =IF('Sjekkliste for utfylling'!K105<>"",1,0) -> 0 | E53: 0 | G53: =IF($E53=0,'Sjekkliste for utfylling'!A105,"") -> 52 | H53: =IF($E53=0,'Sjekkliste for utfylling'!B105,"") -> Dersom den bokføringspliktige har eget lønnsystem, foreligger det en lettfattelig systembeskrivelse av lønnssystemets oppbygging og funksjoner? | K53: =IF(E53=0,'Sjekkliste for utfylling'!L105," ") -> 0
A54: ='Sjekkliste for utfylling'!A107 -> 53 | B54: =IF('Sjekkliste for utfylling'!I107<>"",1,0) -> 0 | C54: =IF('Sjekkliste for utfylling'!J107<>"",1,0) -> 0 | D54: =IF('Sjekkliste for utfylling'!K107<>"",1,0) -> 0 | E54: 0 | G54: =IF($E54=0,'Sjekkliste for utfylling'!A107,"") -> 53 | H54: =IF($E54=0,'Sjekkliste for utfylling'!B107,"") -> Er bokføringen tilfredsstillende à jour sett hen til virksomhetens og transaksjonenes art og omfang? | K54: =IF(E54=0,'Sjekkliste for utfylling'!L107," ") -> 0
A55: ='Sjekkliste for utfylling'!A108 -> 54 | B55: =IF('Sjekkliste for utfylling'!I108<>"",1,0) -> 0 | C55: =IF('Sjekkliste for utfylling'!J108<>"",1,0) -> 0 | D55: =IF('Sjekkliste for utfylling'!K108<>"",1,0) -> 0 | E55: 0 | G55: =IF($E55=0,'Sjekkliste for utfylling'!A108,"") -> 54 | H55: =IF($E55=0,'Sjekkliste for utfylling'!B108,"") -> Er bokføringen à jour innen fristene for pliktig regnskapsrapportering? | K55: =IF(E55=0,'Sjekkliste for utfylling'!L108," ") -> 0
A56: ='Sjekkliste for utfylling'!A110 -> 55 | B56: =IF('Sjekkliste for utfylling'!I110<>"",1,0) -> 0 | C56: =IF('Sjekkliste for utfylling'!J110<>"",1,0) -> 0 | D56: =IF('Sjekkliste for utfylling'!K110<>"",1,0) -> 0 | E56: 0 | G56: =IF($E56=0,'Sjekkliste for utfylling'!A110,"") -> 55 | H56: =IF($E56=0,'Sjekkliste for utfylling'!B110,"") -> For bokføringspliktige som ikke har pliktig regnskapsrapportering gjennom året, men har mer enn 600 bilag, er bokføringen à jour hver fjerde måned? Ved kjøp og salg av verdipapirer skal hvert enkelt kjøp og salg medregnes som bilag ifht denne bestemmelsen. | K56: =IF(E56=0,'Sjekkliste for utfylling'!L110," ") -> 0
A57: ='Sjekkliste for utfylling'!A111 -> 56 | B57: =IF('Sjekkliste for utfylling'!I111<>"",1,0) -> 0 | C57: =IF('Sjekkliste for utfylling'!J111<>"",1,0) -> 0 | D57: =IF('Sjekkliste for utfylling'!K111<>"",1,0) -> 0 | E57: 0 | G57: =IF($E57=0,'Sjekkliste for utfylling'!A111,"") -> 56 | H57: =IF($E57=0,'Sjekkliste for utfylling'!B111,"") -> Er kontanttransaksjoner registrert daglig, med mindre det benyttes fast kasse? | K57: =IF(E57=0,'Sjekkliste for utfylling'!L111," ") -> 0
A58: ='Sjekkliste for utfylling'!A113 -> 57 | B58: =IF('Sjekkliste for utfylling'!I113<>"",1,0) -> 0 | C58: =IF('Sjekkliste for utfylling'!J113<>"",1,0) -> 0 | D58: =IF('Sjekkliste for utfylling'!K113<>"",1,0) -> 0 | E58: 0 | G58: =IF($E58=0,'Sjekkliste for utfylling'!A113,"") -> 57 | H58: =IF($E58=0,'Sjekkliste for utfylling'!B113,"") -> Dersom bokføringen skjer i annen valuta enn norske kroner, er vilkårene for å benytte funksjonell valuta oppfylt? | K58: =IF(E58=0,'Sjekkliste for utfylling'!L113," ") -> 0
A59: ='Sjekkliste for utfylling'!A115 -> 58 | B59: =IF('Sjekkliste for utfylling'!I115<>"",1,0) -> 0 | C59: =IF('Sjekkliste for utfylling'!J115<>"",1,0) -> 0 | D59: =IF('Sjekkliste for utfylling'!K115<>"",1,0) -> 0 | E59: 0 | G59: =IF($E59=0,'Sjekkliste for utfylling'!A115,"") -> 58 | H59: =IF($E59=0,'Sjekkliste for utfylling'!B115,"") -> Har foretaket filialer i utlandet, benyttes da fremmed valuta ved bokføringen? | K59: =IF(E59=0,'Sjekkliste for utfylling'!L115," ") -> 0
A60: ='Sjekkliste for utfylling'!A116 -> 59 | B60: =IF('Sjekkliste for utfylling'!I116<>"",1,0) -> 0 | C60: =IF('Sjekkliste for utfylling'!J116<>"",1,0) -> 0 | D60: =IF('Sjekkliste for utfylling'!K116<>"",1,0) -> 0 | E60: 0 | G60: =IF($E60=0,'Sjekkliste for utfylling'!A116,"") -> 59 | H60: =IF($E60=0,'Sjekkliste for utfylling'!B116,"") -> Ved bokføring i utenlandsk valuta, er • beløp som inngår i pliktig rapportering knyttet til merverdiavgift fastlåst i norske kroner til kursen på fakturatidspunktet? | K60: =IF(E60=0,'Sjekkliste for utfylling'!L116," ") -> 0
A61: ='Sjekkliste for utfylling'!A117 -> 60 | B61: =IF('Sjekkliste for utfylling'!I117<>"",1,0) -> 0 | C61: =IF('Sjekkliste for utfylling'!J117<>"",1,0) -> 0 | D61: =IF('Sjekkliste for utfylling'!K117<>"",1,0) -> 0 | E61: 0 | G61: =IF($E61=0,'Sjekkliste for utfylling'!A117,"") -> 60 | H61: =IF($E61=0,'Sjekkliste for utfylling'!B117,"") -> • beløp som inngår i pliktig rapportering knyttet til lønn fastlåst i norske kroner til kursen på utbetalingstidspunktet? | K61: =IF(E61=0,'Sjekkliste for utfylling'!L117," ") -> 0
A62: ='Sjekkliste for utfylling'!A118 -> 61 | B62: =IF('Sjekkliste for utfylling'!I118<>"",1,0) -> 0 | C62: =IF('Sjekkliste for utfylling'!J118<>"",1,0) -> 0 | D62: =IF('Sjekkliste for utfylling'!K118<>"",1,0) -> 0 | E62: 0 | G62: =IF($E62=0,'Sjekkliste for utfylling'!A118,"") -> 61 | H62: =IF($E62=0,'Sjekkliste for utfylling'!B118,"") -> • beløp knyttet til eiendeler og gjeld hvor skatteloven har egne vurderingsregler om valuta, fastlåst i norske kroner til transaksjonsdagens kurs? | K62: =IF(E62=0,'Sjekkliste for utfylling'!L118," ") -> 0
A63: ='Sjekkliste for utfylling'!A119 -> 62 | B63: =IF('Sjekkliste for utfylling'!I119<>"",1,0) -> 0 | C63: =IF('Sjekkliste for utfylling'!J119<>"",1,0) -> 0 | D63: =IF('Sjekkliste for utfylling'!K119<>"",1,0) -> 0 | E63: 0 | G63: =IF($E63=0,'Sjekkliste for utfylling'!A119,"") -> 62 | H63: =IF($E63=0,'Sjekkliste for utfylling'!B119,"") -> Omregnes beløp som inngår i pliktig regnskapsrapportering til norske kroner minst en gang i året ved bruk av gjennomsnittskurser? | K63: =IF(E63=0,'Sjekkliste for utfylling'!L119," ") -> 0
A64: ='Sjekkliste for utfylling'!A120 -> 63 | B64: =IF('Sjekkliste for utfylling'!I120<>"",1,0) -> 0 | C64: =IF('Sjekkliste for utfylling'!J120<>"",1,0) -> 0 | D64: =IF('Sjekkliste for utfylling'!K120<>"",1,0) -> 0 | E64: 0 | G64: =IF($E64=0,'Sjekkliste for utfylling'!A120,"") -> 63 | H64: =IF($E64=0,'Sjekkliste for utfylling'!B120,"") -> Er det dokumentert hvordan omregningen har skjedd og hvilke kurser som er benyttet? | K64: =IF(E64=0,'Sjekkliste for utfylling'!L120," ") -> 0
A65: ='Sjekkliste for utfylling'!A122 -> 64 | B65: =IF('Sjekkliste for utfylling'!I122<>"",1,0) -> 0 | C65: =IF('Sjekkliste for utfylling'!J122<>"",1,0) -> 0 | D65: =IF('Sjekkliste for utfylling'!K122<>"",1,0) -> 0 | E65: 0 | G65: =IF($E65=0,'Sjekkliste for utfylling'!A122,"") -> 64 | H65: =IF($E65=0,'Sjekkliste for utfylling'!B122,"") -> Er kursen på transaksjonstidspunktet benyttet ved omregning til norske kroner? | K65: =IF(E65=0,'Sjekkliste for utfylling'!L122," ") -> 0
A66: ='Sjekkliste for utfylling'!A123 -> 65 | B66: =IF('Sjekkliste for utfylling'!I123<>"",1,0) -> 0 | C66: =IF('Sjekkliste for utfylling'!J123<>"",1,0) -> 0 | D66: =IF('Sjekkliste for utfylling'!K123<>"",1,0) -> 0 | E66: =SUM(B66:D66) -> 0 | G66: =IF($E66=0,'Sjekkliste for utfylling'!A123,"") -> 65 | H66: =IF($E66=0,'Sjekkliste for utfylling'!B123,"") -> Dersom månedens offisielle gjennomsnittskurs er benyttet fordi kursen i perioden ikke har avvik på mer enn 5 %, er store enkelttransaksjoner likevel omregnet til transaksjonsdagens kurs? | K66: =IF(E66=0,'Sjekkliste for utfylling'!L123," ") -> 0
A67: ='Sjekkliste for utfylling'!A125 -> 66 | B67: =IF('Sjekkliste for utfylling'!I125<>"",1,0) -> 0 | C67: =IF('Sjekkliste for utfylling'!J125<>"",1,0) -> 0 | D67: =IF('Sjekkliste for utfylling'!K125<>"",1,0) -> 0 | E67: 0 | G67: =IF($E67=0,'Sjekkliste for utfylling'!A125,"") -> 66 | H67: =IF($E67=0,'Sjekkliste for utfylling'!B125,"") -> Etter at bokføringen er ajourført, er retting skjedd med ny dokumentert postering? | K67: =IF(E67=0,'Sjekkliste for utfylling'!L125," ") -> 0
A68: ='Sjekkliste for utfylling'!A126 -> 67 | B68: =IF('Sjekkliste for utfylling'!I126<>"",1,0) -> 0 | C68: =IF('Sjekkliste for utfylling'!J126<>"",1,0) -> 0 | D68: =IF('Sjekkliste for utfylling'!K126<>"",1,0) -> 0 | E68: 0 | G68: =IF($E68=0,'Sjekkliste for utfylling'!A126,"") -> 67 | H68: =IF($E68=0,'Sjekkliste for utfylling'!B126,"") -> Er hele den opprinnelige posteringen reversert? | K68: =IF(E68=0,'Sjekkliste for utfylling'!L126," ") -> 0
A69: ='Sjekkliste for utfylling'!A127 -> 68 | B69: =IF('Sjekkliste for utfylling'!I127<>"",1,0) -> 0 | C69: =IF('Sjekkliste for utfylling'!J127<>"",1,0) -> 0 | D69: =IF('Sjekkliste for utfylling'!K127<>"",1,0) -> 0 | E69: 0 | G69: =IF($E69=0,'Sjekkliste for utfylling'!A127,"") -> 68 | H69: =IF($E69=0,'Sjekkliste for utfylling'!B127,"") -> Er det praktisk mulig å påføre en gjensidig referanse mellom den nye og den opprinnelige dokumentasjonen? | K69: =IF(E69=0,'Sjekkliste for utfylling'!L127," ") -> 0
A70: ='Sjekkliste for utfylling'!A128 -> 69 | B70: =IF('Sjekkliste for utfylling'!I128<>"",1,0) -> 0 | C70: =IF('Sjekkliste for utfylling'!J128<>"",1,0) -> 0 | D70: =IF('Sjekkliste for utfylling'!K128<>"",1,0) -> 0 | E70: 0 | G70: =IF($E70=0,'Sjekkliste for utfylling'!A128,"") -> 69 | H70: =IF($E70=0,'Sjekkliste for utfylling'!B128,"") -> Fremgår det av dokumentasjonen eller spesifikasjonen når en bokført opplysning er slettet? | K70: =IF(E70=0,'Sjekkliste for utfylling'!L128," ") -> 0
A71: ='Sjekkliste for utfylling'!A130 -> 70 | B71: =IF('Sjekkliste for utfylling'!I130<>"",1,0) -> 0 | C71: =IF('Sjekkliste for utfylling'!J130<>"",1,0) -> 0 | D71: =IF('Sjekkliste for utfylling'!K130<>"",1,0) -> 0 | E71: 0 | G71: =IF($E71=0,'Sjekkliste for utfylling'!A130,"") -> 70 | H71: =IF($E71=0,'Sjekkliste for utfylling'!B130,"") -> Er bokførte opplysninger dokumentert? | K71: =IF(E71=0,'Sjekkliste for utfylling'!L130," ") -> 0
A72: ='Sjekkliste for utfylling'!A131 -> 71 | B72: =IF('Sjekkliste for utfylling'!I131<>"",1,0) -> 0 | C72: =IF('Sjekkliste for utfylling'!J131<>"",1,0) -> 0 | D72: =IF('Sjekkliste for utfylling'!K131<>"",1,0) -> 0 | E72: 0 | G72: =IF($E72=0,'Sjekkliste for utfylling'!A131,"") -> 71 | H72: =IF($E72=0,'Sjekkliste for utfylling'!B131,"") -> Er dokumentasjonen utstedt med et korrekt og fullstendig innhold som viser de bokførte opplysningenes berettigelse? | K72: =IF(E72=0,'Sjekkliste for utfylling'!L131," ") -> 0
A73: ='Sjekkliste for utfylling'!A132 -> 72 | B73: =IF('Sjekkliste for utfylling'!I132<>"",1,0) -> 0 | C73: =IF('Sjekkliste for utfylling'!J132<>"",1,0) -> 0 | D73: =IF('Sjekkliste for utfylling'!K132<>"",1,0) -> 0 | E73: 0 | G73: =IF($E73=0,'Sjekkliste for utfylling'!A132,"") -> 72 | H73: =IF($E73=0,'Sjekkliste for utfylling'!B132,"") -> Er dokumentasjonen sikret mot endringer etter utstedelse? | K73: =IF(E73=0,'Sjekkliste for utfylling'!L132," ") -> 0
A74: ='Sjekkliste for utfylling'!A133 -> 73 | B74: =IF('Sjekkliste for utfylling'!I133<>"",1,0) -> 0 | C74: =IF('Sjekkliste for utfylling'!J133<>"",1,0) -> 0 | D74: =IF('Sjekkliste for utfylling'!K133<>"",1,0) -> 0 | E74: 0 | G74: =IF($E74=0,'Sjekkliste for utfylling'!A133,"") -> 73 | H74: =IF($E74=0,'Sjekkliste for utfylling'!B133,"") -> Dersom dokumentasjonen består av flere dokumenter, er det referanser fra primærdokumentet til de øvrige dokumentene? | K74: =IF(E74=0,'Sjekkliste for utfylling'!L133," ") -> 0
A75: ='Sjekkliste for utfylling'!A136 -> 74 | B75: =IF('Sjekkliste for utfylling'!I136<>"",1,0) -> 0 | C75: =IF('Sjekkliste for utfylling'!J136<>"",1,0) -> 0 | D75: =IF('Sjekkliste for utfylling'!K136<>"",1,0) -> 0 | E75: 0 | G75: =IF($E75=0,'Sjekkliste for utfylling'!A136,"") -> 74 | H75: =IF($E75=0,'Sjekkliste for utfylling'!B136,"") -> 1. Nummer og dokumentasjonsdato? Plikten til nummerering av salgsdokument, jfr §5-1-1 nr 1, gjelder ikke konkursbo. | K75: =IF(E75=0,'Sjekkliste for utfylling'!L136," ") -> 0
A76: ='Sjekkliste for utfylling'!A137 -> 75 | B76: =IF('Sjekkliste for utfylling'!I137<>"",1,0) -> 0 | C76: =IF('Sjekkliste for utfylling'!J137<>"",1,0) -> 0 | D76: =IF('Sjekkliste for utfylling'!K137<>"",1,0) -> 0 | E76: 0 | G76: =IF($E76=0,'Sjekkliste for utfylling'!A137,"") -> 75 | H76: =IF($E76=0,'Sjekkliste for utfylling'!B137,"") -> 2. Angivelse av partene? Salgsdokument skal utstedes til det subjektet som inngår avtale/kontrakt om kjøp av varer eller tjenester, eventuelt den fysiske eller juridiske personen vedkommende opptrer på vegne av på avtaletidspunktet etter fullmakt. | K76: =IF(E76=0,'Sjekkliste for utfylling'!L137," ") -> 0
A77: ='Sjekkliste for utfylling'!A138 -> 76 | B77: =IF('Sjekkliste for utfylling'!I138<>"",1,0) -> 0 | C77: =IF('Sjekkliste for utfylling'!J138<>"",1,0) -> 0 | D77: =IF('Sjekkliste for utfylling'!K138<>"",1,0) -> 0 | E77: 0 | G77: =IF($E77=0,'Sjekkliste for utfylling'!A138,"") -> 76 | H77: =IF($E77=0,'Sjekkliste for utfylling'!B138,"") -> 3. Ytelsens art og omfang? | K77: =IF(E77=0,'Sjekkliste for utfylling'!L138," ") -> 0
A78: ='Sjekkliste for utfylling'!A141 -> 77 | B78: =IF('Sjekkliste for utfylling'!I141<>"",1,0) -> 0 | C78: =IF('Sjekkliste for utfylling'!J141<>"",1,0) -> 0 | D78: =IF('Sjekkliste for utfylling'!K141<>"",1,0) -> 0 | E78: 0 | G78: =IF($E78=0,'Sjekkliste for utfylling'!A141,"") -> 77 | H78: =IF($E78=0,'Sjekkliste for utfylling'!B141,"") -> 4. Tidspunkt og sted for leving av ytelsen? (Plikt til å angi leveringsdato gjelder ikke når varen ekspederes gjennom speditør, ved postordre og lignende og salgsdokument følger forsendelsen.) | K78: =IF(E78=0,'Sjekkliste for utfylling'!L141," ") -> 0
A79: ='Sjekkliste for utfylling'!A142 -> 78 | B79: =IF('Sjekkliste for utfylling'!I142<>"",1,0) -> 0 | C79: =IF('Sjekkliste for utfylling'!J142<>"",1,0) -> 0 | D79: =IF('Sjekkliste for utfylling'!K142<>"",1,0) -> 0 | E79: 0 | G79: =IF($E79=0,'Sjekkliste for utfylling'!A142,"") -> 78 | H79: =IF($E79=0,'Sjekkliste for utfylling'!B142,"") -> 5. Vederlag og betalingsforfall? | K79: =IF(E79=0,'Sjekkliste for utfylling'!L142," ") -> 0
A80: ='Sjekkliste for utfylling'!A144 -> 79 | B80: =IF('Sjekkliste for utfylling'!I144<>"",1,0) -> 0 | C80: =IF('Sjekkliste for utfylling'!J144<>"",1,0) -> 0 | D80: =IF('Sjekkliste for utfylling'!K144<>"",1,0) -> 0 | E80: 0 | G80: =IF($E80=0,'Sjekkliste for utfylling'!A144,"") -> 79 | H80: =IF($E80=0,'Sjekkliste for utfylling'!B144,"") -> 6. Eventuell merverdiavgift og andre avgifter knyttet til transaksjonen som kreves spesifisert i lov eller forskrift? | K80: =IF(E80=0,'Sjekkliste for utfylling'!L144," ") -> 0
A81: ='Sjekkliste for utfylling'!A145 -> 80 | B81: =IF('Sjekkliste for utfylling'!I145<>"",1,0) -> 0 | C81: =IF('Sjekkliste for utfylling'!J145<>"",1,0) -> 0 | D81: =IF('Sjekkliste for utfylling'!K145<>"",1,0) -> 0 | E81: 0 | G81: =IF($E81=0,'Sjekkliste for utfylling'!A145,"") -> 80 | H81: =IF($E81=0,'Sjekkliste for utfylling'!B145,"") -> Er merverdiavgift angitt i norske kroner? | K81: =IF(E81=0,'Sjekkliste for utfylling'!L145," ") -> 0
A82: ='Sjekkliste for utfylling'!A146 -> 81 | B82: =IF('Sjekkliste for utfylling'!I146<>"",1,0) -> 0 | C82: =IF('Sjekkliste for utfylling'!J146<>"",1,0) -> 0 | D82: =IF('Sjekkliste for utfylling'!K146<>"",1,0) -> 0 | E82: 0 | G82: =IF($E82=0,'Sjekkliste for utfylling'!A146,"") -> 81 | H82: =IF($E82=0,'Sjekkliste for utfylling'!B146,"") -> Har kjøpere som skal beregne og betale merverdiavgift etter mval. §11-1 annet ledd, og merket salgsdokumentet ”Omvendt avgiftsplikt – Merverdiavgift ikke beregnet”? | K82: =IF(E82=0,'Sjekkliste for utfylling'!L146," ") -> 0
A83: ='Sjekkliste for utfylling'!A147 -> 82 | B83: =IF('Sjekkliste for utfylling'!I147<>"",1,0) -> 0 | C83: =IF('Sjekkliste for utfylling'!J147<>"",1,0) -> 0 | D83: =IF('Sjekkliste for utfylling'!K147<>"",1,0) -> 0 | E83: 0 | G83: =IF($E83=0,'Sjekkliste for utfylling'!A147,"") -> 82 | H83: =IF($E83=0,'Sjekkliste for utfylling'!B147,"") -> Er salgsdokumentet utstedt på norsk, svensk, dansk eller engelsk? Bokføringspliktige med filialer i utlandet kan utstede filialens salgsdokument på det lokale språket. | K83: =IF(E83=0,'Sjekkliste for utfylling'!L147," ") -> 0
A84: ='Sjekkliste for utfylling'!A148 -> 83 | B84: =IF('Sjekkliste for utfylling'!I148<>"",1,0) -> 0 | C84: =IF('Sjekkliste for utfylling'!J148<>"",1,0) -> 0 | D84: =IF('Sjekkliste for utfylling'!K148<>"",1,0) -> 0 | E84: 0 | G84: =IF($E84=0,'Sjekkliste for utfylling'!A148,"") -> 83 | H84: =IF($E84=0,'Sjekkliste for utfylling'!B148,"") -> Er kjøper angitt med navn, og adresse eller organisasjonsnummer? | K84: =IF(E84=0,'Sjekkliste for utfylling'!L148," ") -> 0
A85: ='Sjekkliste for utfylling'!A150 -> 84 | B85: =IF('Sjekkliste for utfylling'!I150<>"",1,0) -> 0 | C85: =IF('Sjekkliste for utfylling'!J150<>"",1,0) -> 0 | D85: =IF('Sjekkliste for utfylling'!K150<>"",1,0) -> 0 | E85: 0 | G85: =IF($E85=0,'Sjekkliste for utfylling'!A150,"") -> 84 | H85: =IF($E85=0,'Sjekkliste for utfylling'!B150,"") -> Har selger rutiner for å angi kjøper på dennes dokumentasjon, med signatur og stempel, dersom kjøper anmoder om det? | K85: =IF(E85=0,'Sjekkliste for utfylling'!L150," ") -> 0
A86: ='Sjekkliste for utfylling'!A151 -> 85 | B86: =IF('Sjekkliste for utfylling'!I151<>"",1,0) -> 0 | C86: =IF('Sjekkliste for utfylling'!J151<>"",1,0) -> 0 | D86: =IF('Sjekkliste for utfylling'!K151<>"",1,0) -> 0 | E86: 0 | G86: =IF($E86=0,'Sjekkliste for utfylling'!A151,"") -> 85 | H86: =IF($E86=0,'Sjekkliste for utfylling'!B151,"") -> Omfatter angivelse av selger minst navn og organisasjonsnummer, samt MVA dersom selger er registrert i merverdiavgiftsmanntallet? | K86: =IF(E86=0,'Sjekkliste for utfylling'!L151," ") -> 0
A87: ='Sjekkliste for utfylling'!A153 -> 86 | B87: =IF('Sjekkliste for utfylling'!I153<>"",1,0) -> 0 | C87: =IF('Sjekkliste for utfylling'!J153<>"",1,0) -> 0 | D87: =IF('Sjekkliste for utfylling'!K153<>"",1,0) -> 0 | E87: 0 | G87: =IF($E87=0,'Sjekkliste for utfylling'!A153,"") -> 86 | H87: =IF($E87=0,'Sjekkliste for utfylling'!B153,"") -> • Ordet "Foretaksregisteret"? | K87: =IF(E87=0,'Sjekkliste for utfylling'!L153," ") -> 0
A88: ='Sjekkliste for utfylling'!A154 -> 87 | B88: =IF('Sjekkliste for utfylling'!I154<>"",1,0) -> 0 | C88: =IF('Sjekkliste for utfylling'!J154<>"",1,0) -> 0 | D88: =IF('Sjekkliste for utfylling'!K154<>"",1,0) -> 0 | E88: 0 | G88: =IF($E88=0,'Sjekkliste for utfylling'!A154,"") -> 87 | H88: =IF($E88=0,'Sjekkliste for utfylling'!B154,"") -> • Hovedkontorets adresse? | K88: =IF(E88=0,'Sjekkliste for utfylling'!L154," ") -> 0
A89: ='Sjekkliste for utfylling'!A155 -> 88 | B89: =IF('Sjekkliste for utfylling'!I155<>"",1,0) -> 0 | C89: =IF('Sjekkliste for utfylling'!J155<>"",1,0) -> 0 | D89: =IF('Sjekkliste for utfylling'!K155<>"",1,0) -> 0 | E89: 0 | G89: =IF($E89=0,'Sjekkliste for utfylling'!A155,"") -> 88 | H89: =IF($E89=0,'Sjekkliste for utfylling'!B155,"") -> • Når det er aktuelt, at selger er under avvikling? | K89: =IF(E89=0,'Sjekkliste for utfylling'!L155," ") -> 0
A90: ='Sjekkliste for utfylling'!A156 -> 89 | B90: =IF('Sjekkliste for utfylling'!I156<>"",1,0) -> 0 | C90: =IF('Sjekkliste for utfylling'!J156<>"",1,0) -> 0 | D90: =IF('Sjekkliste for utfylling'!K156<>"",1,0) -> 0 | E90: 0 | G90: =IF($E90=0,'Sjekkliste for utfylling'!A156,"") -> 89 | H90: =IF($E90=0,'Sjekkliste for utfylling'!B156,"") -> Er salgsdokumentet merket på en av følgende måter: • Forhåndsnummerert på trykte blanketter? (kvitteringsblokker fra bokhandler el. kan kun benyttes dersom det er tilstrekkelig med én blokk innenfor et år eller over flere år) • Nummerert ved maskinelt tildelte nummer med en kontrollerbar sekvens? • Merket på en annen måte slik at fullstendig registrering av utfakturerte salg kan etterprøves på en enkel måte? | K90: =IF(E90=0,'Sjekkliste for utfylling'!L156," ") -> 0
A91: ='Sjekkliste for utfylling'!A157 -> 90 | B91: =IF('Sjekkliste for utfylling'!I157<>"",1,0) -> 0 | C91: =IF('Sjekkliste for utfylling'!J157<>"",1,0) -> 0 | D91: =IF('Sjekkliste for utfylling'!K157<>"",1,0) -> 0 | E91: 0 | G91: =IF($E91=0,'Sjekkliste for utfylling'!A157,"") -> 90 | H91: =IF($E91=0,'Sjekkliste for utfylling'!B157,"") -> Har bokføringspliktige kjøpere som utsteder salgsdokumentasjon på vegne av selger etter BF § 5-2-1 tredje ledd, i stedet for fortløpende nummerering av hver enkelt selgers salgsdokument, anført hvor mye som er avregnet hittil i regnskapsåret? | K91: =IF(E91=0,'Sjekkliste for utfylling'!L157," ") -> 0
A92: ='Sjekkliste for utfylling'!A158 -> 91 | B92: =IF('Sjekkliste for utfylling'!I158<>"",1,0) -> 0 | C92: =IF('Sjekkliste for utfylling'!J158<>"",1,0) -> 0 | D92: =IF('Sjekkliste for utfylling'!K158<>"",1,0) -> 0 | E92: 0 | G92: =IF($E92=0,'Sjekkliste for utfylling'!A158,"") -> 91 | H92: =IF($E92=0,'Sjekkliste for utfylling'!B158,"") -> Fremgår avgiftspliktig og avgiftsfritt salg, samt salg utenfor avgiftsområdet, hver for seg med særskilt summering? | K92: =IF(E92=0,'Sjekkliste for utfylling'!L158," ") -> 0
A93: ='Sjekkliste for utfylling'!A159 -> 92 | B93: =IF('Sjekkliste for utfylling'!I159<>"",1,0) -> 0 | C93: =IF('Sjekkliste for utfylling'!J159<>"",1,0) -> 0 | D93: =IF('Sjekkliste for utfylling'!K159<>"",1,0) -> 0 | E93: 0 | G93: =IF($E93=0,'Sjekkliste for utfylling'!A159,"") -> 92 | H93: =IF($E93=0,'Sjekkliste for utfylling'!B159,"") -> Er avgiftspliktig salg som avgiftsberegnes etter forskjellige satser spesifisert og summert for seg? | K93: =IF(E93=0,'Sjekkliste for utfylling'!L159," ") -> 0
A94: ='Sjekkliste for utfylling'!A160 -> 93 | B94: =IF('Sjekkliste for utfylling'!I160<>"",1,0) -> 0 | C94: =IF('Sjekkliste for utfylling'!J160<>"",1,0) -> 0 | D94: =IF('Sjekkliste for utfylling'!K160<>"",1,0) -> 0 | E94: 0 | G94: =IF($E94=0,'Sjekkliste for utfylling'!A160,"") -> 93 | H94: =IF($E94=0,'Sjekkliste for utfylling'!B160,"") -> Er sykkelens kjennemerke angitt i dokumentasjonen ved salg av beltemotorsykkel, firehjuls terrenggående motorsykkel eller salg av tjenester til vedlikehold, reparasjon, påkostning og ombygging av slike samt omsetning av varer ved utføring av slike tjenester? | K94: =IF(E94=0,'Sjekkliste for utfylling'!L160," ") -> 0
A95: ='Sjekkliste for utfylling'!A162 -> 94 | B95: =IF('Sjekkliste for utfylling'!I162<>"",1,0) -> 0 | C95: =IF('Sjekkliste for utfylling'!J162<>"",1,0) -> 0 | D95: =IF('Sjekkliste for utfylling'!K162<>"",1,0) -> 0 | E95: 0 | G95: =IF($E95=0,'Sjekkliste for utfylling'!A162,"") -> 94 | H95: =IF($E95=0,'Sjekkliste for utfylling'!B162,"") -> Omfatter dokumentasjonen også representantens navn og adresse? | K95: =IF(E95=0,'Sjekkliste for utfylling'!L162," ") -> 0
A96: ='Sjekkliste for utfylling'!A164 -> 95 | B96: =IF('Sjekkliste for utfylling'!I164<>"",1,0) -> 0 | C96: =IF('Sjekkliste for utfylling'!J164<>"",1,0) -> 0 | D96: =IF('Sjekkliste for utfylling'!K164<>"",1,0) -> 0 | E96: 0 | G96: =IF($E96=0,'Sjekkliste for utfylling'!A164,"") -> 95 | H96: =IF($E96=0,'Sjekkliste for utfylling'!B164,"") -> Er salgsdokumentet utstedt av selger, med mindre annet er tillatt etter lov eller forskrift? | K96: =IF(E96=0,'Sjekkliste for utfylling'!L164," ") -> 0
A97: ='Sjekkliste for utfylling'!A170 -> 96 | B97: =IF('Sjekkliste for utfylling'!I170<>"",1,0) -> 0 | C97: =IF('Sjekkliste for utfylling'!J170<>"",1,0) -> 0 | D97: =IF('Sjekkliste for utfylling'!K170<>"",1,0) -> 0 | E97: 0 | G97: =IF($E97=0,'Sjekkliste for utfylling'!A170,"") -> 96 | H97: =IF($E97=0,'Sjekkliste for utfylling'!B170,"") -> Er dokumentasjonen utstedt senest en måned etter levering? (Gjelder dersom ikke annet følger av spørsmålene 97 - 104.) | K97: =IF(E97=0,'Sjekkliste for utfylling'!L170," ") -> 0
A98: ='Sjekkliste for utfylling'!A171 -> 97 | B98: =IF('Sjekkliste for utfylling'!I171<>"",1,0) -> 0 | C98: =IF('Sjekkliste for utfylling'!J171<>"",1,0) -> 0 | D98: =IF('Sjekkliste for utfylling'!K171<>"",1,0) -> 0 | E98: 0 | G98: =IF($E98=0,'Sjekkliste for utfylling'!A171,"") -> 97 | H98: =IF($E98=0,'Sjekkliste for utfylling'!B171,"") -> Er dokumentasjonen utstedt snarest mulig etter uttakstidspunktet og senest innen femten virkedager i måneden etter at uttaket fant sted? | K98: =IF(E98=0,'Sjekkliste for utfylling'!L171," ") -> 0
A99: ='Sjekkliste for utfylling'!A172 -> 98 | B99: =IF('Sjekkliste for utfylling'!I172<>"",1,0) -> 0 | C99: =IF('Sjekkliste for utfylling'!J172<>"",1,0) -> 0 | D99: =IF('Sjekkliste for utfylling'!K172<>"",1,0) -> 0 | E99: 0 | G99: =IF($E99=0,'Sjekkliste for utfylling'!A172,"") -> 98 | H99: =IF($E99=0,'Sjekkliste for utfylling'!B172,"") -> Dersom den bokføringspliktige leverer årsoppgave eller årsterminoppgave etter skatteforvaltningsforskriften §§ 8-3-3 eller 8-3-7 - er dokumentasjonen utstedet senest det kalenderåret uttaket fant sted? | K99: =IF(E99=0,'Sjekkliste for utfylling'!L172," ") -> 0
A100: ='Sjekkliste for utfylling'!A173 -> 99 | B100: =IF('Sjekkliste for utfylling'!I173<>"",1,0) -> 0 | C100: =IF('Sjekkliste for utfylling'!J173<>"",1,0) -> 0 | D100: =IF('Sjekkliste for utfylling'!K173<>"",1,0) -> 0 | E100: 0 | G100: =IF($E100=0,'Sjekkliste for utfylling'!A173,"") -> 99 | H100: =IF($E100=0,'Sjekkliste for utfylling'!B173,"") -> Dersom den bokføringspliktige leverer årsoppgave eller årsterminoppgave etter skatteforvaltningsforskriften §§ 8-3-3 eller 8-3-7 - er uttaket betryggende registert i perioden mellom uttakstidspunkt og dokumentasjonsutstedelse? | K100: =IF(E100=0,'Sjekkliste for utfylling'!L173," ") -> 0
A101: ='Sjekkliste for utfylling'!A174 -> 100 | B101: =IF('Sjekkliste for utfylling'!I174<>"",1,0) -> 0 | C101: =IF('Sjekkliste for utfylling'!J174<>"",1,0) -> 0 | D101: =IF('Sjekkliste for utfylling'!K174<>"",1,0) -> 0 | E101: 0 | G101: =IF($E101=0,'Sjekkliste for utfylling'!A174,"") -> 100 | H101: =IF($E101=0,'Sjekkliste for utfylling'!B174,"") -> Er dokumentasjon utstedt senest i det kalenderår levering finner sted? (Gjelder for de som leverer årsoppgave eller årsterminoppgave for merverdiavgift) | K101: =IF(E101=0,'Sjekkliste for utfylling'!L174," ") -> 0
A102: ='Sjekkliste for utfylling'!A175 -> 101 | B102: =IF('Sjekkliste for utfylling'!I175<>"",1,0) -> 0 | C102: =IF('Sjekkliste for utfylling'!J175<>"",1,0) -> 0 | D102: =IF('Sjekkliste for utfylling'!K175<>"",1,0) -> 0 | E102: 0 | G102: =IF($E102=0,'Sjekkliste for utfylling'!A175,"") -> 101 | H102: =IF($E102=0,'Sjekkliste for utfylling'!B175,"") -> Er leveranser som faktureres månedlig, fakturert innen femten virkedager etter leveringsmåneden? | K102: =IF(E102=0,'Sjekkliste for utfylling'!L175," ") -> 0
A103: ='Sjekkliste for utfylling'!A176 -> 102 | B103: =IF('Sjekkliste for utfylling'!I176<>"",1,0) -> 0 | C103: =IF('Sjekkliste for utfylling'!J176<>"",1,0) -> 0 | D103: =IF('Sjekkliste for utfylling'!K176<>"",1,0) -> 0 | E103: 0 | G103: =IF($E103=0,'Sjekkliste for utfylling'!A176,"") -> 102 | H103: =IF($E103=0,'Sjekkliste for utfylling'!B176,"") -> Er tjenester som leveres løpende og varer som leveres i den forbindelse, fakturert senest en måned etter utløpet av den alminnelige oppgaveterminen, jf skatteforvaltningsforskriften § 8-3-1? (Utstedelse av salgsdokumentasjon for ubetydelige leveranser kan utsettes til neste termin.) | K103: =IF(E103=0,'Sjekkliste for utfylling'!L176," ") -> 0
A104: ='Sjekkliste for utfylling'!A177 -> 103 | B104: =IF('Sjekkliste for utfylling'!I177<>"",1,0) -> 0 | C104: =IF('Sjekkliste for utfylling'!J177<>"",1,0) -> 0 | D104: =IF('Sjekkliste for utfylling'!K177<>"",1,0) -> 0 | E104: 0 | G104: =IF($E104=0,'Sjekkliste for utfylling'!A177,"") -> 103 | H104: =IF($E104=0,'Sjekkliste for utfylling'!B177,"") -> Er tjenester som leveres basert på måling av faktisk forbruk, fakturert minst en gang i året? (Salgsdokumentet skal så vidt mulig utstedes innenfor det kalenderår levering finner sted.) | K104: =IF(E104=0,'Sjekkliste for utfylling'!L177," ") -> 0
A105: ='Sjekkliste for utfylling'!A178 -> 104 | B105: =IF('Sjekkliste for utfylling'!I178<>"",1,0) -> 0 | C105: =IF('Sjekkliste for utfylling'!J178<>"",1,0) -> 0 | D105: =IF('Sjekkliste for utfylling'!K178<>"",1,0) -> 0 | E105: 0 | G105: =IF($E105=0,'Sjekkliste for utfylling'!A178,"") -> 104 | H105: =IF($E105=0,'Sjekkliste for utfylling'!B178,"") -> Er tjenester som leveres etter anbud eller tilsvarende forhåndsavtalt pris, fakturert i henhold til avtale mellom partene? (Kan ikke benyttes dersom avtalt fakturering (betaling) avviker vesentlig fra reell fremdrift.) | K105: =IF(E105=0,'Sjekkliste for utfylling'!L178," ") -> 0
A106: ='Sjekkliste for utfylling'!A181 -> 105 | B106: =IF('Sjekkliste for utfylling'!I181<>"",1,0) -> 0 | C106: =IF('Sjekkliste for utfylling'!J181<>"",1,0) -> 0 | D106: =IF('Sjekkliste for utfylling'!K181<>"",1,0) -> 0 | E106: 0 | G106: =IF($E106=0,'Sjekkliste for utfylling'!A181,"") -> 105 | H106: =IF($E106=0,'Sjekkliste for utfylling'!B181,"") -> Har betalingsdokumentasjon referanse til avtalen? | K106: =IF(E106=0,'Sjekkliste for utfylling'!L181," ") -> 0
A107: ='Sjekkliste for utfylling'!A182 -> 106 | B107: =IF('Sjekkliste for utfylling'!I182<>"",1,0) -> 0 | C107: =IF('Sjekkliste for utfylling'!J182<>"",1,0) -> 0 | D107: =IF('Sjekkliste for utfylling'!K182<>"",1,0) -> 0 | E107: 0 | G107: =IF($E107=0,'Sjekkliste for utfylling'!A182,"") -> 106 | H107: =IF($E107=0,'Sjekkliste for utfylling'!B182,"") -> Inneholder avtalen alle opplysninger som nevnt i §5-1-1 (se spm 74 - 81) | K107: =IF(E107=0,'Sjekkliste for utfylling'!L182," ") -> 0
A108: ='Sjekkliste for utfylling'!A184 -> 107 | B108: =IF('Sjekkliste for utfylling'!I184<>"",1,0) -> 0 | C108: =IF('Sjekkliste for utfylling'!J184<>"",1,0) -> 0 | D108: =IF('Sjekkliste for utfylling'!K184<>"",1,0) -> 0 | E108: 0 | G108: =IF($E108=0,'Sjekkliste for utfylling'!A184,"") -> 107 | H108: =IF($E108=0,'Sjekkliste for utfylling'!B184,"") -> Dersom ideelle organisasjoner har ikke avgiftspliktige medlemskontingenter som regnskapsmessig anses opptjent på betalingstidspunktet, og som ikke er dokumentert med salgsdokument ihht § 5-1-1, er medlemskontigentene dokumentert med betalingsdokumentasjon? | K108: =IF(E108=0,'Sjekkliste for utfylling'!L184," ") -> 0
A109: ='Sjekkliste for utfylling'!A185 -> 108 | B109: =IF('Sjekkliste for utfylling'!I185<>"",1,0) -> 0 | C109: =IF('Sjekkliste for utfylling'!J185<>"",1,0) -> 0 | D109: =IF('Sjekkliste for utfylling'!K185<>"",1,0) -> 0 | E109: 0 | G109: =IF($E109=0,'Sjekkliste for utfylling'!A185,"") -> 108 | H109: =IF($E109=0,'Sjekkliste for utfylling'!B185,"") -> Inneholder betalingsdokumentasjonen alle opplysningene som nevnt i §5-1-1 nr 2 - 5? | K109: =IF(E109=0,'Sjekkliste for utfylling'!L185," ") -> 0
A110: ='Sjekkliste for utfylling'!A187 -> 109 | B110: =IF('Sjekkliste for utfylling'!I187<>"",1,0) -> 0 | C110: =IF('Sjekkliste for utfylling'!J187<>"",1,0) -> 0 | D110: =IF('Sjekkliste for utfylling'!K187<>"",1,0) -> 0 | E110: 0 | G110: =IF($E110=0,'Sjekkliste for utfylling'!A187,"") -> 109 | H110: =IF($E110=0,'Sjekkliste for utfylling'!B187,"") -> Har formidler oversendt en gjenpart av salgsdokumentet til selger når formidleren har utstedet ett salgsdokument på vegne av selger? | K110: =IF(E110=0,'Sjekkliste for utfylling'!L187," ") -> 0
A111: ='Sjekkliste for utfylling'!A188 -> 110 | B111: =IF('Sjekkliste for utfylling'!I188<>"",1,0) -> 0 | C111: =IF('Sjekkliste for utfylling'!J188<>"",1,0) -> 0 | D111: =IF('Sjekkliste for utfylling'!K188<>"",1,0) -> 0 | E111: 0 | G111: =IF($E111=0,'Sjekkliste for utfylling'!A188,"") -> 110 | H111: =IF($E111=0,'Sjekkliste for utfylling'!B188,"") -> Formidler kan likevel utstede avregning til selger for dennes del av salget. - Inneholder slik avregning til den enkelte selger opplysningene som er angitt i salgsdokumentet til kjøper? | K111: =IF(E111=0,'Sjekkliste for utfylling'!L188," ") -> 0
A112: ='Sjekkliste for utfylling'!A190 -> 111 | B112: =IF('Sjekkliste for utfylling'!I190<>"",1,0) -> 0 | C112: =IF('Sjekkliste for utfylling'!J190<>"",1,0) -> 0 | D112: =IF('Sjekkliste for utfylling'!K190<>"",1,0) -> 0 | E112: 0 | G112: =IF($E112=0,'Sjekkliste for utfylling'!A190,"") -> 111 | H112: =IF($E112=0,'Sjekkliste for utfylling'!B190,"") -> - Fremgår det av avtalen at dette gjelder formidling? | K112: =IF(E112=0,'Sjekkliste for utfylling'!L190," ") -> 0
A113: ='Sjekkliste for utfylling'!A191 -> 112 | B113: =IF('Sjekkliste for utfylling'!I191<>"",1,0) -> 0 | C113: =IF('Sjekkliste for utfylling'!J191<>"",1,0) -> 0 | D113: =IF('Sjekkliste for utfylling'!K191<>"",1,0) -> 0 | E113: 0 | G113: =IF($E113=0,'Sjekkliste for utfylling'!A191,"") -> 112 | H113: =IF($E113=0,'Sjekkliste for utfylling'!B191,"") -> - Oppbevares avtalen av både selger og formidler? | K113: =IF(E113=0,'Sjekkliste for utfylling'!L191," ") -> 0
A114: ='Sjekkliste for utfylling'!A192 -> 113 | B114: =IF('Sjekkliste for utfylling'!I192<>"",1,0) -> 0 | C114: =IF('Sjekkliste for utfylling'!J192<>"",1,0) -> 0 | D114: =IF('Sjekkliste for utfylling'!K192<>"",1,0) -> 0 | E114: 0 | G114: =IF($E114=0,'Sjekkliste for utfylling'!A192,"") -> 113 | H114: =IF($E114=0,'Sjekkliste for utfylling'!B192,"") -> - Er selgers salgsdokumentasjon tydelig merket "Formidling - ikke kjøpsdokumentasjon" og har en henvisnig til avtalen? | K114: =IF(E114=0,'Sjekkliste for utfylling'!L192," ") -> 0
A115: ='Sjekkliste for utfylling'!A195 -> 114 | B115: =IF('Sjekkliste for utfylling'!I195<>"",1,0) -> 0 | C115: =IF('Sjekkliste for utfylling'!J195<>"",1,0) -> 0 | D115: =IF('Sjekkliste for utfylling'!K195<>"",1,0) -> 0 | E115: 0 | G115: =IF($E115=0,'Sjekkliste for utfylling'!A195,"") -> 114 | H115: =IF($E115=0,'Sjekkliste for utfylling'!B195,"") -> Når mellomleddet utsteder kreditnota til medlemmene på vegne av leverandørene, fremgår det hvilken leverandør dette gjelder, med angivelse av navn og organisasjonsnummer etterfulgt av bokstavene MVA? | K115: =IF(E115=0,'Sjekkliste for utfylling'!L195," ") -> 0
A116: ='Sjekkliste for utfylling'!A196 -> 115 | B116: =IF('Sjekkliste for utfylling'!I196<>"",1,0) -> 0 | C116: =IF('Sjekkliste for utfylling'!J196<>"",1,0) -> 0 | D116: =IF('Sjekkliste for utfylling'!K196<>"",1,0) -> 0 | E116: 0 | G116: =IF($E116=0,'Sjekkliste for utfylling'!A196,"") -> 115 | H116: =IF($E116=0,'Sjekkliste for utfylling'!B196,"") -> Oppbevarer mellomleddet dokumentasjon som viser hvordan mottatt bonus fra leverandørene fordeles på medlemmene, som del av sin dokumentasjon for bokføringen av bonus til medlemmene? | K116: =IF(E116=0,'Sjekkliste for utfylling'!L196," ") -> 0
A117: ='Sjekkliste for utfylling'!A198 -> 116 | B117: =IF('Sjekkliste for utfylling'!I198<>"",1,0) -> 0 | C117: =IF('Sjekkliste for utfylling'!J198<>"",1,0) -> 0 | D117: =IF('Sjekkliste for utfylling'!K198<>"",1,0) -> 0 | E117: 0 | G117: =IF($E117=0,'Sjekkliste for utfylling'!A198,"") -> 116 | H117: =IF($E117=0,'Sjekkliste for utfylling'!B198,"") -> Oversendes salgsdokumentet uoppfordret til kjøper med mindre annet fremgår av skriftlig, undertegnet avtale mellom partene eller er bestemt i lov eller forskrift? | K117: =IF(E117=0,'Sjekkliste for utfylling'!L198," ") -> 0
A118: ='Sjekkliste for utfylling'!A200 -> 117 | B118: =IF('Sjekkliste for utfylling'!I200<>"",1,0) -> 0 | C118: =IF('Sjekkliste for utfylling'!J200<>"",1,0) -> 0 | D118: =IF('Sjekkliste for utfylling'!K200<>"",1,0) -> 0 | E118: 0 | G118: =IF($E118=0,'Sjekkliste for utfylling'!A200,"") -> 117 | H118: =IF($E118=0,'Sjekkliste for utfylling'!B200,"") -> Er elektroniske salgsdokumenter utsted i et filformat som ikke enkelt lar seg redigere i et allment kjent sluttbrukerverktøy for tekstbehandling, regneark, e-post mv uten at endringen fremgår direkte av salgsdokumentet? | K118: =IF(E118=0,'Sjekkliste for utfylling'!L200," ") -> 0
A119: ='Sjekkliste for utfylling'!A202 -> 118 | B119: =IF('Sjekkliste for utfylling'!I202<>"",1,0) -> 0 | C119: =IF('Sjekkliste for utfylling'!J202<>"",1,0) -> 0 | D119: =IF('Sjekkliste for utfylling'!K202<>"",1,0) -> 0 | E119: 0 | G119: =IF($E119=0,'Sjekkliste for utfylling'!A202,"") -> 118 | H119: =IF($E119=0,'Sjekkliste for utfylling'!B202,"") -> Er salgsdokument for alle leveranser, med unntak som nevnt nedenfor, først utstedt inklusive merverdiavgift etter at den avgiftspliktige varen eller tjenesten er levert? | K119: =IF(E119=0,'Sjekkliste for utfylling'!L202," ") -> 0
A120: ='Sjekkliste for utfylling'!A209 -> 119 | B120: =IF('Sjekkliste for utfylling'!I209<>"",1,0) -> 0 | C120: =IF('Sjekkliste for utfylling'!J209<>"",1,0) -> 0 | D120: =IF('Sjekkliste for utfylling'!K209<>"",1,0) -> 0 | E120: 0 | G120: =IF($E120=0,'Sjekkliste for utfylling'!A209,"") -> 119 | H120: =IF($E120=0,'Sjekkliste for utfylling'!B209,"") -> Er det utstedt kreditnota som reverserer opprinnelig salgsdokument, når det er utstedt nytt salgsdokument til erstatning for allerede avsendt salgsdokument? | K120: =IF(E120=0,'Sjekkliste for utfylling'!L209," ") -> 0
A121: ='Sjekkliste for utfylling'!A218 -> 120 | B121: =IF('Sjekkliste for utfylling'!I218<>"",1,0) -> 0 | C121: =IF('Sjekkliste for utfylling'!J218<>"",1,0) -> 0 | D121: =IF('Sjekkliste for utfylling'!K218<>"",1,0) -> 0 | E121: 0 | G121: =IF($E121=0,'Sjekkliste for utfylling'!A218,"") -> 120 | H121: =IF($E121=0,'Sjekkliste for utfylling'!B218,"") -> Blir det kun benyttet kassasystemer som det foreligger produkterklæring for etter kassasystemlova § 5? | K121: =IF(E121=0,'Sjekkliste for utfylling'!L218," ") -> 0
A122: ='Sjekkliste for utfylling'!A221 -> 121 | B122: =IF('Sjekkliste for utfylling'!I221<>"",1,0) -> 0 | C122: =IF('Sjekkliste for utfylling'!J221<>"",1,0) -> 0 | D122: =IF('Sjekkliste for utfylling'!K221<>"",1,0) -> 0 | E122: 0 | G122: =IF($E122=0,'Sjekkliste for utfylling'!A221,"") -> 121 | H122: =IF($E122=0,'Sjekkliste for utfylling'!B221,"") -> Oppbevares kontanter i interert kassaskuff, så lenge ingen av unntakene omtalt nedenfor er aktuelle? | K122: =IF(E122=0,'Sjekkliste for utfylling'!L221," ") -> 0
A123: ='Sjekkliste for utfylling'!A223 -> 122 | B123: =IF('Sjekkliste for utfylling'!I223<>"",1,0) -> 0 | C123: =IF('Sjekkliste for utfylling'!J223<>"",1,0) -> 0 | D123: =IF('Sjekkliste for utfylling'!K223<>"",1,0) -> 0 | E123: 0 | G123: =IF($E123=0,'Sjekkliste for utfylling'!A223,"") -> 122 | H123: =IF($E123=0,'Sjekkliste for utfylling'!B223,"") -> Blir integrert kassaskuff lukket umiddelbart etter at betaling for kontantsalget er mottatt, samt etter at kassaskuffen har vært åpnet for andre formål som veksling eller inn- og utbetalinger? | K123: =IF(E123=0,'Sjekkliste for utfylling'!L223," ") -> 0
A124: ='Sjekkliste for utfylling'!A224 -> 123 | B124: =IF('Sjekkliste for utfylling'!I224<>"",1,0) -> 0 | C124: =IF('Sjekkliste for utfylling'!J224<>"",1,0) -> 0 | D124: =IF('Sjekkliste for utfylling'!K224<>"",1,0) -> 0 | E124: 0 | G124: =IF($E124=0,'Sjekkliste for utfylling'!A224,"") -> 123 | H124: =IF($E124=0,'Sjekkliste for utfylling'!B224,"") -> Dersom flere bokføringspliktige bruker felles kassasystem, jf. § 5-3-9, bruker minst en av dem integrert kassaskuff for oppbevaring av betalingsmidlene? | K124: =IF(E124=0,'Sjekkliste for utfylling'!L224," ") -> 0
A125: ='Sjekkliste for utfylling'!A225 -> 124 | B125: =IF('Sjekkliste for utfylling'!I225<>"",1,0) -> 0 | C125: =IF('Sjekkliste for utfylling'!J225<>"",1,0) -> 0 | D125: =IF('Sjekkliste for utfylling'!K225<>"",1,0) -> 0 | E125: 0 | G125: =IF($E125=0,'Sjekkliste for utfylling'!A225,"") -> 124 | H125: =IF($E125=0,'Sjekkliste for utfylling'!B225,"") -> Dersom det ikke er mulig å holde betalingsmidlene fra flere bokføringspliktige brukere adskilt i kassaskuffen, oppbevarer øvrige brukere betalingsmidlene i egne kassaskuffer? | K125: =IF(E125=0,'Sjekkliste for utfylling'!L225," ") -> 0
A126: ='Sjekkliste for utfylling'!A227 -> 125 | B126: =IF('Sjekkliste for utfylling'!I227<>"",1,0) -> 0 | C126: =IF('Sjekkliste for utfylling'!J227<>"",1,0) -> 0 | D126: =IF('Sjekkliste for utfylling'!K227<>"",1,0) -> 0 | E126: 0 | G126: =IF($E126=0,'Sjekkliste for utfylling'!A227,"") -> 125 | H126: =IF($E126=0,'Sjekkliste for utfylling'!B227,"") -> Er kontantsalg (dersom ikke unntakene under spørsmål 171-180 gjelder) registrert fortløpende i et kassasystem med produkterklæring som tilfredsstiller kravene i kassasystemlova og kassasystemforskrifta? | K126: =IF(E126=0,'Sjekkliste for utfylling'!L227," ") -> 0
A127: ='Sjekkliste for utfylling'!A228 -> 126 | B127: =IF('Sjekkliste for utfylling'!I228<>"",1,0) -> 0 | C127: =IF('Sjekkliste for utfylling'!J228<>"",1,0) -> 0 | D127: =IF('Sjekkliste for utfylling'!K228<>"",1,0) -> 0 | E127: 0 | G127: =IF($E127=0,'Sjekkliste for utfylling'!A228,"") -> 126 | H127: =IF($E127=0,'Sjekkliste for utfylling'!B228,"") -> Er også all annen løpende anvendelse av kassasystemet registrert fortløpende i kassasystemet? | K127: =IF(E127=0,'Sjekkliste for utfylling'!L228," ") -> 0
A128: ='Sjekkliste for utfylling'!A229 -> 127 | B128: =IF('Sjekkliste for utfylling'!I229<>"",1,0) -> 0 | C128: =IF('Sjekkliste for utfylling'!J229<>"",1,0) -> 0 | D128: =IF('Sjekkliste for utfylling'!K229<>"",1,0) -> 0 | E128: 0 | G128: =IF($E128=0,'Sjekkliste for utfylling'!A229,"") -> 127 | H128: =IF($E128=0,'Sjekkliste for utfylling'!B229,"") -> Omfatter registreringen i kassasystemet all den informasjon som kreves spesifisert på X-rapport, Z-rapport og kvitteringer etter kassasystemforskrifta § 2-8? | K128: =IF(E128=0,'Sjekkliste for utfylling'!L229," ") -> 0
A129: ='Sjekkliste for utfylling'!A230 -> 128 | B129: =IF('Sjekkliste for utfylling'!I230<>"",1,0) -> 0 | C129: =IF('Sjekkliste for utfylling'!J230<>"",1,0) -> 0 | D129: =IF('Sjekkliste for utfylling'!K230<>"",1,0) -> 0 | E129: 0 | G129: =IF($E129=0,'Sjekkliste for utfylling'!A230,"") -> 128 | H129: =IF($E129=0,'Sjekkliste for utfylling'!B230,"") -> Hvis systemet har funksjon for å registrere kontantsalget på den enkelte operatør, og operatøren oppbevarer kontantene i eget pengebelte eller lignende, er kontantsalget registrert på den enkelte operatør? | K129: =IF(E129=0,'Sjekkliste for utfylling'!L230," ") -> 0
A130: ='Sjekkliste for utfylling'!A232 -> 129 | B130: =IF('Sjekkliste for utfylling'!I232<>"",1,0) -> 0 | C130: =IF('Sjekkliste for utfylling'!J232<>"",1,0) -> 0 | D130: =IF('Sjekkliste for utfylling'!K232<>"",1,0) -> 0 | E130: =SUM(B130:D130) -> 0 | G130: =IF($E130=0,'Sjekkliste for utfylling'!A232,"") -> 129 | H130: =IF($E130=0,'Sjekkliste for utfylling'!B232,"") -> Alt. 1: Hvis kassasystemet har funksjonalitet for det kan tips registreres særskilt i kassasystemet, og kontanttips oppbevares i kassaskuffen: - Omfatter registreringen også tips betalt med betalingskort? | K130: =IF(E130=0,'Sjekkliste for utfylling'!L232," ") -> 0
A131: ='Sjekkliste for utfylling'!A233 -> 130 | B131: =IF('Sjekkliste for utfylling'!I233<>"",1,0) -> 0 | C131: =IF('Sjekkliste for utfylling'!J233<>"",1,0) -> 0 | D131: =IF('Sjekkliste for utfylling'!K233<>"",1,0) -> 0 | E131: 0 | G131: =IF($E131=0,'Sjekkliste for utfylling'!A233,"") -> 130 | H131: =IF($E131=0,'Sjekkliste for utfylling'!B233,"") -> Alt 2: Hvis tips ikke registreres særskilt på kassasystemet: - Oppbevares kontanttips utenom kassaskuffen? | K131: =IF(E131=0,'Sjekkliste for utfylling'!L233," ") -> 0
A132: ='Sjekkliste for utfylling'!A235 -> 131 | B132: =IF('Sjekkliste for utfylling'!I235<>"",1,0) -> 0 | C132: =IF('Sjekkliste for utfylling'!J235<>"",1,0) -> 0 | D132: =IF('Sjekkliste for utfylling'!K235<>"",1,0) -> 0 | E132: 0 | G132: =IF($E132=0,'Sjekkliste for utfylling'!A235,"") -> 131 | H132: =IF($E132=0,'Sjekkliste for utfylling'!B235,"") -> Dersom det ikke benyttes en integrert betalingsløsning i forbindelse med salget og/eller kunden ikke ønsker kvittering: Skrives det ved hvert salg ut en salgskvittering fra kassasystemet som fremlegges for kunden? | K132: =IF(E132=0,'Sjekkliste for utfylling'!L235," ") -> 0
A133: ='Sjekkliste for utfylling'!A237 -> 132 | B133: =IF('Sjekkliste for utfylling'!I237<>"",1,0) -> 0 | C133: =IF('Sjekkliste for utfylling'!J237<>"",1,0) -> 0 | D133: =IF('Sjekkliste for utfylling'!K237<>"",1,0) -> 0 | E133: 0 | G133: =IF($E133=0,'Sjekkliste for utfylling'!A237,"") -> 132 | H133: =IF($E133=0,'Sjekkliste for utfylling'!B237,"") -> Dersom kassasystemet også brukes til å registrere kredittsalg som blir fakturert på et senere tidspunkt, skrives det ut en utleveringskvittering? | K133: =IF(E133=0,'Sjekkliste for utfylling'!L237," ") -> 0
A134: ='Sjekkliste for utfylling'!A240 -> 133 | B134: =IF('Sjekkliste for utfylling'!I240<>"",1,0) -> 0 | C134: =IF('Sjekkliste for utfylling'!J240<>"",1,0) -> 0 | D134: =IF('Sjekkliste for utfylling'!K240<>"",1,0) -> 0 | E134: 0 | G134: =IF($E134=0,'Sjekkliste for utfylling'!A240,"") -> 133 | H134: =IF($E134=0,'Sjekkliste for utfylling'!B240,"") -> Skrives det ut en særskilt returkvittering ved returer? | K134: =IF(E134=0,'Sjekkliste for utfylling'!L240," ") -> 0
A135: ='Sjekkliste for utfylling'!A242 -> 134 | B135: =IF('Sjekkliste for utfylling'!I242<>"",1,0) -> 0 | C135: =IF('Sjekkliste for utfylling'!J242<>"",1,0) -> 0 | D135: =IF('Sjekkliste for utfylling'!K242<>"",1,0) -> 0 | E135: 0 | G135: =IF($E135=0,'Sjekkliste for utfylling'!A242,"") -> 134 | H135: =IF($E135=0,'Sjekkliste for utfylling'!B242,"") -> Dersom det er registrert feil betalingsmiddel på salgskvittering, er det enten; - tatt ut returkvittering som korrigerer feilen og ny salgskvittering med angivelse av rett betalingsmiddel, eller - tatt ut en kvittering som har referanse til salgskvitteringens nummer og som kun viser endringen av betalingsmiddel. | K135: =IF(E135=0,'Sjekkliste for utfylling'!L242," ") -> 0
A136: ='Sjekkliste for utfylling'!A243 -> 135 | B136: =IF('Sjekkliste for utfylling'!I243<>"",1,0) -> 0 | C136: =IF('Sjekkliste for utfylling'!J243<>"",1,0) -> 0 | D136: =IF('Sjekkliste for utfylling'!K243<>"",1,0) -> 0 | E136: 0 | G136: =IF($E136=0,'Sjekkliste for utfylling'!A243,"") -> 135 | H136: =IF($E136=0,'Sjekkliste for utfylling'!B243,"") -> Blir dokumentasjonen vedrørende feil betalingsmiddel skrevet ut og tilbydt kunden? | K136: =IF(E136=0,'Sjekkliste for utfylling'!L243," ") -> 0
A137: ='Sjekkliste for utfylling'!A245 -> 136 | B137: =IF('Sjekkliste for utfylling'!I245<>"",1,0) -> 0 | C137: =IF('Sjekkliste for utfylling'!J245<>"",1,0) -> 0 | D137: =IF('Sjekkliste for utfylling'!K245<>"",1,0) -> 0 | E137: 0 | G137: =IF($E137=0,'Sjekkliste for utfylling'!A245,"") -> 136 | H137: =IF($E137=0,'Sjekkliste for utfylling'!B245,"") -> Foreligger det dokumentasjon av korreksjonsposter med angivelse av beløp og årsak? | K137: =IF(E137=0,'Sjekkliste for utfylling'!L245," ") -> 0
A138: ='Sjekkliste for utfylling'!A246 -> 137 | B138: =IF('Sjekkliste for utfylling'!I246<>"",1,0) -> 0 | C138: =IF('Sjekkliste for utfylling'!J246<>"",1,0) -> 0 | D138: =IF('Sjekkliste for utfylling'!K246<>"",1,0) -> 0 | E138: 0 | G138: =IF($E138=0,'Sjekkliste for utfylling'!A246,"") -> 137 | H138: =IF($E138=0,'Sjekkliste for utfylling'!B246,"") -> Dersom korreksjonen gjelder tidligere registrert salg, foreligger det ytterligere dokumentasjon som underbygger korreksjonen? Dersom korreksjonen gjelder tidligere salg foreligger det også signatur fra kunden ved tilbakebetaling? | K138: =IF(E138=0,'Sjekkliste for utfylling'!L246," ") -> 0
A139: ='Sjekkliste for utfylling'!A247 -> 138 | B139: =IF('Sjekkliste for utfylling'!I247<>"",1,0) -> 0 | C139: =IF('Sjekkliste for utfylling'!J247<>"",1,0) -> 0 | D139: =IF('Sjekkliste for utfylling'!K247<>"",1,0) -> 0 | E139: 0 | G139: =IF($E139=0,'Sjekkliste for utfylling'!A247,"") -> 138 | H139: =IF($E139=0,'Sjekkliste for utfylling'!B247,"") -> Er tilbakebetaling til kunde, herunder ved returer, dokumentert med kundens signatur og telefonnummer? | K139: =IF(E139=0,'Sjekkliste for utfylling'!L247," ") -> 0
A140: ='Sjekkliste for utfylling'!A249 -> 139 | B140: =IF('Sjekkliste for utfylling'!I249<>"",1,0) -> 0 | C140: =IF('Sjekkliste for utfylling'!J249<>"",1,0) -> 0 | D140: =IF('Sjekkliste for utfylling'!K249<>"",1,0) -> 0 | E140: 0 | G140: =IF($E140=0,'Sjekkliste for utfylling'!A249,"") -> 139 | H140: =IF($E140=0,'Sjekkliste for utfylling'!B249,"") -> Blir vekselkasser registrert i kassasystemet ved salgsdagens begynnelse? | K140: =IF(E140=0,'Sjekkliste for utfylling'!L249," ") -> 0
A141: ='Sjekkliste for utfylling'!A250 -> 140 | B141: =IF('Sjekkliste for utfylling'!I250<>"",1,0) -> 0 | C141: =IF('Sjekkliste for utfylling'!J250<>"",1,0) -> 0 | D141: =IF('Sjekkliste for utfylling'!K250<>"",1,0) -> 0 | E141: 0 | G141: =IF($E141=0,'Sjekkliste for utfylling'!A250,"") -> 140 | H141: =IF($E141=0,'Sjekkliste for utfylling'!B250,"") -> Blir uttak av kontanter fra kassaskuffen i løpet av dagen dokumentert særskilt? | K141: =IF(E141=0,'Sjekkliste for utfylling'!L250," ") -> 0
A142: ='Sjekkliste for utfylling'!A251 -> 141 | B142: =IF('Sjekkliste for utfylling'!I251<>"",1,0) -> 0 | C142: =IF('Sjekkliste for utfylling'!J251<>"",1,0) -> 0 | D142: =IF('Sjekkliste for utfylling'!K251<>"",1,0) -> 0 | E142: 0 | G142: =IF($E142=0,'Sjekkliste for utfylling'!A251,"") -> 141 | H142: =IF($E142=0,'Sjekkliste for utfylling'!B251,"") -> Inneholder dokumentasjonen minst følgende opplysninger: a) Dato og klokkeslett b) Beløp c) Hvem som har gjort uttaket | K142: =IF(E142=0,'Sjekkliste for utfylling'!L251," ") -> 0
A143: ='Sjekkliste for utfylling'!A252 -> 142 | B143: =IF('Sjekkliste for utfylling'!I252<>"",1,0) -> 0 | C143: =IF('Sjekkliste for utfylling'!J252<>"",1,0) -> 0 | D143: =IF('Sjekkliste for utfylling'!K252<>"",1,0) -> 0 | E143: 0 | G143: =IF($E143=0,'Sjekkliste for utfylling'!A252,"") -> 142 | H143: =IF($E143=0,'Sjekkliste for utfylling'!B252,"") -> Blir dokumentasjonen oppbevart i kassaskuffen? | K143: =IF(E143=0,'Sjekkliste for utfylling'!L252," ") -> 0
A144: ='Sjekkliste for utfylling'!A255 -> 143 | B144: =IF('Sjekkliste for utfylling'!I255<>"",1,0) -> 0 | C144: =IF('Sjekkliste for utfylling'!J255<>"",1,0) -> 0 | D144: =IF('Sjekkliste for utfylling'!K255<>"",1,0) -> 0 | E144: 0 | G144: =IF($E144=0,'Sjekkliste for utfylling'!A255,"") -> 143 | H144: =IF($E144=0,'Sjekkliste for utfylling'!B255,"") -> Dersom flere bokføringspliktige benytter felles kassasystem, er betalingsmidlene holdt adskilt? | K144: =IF(E144=0,'Sjekkliste for utfylling'!L255," ") -> 0
A145: ='Sjekkliste for utfylling'!A256 -> 144 | B145: =IF('Sjekkliste for utfylling'!I256<>"",1,0) -> 0 | C145: =IF('Sjekkliste for utfylling'!J256<>"",1,0) -> 0 | D145: =IF('Sjekkliste for utfylling'!K256<>"",1,0) -> 0 | E145: 0 | G145: =IF($E145=0,'Sjekkliste for utfylling'!A256,"") -> 144 | H145: =IF($E145=0,'Sjekkliste for utfylling'!B256,"") -> Er det foretatt individuelle dagsoppgjør? | K145: =IF(E145=0,'Sjekkliste for utfylling'!L256," ") -> 0
A146: ='Sjekkliste for utfylling'!A258 -> 145 | B146: =IF('Sjekkliste for utfylling'!I258<>"",1,0) -> 0 | C146: =IF('Sjekkliste for utfylling'!J258<>"",1,0) -> 0 | D146: =IF('Sjekkliste for utfylling'!K258<>"",1,0) -> 0 | E146: 0 | G146: =IF($E146=0,'Sjekkliste for utfylling'!A258,"") -> 145 | H146: =IF($E146=0,'Sjekkliste for utfylling'!B258,"") -> Dersom lagringsminnet på kassasystemet er fullt, blir opplysningene i elektronisk journal umiddelbart overført til annet elektronisk lagringsmedium, jf. Kassasystemforskrifta § 2-7, 1. ledd? | K146: =IF(E146=0,'Sjekkliste for utfylling'!L258," ") -> 0
A147: ='Sjekkliste for utfylling'!A260 -> 146 | B147: =IF('Sjekkliste for utfylling'!I260<>"",1,0) -> 0 | C147: =IF('Sjekkliste for utfylling'!J260<>"",1,0) -> 0 | D147: =IF('Sjekkliste for utfylling'!K260<>"",1,0) -> 0 | E147: 0 | G147: =IF($E147=0,'Sjekkliste for utfylling'!A260,"") -> 146 | H147: =IF($E147=0,'Sjekkliste for utfylling'!B260,"") -> Dersom det oppstår feil i et kassasystem, og feilen medfører at kravene i kassasystemlova § 3 eller kassassystemforskrifta §§ 2-1 til 2-8 ikke oppfylles, blir feilen rettet uten ugrunnet opphold? | K147: =IF(E147=0,'Sjekkliste for utfylling'!L260," ") -> 0
A148: ='Sjekkliste for utfylling'!A261 -> 147 | B148: =IF('Sjekkliste for utfylling'!I261<>"",1,0) -> 0 | C148: =IF('Sjekkliste for utfylling'!J261<>"",1,0) -> 0 | D148: =IF('Sjekkliste for utfylling'!K261<>"",1,0) -> 0 | E148: 0 | G148: =IF($E148=0,'Sjekkliste for utfylling'!A261,"") -> 147 | H148: =IF($E148=0,'Sjekkliste for utfylling'!B261,"") -> Inntil feilen blir rettet, tar den bokføringspliktige i bruk hensiktsmessige reserveløsninger? | K148: =IF(E148=0,'Sjekkliste for utfylling'!L261," ") -> 0
A149: ='Sjekkliste for utfylling'!A263 -> 148 | B149: =IF('Sjekkliste for utfylling'!I263<>"",1,0) -> 0 | C149: =IF('Sjekkliste for utfylling'!J263<>"",1,0) -> 0 | D149: =IF('Sjekkliste for utfylling'!K263<>"",1,0) -> 0 | E149: 0 | G149: =IF($E149=0,'Sjekkliste for utfylling'!A263,"") -> 148 | H149: =IF($E149=0,'Sjekkliste for utfylling'!B263,"") -> Kan kassasystemet skrive salgsdokumentasjon (kvittering) til kunden for hvert salg? | K149: =IF(E149=0,'Sjekkliste for utfylling'!L263," ") -> 0
A150: ='Sjekkliste for utfylling'!A264 -> 149 | B150: =IF('Sjekkliste for utfylling'!I264<>"",1,0) -> 0 | C150: =IF('Sjekkliste for utfylling'!J264<>"",1,0) -> 0 | D150: =IF('Sjekkliste for utfylling'!K264<>"",1,0) -> 0 | E150: 0 | G150: =IF($E150=0,'Sjekkliste for utfylling'!A264,"") -> 149 | H150: =IF($E150=0,'Sjekkliste for utfylling'!B264,"") -> Er beløpet som registreres på kassasystem med display lett synlig for kunden, med mindre det er vanskelig gjennomførbart? | K150: =IF(E150=0,'Sjekkliste for utfylling'!L264," ") -> 0
A151: ='Sjekkliste for utfylling'!A266 -> 150 | B151: =IF('Sjekkliste for utfylling'!I266<>"",1,0) -> 0 | C151: =IF('Sjekkliste for utfylling'!J266<>"",1,0) -> 0 | D151: =IF('Sjekkliste for utfylling'!K266<>"",1,0) -> 0 | E151: 0 | G151: =IF($E151=0,'Sjekkliste for utfylling'!A266,"") -> 150 | H151: =IF($E151=0,'Sjekkliste for utfylling'!B266,"") -> - delkapittel § 5-1 (se spørsmål 74 til 94) | K151: =IF(E151=0,'Sjekkliste for utfylling'!L266," ") -> 0
A152: ='Sjekkliste for utfylling'!A267 -> 151 | B152: =IF('Sjekkliste for utfylling'!I267<>"",1,0) -> 0 | C152: =IF('Sjekkliste for utfylling'!J267<>"",1,0) -> 0 | D152: =IF('Sjekkliste for utfylling'!K267<>"",1,0) -> 0 | E152: 0 | G152: =IF($E152=0,'Sjekkliste for utfylling'!A267,"") -> 151 | H152: =IF($E152=0,'Sjekkliste for utfylling'!B267,"") -> - kassasystemforskrifta § 2-8-4: * type betalingsmiddel * ID-nummeret til kassapunktet * ordet "Salgskvittering", evt. "Elektronisk salgskvittering"øverst på kvitteringen * Dersom betalingsløsningen er integrert med kassasystemet; transaksjons-ID | K152: =IF(E152=0,'Sjekkliste for utfylling'!L267," ") -> 0
A153: ='Sjekkliste for utfylling'!A269 -> 152 | B153: =IF('Sjekkliste for utfylling'!I269<>"",1,0) -> 0 | C153: =IF('Sjekkliste for utfylling'!J269<>"",1,0) -> 0 | D153: =IF('Sjekkliste for utfylling'!K269<>"",1,0) -> 0 | E153: 0 | G153: =IF($E153=0,'Sjekkliste for utfylling'!A269,"") -> 152 | H153: =IF($E153=0,'Sjekkliste for utfylling'!B269,"") -> Angir salgskvitteringen klokkeslett for salget? | K153: =IF(E153=0,'Sjekkliste for utfylling'!L269," ") -> 0
A154: ='Sjekkliste for utfylling'!A271 -> 153 | B154: =IF('Sjekkliste for utfylling'!I271<>"",1,0) -> 0 | C154: =IF('Sjekkliste for utfylling'!J271<>"",1,0) -> 0 | D154: =IF('Sjekkliste for utfylling'!K271<>"",1,0) -> 0 | E154: 0 | G154: =IF($E154=0,'Sjekkliste for utfylling'!A271,"") -> 153 | H154: =IF($E154=0,'Sjekkliste for utfylling'!B271,"") -> Blir registrert kontantsalg og annen løpende anvendelse av kassasystemet dokumentert med elektronisk journal? | K154: =IF(E154=0,'Sjekkliste for utfylling'!L271," ") -> 0
A155: ='Sjekkliste for utfylling'!A273 -> 154 | B155: =IF('Sjekkliste for utfylling'!I273<>"",1,0) -> 0 | C155: =IF('Sjekkliste for utfylling'!J273<>"",1,0) -> 0 | D155: =IF('Sjekkliste for utfylling'!K273<>"",1,0) -> 0 | E155: 0 | G155: =IF($E155=0,'Sjekkliste for utfylling'!A273,"") -> 154 | H155: =IF($E155=0,'Sjekkliste for utfylling'!B273,"") -> Blir det ved dagens slutt utarbeidet en Z-rapport fra hvert enkelt kassapunkt? | K155: =IF(E155=0,'Sjekkliste for utfylling'!L273," ") -> 0
A156: ='Sjekkliste for utfylling'!A274 -> 155 | B156: =IF('Sjekkliste for utfylling'!I274<>"",1,0) -> 0 | C156: =IF('Sjekkliste for utfylling'!J274<>"",1,0) -> 0 | D156: =IF('Sjekkliste for utfylling'!K274<>"",1,0) -> 0 | E156: 0 | G156: =IF($E156=0,'Sjekkliste for utfylling'!A274,"") -> 155 | H156: =IF($E156=0,'Sjekkliste for utfylling'!B274,"") -> Er Z-rapporten enten skrevet ut på papir eller lagret elektronisk i kassasystemet slik at den til enhver tid kan skrives ut på papir? | K156: =IF(E156=0,'Sjekkliste for utfylling'!L274," ") -> 0
A157: ='Sjekkliste for utfylling'!A275 -> 156 | B157: =IF('Sjekkliste for utfylling'!I275<>"",1,0) -> 0 | C157: =IF('Sjekkliste for utfylling'!J275<>"",1,0) -> 0 | D157: =IF('Sjekkliste for utfylling'!K275<>"",1,0) -> 0 | E157: 0 | G157: =IF($E157=0,'Sjekkliste for utfylling'!A275,"") -> 156 | H157: =IF($E157=0,'Sjekkliste for utfylling'!B275,"") -> Blir det ved dagens slutt utarbeidet rapport fra hver enkelt betalingsterminal over de betalinger og uttak som er registrert? | K157: =IF(E157=0,'Sjekkliste for utfylling'!L275," ") -> 0
A158: ='Sjekkliste for utfylling'!A276 -> 157 | B158: =IF('Sjekkliste for utfylling'!I276<>"",1,0) -> 0 | C158: =IF('Sjekkliste for utfylling'!J276<>"",1,0) -> 0 | D158: =IF('Sjekkliste for utfylling'!K276<>"",1,0) -> 0 | E158: 0 | G158: =IF($E158=0,'Sjekkliste for utfylling'!A276,"") -> 157 | H158: =IF($E158=0,'Sjekkliste for utfylling'!B276,"") -> I rapporten fra hver enkelt betalingsterminal, fremgår tips særskilt? | K158: =IF(E158=0,'Sjekkliste for utfylling'!L276," ") -> 0
A159: ='Sjekkliste for utfylling'!A277 -> 158 | B159: =IF('Sjekkliste for utfylling'!I277<>"",1,0) -> 0 | C159: =IF('Sjekkliste for utfylling'!J277<>"",1,0) -> 0 | D159: =IF('Sjekkliste for utfylling'!K277<>"",1,0) -> 0 | E159: 0 | G159: =IF($E159=0,'Sjekkliste for utfylling'!A277,"") -> 158 | H159: =IF($E159=0,'Sjekkliste for utfylling'!B277,"") -> Er rapportene fra hver enkelt betalingsterminal nummerert fortløpende med maskinelt tildelte nummer? | K159: =IF(E159=0,'Sjekkliste for utfylling'!L277," ") -> 0
A160: ='Sjekkliste for utfylling'!A278 -> 159 | B160: =IF('Sjekkliste for utfylling'!I278<>"",1,0) -> 0 | C160: =IF('Sjekkliste for utfylling'!J278<>"",1,0) -> 0 | D160: =IF('Sjekkliste for utfylling'!K278<>"",1,0) -> 0 | E160: 0 | G160: =IF($E160=0,'Sjekkliste for utfylling'!A278,"") -> 159 | H160: =IF($E160=0,'Sjekkliste for utfylling'!B278,"") -> Blir kontantbeholdningen opptelt daglig og sammenholdt med opplysningene på Z-rapportene? | K160: =IF(E160=0,'Sjekkliste for utfylling'!L278," ") -> 0
A161: ='Sjekkliste for utfylling'!A279 -> 160 | B161: =IF('Sjekkliste for utfylling'!I279<>"",1,0) -> 0 | C161: =IF('Sjekkliste for utfylling'!J279<>"",1,0) -> 0 | D161: =IF('Sjekkliste for utfylling'!K279<>"",1,0) -> 0 | E161: 0 | G161: =IF($E161=0,'Sjekkliste for utfylling'!A279,"") -> 160 | H161: =IF($E161=0,'Sjekkliste for utfylling'!B279,"") -> Blir opplysningene fra betalingsterminal om betalinger ved bruk av betalingskort sammenholdt med tilsvarende opplysninger på Z-rapport? | K161: =IF(E161=0,'Sjekkliste for utfylling'!L279," ") -> 0
A162: ='Sjekkliste for utfylling'!A280 -> 161 | B162: =IF('Sjekkliste for utfylling'!I280<>"",1,0) -> 0 | C162: =IF('Sjekkliste for utfylling'!J280<>"",1,0) -> 0 | D162: =IF('Sjekkliste for utfylling'!K280<>"",1,0) -> 0 | E162: 0 | G162: =IF($E162=0,'Sjekkliste for utfylling'!A280,"") -> 161 | H162: =IF($E162=0,'Sjekkliste for utfylling'!B280,"") -> Er eventuelle differanser mellom rapport fra betalingsterminal og Z-rapport forklart? | K162: =IF(E162=0,'Sjekkliste for utfylling'!L280," ") -> 0
A163: ='Sjekkliste for utfylling'!A281 -> 162 | B163: =IF('Sjekkliste for utfylling'!I281<>"",1,0) -> 0 | C163: =IF('Sjekkliste for utfylling'!J281<>"",1,0) -> 0 | D163: =IF('Sjekkliste for utfylling'!K281<>"",1,0) -> 0 | E163: 0 | G163: =IF($E163=0,'Sjekkliste for utfylling'!A281,"") -> 162 | H163: =IF($E163=0,'Sjekkliste for utfylling'!B281,"") -> Er avstemmingen foretatt for det enkelte kassapunkt? | K163: =IF(E163=0,'Sjekkliste for utfylling'!L281," ") -> 0
A164: ='Sjekkliste for utfylling'!A282 -> 163 | B164: =IF('Sjekkliste for utfylling'!I282<>"",1,0) -> 0 | C164: =IF('Sjekkliste for utfylling'!J282<>"",1,0) -> 0 | D164: =IF('Sjekkliste for utfylling'!K282<>"",1,0) -> 0 | E164: 0 | G164: =IF($E164=0,'Sjekkliste for utfylling'!A282,"") -> 163 | H164: =IF($E164=0,'Sjekkliste for utfylling'!B282,"") -> Dersom kassapunktene betjenes av flere operatører som har egen kassaskuff, er avstemmingen foretatt for hver enkelt operatør? | K164: =IF(E164=0,'Sjekkliste for utfylling'!L282," ") -> 0
A165: ='Sjekkliste for utfylling'!A283 -> 164 | B165: =IF('Sjekkliste for utfylling'!I283<>"",1,0) -> 0 | C165: =IF('Sjekkliste for utfylling'!J283<>"",1,0) -> 0 | D165: =IF('Sjekkliste for utfylling'!K283<>"",1,0) -> 0 | E165: 0 | G165: =IF($E165=0,'Sjekkliste for utfylling'!A283,"") -> 164 | H165: =IF($E165=0,'Sjekkliste for utfylling'!B283,"") -> Dersom tips ikke registreres på kassasystemet, telles kontanttips opp særskilt, og fremgår det av dagsoppgjøret? | K165: =IF(E165=0,'Sjekkliste for utfylling'!L283," ") -> 0
A166: ='Sjekkliste for utfylling'!A284 -> 165 | B166: =IF('Sjekkliste for utfylling'!I284<>"",1,0) -> 0 | C166: =IF('Sjekkliste for utfylling'!J284<>"",1,0) -> 0 | D166: =IF('Sjekkliste for utfylling'!K284<>"",1,0) -> 0 | E166: 0 | G166: =IF($E166=0,'Sjekkliste for utfylling'!A284,"") -> 165 | H166: =IF($E166=0,'Sjekkliste for utfylling'!B284,"") -> Er dagsoppgjørene datert, og fremgår det hvem som har foretatt opptelling av kontantbeholdningen og avstemt kontantsalget? | K166: =IF(E166=0,'Sjekkliste for utfylling'!L284," ") -> 0
A167: ='Sjekkliste for utfylling'!A286 -> 166 | B167: =IF('Sjekkliste for utfylling'!I286<>"",1,0) -> 0 | C167: =IF('Sjekkliste for utfylling'!J286<>"",1,0) -> 0 | D167: =IF('Sjekkliste for utfylling'!K286<>"",1,0) -> 0 | E167: 0 | G167: =IF($E167=0,'Sjekkliste for utfylling'!A286,"") -> 166 | H167: =IF($E167=0,'Sjekkliste for utfylling'!B286,"") -> Oppbevares Z-rapporter og rapporter fra betalingsterminal sammen med avstemmingen av kontantsalget? | K167: =IF(E167=0,'Sjekkliste for utfylling'!L286," ") -> 0
A168: ='Sjekkliste for utfylling'!A287 -> 167 | B168: =IF('Sjekkliste for utfylling'!I287<>"",1,0) -> 0 | C168: =IF('Sjekkliste for utfylling'!J287<>"",1,0) -> 0 | D168: =IF('Sjekkliste for utfylling'!K287<>"",1,0) -> 0 | E168: 0 | G168: =IF($E168=0,'Sjekkliste for utfylling'!A287,"") -> 167 | H168: =IF($E168=0,'Sjekkliste for utfylling'!B287,"") -> Befinner kassasystemet seg i sin helhet i Norge? | K168: =IF(E168=0,'Sjekkliste for utfylling'!L287," ") -> 0
A169: ='Sjekkliste for utfylling'!A288 -> 168 | B169: =IF('Sjekkliste for utfylling'!I288<>"",1,0) -> 0 | C169: =IF('Sjekkliste for utfylling'!J288<>"",1,0) -> 0 | D169: =IF('Sjekkliste for utfylling'!K288<>"",1,0) -> 0 | E169: 0 | G169: =IF($E169=0,'Sjekkliste for utfylling'!A288,"") -> 168 | H169: =IF($E169=0,'Sjekkliste for utfylling'!B288,"") -> Oppbevares elektronisk journal seg til enhver tid i Norge? | K169: =IF(E169=0,'Sjekkliste for utfylling'!L288," ") -> 0
A170: ='Sjekkliste for utfylling'!A290 -> 169 | B170: =IF('Sjekkliste for utfylling'!I290<>"",1,0) -> 0 | C170: =IF('Sjekkliste for utfylling'!J290<>"",1,0) -> 0 | D170: =IF('Sjekkliste for utfylling'!K290<>"",1,0) -> 0 | E170: 0 | G170: =IF($E170=0,'Sjekkliste for utfylling'!A290,"") -> 169 | H170: =IF($E170=0,'Sjekkliste for utfylling'!B290,"") -> Er opplysningene tilgjengelige elektronisk i hele oppbevaringstiden? | K170: =IF(E170=0,'Sjekkliste for utfylling'!L290," ") -> 0
A171: ='Sjekkliste for utfylling'!A291 -> 170 | B171: =IF('Sjekkliste for utfylling'!I291<>"",1,0) -> 0 | C171: =IF('Sjekkliste for utfylling'!J291<>"",1,0) -> 0 | D171: =IF('Sjekkliste for utfylling'!K291<>"",1,0) -> 0 | E171: 0 | G171: =IF($E171=0,'Sjekkliste for utfylling'!A291,"") -> 170 | H171: =IF($E171=0,'Sjekkliste for utfylling'!B291,"") -> Er systembeskrivelse som nevnt i kassasystemlova § 3, 2. ledd oppbevart slik at den er lett tilgjengelig for offentlige myndigheter? | K171: =IF(E171=0,'Sjekkliste for utfylling'!L291," ") -> 0
A172: ='Sjekkliste for utfylling'!A295 -> 171 | B172: =IF('Sjekkliste for utfylling'!I295<>"",1,0) -> 0 | C172: =IF('Sjekkliste for utfylling'!J295<>"",1,0) -> 0 | D172: =IF('Sjekkliste for utfylling'!K295<>"",1,0) -> 0 | E172: 0 | G172: =IF($E172=0,'Sjekkliste for utfylling'!A295,"") -> 171 | H172: =IF($E172=0,'Sjekkliste for utfylling'!B295,"") -> Har bokføringspliktig som driver ambulerende eller sporadisk kontantsalg under 3 G, eller bokføringspliktige med kontantsalg som ikke overstiger kr 50.000 eksklusive merverdiavgift i løpet av et regnskapsår, dokumentert kontantsalget på en av følgende måter: • Fortløpende i innbundet bok der sidene er forhåndsnummerert? • Ved gjenpart av daterte forhåndsnummererte salgsbilag? • Ved bruk av forhåndsnummererte billetter? • Ved oppstilling over ut og innleverte varer og kontanter, der oppstillingen er datert og signert? | K172: =IF(E172=0,'Sjekkliste for utfylling'!L295," ") -> 0
A173: ='Sjekkliste for utfylling'!A296 -> 172 | B173: =IF('Sjekkliste for utfylling'!I296<>"",1,0) -> 0 | C173: =IF('Sjekkliste for utfylling'!J296<>"",1,0) -> 0 | D173: =IF('Sjekkliste for utfylling'!K296<>"",1,0) -> 0 | E173: 0 | G173: =IF($E173=0,'Sjekkliste for utfylling'!A296,"") -> 172 | H173: =IF($E173=0,'Sjekkliste for utfylling'!B296,"") -> Er det foretatt en daglig opptelling av kassabeholdningen som er sammenholdt mot salgsdokumentasjonen? | K173: =IF(E173=0,'Sjekkliste for utfylling'!L296," ") -> 0
A174: ='Sjekkliste for utfylling'!A297 -> 173 | B174: =IF('Sjekkliste for utfylling'!I297<>"",1,0) -> 0 | C174: =IF('Sjekkliste for utfylling'!J297<>"",1,0) -> 0 | D174: =IF('Sjekkliste for utfylling'!K297<>"",1,0) -> 0 | E174: 0 | G174: =IF($E174=0,'Sjekkliste for utfylling'!A297,"") -> 173 | H174: =IF($E174=0,'Sjekkliste for utfylling'!B297,"") -> Viser dokumentasjonen ut- og innleverte kontanter, og er oppgjørene opptelt, det foreligger forklaring på avvik og oppgjørene signert av to personer? | K174: =IF(E174=0,'Sjekkliste for utfylling'!L297," ") -> 0
A175: ='Sjekkliste for utfylling'!A301 -> 174 | B175: =IF('Sjekkliste for utfylling'!I301<>"",1,0) -> 0 | C175: =IF('Sjekkliste for utfylling'!J301<>"",1,0) -> 0 | D175: =IF('Sjekkliste for utfylling'!K301<>"",1,0) -> 0 | E175: 0 | G175: =IF($E175=0,'Sjekkliste for utfylling'!A301,"") -> 174 | H175: =IF($E175=0,'Sjekkliste for utfylling'!B301,"") -> Dersom den bokføringspliktige utsteder kontantfaktura istedenfor å registrere kontantsalget i et kassasystem, er kontantfakturaen utstedt i samsvar med bestemmelsene i bokføringsforskriften delkapittel 5-1? | K175: =IF(E175=0,'Sjekkliste for utfylling'!L301," ") -> 0
A176: ='Sjekkliste for utfylling'!A303 -> 175 | B176: =IF('Sjekkliste for utfylling'!I303<>"",1,0) -> 0 | C176: =IF('Sjekkliste for utfylling'!J303<>"",1,0) -> 0 | D176: =IF('Sjekkliste for utfylling'!K303<>"",1,0) -> 0 | E176: 0 | G176: =IF($E176=0,'Sjekkliste for utfylling'!A303,"") -> 175 | H176: =IF($E176=0,'Sjekkliste for utfylling'!B303,"") -> Ved oppsøkende salg til publikum på idrettsarrangementer, konserter og lignende, er daglig salg fra hver enkelt selger registrert som ett beløp på kassasystemet? | K176: =IF(E176=0,'Sjekkliste for utfylling'!L303," ") -> 0
A177: ='Sjekkliste for utfylling'!A304 -> 176 | B177: =IF('Sjekkliste for utfylling'!I304<>"",1,0) -> 0 | C177: =IF('Sjekkliste for utfylling'!J304<>"",1,0) -> 0 | D177: =IF('Sjekkliste for utfylling'!K304<>"",1,0) -> 0 | E177: 0 | G177: =IF($E177=0,'Sjekkliste for utfylling'!A304,"") -> 176 | H177: =IF($E177=0,'Sjekkliste for utfylling'!B304,"") -> Viser dokumentasjonen ut- og innleverte varer og kontanter, og er oppgjørene opptelt, det foreligger forklaring på avvik og oppgjørene signert av to personer? | K177: =IF(E177=0,'Sjekkliste for utfylling'!L304," ") -> 0
A178: ='Sjekkliste for utfylling'!A307 -> 177 | B178: =IF('Sjekkliste for utfylling'!I307<>"",1,0) -> 0 | C178: =IF('Sjekkliste for utfylling'!J307<>"",1,0) -> 0 | D178: =IF('Sjekkliste for utfylling'!K307<>"",1,0) -> 0 | E178: 0 | G178: =IF($E178=0,'Sjekkliste for utfylling'!A307,"") -> 177 | H178: =IF($E178=0,'Sjekkliste for utfylling'!B307,"") -> Ved salg fra automater er det utført avstemming mellom opptelte kontanter og registert salg fra automatens telleverk eller beregnet salg fra andre registerte opplysninger i automaten? | K178: =IF(E178=0,'Sjekkliste for utfylling'!L307," ") -> 0
A179: ='Sjekkliste for utfylling'!A308 -> 178 | B179: =IF('Sjekkliste for utfylling'!I308<>"",1,0) -> 0 | C179: =IF('Sjekkliste for utfylling'!J308<>"",1,0) -> 0 | D179: =IF('Sjekkliste for utfylling'!K308<>"",1,0) -> 0 | E179: 0 | G179: =IF($E179=0,'Sjekkliste for utfylling'!A308,"") -> 178 | H179: =IF($E179=0,'Sjekkliste for utfylling'!B308,"") -> Dersom automaten ikke registerer salgsopplysninger kan salget dokumenteres med lister som viser beregnet salg ut fra endring i varebeholdning? | K179: =IF(E179=0,'Sjekkliste for utfylling'!L308," ") -> 0
A180: ='Sjekkliste for utfylling'!A309 -> 179 | B180: =IF('Sjekkliste for utfylling'!I309<>"",1,0) -> 0 | C180: =IF('Sjekkliste for utfylling'!J309<>"",1,0) -> 0 | D180: =IF('Sjekkliste for utfylling'!K309<>"",1,0) -> 0 | E180: 0 | G180: =IF($E180=0,'Sjekkliste for utfylling'!A309,"") -> 179 | H180: =IF($E180=0,'Sjekkliste for utfylling'!B309,"") -> Ved salg fra andre ubetjente salgsteder enn automater, er kontantsalget dokumentert på en av følgende måter: • forhåndsnummererte konvolutter • elektronisk salgsrapport som viser alle transaksjoner enkeltvis • Forløpende i innbudet bok der sidene er forhåndsnummerert? • Lister som viser beregnet salg ut fra endring i varebeholdningen? | K180: =IF(E180=0,'Sjekkliste for utfylling'!L309," ") -> 0
A181: ='Sjekkliste for utfylling'!A310 -> 180 | B181: =IF('Sjekkliste for utfylling'!I310<>"",1,0) -> 0 | C181: =IF('Sjekkliste for utfylling'!J310<>"",1,0) -> 0 | D181: =IF('Sjekkliste for utfylling'!K310<>"",1,0) -> 0 | E181: 0 | G181: =IF($E181=0,'Sjekkliste for utfylling'!A310,"") -> 180 | H181: =IF($E181=0,'Sjekkliste for utfylling'!B310,"") -> Inneholder dokumentasjon opplysninger om ytelsens art og omfang, dato og vederlag? Dette kravet gjelder ikke dersom det er dokumentert med lister som viser beregnet salg ut fra endring i varebeholdning. | K181: =IF(E181=0,'Sjekkliste for utfylling'!L310," ") -> 0
A182: ='Sjekkliste for utfylling'!A312 -> 181 | B182: =IF('Sjekkliste for utfylling'!I312<>"",1,0) -> 0 | C182: =IF('Sjekkliste for utfylling'!J312<>"",1,0) -> 0 | D182: =IF('Sjekkliste for utfylling'!K312<>"",1,0) -> 0 | E182: 0 | G182: =IF($E182=0,'Sjekkliste for utfylling'!A312,"") -> 181 | H182: =IF($E182=0,'Sjekkliste for utfylling'!B312,"") -> Er kjøp dokumentert med det salgsdokument som selger har utstedt? | K182: =IF(E182=0,'Sjekkliste for utfylling'!L312," ") -> 0
A183: ='Sjekkliste for utfylling'!A313 -> 182 | B183: =IF('Sjekkliste for utfylling'!I313<>"",1,0) -> 0 | C183: =IF('Sjekkliste for utfylling'!J313<>"",1,0) -> 0 | D183: =IF('Sjekkliste for utfylling'!K313<>"",1,0) -> 0 | E183: 0 | G183: =IF($E183=0,'Sjekkliste for utfylling'!A313,"") -> 182 | H183: =IF($E183=0,'Sjekkliste for utfylling'!B313,"") -> Inneholder dokumentasjonen alle opplysningene som fremgår av delkapittel 5-1 og § 5-3-12, se spørsmål 74-94? | K183: =IF(E183=0,'Sjekkliste for utfylling'!L313," ") -> 0
A184: ='Sjekkliste for utfylling'!A315 -> 183 | B184: =IF('Sjekkliste for utfylling'!I315<>"",1,0) -> 0 | C184: =IF('Sjekkliste for utfylling'!J315<>"",1,0) -> 0 | D184: =IF('Sjekkliste for utfylling'!K315<>"",1,0) -> 0 | E184: 0 | G184: =IF($E184=0,'Sjekkliste for utfylling'!A315,"") -> 183 | H184: =IF($E184=0,'Sjekkliste for utfylling'!B315,"") -> Dersom kjøpers navn ikke er angitt (ved salg fra detaljist og vederlaget er lavere enn kr 1 000 inklusiv merverdiavgift) eller kan identifiseres gjennom bruk av betalingskort, har den som har foretatt kjøpet påført formålet eller bruksområdet for varene eller tjenestene? | K184: =IF(E184=0,'Sjekkliste for utfylling'!L315," ") -> 0
A185: ='Sjekkliste for utfylling'!A316 -> 184 | B185: =IF('Sjekkliste for utfylling'!I316<>"",1,0) -> 0 | C185: =IF('Sjekkliste for utfylling'!J316<>"",1,0) -> 0 | D185: =IF('Sjekkliste for utfylling'!K316<>"",1,0) -> 0 | E185: 0 | G185: =IF($E185=0,'Sjekkliste for utfylling'!A316,"") -> 184 | H185: =IF($E185=0,'Sjekkliste for utfylling'!B316,"") -> Når kjøpers navn er utelatt, er dokumentasjonen datert og signert? | K185: =IF(E185=0,'Sjekkliste for utfylling'!L316," ") -> 0
A186: ='Sjekkliste for utfylling'!A317 -> 185 | B186: =IF('Sjekkliste for utfylling'!I317<>"",1,0) -> 0 | C186: =IF('Sjekkliste for utfylling'!J317<>"",1,0) -> 0 | D186: =IF('Sjekkliste for utfylling'!K317<>"",1,0) -> 0 | E186: 0 | G186: =IF($E186=0,'Sjekkliste for utfylling'!A317,"") -> 185 | H186: =IF($E186=0,'Sjekkliste for utfylling'!B317,"") -> Hvis en ansatt kjøper på vegne av sin bokføringspliktige arbeidsgiver og: • Vederlaget er over kr 1000 inkl mva og varen eller tjenesten er beregnet for videresalg • vederlaget er over kr 1000 inkl mva og varen eller tjenesten er direkte innsatsfaktor i vare- eller tjenesteproduksjon, Innholder kjøpsdokumentasjonen en avgivelse av kjøper (arbeidsgiver)? | K186: =IF(E186=0,'Sjekkliste for utfylling'!L317," ") -> 0
A187: ='Sjekkliste for utfylling'!A318 -> 186 | B187: =IF('Sjekkliste for utfylling'!I318<>"",1,0) -> 0 | C187: =IF('Sjekkliste for utfylling'!J318<>"",1,0) -> 0 | D187: =IF('Sjekkliste for utfylling'!K318<>"",1,0) -> 0 | E187: 0 | G187: =IF($E187=0,'Sjekkliste for utfylling'!A318,"") -> 186 | H187: =IF($E187=0,'Sjekkliste for utfylling'!B318,"") -> Ved andre typer kjøp utført av en ansatt har den ansatte i slike tilfeller utarbeidet og signert en datert oppstilling som viser hvilke kjøp som er foretatt og formålet eller bruksområdet for varene og tjenestene? | K187: =IF(E187=0,'Sjekkliste for utfylling'!L318," ") -> 0
A188: ='Sjekkliste for utfylling'!A319 -> 187 | B188: =IF('Sjekkliste for utfylling'!I319<>"",1,0) -> 0 | C188: =IF('Sjekkliste for utfylling'!J319<>"",1,0) -> 0 | D188: =IF('Sjekkliste for utfylling'!K319<>"",1,0) -> 0 | E188: 0 | G188: =IF($E188=0,'Sjekkliste for utfylling'!A319,"") -> 187 | H188: =IF($E188=0,'Sjekkliste for utfylling'!B319,"") -> Er dokumentasjonen ved slike kjøp i samsvar med aktuelle regler i kapittel 5 i forskrift 21. desember 2007 nr. 1766 til utfylling og gjennomføring mv. av skattebetalingsloven? | K188: =IF(E188=0,'Sjekkliste for utfylling'!L319," ") -> 0
A189: ='Sjekkliste for utfylling'!A321 -> 188 | B189: =IF('Sjekkliste for utfylling'!I321<>"",1,0) -> 0 | C189: =IF('Sjekkliste for utfylling'!J321<>"",1,0) -> 0 | D189: =IF('Sjekkliste for utfylling'!K321<>"",1,0) -> 0 | E189: 0 | G189: =IF($E189=0,'Sjekkliste for utfylling'!A321,"") -> 188 | H189: =IF($E189=0,'Sjekkliste for utfylling'!B321,"") -> Er grunnlaget for beregning av merverdiavgift ved innførsel av varer, grunnlaget for varer det ikke skal beregnes merverdiavgift av, tollavgift og særavgifter dokumentert med innførselsdeklarasjon og grunnlagsdokumenter knyttet til slik deklarasjon, jf. § 7-5-1 første ledd i forskrift 27.10.2022 nr 1901 om inn- og utførsel av varer? | K189: =IF(E189=0,'Sjekkliste for utfylling'!L321," ") -> 0
A190: ='Sjekkliste for utfylling'!A322 -> 189 | B190: =IF('Sjekkliste for utfylling'!I322<>"",1,0) -> 0 | C190: =IF('Sjekkliste for utfylling'!J322<>"",1,0) -> 0 | D190: =IF('Sjekkliste for utfylling'!K322<>"",1,0) -> 0 | E190: 0 | G190: =IF($E190=0,'Sjekkliste for utfylling'!A322,"") -> 189 | H190: =IF($E190=0,'Sjekkliste for utfylling'!B322,"") -> Foreligger det særskilt dokumentasjon som viser hvilke beløp som inngår i grunnlaget for beregning av merverdiavgift ved innførsel av varer og selve avgiften? | K190: =IF(E190=0,'Sjekkliste for utfylling'!L322," ") -> 0
A191: ='Sjekkliste for utfylling'!A324 -> 190 | B191: =IF('Sjekkliste for utfylling'!I324<>"",1,0) -> 0 | C191: =IF('Sjekkliste for utfylling'!J324<>"",1,0) -> 0 | D191: =IF('Sjekkliste for utfylling'!K324<>"",1,0) -> 0 | E191: 0 | G191: =IF($E191=0,'Sjekkliste for utfylling'!A324,"") -> 190 | H191: =IF($E191=0,'Sjekkliste for utfylling'!B324,"") -> Viser dokumentasjonen lønn og andre oppgavepliktige ytelser, samt forskuddstrekk og utleggstrekk, pr. ansatt? | K191: =IF(E191=0,'Sjekkliste for utfylling'!L324," ") -> 0
A192: ='Sjekkliste for utfylling'!A325 -> 191 | B192: =IF('Sjekkliste for utfylling'!I325<>"",1,0) -> 0 | C192: =IF('Sjekkliste for utfylling'!J325<>"",1,0) -> 0 | D192: =IF('Sjekkliste for utfylling'!K325<>"",1,0) -> 0 | E192: 0 | G192: =IF($E192=0,'Sjekkliste for utfylling'!A325,"") -> 191 | H192: =IF($E192=0,'Sjekkliste for utfylling'!B325,"") -> Inneholder dokumentasjonen følgende opplysninger pr. ansatt: a. Fødselsnummer? | K192: =IF(E192=0,'Sjekkliste for utfylling'!L325," ") -> 0
A193: ='Sjekkliste for utfylling'!A326 -> 192 | B193: =IF('Sjekkliste for utfylling'!I326<>"",1,0) -> 0 | C193: =IF('Sjekkliste for utfylling'!J326<>"",1,0) -> 0 | D193: =IF('Sjekkliste for utfylling'!K326<>"",1,0) -> 0 | E193: 0 | G193: =IF($E193=0,'Sjekkliste for utfylling'!A326,"") -> 192 | H193: =IF($E193=0,'Sjekkliste for utfylling'!B326,"") -> b. Navn? | K193: =IF(E193=0,'Sjekkliste for utfylling'!L326," ") -> 0
A194: ='Sjekkliste for utfylling'!A327 -> 193 | B194: =IF('Sjekkliste for utfylling'!I327<>"",1,0) -> 0 | C194: =IF('Sjekkliste for utfylling'!J327<>"",1,0) -> 0 | D194: =IF('Sjekkliste for utfylling'!K327<>"",1,0) -> 0 | E194: =SUM(B194:D194) -> 0 | G194: =IF($E194=0,'Sjekkliste for utfylling'!A327,"") -> 193 | H194: =IF($E194=0,'Sjekkliste for utfylling'!B327,"") -> c. Skattekommune? | K194: =IF(E194=0,'Sjekkliste for utfylling'!L327," ") -> 0
A195: ='Sjekkliste for utfylling'!A328 -> 194 | B195: =IF('Sjekkliste for utfylling'!I328<>"",1,0) -> 0 | C195: =IF('Sjekkliste for utfylling'!J328<>"",1,0) -> 0 | D195: =IF('Sjekkliste for utfylling'!K328<>"",1,0) -> 0 | E195: 0 | G195: =IF($E195=0,'Sjekkliste for utfylling'!A328,"") -> 194 | H195: =IF($E195=0,'Sjekkliste for utfylling'!B328,"") -> d. Tabellnummer og/eller den trekkprosent som står på skattekortet? | K195: =IF(E195=0,'Sjekkliste for utfylling'!L328," ") -> 0
A196: ='Sjekkliste for utfylling'!A329 -> 195 | B196: =IF('Sjekkliste for utfylling'!I329<>"",1,0) -> 0 | C196: =IF('Sjekkliste for utfylling'!J329<>"",1,0) -> 0 | D196: =IF('Sjekkliste for utfylling'!K329<>"",1,0) -> 0 | E196: 0 | G196: =IF($E196=0,'Sjekkliste for utfylling'!A329,"") -> 195 | H196: =IF($E196=0,'Sjekkliste for utfylling'!B329,"") -> Dersom skattekort ikke er gjort tilgjengelig for arbeidsgiver, viser dokumentasjonen navn og nummer på den kommunen hvor mottakeren av ytelsen oppgir at vedkommende var bosatt 1. november i året før trekkåret? | K196: =IF(E196=0,'Sjekkliste for utfylling'!L329," ") -> 0
A197: ='Sjekkliste for utfylling'!A330 -> 196 | B197: =IF('Sjekkliste for utfylling'!I330<>"",1,0) -> 0 | C197: =IF('Sjekkliste for utfylling'!J330<>"",1,0) -> 0 | D197: =IF('Sjekkliste for utfylling'!K330<>"",1,0) -> 0 | E197: 0 | G197: =IF($E197=0,'Sjekkliste for utfylling'!A330,"") -> 196 | H197: =IF($E197=0,'Sjekkliste for utfylling'!B330,"") -> Dersom mottaker av ytelsen er utenlandsk og ikke var bosatt i Norge 1. november i året før trekkåret, viser dokumentasjonen hvilken kommune vedkommende bosatte seg i ved ankomsten til Norge? | K197: =IF(E197=0,'Sjekkliste for utfylling'!L330," ") -> 0
A198: ='Sjekkliste for utfylling'!A331 -> 197 | B198: =IF('Sjekkliste for utfylling'!I331<>"",1,0) -> 0 | C198: =IF('Sjekkliste for utfylling'!J331<>"",1,0) -> 0 | D198: =IF('Sjekkliste for utfylling'!K331<>"",1,0) -> 0 | E198: 0 | G198: =IF($E198=0,'Sjekkliste for utfylling'!A331,"") -> 197 | H198: =IF($E198=0,'Sjekkliste for utfylling'!B331,"") -> Dersom arbeidsgiver har mottatt pålegg om trekk, viser dokumentasjonen: a. Hvem som har utferdiget pålegget? | K198: =IF(E198=0,'Sjekkliste for utfylling'!L331," ") -> 0
A199: ='Sjekkliste for utfylling'!A332 -> 198 | B199: =IF('Sjekkliste for utfylling'!I332<>"",1,0) -> 0 | C199: =IF('Sjekkliste for utfylling'!J332<>"",1,0) -> 0 | D199: =IF('Sjekkliste for utfylling'!K332<>"",1,0) -> 0 | E199: 0 | G199: =IF($E199=0,'Sjekkliste for utfylling'!A332,"") -> 198 | H199: =IF($E199=0,'Sjekkliste for utfylling'!B332,"") -> b. Når pålegget er mottatt? | K199: =IF(E199=0,'Sjekkliste for utfylling'!L332," ") -> 0
A200: ='Sjekkliste for utfylling'!A333 -> 199 | B200: =IF('Sjekkliste for utfylling'!I333<>"",1,0) -> 0 | C200: =IF('Sjekkliste for utfylling'!J333<>"",1,0) -> 0 | D200: =IF('Sjekkliste for utfylling'!K333<>"",1,0) -> 0 | E200: 0 | G200: =IF($E200=0,'Sjekkliste for utfylling'!A333,"") -> 199 | H200: =IF($E200=0,'Sjekkliste for utfylling'!B333,"") -> c. Det beløp som skal dekkes ved trekket? | K200: =IF(E200=0,'Sjekkliste for utfylling'!L333," ") -> 0
... 253 more rows

Sheet Ja-svar (hidden)
C1: =COUNTIF(C2:C480,"=1")-D1 -> 0 | D1: =SUM(D2:D480) -> 0 | E1: Ja-svar | F1: ='Sjekkliste for utfylling'!B2 -> 0 | G1: ='Sjekkliste for utfylling'!B3 -> 2024 | H1: Kommentarer
A2: ='Sjekkliste for utfylling'!A28 -> 1 | B2: =IF('Sjekkliste for utfylling'!I28<>"",1,0) -> 0 | C2: =SUM(B2:B2) -> 0 | E2: =IF($C2=1,'Sjekkliste for utfylling'!A28,"") ->  | F2: =IF($C2=1,'Sjekkliste for utfylling'!B28,"") ->  | H2: =IF(C2=1,'Sjekkliste for utfylling'!L28," ") -> 
A3: ='Sjekkliste for utfylling'!A29 -> 2 | B3: =IF('Sjekkliste for utfylling'!I29<>"",1,0) -> 0 | C3: 0 | E3: =IF($C3=1,'Sjekkliste for utfylling'!A29,"") ->  | F3: =IF($C3=1,'Sjekkliste for utfylling'!B29,"") ->  | H3: =IF(C3=1,'Sjekkliste for utfylling'!L29," ") -> 
A4: ='Sjekkliste for utfylling'!A30 -> 3 | B4: =IF('Sjekkliste for utfylling'!I30<>"",1,0) -> 0 | C4: 0 | E4: =IF($C4=1,'Sjekkliste for utfylling'!A30,"") ->  | F4: =IF($C4=1,'Sjekkliste for utfylling'!B30,"") ->  | H4: =IF(C4=1,'Sjekkliste for utfylling'!L30," ") -> 
A5: ='Sjekkliste for utfylling'!A31 -> 4 | B5: =IF('Sjekkliste for utfylling'!I31<>"",1,0) -> 0 | C5: 0 | E5: =IF($C5=1,'Sjekkliste for utfylling'!A31,"") ->  | F5: =IF($C5=1,'Sjekkliste for utfylling'!B31,"") ->  | H5: =IF(C5=1,'Sjekkliste for utfylling'!L31," ") -> 
A6: ='Sjekkliste for utfylling'!A36 -> 5 | B6: =IF('Sjekkliste for utfylling'!I36<>"",1,0) -> 0 | C6: 0 | E6: =IF($C6=1,'Sjekkliste for utfylling'!A36,"") ->  | F6: =IF($C6=1,'Sjekkliste for utfylling'!B36,"") ->  | H6: =IF(C6=1,'Sjekkliste for utfylling'!L36," ") -> 
A7: ='Sjekkliste for utfylling'!A37 -> 6 | B7: =IF('Sjekkliste for utfylling'!I37<>"",1,0) -> 0 | C7: 0 | E7: =IF($C7=1,'Sjekkliste for utfylling'!A37,"") ->  | F7: =IF($C7=1,'Sjekkliste for utfylling'!B37,"") ->  | H7: =IF(C7=1,'Sjekkliste for utfylling'!L37," ") -> 
A8: ='Sjekkliste for utfylling'!A38 -> 7 | B8: =IF('Sjekkliste for utfylling'!I38<>"",1,0) -> 0 | C8: 0 | E8: =IF($C8=1,'Sjekkliste for utfylling'!A38,"") ->  | F8: =IF($C8=1,'Sjekkliste for utfylling'!B38,"") ->  | H8: =IF(C8=1,'Sjekkliste for utfylling'!L38," ") -> 
A9: ='Sjekkliste for utfylling'!A39 -> 8 | B9: =IF('Sjekkliste for utfylling'!I39<>"",1,0) -> 0 | C9: 0 | E9: =IF($C9=1,'Sjekkliste for utfylling'!A39,"") ->  | F9: =IF($C9=1,'Sjekkliste for utfylling'!B39,"") ->  | H9: =IF(C9=1,'Sjekkliste for utfylling'!L39," ") -> 
A10: ='Sjekkliste for utfylling'!A40 -> 9 | B10: =IF('Sjekkliste for utfylling'!I40<>"",1,0) -> 0 | C10: 0 | E10: =IF($C10=1,'Sjekkliste for utfylling'!A40,"") ->  | F10: =IF($C10=1,'Sjekkliste for utfylling'!B40,"") ->  | H10: =IF(C10=1,'Sjekkliste for utfylling'!L40," ") -> 
A11: ='Sjekkliste for utfylling'!A41 -> 10 | B11: =IF('Sjekkliste for utfylling'!I41<>"",1,0) -> 0 | C11: 0 | E11: =IF($C11=1,'Sjekkliste for utfylling'!A41,"") ->  | F11: =IF($C11=1,'Sjekkliste for utfylling'!B41,"") ->  | H11: =IF(C11=1,'Sjekkliste for utfylling'!L41," ") -> 
A12: ='Sjekkliste for utfylling'!A42 -> 11 | B12: =IF('Sjekkliste for utfylling'!I42<>"",1,0) -> 0 | C12: 0 | E12: =IF($C12=1,'Sjekkliste for utfylling'!A42,"") ->  | F12: =IF($C12=1,'Sjekkliste for utfylling'!B42,"") ->  | H12: =IF(C12=1,'Sjekkliste for utfylling'!L42," ") -> 
A13: ='Sjekkliste for utfylling'!A43 -> 12 | B13: =IF('Sjekkliste for utfylling'!I43<>"",1,0) -> 0 | C13: 0 | E13: =IF($C13=1,'Sjekkliste for utfylling'!A43,"") ->  | F13: =IF($C13=1,'Sjekkliste for utfylling'!B43,"") ->  | H13: =IF(C13=1,'Sjekkliste for utfylling'!L43," ") -> 
A14: ='Sjekkliste for utfylling'!A45 -> 13 | B14: =IF('Sjekkliste for utfylling'!I45<>"",1,0) -> 0 | C14: 0 | E14: =IF($C14=1,'Sjekkliste for utfylling'!A45,"") ->  | F14: =IF($C14=1,'Sjekkliste for utfylling'!B45,"") ->  | H14: =IF(C14=1,'Sjekkliste for utfylling'!L45," ") -> 
A15: ='Sjekkliste for utfylling'!A46 -> 14 | B15: =IF('Sjekkliste for utfylling'!I46<>"",1,0) -> 0 | C15: 0 | E15: =IF($C15=1,'Sjekkliste for utfylling'!A46,"") ->  | F15: =IF($C15=1,'Sjekkliste for utfylling'!B46,"") ->  | H15: =IF(C15=1,'Sjekkliste for utfylling'!L46," ") -> 
A16: ='Sjekkliste for utfylling'!A47 -> 15 | B16: =IF('Sjekkliste for utfylling'!I47<>"",1,0) -> 0 | C16: 0 | E16: =IF($C16=1,'Sjekkliste for utfylling'!A47,"") ->  | F16: =IF($C16=1,'Sjekkliste for utfylling'!B47,"") ->  | H16: =IF(C16=1,'Sjekkliste for utfylling'!L47," ") -> 
A17: ='Sjekkliste for utfylling'!A48 -> 16 | B17: =IF('Sjekkliste for utfylling'!I48<>"",1,0) -> 0 | C17: 0 | E17: =IF($C17=1,'Sjekkliste for utfylling'!A48,"") ->  | F17: =IF($C17=1,'Sjekkliste for utfylling'!B48,"") ->  | H17: =IF(C17=1,'Sjekkliste for utfylling'!L48," ") -> 
A18: ='Sjekkliste for utfylling'!A49 -> 17 | B18: =IF('Sjekkliste for utfylling'!I49<>"",1,0) -> 0 | C18: 0 | E18: =IF($C18=1,'Sjekkliste for utfylling'!A49,"") ->  | F18: =IF($C18=1,'Sjekkliste for utfylling'!B49,"") ->  | H18: =IF(C18=1,'Sjekkliste for utfylling'!L49," ") -> 
A19: ='Sjekkliste for utfylling'!A50 -> 18 | B19: =IF('Sjekkliste for utfylling'!I50<>"",1,0) -> 0 | C19: 0 | E19: =IF($C19=1,'Sjekkliste for utfylling'!A50,"") ->  | F19: =IF($C19=1,'Sjekkliste for utfylling'!B50,"") ->  | H19: =IF(C19=1,'Sjekkliste for utfylling'!L50," ") -> 
A20: ='Sjekkliste for utfylling'!A51 -> 19 | B20: =IF('Sjekkliste for utfylling'!I51<>"",1,0) -> 0 | C20: 0 | E20: =IF($C20=1,'Sjekkliste for utfylling'!A51,"") ->  | F20: =IF($C20=1,'Sjekkliste for utfylling'!B51,"") ->  | H20: =IF(C20=1,'Sjekkliste for utfylling'!L51," ") -> 
A21: ='Sjekkliste for utfylling'!A55 -> 20 | B21: =IF('Sjekkliste for utfylling'!I55<>"",1,0) -> 0 | C21: 0 | E21: =IF($C21=1,'Sjekkliste for utfylling'!A55,"") ->  | F21: =IF($C21=1,'Sjekkliste for utfylling'!B55,"") ->  | H21: =IF(C21=1,'Sjekkliste for utfylling'!L55," ") -> 
A22: ='Sjekkliste for utfylling'!A56 -> 21 | B22: =IF('Sjekkliste for utfylling'!I56<>"",1,0) -> 0 | C22: 0 | E22: =IF($C22=1,'Sjekkliste for utfylling'!A56,"") ->  | F22: =IF($C22=1,'Sjekkliste for utfylling'!B56,"") ->  | H22: =IF(C22=1,'Sjekkliste for utfylling'!L56," ") -> 
A23: ='Sjekkliste for utfylling'!A57 -> 22 | B23: =IF('Sjekkliste for utfylling'!I57<>"",1,0) -> 0 | C23: 0 | E23: =IF($C23=1,'Sjekkliste for utfylling'!A57,"") ->  | F23: =IF($C23=1,'Sjekkliste for utfylling'!B57,"") ->  | H23: =IF(C23=1,'Sjekkliste for utfylling'!L57," ") -> 
A24: ='Sjekkliste for utfylling'!A58 -> 23 | B24: =IF('Sjekkliste for utfylling'!I58<>"",1,0) -> 0 | C24: 0 | E24: =IF($C24=1,'Sjekkliste for utfylling'!A58,"") ->  | F24: =IF($C24=1,'Sjekkliste for utfylling'!B58,"") ->  | H24: =IF(C24=1,'Sjekkliste for utfylling'!L58," ") -> 
A25: ='Sjekkliste for utfylling'!A61 -> 24 | B25: =IF('Sjekkliste for utfylling'!I61<>"",1,0) -> 0 | C25: 0 | E25: =IF($C25=1,'Sjekkliste for utfylling'!A61,"") ->  | F25: =IF($C25=1,'Sjekkliste for utfylling'!B61,"") ->  | H25: =IF(C25=1,'Sjekkliste for utfylling'!L61," ") -> 
A26: ='Sjekkliste for utfylling'!A62 -> 25 | B26: =IF('Sjekkliste for utfylling'!I62<>"",1,0) -> 0 | C26: 0 | E26: =IF($C26=1,'Sjekkliste for utfylling'!A62,"") ->  | F26: =IF($C26=1,'Sjekkliste for utfylling'!B62,"") ->  | H26: =IF(C26=1,'Sjekkliste for utfylling'!L62," ") -> 
A27: ='Sjekkliste for utfylling'!A63 -> 26 | B27: =IF('Sjekkliste for utfylling'!I63<>"",1,0) -> 0 | C27: 0 | E27: =IF($C27=1,'Sjekkliste for utfylling'!A63,"") ->  | F27: =IF($C27=1,'Sjekkliste for utfylling'!B63,"") ->  | H27: =IF(C27=1,'Sjekkliste for utfylling'!L63," ") -> 
A28: ='Sjekkliste for utfylling'!A66 -> 27 | B28: =IF('Sjekkliste for utfylling'!I66<>"",1,0) -> 0 | C28: 0 | E28: =IF($C28=1,'Sjekkliste for utfylling'!A66,"") ->  | F28: =IF($C28=1,'Sjekkliste for utfylling'!B66,"") ->  | H28: =IF(C28=1,'Sjekkliste for utfylling'!L66," ") -> 
A29: ='Sjekkliste for utfylling'!A67 -> 28 | B29: =IF('Sjekkliste for utfylling'!I67<>"",1,0) -> 0 | C29: 0 | E29: =IF($C29=1,'Sjekkliste for utfylling'!A67,"") ->  | F29: =IF($C29=1,'Sjekkliste for utfylling'!B67,"") ->  | H29: =IF(C29=1,'Sjekkliste for utfylling'!L67," ") -> 
A30: ='Sjekkliste for utfylling'!A69 -> 29 | B30: =IF('Sjekkliste for utfylling'!I69<>"",1,0) -> 0 | C30: 0 | E30: =IF($C30=1,'Sjekkliste for utfylling'!A69,"") ->  | F30: =IF($C30=1,'Sjekkliste for utfylling'!B69,"") ->  | H30: =IF(C30=1,'Sjekkliste for utfylling'!L69," ") -> 
A31: ='Sjekkliste for utfylling'!A70 -> 30 | B31: =IF('Sjekkliste for utfylling'!I70<>"",1,0) -> 0 | C31: 0 | E31: =IF($C31=1,'Sjekkliste for utfylling'!A70,"") ->  | F31: =IF($C31=1,'Sjekkliste for utfylling'!B70,"") ->  | H31: =IF(C31=1,'Sjekkliste for utfylling'!L70," ") -> 
A32: ='Sjekkliste for utfylling'!A76 -> 31 | B32: =IF('Sjekkliste for utfylling'!I76<>"",1,0) -> 0 | C32: 0 | E32: =IF($C32=1,'Sjekkliste for utfylling'!A76,"") ->  | F32: =IF($C32=1,'Sjekkliste for utfylling'!B76,"") ->  | H32: =IF(C32=1,'Sjekkliste for utfylling'!L76," ") -> 
A33: ='Sjekkliste for utfylling'!A77 -> 32 | B33: =IF('Sjekkliste for utfylling'!I77<>"",1,0) -> 0 | C33: 0 | E33: =IF($C33=1,'Sjekkliste for utfylling'!A77,"") ->  | F33: =IF($C33=1,'Sjekkliste for utfylling'!B77,"") ->  | H33: =IF(C33=1,'Sjekkliste for utfylling'!L77," ") -> 
A34: ='Sjekkliste for utfylling'!A81 -> 33 | B34: =IF('Sjekkliste for utfylling'!I81<>"",1,0) -> 0 | C34: 0 | E34: =IF($C34=1,'Sjekkliste for utfylling'!A81,"") ->  | F34: =IF($C34=1,'Sjekkliste for utfylling'!B81,"") ->  | H34: =IF(C34=1,'Sjekkliste for utfylling'!L81," ") -> 
A35: ='Sjekkliste for utfylling'!A82 -> 34 | B35: =IF('Sjekkliste for utfylling'!I82<>"",1,0) -> 0 | C35: 0 | E35: =IF($C35=1,'Sjekkliste for utfylling'!A82,"") ->  | F35: =IF($C35=1,'Sjekkliste for utfylling'!B82,"") ->  | H35: =IF(C35=1,'Sjekkliste for utfylling'!L82," ") -> 
A36: ='Sjekkliste for utfylling'!A83 -> 35 | B36: =IF('Sjekkliste for utfylling'!I83<>"",1,0) -> 0 | C36: 0 | E36: =IF($C36=1,'Sjekkliste for utfylling'!A83,"") ->  | F36: =IF($C36=1,'Sjekkliste for utfylling'!B83,"") ->  | H36: =IF(C36=1,'Sjekkliste for utfylling'!L83," ") -> 
A37: ='Sjekkliste for utfylling'!A84 -> 36 | B37: =IF('Sjekkliste for utfylling'!I84<>"",1,0) -> 0 | C37: 0 | E37: =IF($C37=1,'Sjekkliste for utfylling'!A84,"") ->  | F37: =IF($C37=1,'Sjekkliste for utfylling'!B84,"") ->  | H37: =IF(C37=1,'Sjekkliste for utfylling'!L84," ") -> 
A38: ='Sjekkliste for utfylling'!A85 -> 37 | B38: =IF('Sjekkliste for utfylling'!I85<>"",1,0) -> 0 | C38: 0 | E38: =IF($C38=1,'Sjekkliste for utfylling'!A85,"") ->  | F38: =IF($C38=1,'Sjekkliste for utfylling'!B85,"") ->  | H38: =IF(C38=1,'Sjekkliste for utfylling'!L85," ") -> 
A39: ='Sjekkliste for utfylling'!A86 -> 38 | B39: =IF('Sjekkliste for utfylling'!I86<>"",1,0) -> 0 | C39: 0 | E39: =IF($C39=1,'Sjekkliste for utfylling'!A86,"") ->  | F39: =IF($C39=1,'Sjekkliste for utfylling'!B86,"") ->  | H39: =IF(C39=1,'Sjekkliste for utfylling'!L86," ") -> 
A40: ='Sjekkliste for utfylling'!A87 -> 39 | B40: =IF('Sjekkliste for utfylling'!I87<>"",1,0) -> 0 | C40: 0 | E40: =IF($C40=1,'Sjekkliste for utfylling'!A87,"") ->  | F40: =IF($C40=1,'Sjekkliste for utfylling'!B87,"") ->  | H40: =IF(C40=1,'Sjekkliste for utfylling'!L87," ") -> 
A41: ='Sjekkliste for utfylling'!A89 -> 40 | B41: =IF('Sjekkliste for utfylling'!I89<>"",1,0) -> 0 | C41: 0 | E41: =IF($C41=1,'Sjekkliste for utfylling'!A89,"") ->  | F41: =IF($C41=1,'Sjekkliste for utfylling'!B89,"") ->  | H41: =IF(C41=1,'Sjekkliste for utfylling'!L89," ") -> 
A42: ='Sjekkliste for utfylling'!A90 -> 41 | B42: =IF('Sjekkliste for utfylling'!I90<>"",1,0) -> 0 | C42: 0 | E42: =IF($C42=1,'Sjekkliste for utfylling'!A90,"") ->  | F42: =IF($C42=1,'Sjekkliste for utfylling'!B90,"") ->  | H42: =IF(C42=1,'Sjekkliste for utfylling'!L90," ") -> 
A43: ='Sjekkliste for utfylling'!A92 -> 42 | B43: =IF('Sjekkliste for utfylling'!I92<>"",1,0) -> 0 | C43: 0 | E43: =IF($C43=1,'Sjekkliste for utfylling'!A92,"") ->  | F43: =IF($C43=1,'Sjekkliste for utfylling'!B92,"") ->  | H43: =IF(C43=1,'Sjekkliste for utfylling'!L92," ") -> 
A44: ='Sjekkliste for utfylling'!A93 -> 43 | B44: =IF('Sjekkliste for utfylling'!I93<>"",1,0) -> 0 | C44: 0 | E44: =IF($C44=1,'Sjekkliste for utfylling'!A93,"") ->  | F44: =IF($C44=1,'Sjekkliste for utfylling'!B93,"") ->  | H44: =IF(C44=1,'Sjekkliste for utfylling'!L93," ") -> 
A45: ='Sjekkliste for utfylling'!A95 -> 44 | B45: =IF('Sjekkliste for utfylling'!I95<>"",1,0) -> 0 | C45: 0 | E45: =IF($C45=1,'Sjekkliste for utfylling'!A95,"") ->  | F45: =IF($C45=1,'Sjekkliste for utfylling'!B95,"") ->  | H45: =IF(C45=1,'Sjekkliste for utfylling'!L95," ") -> 
A46: ='Sjekkliste for utfylling'!A96 -> 45 | B46: =IF('Sjekkliste for utfylling'!I96<>"",1,0) -> 0 | C46: 0 | E46: =IF($C46=1,'Sjekkliste for utfylling'!A96,"") ->  | F46: =IF($C46=1,'Sjekkliste for utfylling'!B96,"") ->  | H46: =IF(C46=1,'Sjekkliste for utfylling'!L96," ") -> 
A47: ='Sjekkliste for utfylling'!A98 -> 46 | B47: =IF('Sjekkliste for utfylling'!I98<>"",1,0) -> 0 | C47: 0 | E47: =IF($C47=1,'Sjekkliste for utfylling'!A98,"") ->  | F47: =IF($C47=1,'Sjekkliste for utfylling'!B98,"") ->  | H47: =IF(C47=1,'Sjekkliste for utfylling'!L98," ") -> 
A48: ='Sjekkliste for utfylling'!A100 -> 47 | B48: =IF('Sjekkliste for utfylling'!I100<>"",1,0) -> 0 | C48: 0 | E48: =IF($C48=1,'Sjekkliste for utfylling'!A100,"") ->  | F48: =IF($C48=1,'Sjekkliste for utfylling'!B100,"") ->  | H48: =IF(C48=1,'Sjekkliste for utfylling'!L100," ") -> 
A49: ='Sjekkliste for utfylling'!A101 -> 48 | B49: =IF('Sjekkliste for utfylling'!I101<>"",1,0) -> 0 | C49: 0 | E49: =IF($C49=1,'Sjekkliste for utfylling'!A101,"") ->  | F49: =IF($C49=1,'Sjekkliste for utfylling'!B101,"") ->  | H49: =IF(C49=1,'Sjekkliste for utfylling'!L101," ") -> 
A50: ='Sjekkliste for utfylling'!A102 -> 49 | B50: =IF('Sjekkliste for utfylling'!I102<>"",1,0) -> 0 | C50: 0 | E50: =IF($C50=1,'Sjekkliste for utfylling'!A102,"") ->  | F50: =IF($C50=1,'Sjekkliste for utfylling'!B102,"") ->  | H50: =IF(C50=1,'Sjekkliste for utfylling'!L102," ") -> 
A51: ='Sjekkliste for utfylling'!A103 -> 50 | B51: =IF('Sjekkliste for utfylling'!I103<>"",1,0) -> 0 | C51: 0 | E51: =IF($C51=1,'Sjekkliste for utfylling'!A103,"") ->  | F51: =IF($C51=1,'Sjekkliste for utfylling'!B103,"") ->  | H51: =IF(C51=1,'Sjekkliste for utfylling'!L103," ") -> 
A52: ='Sjekkliste for utfylling'!A104 -> 51 | B52: =IF('Sjekkliste for utfylling'!I104<>"",1,0) -> 0 | C52: 0 | E52: =IF($C52=1,'Sjekkliste for utfylling'!A104,"") ->  | F52: =IF($C52=1,'Sjekkliste for utfylling'!B104,"") ->  | H52: =IF(C52=1,'Sjekkliste for utfylling'!L104," ") -> 
A53: ='Sjekkliste for utfylling'!A105 -> 52 | B53: =IF('Sjekkliste for utfylling'!I105<>"",1,0) -> 0 | C53: 0 | E53: =IF($C53=1,'Sjekkliste for utfylling'!A105,"") ->  | F53: =IF($C53=1,'Sjekkliste for utfylling'!B105,"") ->  | H53: =IF(C53=1,'Sjekkliste for utfylling'!L105," ") -> 
A54: ='Sjekkliste for utfylling'!A107 -> 53 | B54: =IF('Sjekkliste for utfylling'!I107<>"",1,0) -> 0 | C54: 0 | E54: =IF($C54=1,'Sjekkliste for utfylling'!A107,"") ->  | F54: =IF($C54=1,'Sjekkliste for utfylling'!B107,"") ->  | H54: =IF(C54=1,'Sjekkliste for utfylling'!L107," ") -> 
A55: ='Sjekkliste for utfylling'!A108 -> 54 | B55: =IF('Sjekkliste for utfylling'!I108<>"",1,0) -> 0 | C55: 0 | E55: =IF($C55=1,'Sjekkliste for utfylling'!A108,"") ->  | F55: =IF($C55=1,'Sjekkliste for utfylling'!B108,"") ->  | H55: =IF(C55=1,'Sjekkliste for utfylling'!L108," ") -> 
A56: ='Sjekkliste for utfylling'!A110 -> 55 | B56: =IF('Sjekkliste for utfylling'!I110<>"",1,0) -> 0 | C56: 0 | E56: =IF($C56=1,'Sjekkliste for utfylling'!A110,"") ->  | F56: =IF($C56=1,'Sjekkliste for utfylling'!B110,"") ->  | H56: =IF(C56=1,'Sjekkliste for utfylling'!L110," ") -> 
A57: ='Sjekkliste for utfylling'!A111 -> 56 | B57: =IF('Sjekkliste for utfylling'!I111<>"",1,0) -> 0 | C57: 0 | E57: =IF($C57=1,'Sjekkliste for utfylling'!A111,"") ->  | F57: =IF($C57=1,'Sjekkliste for utfylling'!B111,"") ->  | H57: =IF(C57=1,'Sjekkliste for utfylling'!L111," ") -> 
A58: ='Sjekkliste for utfylling'!A113 -> 57 | B58: =IF('Sjekkliste for utfylling'!I113<>"",1,0) -> 0 | C58: 0 | E58: =IF($C58=1,'Sjekkliste for utfylling'!A113,"") ->  | F58: =IF($C58=1,'Sjekkliste for utfylling'!B113,"") ->  | H58: =IF(C58=1,'Sjekkliste for utfylling'!L113," ") -> 
A59: ='Sjekkliste for utfylling'!A115 -> 58 | B59: =IF('Sjekkliste for utfylling'!I115<>"",1,0) -> 0 | C59: 0 | E59: =IF($C59=1,'Sjekkliste for utfylling'!A115,"") ->  | F59: =IF($C59=1,'Sjekkliste for utfylling'!B115,"") ->  | H59: =IF(C59=1,'Sjekkliste for utfylling'!L115," ") -> 
A60: ='Sjekkliste for utfylling'!A116 -> 59 | B60: =IF('Sjekkliste for utfylling'!I116<>"",1,0) -> 0 | C60: 0 | E60: =IF($C60=1,'Sjekkliste for utfylling'!A116,"") ->  | F60: =IF($C60=1,'Sjekkliste for utfylling'!B116,"") ->  | H60: =IF(C60=1,'Sjekkliste for utfylling'!L116," ") -> 
A61: ='Sjekkliste for utfylling'!A117 -> 60 | B61: =IF('Sjekkliste for utfylling'!I117<>"",1,0) -> 0 | C61: 0 | E61: =IF($C61=1,'Sjekkliste for utfylling'!A117,"") ->  | F61: =IF($C61=1,'Sjekkliste for utfylling'!B117,"") ->  | H61: =IF(C61=1,'Sjekkliste for utfylling'!L117," ") -> 
A62: ='Sjekkliste for utfylling'!A118 -> 61 | B62: =IF('Sjekkliste for utfylling'!I118<>"",1,0) -> 0 | C62: 0 | E62: =IF($C62=1,'Sjekkliste for utfylling'!A118,"") ->  | F62: =IF($C62=1,'Sjekkliste for utfylling'!B118,"") ->  | H62: =IF(C62=1,'Sjekkliste for utfylling'!L118," ") -> 
A63: ='Sjekkliste for utfylling'!A119 -> 62 | B63: =IF('Sjekkliste for utfylling'!I119<>"",1,0) -> 0 | C63: 0 | E63: =IF($C63=1,'Sjekkliste for utfylling'!A119,"") ->  | F63: =IF($C63=1,'Sjekkliste for utfylling'!B119,"") ->  | H63: =IF(C63=1,'Sjekkliste for utfylling'!L119," ") -> 
A64: ='Sjekkliste for utfylling'!A120 -> 63 | B64: =IF('Sjekkliste for utfylling'!I120<>"",1,0) -> 0 | C64: 0 | E64: =IF($C64=1,'Sjekkliste for utfylling'!A120,"") ->  | F64: =IF($C64=1,'Sjekkliste for utfylling'!B120,"") ->  | H64: =IF(C64=1,'Sjekkliste for utfylling'!L120," ") -> 
A65: ='Sjekkliste for utfylling'!A122 -> 64 | B65: =IF('Sjekkliste for utfylling'!I122<>"",1,0) -> 0 | C65: 0 | E65: =IF($C65=1,'Sjekkliste for utfylling'!A122,"") ->  | F65: =IF($C65=1,'Sjekkliste for utfylling'!B122,"") ->  | H65: =IF(C65=1,'Sjekkliste for utfylling'!L122," ") -> 
A66: ='Sjekkliste for utfylling'!A123 -> 65 | B66: =IF('Sjekkliste for utfylling'!I123<>"",1,0) -> 0 | C66: =SUM(B66:B66) -> 0 | E66: =IF($C66=1,'Sjekkliste for utfylling'!A123,"") ->  | F66: =IF($C66=1,'Sjekkliste for utfylling'!B123,"") ->  | H66: =IF(C66=1,'Sjekkliste for utfylling'!L123," ") -> 
A67: ='Sjekkliste for utfylling'!A125 -> 66 | B67: =IF('Sjekkliste for utfylling'!I125<>"",1,0) -> 0 | C67: 0 | E67: =IF($C67=1,'Sjekkliste for utfylling'!A125,"") ->  | F67: =IF($C67=1,'Sjekkliste for utfylling'!B125,"") ->  | H67: =IF(C67=1,'Sjekkliste for utfylling'!L125," ") -> 
A68: ='Sjekkliste for utfylling'!A126 -> 67 | B68: =IF('Sjekkliste for utfylling'!I126<>"",1,0) -> 0 | C68: 0 | E68: =IF($C68=1,'Sjekkliste for utfylling'!A126,"") ->  | F68: =IF($C68=1,'Sjekkliste for utfylling'!B126,"") ->  | H68: =IF(C68=1,'Sjekkliste for utfylling'!L126," ") -> 
A69: ='Sjekkliste for utfylling'!A127 -> 68 | B69: =IF('Sjekkliste for utfylling'!I127<>"",1,0) -> 0 | C69: 0 | E69: =IF($C69=1,'Sjekkliste for utfylling'!A127,"") ->  | F69: =IF($C69=1,'Sjekkliste for utfylling'!B127,"") ->  | H69: =IF(C69=1,'Sjekkliste for utfylling'!L127," ") -> 
A70: ='Sjekkliste for utfylling'!A128 -> 69 | B70: =IF('Sjekkliste for utfylling'!I128<>"",1,0) -> 0 | C70: 0 | E70: =IF($C70=1,'Sjekkliste for utfylling'!A128,"") ->  | F70: =IF($C70=1,'Sjekkliste for utfylling'!B128,"") ->  | H70: =IF(C70=1,'Sjekkliste for utfylling'!L128," ") -> 
A71: ='Sjekkliste for utfylling'!A130 -> 70 | B71: =IF('Sjekkliste for utfylling'!I130<>"",1,0) -> 0 | C71: 0 | E71: =IF($C71=1,'Sjekkliste for utfylling'!A130,"") ->  | F71: =IF($C71=1,'Sjekkliste for utfylling'!B130,"") ->  | H71: =IF(C71=1,'Sjekkliste for utfylling'!L130," ") -> 
A72: ='Sjekkliste for utfylling'!A131 -> 71 | B72: =IF('Sjekkliste for utfylling'!I131<>"",1,0) -> 0 | C72: 0 | E72: =IF($C72=1,'Sjekkliste for utfylling'!A131,"") ->  | F72: =IF($C72=1,'Sjekkliste for utfylling'!B131,"") ->  | H72: =IF(C72=1,'Sjekkliste for utfylling'!L131," ") -> 
A73: ='Sjekkliste for utfylling'!A132 -> 72 | B73: =IF('Sjekkliste for utfylling'!I132<>"",1,0) -> 0 | C73: 0 | E73: =IF($C73=1,'Sjekkliste for utfylling'!A132,"") ->  | F73: =IF($C73=1,'Sjekkliste for utfylling'!B132,"") ->  | H73: =IF(C73=1,'Sjekkliste for utfylling'!L132," ") -> 
A74: ='Sjekkliste for utfylling'!A133 -> 73 | B74: =IF('Sjekkliste for utfylling'!I133<>"",1,0) -> 0 | C74: 0 | E74: =IF($C74=1,'Sjekkliste for utfylling'!A133,"") ->  | F74: =IF($C74=1,'Sjekkliste for utfylling'!B133,"") ->  | H74: =IF(C74=1,'Sjekkliste for utfylling'!L133," ") -> 
A75: ='Sjekkliste for utfylling'!A136 -> 74 | B75: =IF('Sjekkliste for utfylling'!I136<>"",1,0) -> 0 | C75: 0 | E75: =IF($C75=1,'Sjekkliste for utfylling'!A136,"") ->  | F75: =IF($C75=1,'Sjekkliste for utfylling'!B136,"") ->  | H75: =IF(C75=1,'Sjekkliste for utfylling'!L136," ") -> 
A76: ='Sjekkliste for utfylling'!A137 -> 75 | B76: =IF('Sjekkliste for utfylling'!I137<>"",1,0) -> 0 | C76: 0 | E76: =IF($C76=1,'Sjekkliste for utfylling'!A137,"") ->  | F76: =IF($C76=1,'Sjekkliste for utfylling'!B137,"") ->  | H76: =IF(C76=1,'Sjekkliste for utfylling'!L137," ") -> 
A77: ='Sjekkliste for utfylling'!A138 -> 76 | B77: =IF('Sjekkliste for utfylling'!I138<>"",1,0) -> 0 | C77: 0 | E77: =IF($C77=1,'Sjekkliste for utfylling'!A138,"") ->  | F77: =IF($C77=1,'Sjekkliste for utfylling'!B138,"") ->  | H77: =IF(C77=1,'Sjekkliste for utfylling'!L138," ") -> 
A78: ='Sjekkliste for utfylling'!A141 -> 77 | B78: =IF('Sjekkliste for utfylling'!I141<>"",1,0) -> 0 | C78: 0 | E78: =IF($C78=1,'Sjekkliste for utfylling'!A141,"") ->  | F78: =IF($C78=1,'Sjekkliste for utfylling'!B141,"") ->  | H78: =IF(C78=1,'Sjekkliste for utfylling'!L141," ") -> 
A79: ='Sjekkliste for utfylling'!A142 -> 78 | B79: =IF('Sjekkliste for utfylling'!I142<>"",1,0) -> 0 | C79: 0 | E79: =IF($C79=1,'Sjekkliste for utfylling'!A142,"") ->  | F79: =IF($C79=1,'Sjekkliste for utfylling'!B142,"") ->  | H79: =IF(C79=1,'Sjekkliste for utfylling'!L142," ") -> 
A80: ='Sjekkliste for utfylling'!A144 -> 79 | B80: =IF('Sjekkliste for utfylling'!I144<>"",1,0) -> 0 | C80: 0 | E80: =IF($C80=1,'Sjekkliste for utfylling'!A144,"") ->  | F80: =IF($C80=1,'Sjekkliste for utfylling'!B144,"") ->  | H80: =IF(C80=1,'Sjekkliste for utfylling'!L144," ") -> 
A81: ='Sjekkliste for utfylling'!A145 -> 80 | B81: =IF('Sjekkliste for utfylling'!I145<>"",1,0) -> 0 | C81: 0 | E81: =IF($C81=1,'Sjekkliste for utfylling'!A145,"") ->  | F81: =IF($C81=1,'Sjekkliste for utfylling'!B145,"") ->  | H81: =IF(C81=1,'Sjekkliste for utfylling'!L145," ") -> 
A82: ='Sjekkliste for utfylling'!A146 -> 81 | B82: =IF('Sjekkliste for utfylling'!I146<>"",1,0) -> 0 | C82: 0 | E82: =IF($C82=1,'Sjekkliste for utfylling'!A146,"") ->  | F82: =IF($C82=1,'Sjekkliste for utfylling'!B146,"") ->  | H82: =IF(C82=1,'Sjekkliste for utfylling'!L146," ") -> 
A83: ='Sjekkliste for utfylling'!A147 -> 82 | B83: =IF('Sjekkliste for utfylling'!I147<>"",1,0) -> 0 | C83: 0 | E83: =IF($C83=1,'Sjekkliste for utfylling'!A147,"") ->  | F83: =IF($C83=1,'Sjekkliste for utfylling'!B147,"") ->  | H83: =IF(C83=1,'Sjekkliste for utfylling'!L147," ") -> 
A84: ='Sjekkliste for utfylling'!A148 -> 83 | B84: =IF('Sjekkliste for utfylling'!I148<>"",1,0) -> 0 | C84: 0 | E84: =IF($C84=1,'Sjekkliste for utfylling'!A148,"") ->  | F84: =IF($C84=1,'Sjekkliste for utfylling'!B148,"") ->  | H84: =IF(C84=1,'Sjekkliste for utfylling'!L148," ") -> 
A85: ='Sjekkliste for utfylling'!A150 -> 84 | B85: =IF('Sjekkliste for utfylling'!I150<>"",1,0) -> 0 | C85: 0 | E85: =IF($C85=1,'Sjekkliste for utfylling'!A150,"") ->  | F85: =IF($C85=1,'Sjekkliste for utfylling'!B150,"") ->  | H85: =IF(C85=1,'Sjekkliste for utfylling'!L150," ") -> 
A86: ='Sjekkliste for utfylling'!A151 -> 85 | B86: =IF('Sjekkliste for utfylling'!I151<>"",1,0) -> 0 | C86: 0 | E86: =IF($C86=1,'Sjekkliste for utfylling'!A151,"") ->  | F86: =IF($C86=1,'Sjekkliste for utfylling'!B151,"") ->  | H86: =IF(C86=1,'Sjekkliste for utfylling'!L151," ") -> 
A87: ='Sjekkliste for utfylling'!A153 -> 86 | B87: =IF('Sjekkliste for utfylling'!I153<>"",1,0) -> 0 | C87: 0 | E87: =IF($C87=1,'Sjekkliste for utfylling'!A153,"") ->  | F87: =IF($C87=1,'Sjekkliste for utfylling'!B153,"") ->  | H87: =IF(C87=1,'Sjekkliste for utfylling'!L153," ") -> 
A88: ='Sjekkliste for utfylling'!A154 -> 87 | B88: =IF('Sjekkliste for utfylling'!I154<>"",1,0) -> 0 | C88: 0 | E88: =IF($C88=1,'Sjekkliste for utfylling'!A154,"") ->  | F88: =IF($C88=1,'Sjekkliste for utfylling'!B154,"") ->  | H88: =IF(C88=1,'Sjekkliste for utfylling'!L154," ") -> 
A89: ='Sjekkliste for utfylling'!A155 -> 88 | B89: =IF('Sjekkliste for utfylling'!I155<>"",1,0) -> 0 | C89: 0 | E89: =IF($C89=1,'Sjekkliste for utfylling'!A155,"") ->  | F89: =IF($C89=1,'Sjekkliste for utfylling'!B155,"") ->  | H89: =IF(C89=1,'Sjekkliste for utfylling'!L155," ") -> 
A90: ='Sjekkliste for utfylling'!A156 -> 89 | B90: =IF('Sjekkliste for utfylling'!I156<>"",1,0) -> 0 | C90: 0 | E90: =IF($C90=1,'Sjekkliste for utfylling'!A156,"") ->  | F90: =IF($C90=1,'Sjekkliste for utfylling'!B156,"") ->  | H90: =IF(C90=1,'Sjekkliste for utfylling'!L156," ") -> 
A91: ='Sjekkliste for utfylling'!A157 -> 90 | B91: =IF('Sjekkliste for utfylling'!I157<>"",1,0) -> 0 | C91: 0 | E91: =IF($C91=1,'Sjekkliste for utfylling'!A157,"") ->  | F91: =IF($C91=1,'Sjekkliste for utfylling'!B157,"") ->  | H91: =IF(C91=1,'Sjekkliste for utfylling'!L157," ") -> 
A92: ='Sjekkliste for utfylling'!A158 -> 91 | B92: =IF('Sjekkliste for utfylling'!I158<>"",1,0) -> 0 | C92: 0 | E92: =IF($C92=1,'Sjekkliste for utfylling'!A158,"") ->  | F92: =IF($C92=1,'Sjekkliste for utfylling'!B158,"") ->  | H92: =IF(C92=1,'Sjekkliste for utfylling'!L158," ") -> 
A93: ='Sjekkliste for utfylling'!A159 -> 92 | B93: =IF('Sjekkliste for utfylling'!I159<>"",1,0) -> 0 | C93: 0 | E93: =IF($C93=1,'Sjekkliste for utfylling'!A159,"") ->  | F93: =IF($C93=1,'Sjekkliste for utfylling'!B159,"") ->  | H93: =IF(C93=1,'Sjekkliste for utfylling'!L159," ") -> 
A94: ='Sjekkliste for utfylling'!A160 -> 93 | B94: =IF('Sjekkliste for utfylling'!I160<>"",1,0) -> 0 | C94: 0 | E94: =IF($C94=1,'Sjekkliste for utfylling'!A160,"") ->  | F94: =IF($C94=1,'Sjekkliste for utfylling'!B160,"") ->  | H94: =IF(C94=1,'Sjekkliste for utfylling'!L160," ") -> 
A95: ='Sjekkliste for utfylling'!A162 -> 94 | B95: =IF('Sjekkliste for utfylling'!I162<>"",1,0) -> 0 | C95: 0 | E95: =IF($C95=1,'Sjekkliste for utfylling'!A162,"") ->  | F95: =IF($C95=1,'Sjekkliste for utfylling'!B162,"") ->  | H95: =IF(C95=1,'Sjekkliste for utfylling'!L162," ") -> 
A96: ='Sjekkliste for utfylling'!A164 -> 95 | B96: =IF('Sjekkliste for utfylling'!I164<>"",1,0) -> 0 | C96: 0 | E96: =IF($C96=1,'Sjekkliste for utfylling'!A164,"") ->  | F96: =IF($C96=1,'Sjekkliste for utfylling'!B164,"") ->  | H96: =IF(C96=1,'Sjekkliste for utfylling'!L164," ") -> 
A97: ='Sjekkliste for utfylling'!A170 -> 96 | B97: =IF('Sjekkliste for utfylling'!I170<>"",1,0) -> 0 | C97: 0 | E97: =IF($C97=1,'Sjekkliste for utfylling'!A170,"") ->  | F97: =IF($C97=1,'Sjekkliste for utfylling'!B170,"") ->  | H97: =IF(C97=1,'Sjekkliste for utfylling'!L170," ") -> 
A98: ='Sjekkliste for utfylling'!A171 -> 97 | B98: =IF('Sjekkliste for utfylling'!I171<>"",1,0) -> 0 | C98: 0 | E98: =IF($C98=1,'Sjekkliste for utfylling'!A171,"") ->  | F98: =IF($C98=1,'Sjekkliste for utfylling'!B171,"") ->  | H98: =IF(C98=1,'Sjekkliste for utfylling'!L171," ") -> 
A99: ='Sjekkliste for utfylling'!A172 -> 98 | B99: =IF('Sjekkliste for utfylling'!I172<>"",1,0) -> 0 | C99: 0 | E99: =IF($C99=1,'Sjekkliste for utfylling'!A172,"") ->  | F99: =IF($C99=1,'Sjekkliste for utfylling'!B172,"") ->  | H99: =IF(C99=1,'Sjekkliste for utfylling'!L172," ") -> 
A100: ='Sjekkliste for utfylling'!A173 -> 99 | B100: =IF('Sjekkliste for utfylling'!I173<>"",1,0) -> 0 | C100: 0 | E100: =IF($C100=1,'Sjekkliste for utfylling'!A173,"") ->  | F100: =IF($C100=1,'Sjekkliste for utfylling'!B173,"") ->  | H100: =IF(C100=1,'Sjekkliste for utfylling'!L173," ") -> 
A101: ='Sjekkliste for utfylling'!A174 -> 100 | B101: =IF('Sjekkliste for utfylling'!I174<>"",1,0) -> 0 | C101: 0 | E101: =IF($C101=1,'Sjekkliste for utfylling'!A174,"") ->  | F101: =IF($C101=1,'Sjekkliste for utfylling'!B174,"") ->  | H101: =IF(C101=1,'Sjekkliste for utfylling'!L174," ") -> 
A102: ='Sjekkliste for utfylling'!A175 -> 101 | B102: =IF('Sjekkliste for utfylling'!I175<>"",1,0) -> 0 | C102: 0 | E102: =IF($C102=1,'Sjekkliste for utfylling'!A175,"") ->  | F102: =IF($C102=1,'Sjekkliste for utfylling'!B175,"") ->  | H102: =IF(C102=1,'Sjekkliste for utfylling'!L175," ") -> 
A103: ='Sjekkliste for utfylling'!A176 -> 102 | B103: =IF('Sjekkliste for utfylling'!I176<>"",1,0) -> 0 | C103: 0 | E103: =IF($C103=1,'Sjekkliste for utfylling'!A176,"") ->  | F103: =IF($C103=1,'Sjekkliste for utfylling'!B176,"") ->  | H103: =IF(C103=1,'Sjekkliste for utfylling'!L176," ") -> 
A104: ='Sjekkliste for utfylling'!A177 -> 103 | B104: =IF('Sjekkliste for utfylling'!I177<>"",1,0) -> 0 | C104: 0 | E104: =IF($C104=1,'Sjekkliste for utfylling'!A177,"") ->  | F104: =IF($C104=1,'Sjekkliste for utfylling'!B177,"") ->  | H104: =IF(C104=1,'Sjekkliste for utfylling'!L177," ") -> 
A105: ='Sjekkliste for utfylling'!A178 -> 104 | B105: =IF('Sjekkliste for utfylling'!I178<>"",1,0) -> 0 | C105: 0 | E105: =IF($C105=1,'Sjekkliste for utfylling'!A178,"") ->  | F105: =IF($C105=1,'Sjekkliste for utfylling'!B178,"") ->  | H105: =IF(C105=1,'Sjekkliste for utfylling'!L178," ") -> 
A106: ='Sjekkliste for utfylling'!A181 -> 105 | B106: =IF('Sjekkliste for utfylling'!I181<>"",1,0) -> 0 | C106: 0 | E106: =IF($C106=1,'Sjekkliste for utfylling'!A181,"") ->  | F106: =IF($C106=1,'Sjekkliste for utfylling'!B181,"") ->  | H106: =IF(C106=1,'Sjekkliste for utfylling'!L181," ") -> 
A107: ='Sjekkliste for utfylling'!A182 -> 106 | B107: =IF('Sjekkliste for utfylling'!I182<>"",1,0) -> 0 | C107: 0 | E107: =IF($C107=1,'Sjekkliste for utfylling'!A182,"") ->  | F107: =IF($C107=1,'Sjekkliste for utfylling'!B182,"") ->  | H107: =IF(C107=1,'Sjekkliste for utfylling'!L182," ") -> 
A108: ='Sjekkliste for utfylling'!A184 -> 107 | B108: =IF('Sjekkliste for utfylling'!I184<>"",1,0) -> 0 | C108: 0 | E108: =IF($C108=1,'Sjekkliste for utfylling'!A184,"") ->  | F108: =IF($C108=1,'Sjekkliste for utfylling'!B184,"") ->  | H108: =IF(C108=1,'Sjekkliste for utfylling'!L184," ") -> 
A109: ='Sjekkliste for utfylling'!A185 -> 108 | B109: =IF('Sjekkliste for utfylling'!I185<>"",1,0) -> 0 | C109: 0 | E109: =IF($C109=1,'Sjekkliste for utfylling'!A185,"") ->  | F109: =IF($C109=1,'Sjekkliste for utfylling'!B185,"") ->  | H109: =IF(C109=1,'Sjekkliste for utfylling'!L185," ") -> 
A110: ='Sjekkliste for utfylling'!A187 -> 109 | B110: =IF('Sjekkliste for utfylling'!I187<>"",1,0) -> 0 | C110: 0 | E110: =IF($C110=1,'Sjekkliste for utfylling'!A187,"") ->  | F110: =IF($C110=1,'Sjekkliste for utfylling'!B187,"") ->  | H110: =IF(C110=1,'Sjekkliste for utfylling'!L187," ") -> 
A111: ='Sjekkliste for utfylling'!A188 -> 110 | B111: =IF('Sjekkliste for utfylling'!I188<>"",1,0) -> 0 | C111: 0 | E111: =IF($C111=1,'Sjekkliste for utfylling'!A188,"") ->  | F111: =IF($C111=1,'Sjekkliste for utfylling'!B188,"") ->  | H111: =IF(C111=1,'Sjekkliste for utfylling'!L188," ") -> 
A112: ='Sjekkliste for utfylling'!A190 -> 111 | B112: =IF('Sjekkliste for utfylling'!I190<>"",1,0) -> 0 | C112: 0 | E112: =IF($C112=1,'Sjekkliste for utfylling'!A190,"") ->  | F112: =IF($C112=1,'Sjekkliste for utfylling'!B190,"") ->  | H112: =IF(C112=1,'Sjekkliste for utfylling'!L190," ") -> 
A113: ='Sjekkliste for utfylling'!A191 -> 112 | B113: =IF('Sjekkliste for utfylling'!I191<>"",1,0) -> 0 | C113: 0 | E113: =IF($C113=1,'Sjekkliste for utfylling'!A191,"") ->  | F113: =IF($C113=1,'Sjekkliste for utfylling'!B191,"") ->  | H113: =IF(C113=1,'Sjekkliste for utfylling'!L191," ") -> 
A114: ='Sjekkliste for utfylling'!A192 -> 113 | B114: =IF('Sjekkliste for utfylling'!I192<>"",1,0) -> 0 | C114: 0 | E114: =IF($C114=1,'Sjekkliste for utfylling'!A192,"") ->  | F114: =IF($C114=1,'Sjekkliste for utfylling'!B192,"") ->  | H114: =IF(C114=1,'Sjekkliste for utfylling'!L192," ") -> 
A115: ='Sjekkliste for utfylling'!A195 -> 114 | B115: =IF('Sjekkliste for utfylling'!I195<>"",1,0) -> 0 | C115: 0 | E115: =IF($C115=1,'Sjekkliste for utfylling'!A195,"") ->  | F115: =IF($C115=1,'Sjekkliste for utfylling'!B195,"") ->  | H115: =IF(C115=1,'Sjekkliste for utfylling'!L195," ") -> 
A116: ='Sjekkliste for utfylling'!A196 -> 115 | B116: =IF('Sjekkliste for utfylling'!I196<>"",1,0) -> 0 | C116: 0 | E116: =IF($C116=1,'Sjekkliste for utfylling'!A196,"") ->  | F116: =IF($C116=1,'Sjekkliste for utfylling'!B196,"") ->  | H116: =IF(C116=1,'Sjekkliste for utfylling'!L196," ") -> 
A117: ='Sjekkliste for utfylling'!A198 -> 116 | B117: =IF('Sjekkliste for utfylling'!I198<>"",1,0) -> 0 | C117: 0 | E117: =IF($C117=1,'Sjekkliste for utfylling'!A198,"") ->  | F117: =IF($C117=1,'Sjekkliste for utfylling'!B198,"") ->  | H117: =IF(C117=1,'Sjekkliste for utfylling'!L198," ") -> 
A118: ='Sjekkliste for utfylling'!A200 -> 117 | B118: =IF('Sjekkliste for utfylling'!I200<>"",1,0) -> 0 | C118: 0 | E118: =IF($C118=1,'Sjekkliste for utfylling'!A200,"") ->  | F118: =IF($C118=1,'Sjekkliste for utfylling'!B200,"") ->  | H118: =IF(C118=1,'Sjekkliste for utfylling'!L200," ") -> 
A119: ='Sjekkliste for utfylling'!A202 -> 118 | B119: =IF('Sjekkliste for utfylling'!I202<>"",1,0) -> 0 | C119: 0 | E119: =IF($C119=1,'Sjekkliste for utfylling'!A202,"") ->  | F119: =IF($C119=1,'Sjekkliste for utfylling'!B202,"") ->  | H119: =IF(C119=1,'Sjekkliste for utfylling'!L202," ") -> 
A120: ='Sjekkliste for utfylling'!A209 -> 119 | B120: =IF('Sjekkliste for utfylling'!I209<>"",1,0) -> 0 | C120: 0 | E120: =IF($C120=1,'Sjekkliste for utfylling'!A209,"") ->  | F120: =IF($C120=1,'Sjekkliste for utfylling'!B209,"") ->  | H120: =IF(C120=1,'Sjekkliste for utfylling'!L209," ") -> 
A121: ='Sjekkliste for utfylling'!A218 -> 120 | B121: =IF('Sjekkliste for utfylling'!I218<>"",1,0) -> 0 | C121: 0 | E121: =IF($C121=1,'Sjekkliste for utfylling'!A218,"") ->  | F121: =IF($C121=1,'Sjekkliste for utfylling'!B218,"") ->  | H121: =IF(C121=1,'Sjekkliste for utfylling'!L218," ") -> 
A122: ='Sjekkliste for utfylling'!A221 -> 121 | B122: =IF('Sjekkliste for utfylling'!I221<>"",1,0) -> 0 | C122: 0 | E122: =IF($C122=1,'Sjekkliste for utfylling'!A221,"") ->  | F122: =IF($C122=1,'Sjekkliste for utfylling'!B221,"") ->  | H122: =IF(C122=1,'Sjekkliste for utfylling'!L221," ") -> 
A123: ='Sjekkliste for utfylling'!A223 -> 122 | B123: =IF('Sjekkliste for utfylling'!I223<>"",1,0) -> 0 | C123: 0 | E123: =IF($C123=1,'Sjekkliste for utfylling'!A223,"") ->  | F123: =IF($C123=1,'Sjekkliste for utfylling'!B223,"") ->  | H123: =IF(C123=1,'Sjekkliste for utfylling'!L223," ") -> 
A124: ='Sjekkliste for utfylling'!A224 -> 123 | B124: =IF('Sjekkliste for utfylling'!I224<>"",1,0) -> 0 | C124: 0 | E124: =IF($C124=1,'Sjekkliste for utfylling'!A224,"") ->  | F124: =IF($C124=1,'Sjekkliste for utfylling'!B224,"") ->  | H124: =IF(C124=1,'Sjekkliste for utfylling'!L224," ") -> 
A125: ='Sjekkliste for utfylling'!A225 -> 124 | B125: =IF('Sjekkliste for utfylling'!I225<>"",1,0) -> 0 | C125: 0 | E125: =IF($C125=1,'Sjekkliste for utfylling'!A225,"") ->  | F125: =IF($C125=1,'Sjekkliste for utfylling'!B225,"") ->  | H125: =IF(C125=1,'Sjekkliste for utfylling'!L225," ") -> 
A126: ='Sjekkliste for utfylling'!A227 -> 125 | B126: =IF('Sjekkliste for utfylling'!I227<>"",1,0) -> 0 | C126: 0 | E126: =IF($C126=1,'Sjekkliste for utfylling'!A227,"") ->  | F126: =IF($C126=1,'Sjekkliste for utfylling'!B227,"") ->  | H126: =IF(C126=1,'Sjekkliste for utfylling'!L227," ") -> 
A127: ='Sjekkliste for utfylling'!A228 -> 126 | B127: =IF('Sjekkliste for utfylling'!I228<>"",1,0) -> 0 | C127: 0 | E127: =IF($C127=1,'Sjekkliste for utfylling'!A228,"") ->  | F127: =IF($C127=1,'Sjekkliste for utfylling'!B228,"") ->  | H127: =IF(C127=1,'Sjekkliste for utfylling'!L228," ") -> 
A128: ='Sjekkliste for utfylling'!A229 -> 127 | B128: =IF('Sjekkliste for utfylling'!I229<>"",1,0) -> 0 | C128: 0 | E128: =IF($C128=1,'Sjekkliste for utfylling'!A229,"") ->  | F128: =IF($C128=1,'Sjekkliste for utfylling'!B229,"") ->  | H128: =IF(C128=1,'Sjekkliste for utfylling'!L229," ") -> 
A129: ='Sjekkliste for utfylling'!A230 -> 128 | B129: =IF('Sjekkliste for utfylling'!I230<>"",1,0) -> 0 | C129: 0 | E129: =IF($C129=1,'Sjekkliste for utfylling'!A230,"") ->  | F129: =IF($C129=1,'Sjekkliste for utfylling'!B230,"") ->  | H129: =IF(C129=1,'Sjekkliste for utfylling'!L230," ") -> 
A130: ='Sjekkliste for utfylling'!A232 -> 129 | B130: =IF('Sjekkliste for utfylling'!I232<>"",1,0) -> 0 | C130: =SUM(B130:B130) -> 0 | E130: =IF($C130=1,'Sjekkliste for utfylling'!A232,"") ->  | F130: =IF($C130=1,'Sjekkliste for utfylling'!B232,"") ->  | H130: =IF(C130=1,'Sjekkliste for utfylling'!L232," ") -> 
A131: ='Sjekkliste for utfylling'!A233 -> 130 | B131: =IF('Sjekkliste for utfylling'!I233<>"",1,0) -> 0 | C131: 0 | E131: =IF($C131=1,'Sjekkliste for utfylling'!A233,"") ->  | F131: =IF($C131=1,'Sjekkliste for utfylling'!B233,"") ->  | H131: =IF(C131=1,'Sjekkliste for utfylling'!L233," ") -> 
A132: ='Sjekkliste for utfylling'!A235 -> 131 | B132: =IF('Sjekkliste for utfylling'!I235<>"",1,0) -> 0 | C132: 0 | E132: =IF($C132=1,'Sjekkliste for utfylling'!A235,"") ->  | F132: =IF($C132=1,'Sjekkliste for utfylling'!B235,"") ->  | H132: =IF(C132=1,'Sjekkliste for utfylling'!L235," ") -> 
A133: ='Sjekkliste for utfylling'!A237 -> 132 | B133: =IF('Sjekkliste for utfylling'!I237<>"",1,0) -> 0 | C133: 0 | E133: =IF($C133=1,'Sjekkliste for utfylling'!A237,"") ->  | F133: =IF($C133=1,'Sjekkliste for utfylling'!B237,"") ->  | H133: =IF(C133=1,'Sjekkliste for utfylling'!L237," ") -> 
A134: ='Sjekkliste for utfylling'!A240 -> 133 | B134: =IF('Sjekkliste for utfylling'!I240<>"",1,0) -> 0 | C134: 0 | E134: =IF($C134=1,'Sjekkliste for utfylling'!A240,"") ->  | F134: =IF($C134=1,'Sjekkliste for utfylling'!B240,"") ->  | H134: =IF(C134=1,'Sjekkliste for utfylling'!L240," ") -> 
A135: ='Sjekkliste for utfylling'!A242 -> 134 | B135: =IF('Sjekkliste for utfylling'!I242<>"",1,0) -> 0 | C135: 0 | E135: =IF($C135=1,'Sjekkliste for utfylling'!A242,"") ->  | F135: =IF($C135=1,'Sjekkliste for utfylling'!B242,"") ->  | H135: =IF(C135=1,'Sjekkliste for utfylling'!L242," ") -> 
A136: ='Sjekkliste for utfylling'!A243 -> 135 | B136: =IF('Sjekkliste for utfylling'!I243<>"",1,0) -> 0 | C136: 0 | E136: =IF($C136=1,'Sjekkliste for utfylling'!A243,"") ->  | F136: =IF($C136=1,'Sjekkliste for utfylling'!B243,"") ->  | H136: =IF(C136=1,'Sjekkliste for utfylling'!L243," ") -> 
A137: ='Sjekkliste for utfylling'!A245 -> 136 | B137: =IF('Sjekkliste for utfylling'!I245<>"",1,0) -> 0 | C137: 0 | E137: =IF($C137=1,'Sjekkliste for utfylling'!A245,"") ->  | F137: =IF($C137=1,'Sjekkliste for utfylling'!B245,"") ->  | H137: =IF(C137=1,'Sjekkliste for utfylling'!L245," ") -> 
A138: ='Sjekkliste for utfylling'!A246 -> 137 | B138: =IF('Sjekkliste for utfylling'!I246<>"",1,0) -> 0 | C138: 0 | E138: =IF($C138=1,'Sjekkliste for utfylling'!A246,"") ->  | F138: =IF($C138=1,'Sjekkliste for utfylling'!B246,"") ->  | H138: =IF(C138=1,'Sjekkliste for utfylling'!L246," ") -> 
A139: ='Sjekkliste for utfylling'!A247 -> 138 | B139: =IF('Sjekkliste for utfylling'!I247<>"",1,0) -> 0 | C139: 0 | E139: =IF($C139=1,'Sjekkliste for utfylling'!A247,"") ->  | F139: =IF($C139=1,'Sjekkliste for utfylling'!B247,"") ->  | H139: =IF(C139=1,'Sjekkliste for utfylling'!L247," ") -> 
A140: ='Sjekkliste for utfylling'!A249 -> 139 | B140: =IF('Sjekkliste for utfylling'!I249<>"",1,0) -> 0 | C140: 0 | E140: =IF($C140=1,'Sjekkliste for utfylling'!A249,"") ->  | F140: =IF($C140=1,'Sjekkliste for utfylling'!B249,"") ->  | H140: =IF(C140=1,'Sjekkliste for utfylling'!L249," ") -> 
A141: ='Sjekkliste for utfylling'!A250 -> 140 | B141: =IF('Sjekkliste for utfylling'!I250<>"",1,0) -> 0 | C141: 0 | E141: =IF($C141=1,'Sjekkliste for utfylling'!A250,"") ->  | F141: =IF($C141=1,'Sjekkliste for utfylling'!B250,"") ->  | H141: =IF(C141=1,'Sjekkliste for utfylling'!L250," ") -> 
A142: ='Sjekkliste for utfylling'!A251 -> 141 | B142: =IF('Sjekkliste for utfylling'!I251<>"",1,0) -> 0 | C142: 0 | E142: =IF($C142=1,'Sjekkliste for utfylling'!A251,"") ->  | F142: =IF($C142=1,'Sjekkliste for utfylling'!B251,"") ->  | H142: =IF(C142=1,'Sjekkliste for utfylling'!L251," ") -> 
A143: ='Sjekkliste for utfylling'!A252 -> 142 | B143: =IF('Sjekkliste for utfylling'!I252<>"",1,0) -> 0 | C143: 0 | E143: =IF($C143=1,'Sjekkliste for utfylling'!A252,"") ->  | F143: =IF($C143=1,'Sjekkliste for utfylling'!B252,"") ->  | H143: =IF(C143=1,'Sjekkliste for utfylling'!L252," ") -> 
A144: ='Sjekkliste for utfylling'!A255 -> 143 | B144: =IF('Sjekkliste for utfylling'!I255<>"",1,0) -> 0 | C144: 0 | E144: =IF($C144=1,'Sjekkliste for utfylling'!A255,"") ->  | F144: =IF($C144=1,'Sjekkliste for utfylling'!B255,"") ->  | H144: =IF(C144=1,'Sjekkliste for utfylling'!L255," ") -> 
A145: ='Sjekkliste for utfylling'!A256 -> 144 | B145: =IF('Sjekkliste for utfylling'!I256<>"",1,0) -> 0 | C145: 0 | E145: =IF($C145=1,'Sjekkliste for utfylling'!A256,"") ->  | F145: =IF($C145=1,'Sjekkliste for utfylling'!B256,"") ->  | H145: =IF(C145=1,'Sjekkliste for utfylling'!L256," ") -> 
A146: ='Sjekkliste for utfylling'!A258 -> 145 | B146: =IF('Sjekkliste for utfylling'!I258<>"",1,0) -> 0 | C146: 0 | E146: =IF($C146=1,'Sjekkliste for utfylling'!A258,"") ->  | F146: =IF($C146=1,'Sjekkliste for utfylling'!B258,"") ->  | H146: =IF(C146=1,'Sjekkliste for utfylling'!L258," ") -> 
A147: ='Sjekkliste for utfylling'!A260 -> 146 | B147: =IF('Sjekkliste for utfylling'!I260<>"",1,0) -> 0 | C147: 0 | E147: =IF($C147=1,'Sjekkliste for utfylling'!A260,"") ->  | F147: =IF($C147=1,'Sjekkliste for utfylling'!B260,"") ->  | H147: =IF(C147=1,'Sjekkliste for utfylling'!L260," ") -> 
A148: ='Sjekkliste for utfylling'!A261 -> 147 | B148: =IF('Sjekkliste for utfylling'!I261<>"",1,0) -> 0 | C148: 0 | E148: =IF($C148=1,'Sjekkliste for utfylling'!A261,"") ->  | F148: =IF($C148=1,'Sjekkliste for utfylling'!B261,"") ->  | H148: =IF(C148=1,'Sjekkliste for utfylling'!L261," ") -> 
A149: ='Sjekkliste for utfylling'!A263 -> 148 | B149: =IF('Sjekkliste for utfylling'!I263<>"",1,0) -> 0 | C149: 0 | E149: =IF($C149=1,'Sjekkliste for utfylling'!A263,"") ->  | F149: =IF($C149=1,'Sjekkliste for utfylling'!B263,"") ->  | H149: =IF(C149=1,'Sjekkliste for utfylling'!L263," ") -> 
A150: ='Sjekkliste for utfylling'!A264 -> 149 | B150: =IF('Sjekkliste for utfylling'!I264<>"",1,0) -> 0 | C150: 0 | E150: =IF($C150=1,'Sjekkliste for utfylling'!A264,"") ->  | F150: =IF($C150=1,'Sjekkliste for utfylling'!B264,"") ->  | H150: =IF(C150=1,'Sjekkliste for utfylling'!L264," ") -> 
A151: ='Sjekkliste for utfylling'!A266 -> 150 | B151: =IF('Sjekkliste for utfylling'!I266<>"",1,0) -> 0 | C151: 0 | E151: =IF($C151=1,'Sjekkliste for utfylling'!A266,"") ->  | F151: =IF($C151=1,'Sjekkliste for utfylling'!B266,"") ->  | H151: =IF(C151=1,'Sjekkliste for utfylling'!L266," ") -> 
A152: ='Sjekkliste for utfylling'!A267 -> 151 | B152: =IF('Sjekkliste for utfylling'!I267<>"",1,0) -> 0 | C152: 0 | E152: =IF($C152=1,'Sjekkliste for utfylling'!A267,"") ->  | F152: =IF($C152=1,'Sjekkliste for utfylling'!B267,"") ->  | H152: =IF(C152=1,'Sjekkliste for utfylling'!L267," ") -> 
A153: ='Sjekkliste for utfylling'!A269 -> 152 | B153: =IF('Sjekkliste for utfylling'!I269<>"",1,0) -> 0 | C153: 0 | E153: =IF($C153=1,'Sjekkliste for utfylling'!A269,"") ->  | F153: =IF($C153=1,'Sjekkliste for utfylling'!B269,"") ->  | H153: =IF(C153=1,'Sjekkliste for utfylling'!L269," ") -> 
A154: ='Sjekkliste for utfylling'!A271 -> 153 | B154: =IF('Sjekkliste for utfylling'!I271<>"",1,0) -> 0 | C154: 0 | E154: =IF($C154=1,'Sjekkliste for utfylling'!A271,"") ->  | F154: =IF($C154=1,'Sjekkliste for utfylling'!B271,"") ->  | H154: =IF(C154=1,'Sjekkliste for utfylling'!L271," ") -> 
A155: ='Sjekkliste for utfylling'!A273 -> 154 | B155: =IF('Sjekkliste for utfylling'!I273<>"",1,0) -> 0 | C155: 0 | E155: =IF($C155=1,'Sjekkliste for utfylling'!A273,"") ->  | F155: =IF($C155=1,'Sjekkliste for utfylling'!B273,"") ->  | H155: =IF(C155=1,'Sjekkliste for utfylling'!L273," ") -> 
A156: ='Sjekkliste for utfylling'!A274 -> 155 | B156: =IF('Sjekkliste for utfylling'!I274<>"",1,0) -> 0 | C156: 0 | E156: =IF($C156=1,'Sjekkliste for utfylling'!A274,"") ->  | F156: =IF($C156=1,'Sjekkliste for utfylling'!B274,"") ->  | H156: =IF(C156=1,'Sjekkliste for utfylling'!L274," ") -> 
A157: ='Sjekkliste for utfylling'!A275 -> 156 | B157: =IF('Sjekkliste for utfylling'!I275<>"",1,0) -> 0 | C157: 0 | E157: =IF($C157=1,'Sjekkliste for utfylling'!A275,"") ->  | F157: =IF($C157=1,'Sjekkliste for utfylling'!B275,"") ->  | H157: =IF(C157=1,'Sjekkliste for utfylling'!L275," ") -> 
A158: ='Sjekkliste for utfylling'!A276 -> 157 | B158: =IF('Sjekkliste for utfylling'!I276<>"",1,0) -> 0 | C158: 0 | E158: =IF($C158=1,'Sjekkliste for utfylling'!A276,"") ->  | F158: =IF($C158=1,'Sjekkliste for utfylling'!B276,"") ->  | H158: =IF(C158=1,'Sjekkliste for utfylling'!L276," ") -> 
A159: ='Sjekkliste for utfylling'!A277 -> 158 | B159: =IF('Sjekkliste for utfylling'!I277<>"",1,0) -> 0 | C159: 0 | E159: =IF($C159=1,'Sjekkliste for utfylling'!A277,"") ->  | F159: =IF($C159=1,'Sjekkliste for utfylling'!B277,"") ->  | H159: =IF(C159=1,'Sjekkliste for utfylling'!L277," ") -> 
A160: ='Sjekkliste for utfylling'!A278 -> 159 | B160: =IF('Sjekkliste for utfylling'!I278<>"",1,0) -> 0 | C160: 0 | E160: =IF($C160=1,'Sjekkliste for utfylling'!A278,"") ->  | F160: =IF($C160=1,'Sjekkliste for utfylling'!B278,"") ->  | H160: =IF(C160=1,'Sjekkliste for utfylling'!L278," ") -> 
A161: ='Sjekkliste for utfylling'!A279 -> 160 | B161: =IF('Sjekkliste for utfylling'!I279<>"",1,0) -> 0 | C161: 0 | E161: =IF($C161=1,'Sjekkliste for utfylling'!A279,"") ->  | F161: =IF($C161=1,'Sjekkliste for utfylling'!B279,"") ->  | H161: =IF(C161=1,'Sjekkliste for utfylling'!L279," ") -> 
A162: ='Sjekkliste for utfylling'!A280 -> 161 | B162: =IF('Sjekkliste for utfylling'!I280<>"",1,0) -> 0 | C162: 0 | E162: =IF($C162=1,'Sjekkliste for utfylling'!A280,"") ->  | F162: =IF($C162=1,'Sjekkliste for utfylling'!B280,"") ->  | H162: =IF(C162=1,'Sjekkliste for utfylling'!L280," ") -> 
A163: ='Sjekkliste for utfylling'!A281 -> 162 | B163: =IF('Sjekkliste for utfylling'!I281<>"",1,0) -> 0 | C163: 0 | E163: =IF($C163=1,'Sjekkliste for utfylling'!A281,"") ->  | F163: =IF($C163=1,'Sjekkliste for utfylling'!B281,"") ->  | H163: =IF(C163=1,'Sjekkliste for utfylling'!L281," ") -> 
A164: ='Sjekkliste for utfylling'!A282 -> 163 | B164: =IF('Sjekkliste for utfylling'!I282<>"",1,0) -> 0 | C164: 0 | E164: =IF($C164=1,'Sjekkliste for utfylling'!A282,"") ->  | F164: =IF($C164=1,'Sjekkliste for utfylling'!B282,"") ->  | H164: =IF(C164=1,'Sjekkliste for utfylling'!L282," ") -> 
A165: ='Sjekkliste for utfylling'!A283 -> 164 | B165: =IF('Sjekkliste for utfylling'!I283<>"",1,0) -> 0 | C165: 0 | E165: =IF($C165=1,'Sjekkliste for utfylling'!A283,"") ->  | F165: =IF($C165=1,'Sjekkliste for utfylling'!B283,"") ->  | H165: =IF(C165=1,'Sjekkliste for utfylling'!L283," ") -> 
A166: ='Sjekkliste for utfylling'!A284 -> 165 | B166: =IF('Sjekkliste for utfylling'!I284<>"",1,0) -> 0 | C166: 0 | E166: =IF($C166=1,'Sjekkliste for utfylling'!A284,"") ->  | F166: =IF($C166=1,'Sjekkliste for utfylling'!B284,"") ->  | H166: =IF(C166=1,'Sjekkliste for utfylling'!L284," ") -> 
A167: ='Sjekkliste for utfylling'!A286 -> 166 | B167: =IF('Sjekkliste for utfylling'!I286<>"",1,0) -> 0 | C167: 0 | E167: =IF($C167=1,'Sjekkliste for utfylling'!A286,"") ->  | F167: =IF($C167=1,'Sjekkliste for utfylling'!B286,"") ->  | H167: =IF(C167=1,'Sjekkliste for utfylling'!L286," ") -> 
A168: ='Sjekkliste for utfylling'!A287 -> 167 | B168: =IF('Sjekkliste for utfylling'!I287<>"",1,0) -> 0 | C168: 0 | E168: =IF($C168=1,'Sjekkliste for utfylling'!A287,"") ->  | F168: =IF($C168=1,'Sjekkliste for utfylling'!B287,"") ->  | H168: =IF(C168=1,'Sjekkliste for utfylling'!L287," ") -> 
A169: ='Sjekkliste for utfylling'!A288 -> 168 | B169: =IF('Sjekkliste for utfylling'!I288<>"",1,0) -> 0 | C169: 0 | E169: =IF($C169=1,'Sjekkliste for utfylling'!A288,"") ->  | F169: =IF($C169=1,'Sjekkliste for utfylling'!B288,"") ->  | H169: =IF(C169=1,'Sjekkliste for utfylling'!L288," ") -> 
A170: ='Sjekkliste for utfylling'!A290 -> 169 | B170: =IF('Sjekkliste for utfylling'!I290<>"",1,0) -> 0 | C170: 0 | E170: =IF($C170=1,'Sjekkliste for utfylling'!A290,"") ->  | F170: =IF($C170=1,'Sjekkliste for utfylling'!B290,"") ->  | H170: =IF(C170=1,'Sjekkliste for utfylling'!L290," ") -> 
A171: ='Sjekkliste for utfylling'!A291 -> 170 | B171: =IF('Sjekkliste for utfylling'!I291<>"",1,0) -> 0 | C171: 0 | E171: =IF($C171=1,'Sjekkliste for utfylling'!A291,"") ->  | F171: =IF($C171=1,'Sjekkliste for utfylling'!B291,"") ->  | H171: =IF(C171=1,'Sjekkliste for utfylling'!L291," ") -> 
A172: ='Sjekkliste for utfylling'!A295 -> 171 | B172: =IF('Sjekkliste for utfylling'!I295<>"",1,0) -> 0 | C172: 0 | E172: =IF($C172=1,'Sjekkliste for utfylling'!A295,"") ->  | F172: =IF($C172=1,'Sjekkliste for utfylling'!B295,"") ->  | H172: =IF(C172=1,'Sjekkliste for utfylling'!L295," ") -> 
A173: ='Sjekkliste for utfylling'!A296 -> 172 | B173: =IF('Sjekkliste for utfylling'!I296<>"",1,0) -> 0 | C173: 0 | E173: =IF($C173=1,'Sjekkliste for utfylling'!A296,"") ->  | F173: =IF($C173=1,'Sjekkliste for utfylling'!B296,"") ->  | H173: =IF(C173=1,'Sjekkliste for utfylling'!L296," ") -> 
A174: ='Sjekkliste for utfylling'!A297 -> 173 | B174: =IF('Sjekkliste for utfylling'!I297<>"",1,0) -> 0 | C174: 0 | E174: =IF($C174=1,'Sjekkliste for utfylling'!A297,"") ->  | F174: =IF($C174=1,'Sjekkliste for utfylling'!B297,"") ->  | H174: =IF(C174=1,'Sjekkliste for utfylling'!L297," ") -> 
A175: ='Sjekkliste for utfylling'!A301 -> 174 | B175: =IF('Sjekkliste for utfylling'!I301<>"",1,0) -> 0 | C175: 0 | E175: =IF($C175=1,'Sjekkliste for utfylling'!A301,"") ->  | F175: =IF($C175=1,'Sjekkliste for utfylling'!B301,"") ->  | H175: =IF(C175=1,'Sjekkliste for utfylling'!L301," ") -> 
A176: ='Sjekkliste for utfylling'!A303 -> 175 | B176: =IF('Sjekkliste for utfylling'!I303<>"",1,0) -> 0 | C176: 0 | E176: =IF($C176=1,'Sjekkliste for utfylling'!A303,"") ->  | F176: =IF($C176=1,'Sjekkliste for utfylling'!B303,"") ->  | H176: =IF(C176=1,'Sjekkliste for utfylling'!L303," ") -> 
A177: ='Sjekkliste for utfylling'!A304 -> 176 | B177: =IF('Sjekkliste for utfylling'!I304<>"",1,0) -> 0 | C177: 0 | E177: =IF($C177=1,'Sjekkliste for utfylling'!A304,"") ->  | F177: =IF($C177=1,'Sjekkliste for utfylling'!B304,"") ->  | H177: =IF(C177=1,'Sjekkliste for utfylling'!L304," ") -> 
A178: ='Sjekkliste for utfylling'!A307 -> 177 | B178: =IF('Sjekkliste for utfylling'!I307<>"",1,0) -> 0 | C178: 0 | E178: =IF($C178=1,'Sjekkliste for utfylling'!A307,"") ->  | F178: =IF($C178=1,'Sjekkliste for utfylling'!B307,"") ->  | H178: =IF(C178=1,'Sjekkliste for utfylling'!L307," ") -> 
A179: ='Sjekkliste for utfylling'!A308 -> 178 | B179: =IF('Sjekkliste for utfylling'!I308<>"",1,0) -> 0 | C179: 0 | E179: =IF($C179=1,'Sjekkliste for utfylling'!A308,"") ->  | F179: =IF($C179=1,'Sjekkliste for utfylling'!B308,"") ->  | H179: =IF(C179=1,'Sjekkliste for utfylling'!L308," ") -> 
A180: ='Sjekkliste for utfylling'!A309 -> 179 | B180: =IF('Sjekkliste for utfylling'!I309<>"",1,0) -> 0 | C180: 0 | E180: =IF($C180=1,'Sjekkliste for utfylling'!A309,"") ->  | F180: =IF($C180=1,'Sjekkliste for utfylling'!B309,"") ->  | H180: =IF(C180=1,'Sjekkliste for utfylling'!L309," ") -> 
A181: ='Sjekkliste for utfylling'!A310 -> 180 | B181: =IF('Sjekkliste for utfylling'!I310<>"",1,0) -> 0 | C181: 0 | E181: =IF($C181=1,'Sjekkliste for utfylling'!A310,"") ->  | F181: =IF($C181=1,'Sjekkliste for utfylling'!B310,"") ->  | H181: =IF(C181=1,'Sjekkliste for utfylling'!L310," ") -> 
A182: ='Sjekkliste for utfylling'!A312 -> 181 | B182: =IF('Sjekkliste for utfylling'!I312<>"",1,0) -> 0 | C182: 0 | E182: =IF($C182=1,'Sjekkliste for utfylling'!A312,"") ->  | F182: =IF($C182=1,'Sjekkliste for utfylling'!B312,"") ->  | H182: =IF(C182=1,'Sjekkliste for utfylling'!L312," ") -> 
A183: ='Sjekkliste for utfylling'!A313 -> 182 | B183: =IF('Sjekkliste for utfylling'!I313<>"",1,0) -> 0 | C183: 0 | E183: =IF($C183=1,'Sjekkliste for utfylling'!A313,"") ->  | F183: =IF($C183=1,'Sjekkliste for utfylling'!B313,"") ->  | H183: =IF(C183=1,'Sjekkliste for utfylling'!L313," ") -> 
A184: ='Sjekkliste for utfylling'!A315 -> 183 | B184: =IF('Sjekkliste for utfylling'!I315<>"",1,0) -> 0 | C184: 0 | E184: =IF($C184=1,'Sjekkliste for utfylling'!A315,"") ->  | F184: =IF($C184=1,'Sjekkliste for utfylling'!B315,"") ->  | H184: =IF(C184=1,'Sjekkliste for utfylling'!L315," ") -> 
A185: ='Sjekkliste for utfylling'!A316 -> 184 | B185: =IF('Sjekkliste for utfylling'!I316<>"",1,0) -> 0 | C185: 0 | E185: =IF($C185=1,'Sjekkliste for utfylling'!A316,"") ->  | F185: =IF($C185=1,'Sjekkliste for utfylling'!B316,"") ->  | H185: =IF(C185=1,'Sjekkliste for utfylling'!L316," ") -> 
A186: ='Sjekkliste for utfylling'!A317 -> 185 | B186: =IF('Sjekkliste for utfylling'!I317<>"",1,0) -> 0 | C186: 0 | E186: =IF($C186=1,'Sjekkliste for utfylling'!A317,"") ->  | F186: =IF($C186=1,'Sjekkliste for utfylling'!B317,"") ->  | H186: =IF(C186=1,'Sjekkliste for utfylling'!L317," ") -> 
A187: ='Sjekkliste for utfylling'!A318 -> 186 | B187: =IF('Sjekkliste for utfylling'!I318<>"",1,0) -> 0 | C187: 0 | E187: =IF($C187=1,'Sjekkliste for utfylling'!A318,"") ->  | F187: =IF($C187=1,'Sjekkliste for utfylling'!B318,"") ->  | H187: =IF(C187=1,'Sjekkliste for utfylling'!L318," ") -> 
A188: ='Sjekkliste for utfylling'!A319 -> 187 | B188: =IF('Sjekkliste for utfylling'!I319<>"",1,0) -> 0 | C188: 0 | E188: =IF($C188=1,'Sjekkliste for utfylling'!A319,"") ->  | F188: =IF($C188=1,'Sjekkliste for utfylling'!B319,"") ->  | H188: =IF(C188=1,'Sjekkliste for utfylling'!L319," ") -> 
A189: ='Sjekkliste for utfylling'!A321 -> 188 | B189: =IF('Sjekkliste for utfylling'!I321<>"",1,0) -> 0 | C189: 0 | E189: =IF($C189=1,'Sjekkliste for utfylling'!A321,"") ->  | F189: =IF($C189=1,'Sjekkliste for utfylling'!B321,"") ->  | H189: =IF(C189=1,'Sjekkliste for utfylling'!L321," ") -> 
A190: ='Sjekkliste for utfylling'!A322 -> 189 | B190: =IF('Sjekkliste for utfylling'!I322<>"",1,0) -> 0 | C190: 0 | E190: =IF($C190=1,'Sjekkliste for utfylling'!A322,"") ->  | F190: =IF($C190=1,'Sjekkliste for utfylling'!B322,"") ->  | H190: =IF(C190=1,'Sjekkliste for utfylling'!L322," ") -> 
A191: ='Sjekkliste for utfylling'!A324 -> 190 | B191: =IF('Sjekkliste for utfylling'!I324<>"",1,0) -> 0 | C191: 0 | E191: =IF($C191=1,'Sjekkliste for utfylling'!A324,"") ->  | F191: =IF($C191=1,'Sjekkliste for utfylling'!B324,"") ->  | H191: =IF(C191=1,'Sjekkliste for utfylling'!L324," ") -> 
A192: ='Sjekkliste for utfylling'!A325 -> 191 | B192: =IF('Sjekkliste for utfylling'!I325<>"",1,0) -> 0 | C192: 0 | E192: =IF($C192=1,'Sjekkliste for utfylling'!A325,"") ->  | F192: =IF($C192=1,'Sjekkliste for utfylling'!B325,"") ->  | H192: =IF(C192=1,'Sjekkliste for utfylling'!L325," ") -> 
A193: ='Sjekkliste for utfylling'!A326 -> 192 | B193: =IF('Sjekkliste for utfylling'!I326<>"",1,0) -> 0 | C193: 0 | E193: =IF($C193=1,'Sjekkliste for utfylling'!A326,"") ->  | F193: =IF($C193=1,'Sjekkliste for utfylling'!B326,"") ->  | H193: =IF(C193=1,'Sjekkliste for utfylling'!L326," ") -> 
A194: ='Sjekkliste for utfylling'!A327 -> 193 | B194: =IF('Sjekkliste for utfylling'!I327<>"",1,0) -> 0 | C194: =SUM(B194:B194) -> 0 | E194: =IF($C194=1,'Sjekkliste for utfylling'!A327,"") ->  | F194: =IF($C194=1,'Sjekkliste for utfylling'!B327,"") ->  | H194: =IF(C194=1,'Sjekkliste for utfylling'!L327," ") -> 
A195: ='Sjekkliste for utfylling'!A328 -> 194 | B195: =IF('Sjekkliste for utfylling'!I328<>"",1,0) -> 0 | C195: 0 | E195: =IF($C195=1,'Sjekkliste for utfylling'!A328,"") ->  | F195: =IF($C195=1,'Sjekkliste for utfylling'!B328,"") ->  | H195: =IF(C195=1,'Sjekkliste for utfylling'!L328," ") -> 
A196: ='Sjekkliste for utfylling'!A329 -> 195 | B196: =IF('Sjekkliste for utfylling'!I329<>"",1,0) -> 0 | C196: 0 | E196: =IF($C196=1,'Sjekkliste for utfylling'!A329,"") ->  | F196: =IF($C196=1,'Sjekkliste for utfylling'!B329,"") ->  | H196: =IF(C196=1,'Sjekkliste for utfylling'!L329," ") -> 
A197: ='Sjekkliste for utfylling'!A330 -> 196 | B197: =IF('Sjekkliste for utfylling'!I330<>"",1,0) -> 0 | C197: 0 | E197: =IF($C197=1,'Sjekkliste for utfylling'!A330,"") ->  | F197: =IF($C197=1,'Sjekkliste for utfylling'!B330,"") ->  | H197: =IF(C197=1,'Sjekkliste for utfylling'!L330," ") -> 
A198: ='Sjekkliste for utfylling'!A331 -> 197 | B198: =IF('Sjekkliste for utfylling'!I331<>"",1,0) -> 0 | C198: 0 | E198: =IF($C198=1,'Sjekkliste for utfylling'!A331,"") ->  | F198: =IF($C198=1,'Sjekkliste for utfylling'!B331,"") ->  | H198: =IF(C198=1,'Sjekkliste for utfylling'!L331," ") -> 
A199: ='Sjekkliste for utfylling'!A332 -> 198 | B199: =IF('Sjekkliste for utfylling'!I332<>"",1,0) -> 0 | C199: 0 | E199: =IF($C199=1,'Sjekkliste for utfylling'!A332,"") ->  | F199: =IF($C199=1,'Sjekkliste for utfylling'!B332,"") ->  | H199: =IF(C199=1,'Sjekkliste for utfylling'!L332," ") -> 
A200: ='Sjekkliste for utfylling'!A333 -> 199 | B200: =IF('Sjekkliste for utfylling'!I333<>"",1,0) -> 0 | C200: 0 | E200: =IF($C200=1,'Sjekkliste for utfylling'!A333,"") ->  | F200: =IF($C200=1,'Sjekkliste for utfylling'!B333,"") ->  | H200: =IF(C200=1,'Sjekkliste for utfylling'!L333," ") -> 
... 253 more rows

Sheet Nei-svar (hidden)
C1: =COUNTIF(B2:B506,"=1")-D1 -> 0 | D1: =SUM(D2:D506) -> 0 | E1: Svart Nei | F1: =+'Sjekkliste for utfylling'!B2 -> 0 | G1: =+'Sjekkliste for utfylling'!B3 -> 2024 | H1: Kommentarer
A2: ='Sjekkliste for utfylling'!A28 -> 1 | B2: =IF('Sjekkliste for utfylling'!J28<>"",1,0) -> 0 | C2: =SUM(B2:B2) -> 0 | E2: =IF($B2=1,'Sjekkliste for utfylling'!A28,"") ->  | F2: =IF($B2=1,'Sjekkliste for utfylling'!B28,"") ->  | H2: =IF(C2=1,'Sjekkliste for utfylling'!L28," ") -> 
A3: ='Sjekkliste for utfylling'!A29 -> 2 | B3: =IF('Sjekkliste for utfylling'!J29<>"",1,0) -> 0 | C3: 0 | E3: =IF($B3=1,'Sjekkliste for utfylling'!A29,"") ->  | F3: =IF($B3=1,'Sjekkliste for utfylling'!B29,"") ->  | H3: =IF(C3=1,'Sjekkliste for utfylling'!L29," ") -> 
A4: ='Sjekkliste for utfylling'!A30 -> 3 | B4: =IF('Sjekkliste for utfylling'!J30<>"",1,0) -> 0 | C4: 0 | E4: =IF($B4=1,'Sjekkliste for utfylling'!A30,"") ->  | F4: =IF($B4=1,'Sjekkliste for utfylling'!B30,"") ->  | H4: =IF(C4=1,'Sjekkliste for utfylling'!L30," ") -> 
A5: ='Sjekkliste for utfylling'!A31 -> 4 | B5: =IF('Sjekkliste for utfylling'!J31<>"",1,0) -> 0 | C5: 0 | E5: =IF($B5=1,'Sjekkliste for utfylling'!A31,"") ->  | F5: =IF($B5=1,'Sjekkliste for utfylling'!B31,"") ->  | H5: =IF(C5=1,'Sjekkliste for utfylling'!L31," ") -> 
A6: ='Sjekkliste for utfylling'!A36 -> 5 | B6: =IF('Sjekkliste for utfylling'!J36<>"",1,0) -> 0 | C6: 0 | E6: =IF($B6=1,'Sjekkliste for utfylling'!A36,"") ->  | F6: =IF($B6=1,'Sjekkliste for utfylling'!B36,"") ->  | H6: =IF(C6=1,'Sjekkliste for utfylling'!L36," ") -> 
A7: ='Sjekkliste for utfylling'!A37 -> 6 | B7: =IF('Sjekkliste for utfylling'!J37<>"",1,0) -> 0 | C7: 0 | E7: =IF($B7=1,'Sjekkliste for utfylling'!A37,"") ->  | F7: =IF($B7=1,'Sjekkliste for utfylling'!B37,"") ->  | H7: =IF(C7=1,'Sjekkliste for utfylling'!L37," ") -> 
A8: ='Sjekkliste for utfylling'!A38 -> 7 | B8: =IF('Sjekkliste for utfylling'!J38<>"",1,0) -> 0 | C8: 0 | E8: =IF($B8=1,'Sjekkliste for utfylling'!A38,"") ->  | F8: =IF($B8=1,'Sjekkliste for utfylling'!B38,"") ->  | H8: =IF(C8=1,'Sjekkliste for utfylling'!L38," ") -> 
A9: ='Sjekkliste for utfylling'!A39 -> 8 | B9: =IF('Sjekkliste for utfylling'!J39<>"",1,0) -> 0 | C9: 0 | E9: =IF($B9=1,'Sjekkliste for utfylling'!A39,"") ->  | F9: =IF($B9=1,'Sjekkliste for utfylling'!B39,"") ->  | H9: =IF(C9=1,'Sjekkliste for utfylling'!L39," ") -> 
A10: ='Sjekkliste for utfylling'!A40 -> 9 | B10: =IF('Sjekkliste for utfylling'!J40<>"",1,0) -> 0 | C10: 0 | E10: =IF($B10=1,'Sjekkliste for utfylling'!A40,"") ->  | F10: =IF($B10=1,'Sjekkliste for utfylling'!B40,"") ->  | H10: =IF(C10=1,'Sjekkliste for utfylling'!L40," ") -> 
A11: ='Sjekkliste for utfylling'!A41 -> 10 | B11: =IF('Sjekkliste for utfylling'!J41<>"",1,0) -> 0 | C11: 0 | E11: =IF($B11=1,'Sjekkliste for utfylling'!A41,"") ->  | F11: =IF($B11=1,'Sjekkliste for utfylling'!B41,"") ->  | H11: =IF(C11=1,'Sjekkliste for utfylling'!L41," ") -> 
A12: ='Sjekkliste for utfylling'!A42 -> 11 | B12: =IF('Sjekkliste for utfylling'!J42<>"",1,0) -> 0 | C12: 0 | E12: =IF($B12=1,'Sjekkliste for utfylling'!A42,"") ->  | F12: =IF($B12=1,'Sjekkliste for utfylling'!B42,"") ->  | H12: =IF(C12=1,'Sjekkliste for utfylling'!L42," ") -> 
A13: ='Sjekkliste for utfylling'!A43 -> 12 | B13: =IF('Sjekkliste for utfylling'!J43<>"",1,0) -> 0 | C13: 0 | E13: =IF($B13=1,'Sjekkliste for utfylling'!A43,"") ->  | F13: =IF($B13=1,'Sjekkliste for utfylling'!B43,"") ->  | H13: =IF(C13=1,'Sjekkliste for utfylling'!L43," ") -> 
A14: ='Sjekkliste for utfylling'!A45 -> 13 | B14: =IF('Sjekkliste for utfylling'!J45<>"",1,0) -> 0 | C14: 0 | E14: =IF($B14=1,'Sjekkliste for utfylling'!A45,"") ->  | F14: =IF($B14=1,'Sjekkliste for utfylling'!B45,"") ->  | H14: =IF(C14=1,'Sjekkliste for utfylling'!L45," ") -> 
A15: ='Sjekkliste for utfylling'!A46 -> 14 | B15: =IF('Sjekkliste for utfylling'!J46<>"",1,0) -> 0 | C15: 0 | E15: =IF($B15=1,'Sjekkliste for utfylling'!A46,"") ->  | F15: =IF($B15=1,'Sjekkliste for utfylling'!B46,"") ->  | H15: =IF(C15=1,'Sjekkliste for utfylling'!L46," ") -> 
A16: ='Sjekkliste for utfylling'!A47 -> 15 | B16: =IF('Sjekkliste for utfylling'!J47<>"",1,0) -> 0 | C16: 0 | E16: =IF($B16=1,'Sjekkliste for utfylling'!A47,"") ->  | F16: =IF($B16=1,'Sjekkliste for utfylling'!B47,"") ->  | H16: =IF(C16=1,'Sjekkliste for utfylling'!L47," ") -> 
A17: ='Sjekkliste for utfylling'!A48 -> 16 | B17: =IF('Sjekkliste for utfylling'!J48<>"",1,0) -> 0 | C17: 0 | E17: =IF($B17=1,'Sjekkliste for utfylling'!A48,"") ->  | F17: =IF($B17=1,'Sjekkliste for utfylling'!B48,"") ->  | H17: =IF(C17=1,'Sjekkliste for utfylling'!L48," ") -> 
A18: ='Sjekkliste for utfylling'!A49 -> 17 | B18: =IF('Sjekkliste for utfylling'!J49<>"",1,0) -> 0 | C18: 0 | E18: =IF($B18=1,'Sjekkliste for utfylling'!A49,"") ->  | F18: =IF($B18=1,'Sjekkliste for utfylling'!B49,"") ->  | H18: =IF(C18=1,'Sjekkliste for utfylling'!L49," ") -> 
A19: ='Sjekkliste for utfylling'!A50 -> 18 | B19: =IF('Sjekkliste for utfylling'!J50<>"",1,0) -> 0 | C19: 0 | E19: =IF($B19=1,'Sjekkliste for utfylling'!A50,"") ->  | F19: =IF($B19=1,'Sjekkliste for utfylling'!B50,"") ->  | H19: =IF(C19=1,'Sjekkliste for utfylling'!L50," ") -> 
A20: ='Sjekkliste for utfylling'!A51 -> 19 | B20: =IF('Sjekkliste for utfylling'!J51<>"",1,0) -> 0 | C20: 0 | E20: =IF($B20=1,'Sjekkliste for utfylling'!A51,"") ->  | F20: =IF($B20=1,'Sjekkliste for utfylling'!B51,"") ->  | H20: =IF(C20=1,'Sjekkliste for utfylling'!L51," ") -> 
A21: ='Sjekkliste for utfylling'!A55 -> 20 | B21: =IF('Sjekkliste for utfylling'!J55<>"",1,0) -> 0 | C21: 0 | E21: =IF($B21=1,'Sjekkliste for utfylling'!A55,"") ->  | F21: =IF($B21=1,'Sjekkliste for utfylling'!B55,"") ->  | H21: =IF(C21=1,'Sjekkliste for utfylling'!L55," ") -> 
A22: ='Sjekkliste for utfylling'!A56 -> 21 | B22: =IF('Sjekkliste for utfylling'!J56<>"",1,0) -> 0 | C22: 0 | E22: =IF($B22=1,'Sjekkliste for utfylling'!A56,"") ->  | F22: =IF($B22=1,'Sjekkliste for utfylling'!B56,"") ->  | H22: =IF(C22=1,'Sjekkliste for utfylling'!L56," ") -> 
A23: ='Sjekkliste for utfylling'!A57 -> 22 | B23: =IF('Sjekkliste for utfylling'!J57<>"",1,0) -> 0 | C23: 0 | E23: =IF($B23=1,'Sjekkliste for utfylling'!A57,"") ->  | F23: =IF($B23=1,'Sjekkliste for utfylling'!B57,"") ->  | H23: =IF(C23=1,'Sjekkliste for utfylling'!L57," ") -> 
A24: ='Sjekkliste for utfylling'!A58 -> 23 | B24: =IF('Sjekkliste for utfylling'!J58<>"",1,0) -> 0 | C24: 0 | E24: =IF($B24=1,'Sjekkliste for utfylling'!A58,"") ->  | F24: =IF($B24=1,'Sjekkliste for utfylling'!B58,"") ->  | H24: =IF(C24=1,'Sjekkliste for utfylling'!L58," ") -> 
A25: ='Sjekkliste for utfylling'!A61 -> 24 | B25: =IF('Sjekkliste for utfylling'!J61<>"",1,0) -> 0 | C25: 0 | E25: =IF($B25=1,'Sjekkliste for utfylling'!A61,"") ->  | F25: =IF($B25=1,'Sjekkliste for utfylling'!B61,"") ->  | H25: =IF(C25=1,'Sjekkliste for utfylling'!L61," ") -> 
A26: ='Sjekkliste for utfylling'!A62 -> 25 | B26: =IF('Sjekkliste for utfylling'!J62<>"",1,0) -> 0 | C26: 0 | E26: =IF($B26=1,'Sjekkliste for utfylling'!A62,"") ->  | F26: =IF($B26=1,'Sjekkliste for utfylling'!B62,"") ->  | H26: =IF(C26=1,'Sjekkliste for utfylling'!L62," ") -> 
A27: ='Sjekkliste for utfylling'!A63 -> 26 | B27: =IF('Sjekkliste for utfylling'!J63<>"",1,0) -> 0 | C27: 0 | E27: =IF($B27=1,'Sjekkliste for utfylling'!A63,"") ->  | F27: =IF($B27=1,'Sjekkliste for utfylling'!B63,"") ->  | H27: =IF(C27=1,'Sjekkliste for utfylling'!L63," ") -> 
A28: ='Sjekkliste for utfylling'!A66 -> 27 | B28: =IF('Sjekkliste for utfylling'!J66<>"",1,0) -> 0 | C28: 0 | E28: =IF($B28=1,'Sjekkliste for utfylling'!A66,"") ->  | F28: =IF($B28=1,'Sjekkliste for utfylling'!B66,"") ->  | H28: =IF(C28=1,'Sjekkliste for utfylling'!L66," ") -> 
A29: ='Sjekkliste for utfylling'!A67 -> 28 | B29: =IF('Sjekkliste for utfylling'!J67<>"",1,0) -> 0 | C29: 0 | E29: =IF($B29=1,'Sjekkliste for utfylling'!A67,"") ->  | F29: =IF($B29=1,'Sjekkliste for utfylling'!B67,"") ->  | H29: =IF(C29=1,'Sjekkliste for utfylling'!L67," ") -> 
A30: ='Sjekkliste for utfylling'!A69 -> 29 | B30: =IF('Sjekkliste for utfylling'!J69<>"",1,0) -> 0 | C30: 0 | E30: =IF($B30=1,'Sjekkliste for utfylling'!A69,"") ->  | F30: =IF($B30=1,'Sjekkliste for utfylling'!B69,"") ->  | H30: =IF(C30=1,'Sjekkliste for utfylling'!L69," ") -> 
A31: ='Sjekkliste for utfylling'!A70 -> 30 | B31: =IF('Sjekkliste for utfylling'!J70<>"",1,0) -> 0 | C31: 0 | E31: =IF($B31=1,'Sjekkliste for utfylling'!A70,"") ->  | F31: =IF($B31=1,'Sjekkliste for utfylling'!B70,"") ->  | H31: =IF(C31=1,'Sjekkliste for utfylling'!L70," ") -> 
A32: ='Sjekkliste for utfylling'!A76 -> 31 | B32: =IF('Sjekkliste for utfylling'!J76<>"",1,0) -> 0 | C32: 0 | E32: =IF($B32=1,'Sjekkliste for utfylling'!A76,"") ->  | F32: =IF($B32=1,'Sjekkliste for utfylling'!B76,"") ->  | H32: =IF(C32=1,'Sjekkliste for utfylling'!L76," ") -> 
A33: ='Sjekkliste for utfylling'!A77 -> 32 | B33: =IF('Sjekkliste for utfylling'!J77<>"",1,0) -> 0 | C33: 0 | E33: =IF($B33=1,'Sjekkliste for utfylling'!A77,"") ->  | F33: =IF($B33=1,'Sjekkliste for utfylling'!B77,"") ->  | H33: =IF(C33=1,'Sjekkliste for utfylling'!L77," ") -> 
A34: ='Sjekkliste for utfylling'!A81 -> 33 | B34: =IF('Sjekkliste for utfylling'!J81<>"",1,0) -> 0 | C34: 0 | E34: =IF($B34=1,'Sjekkliste for utfylling'!A81,"") ->  | F34: =IF($B34=1,'Sjekkliste for utfylling'!B81,"") ->  | H34: =IF(C34=1,'Sjekkliste for utfylling'!L81," ") -> 
A35: ='Sjekkliste for utfylling'!A82 -> 34 | B35: =IF('Sjekkliste for utfylling'!J82<>"",1,0) -> 0 | C35: 0 | E35: =IF($B35=1,'Sjekkliste for utfylling'!A82,"") ->  | F35: =IF($B35=1,'Sjekkliste for utfylling'!B82,"") ->  | H35: =IF(C35=1,'Sjekkliste for utfylling'!L82," ") -> 
A36: ='Sjekkliste for utfylling'!A83 -> 35 | B36: =IF('Sjekkliste for utfylling'!J83<>"",1,0) -> 0 | C36: 0 | E36: =IF($B36=1,'Sjekkliste for utfylling'!A83,"") ->  | F36: =IF($B36=1,'Sjekkliste for utfylling'!B83,"") ->  | H36: =IF(C36=1,'Sjekkliste for utfylling'!L83," ") -> 
A37: ='Sjekkliste for utfylling'!A84 -> 36 | B37: =IF('Sjekkliste for utfylling'!J84<>"",1,0) -> 0 | C37: 0 | E37: =IF($B37=1,'Sjekkliste for utfylling'!A84,"") ->  | F37: =IF($B37=1,'Sjekkliste for utfylling'!B84,"") ->  | H37: =IF(C37=1,'Sjekkliste for utfylling'!L84," ") -> 
A38: ='Sjekkliste for utfylling'!A85 -> 37 | B38: =IF('Sjekkliste for utfylling'!J85<>"",1,0) -> 0 | C38: 0 | E38: =IF($B38=1,'Sjekkliste for utfylling'!A85,"") ->  | F38: =IF($B38=1,'Sjekkliste for utfylling'!B85,"") ->  | H38: =IF(C38=1,'Sjekkliste for utfylling'!L85," ") -> 
A39: ='Sjekkliste for utfylling'!A86 -> 38 | B39: =IF('Sjekkliste for utfylling'!J86<>"",1,0) -> 0 | C39: 0 | E39: =IF($B39=1,'Sjekkliste for utfylling'!A86,"") ->  | F39: =IF($B39=1,'Sjekkliste for utfylling'!B86,"") ->  | H39: =IF(C39=1,'Sjekkliste for utfylling'!L86," ") -> 
A40: ='Sjekkliste for utfylling'!A87 -> 39 | B40: =IF('Sjekkliste for utfylling'!J87<>"",1,0) -> 0 | C40: 0 | E40: =IF($B40=1,'Sjekkliste for utfylling'!A87,"") ->  | F40: =IF($B40=1,'Sjekkliste for utfylling'!B87,"") ->  | H40: =IF(C40=1,'Sjekkliste for utfylling'!L87," ") -> 
A41: ='Sjekkliste for utfylling'!A89 -> 40 | B41: =IF('Sjekkliste for utfylling'!J89<>"",1,0) -> 0 | C41: 0 | E41: =IF($B41=1,'Sjekkliste for utfylling'!A89,"") ->  | F41: =IF($B41=1,'Sjekkliste for utfylling'!B89,"") ->  | H41: =IF(C41=1,'Sjekkliste for utfylling'!L89," ") -> 
A42: ='Sjekkliste for utfylling'!A90 -> 41 | B42: =IF('Sjekkliste for utfylling'!J90<>"",1,0) -> 0 | C42: 0 | E42: =IF($B42=1,'Sjekkliste for utfylling'!A90,"") ->  | F42: =IF($B42=1,'Sjekkliste for utfylling'!B90,"") ->  | H42: =IF(C42=1,'Sjekkliste for utfylling'!L90," ") -> 
A43: ='Sjekkliste for utfylling'!A92 -> 42 | B43: =IF('Sjekkliste for utfylling'!J92<>"",1,0) -> 0 | C43: 0 | E43: =IF($B43=1,'Sjekkliste for utfylling'!A92,"") ->  | F43: =IF($B43=1,'Sjekkliste for utfylling'!B92,"") ->  | H43: =IF(C43=1,'Sjekkliste for utfylling'!L92," ") -> 
A44: ='Sjekkliste for utfylling'!A93 -> 43 | B44: =IF('Sjekkliste for utfylling'!J93<>"",1,0) -> 0 | C44: 0 | E44: =IF($B44=1,'Sjekkliste for utfylling'!A93,"") ->  | F44: =IF($B44=1,'Sjekkliste for utfylling'!B93,"") ->  | H44: =IF(C44=1,'Sjekkliste for utfylling'!L93," ") -> 
A45: ='Sjekkliste for utfylling'!A95 -> 44 | B45: =IF('Sjekkliste for utfylling'!J95<>"",1,0) -> 0 | C45: 0 | E45: =IF($B45=1,'Sjekkliste for utfylling'!A95,"") ->  | F45: =IF($B45=1,'Sjekkliste for utfylling'!B95,"") ->  | H45: =IF(C45=1,'Sjekkliste for utfylling'!L95," ") -> 
A46: ='Sjekkliste for utfylling'!A96 -> 45 | B46: =IF('Sjekkliste for utfylling'!J96<>"",1,0) -> 0 | C46: 0 | E46: =IF($B46=1,'Sjekkliste for utfylling'!A96,"") ->  | F46: =IF($B46=1,'Sjekkliste for utfylling'!B96,"") ->  | H46: =IF(C46=1,'Sjekkliste for utfylling'!L96," ") -> 
A47: ='Sjekkliste for utfylling'!A98 -> 46 | B47: =IF('Sjekkliste for utfylling'!J98<>"",1,0) -> 0 | C47: 0 | E47: =IF($B47=1,'Sjekkliste for utfylling'!A98,"") ->  | F47: =IF($B47=1,'Sjekkliste for utfylling'!B98,"") ->  | H47: =IF(C47=1,'Sjekkliste for utfylling'!L98," ") -> 
A48: ='Sjekkliste for utfylling'!A100 -> 47 | B48: =IF('Sjekkliste for utfylling'!J100<>"",1,0) -> 0 | C48: 0 | E48: =IF($B48=1,'Sjekkliste for utfylling'!A100,"") ->  | F48: =IF($B48=1,'Sjekkliste for utfylling'!B100,"") ->  | H48: =IF(C48=1,'Sjekkliste for utfylling'!L100," ") -> 
A49: ='Sjekkliste for utfylling'!A101 -> 48 | B49: =IF('Sjekkliste for utfylling'!J101<>"",1,0) -> 0 | C49: 0 | E49: =IF($B49=1,'Sjekkliste for utfylling'!A101,"") ->  | F49: =IF($B49=1,'Sjekkliste for utfylling'!B101,"") ->  | H49: =IF(C49=1,'Sjekkliste for utfylling'!L101," ") -> 
A50: ='Sjekkliste for utfylling'!A102 -> 49 | B50: =IF('Sjekkliste for utfylling'!J102<>"",1,0) -> 0 | C50: 0 | E50: =IF($B50=1,'Sjekkliste for utfylling'!A102,"") ->  | F50: =IF($B50=1,'Sjekkliste for utfylling'!B102,"") ->  | H50: =IF(C50=1,'Sjekkliste for utfylling'!L102," ") -> 
A51: ='Sjekkliste for utfylling'!A103 -> 50 | B51: =IF('Sjekkliste for utfylling'!J103<>"",1,0) -> 0 | C51: 0 | E51: =IF($B51=1,'Sjekkliste for utfylling'!A103,"") ->  | F51: =IF($B51=1,'Sjekkliste for utfylling'!B103,"") ->  | H51: =IF(C51=1,'Sjekkliste for utfylling'!L103," ") -> 
A52: ='Sjekkliste for utfylling'!A104 -> 51 | B52: =IF('Sjekkliste for utfylling'!J104<>"",1,0) -> 0 | C52: 0 | E52: =IF($B52=1,'Sjekkliste for utfylling'!A104,"") ->  | F52: =IF($B52=1,'Sjekkliste for utfylling'!B104,"") ->  | H52: =IF(C52=1,'Sjekkliste for utfylling'!L104," ") -> 
A53: ='Sjekkliste for utfylling'!A105 -> 52 | B53: =IF('Sjekkliste for utfylling'!J105<>"",1,0) -> 0 | C53: 0 | E53: =IF($B53=1,'Sjekkliste for utfylling'!A105,"") ->  | F53: =IF($B53=1,'Sjekkliste for utfylling'!B105,"") ->  | H53: =IF(C53=1,'Sjekkliste for utfylling'!L105," ") -> 
A54: ='Sjekkliste for utfylling'!A107 -> 53 | B54: =IF('Sjekkliste for utfylling'!J107<>"",1,0) -> 0 | C54: 0 | E54: =IF($B54=1,'Sjekkliste for utfylling'!A107,"") ->  | F54: =IF($B54=1,'Sjekkliste for utfylling'!B107,"") ->  | H54: =IF(C54=1,'Sjekkliste for utfylling'!L107," ") -> 
A55: ='Sjekkliste for utfylling'!A108 -> 54 | B55: =IF('Sjekkliste for utfylling'!J108<>"",1,0) -> 0 | C55: 0 | E55: =IF($B55=1,'Sjekkliste for utfylling'!A108,"") ->  | F55: =IF($B55=1,'Sjekkliste for utfylling'!B108,"") ->  | H55: =IF(C55=1,'Sjekkliste for utfylling'!L108," ") -> 
A56: ='Sjekkliste for utfylling'!A110 -> 55 | B56: =IF('Sjekkliste for utfylling'!J110<>"",1,0) -> 0 | C56: 0 | E56: =IF($B56=1,'Sjekkliste for utfylling'!A110,"") ->  | F56: =IF($B56=1,'Sjekkliste for utfylling'!B110,"") ->  | H56: =IF(C56=1,'Sjekkliste for utfylling'!L110," ") -> 
A57: ='Sjekkliste for utfylling'!A111 -> 56 | B57: =IF('Sjekkliste for utfylling'!J111<>"",1,0) -> 0 | C57: 0 | E57: =IF($B57=1,'Sjekkliste for utfylling'!A111,"") ->  | F57: =IF($B57=1,'Sjekkliste for utfylling'!B111,"") ->  | H57: =IF(C57=1,'Sjekkliste for utfylling'!L111," ") -> 
A58: ='Sjekkliste for utfylling'!A113 -> 57 | B58: =IF('Sjekkliste for utfylling'!J113<>"",1,0) -> 0 | C58: 0 | E58: =IF($B58=1,'Sjekkliste for utfylling'!A113,"") ->  | F58: =IF($B58=1,'Sjekkliste for utfylling'!B113,"") ->  | H58: =IF(C58=1,'Sjekkliste for utfylling'!L113," ") -> 
A59: ='Sjekkliste for utfylling'!A115 -> 58 | B59: =IF('Sjekkliste for utfylling'!J115<>"",1,0) -> 0 | C59: 0 | E59: =IF($B59=1,'Sjekkliste for utfylling'!A115,"") ->  | F59: =IF($B59=1,'Sjekkliste for utfylling'!B115,"") ->  | H59: =IF(C59=1,'Sjekkliste for utfylling'!L115," ") -> 
A60: ='Sjekkliste for utfylling'!A116 -> 59 | B60: =IF('Sjekkliste for utfylling'!J116<>"",1,0) -> 0 | C60: 0 | E60: =IF($B60=1,'Sjekkliste for utfylling'!A116,"") ->  | F60: =IF($B60=1,'Sjekkliste for utfylling'!B116,"") ->  | H60: =IF(C60=1,'Sjekkliste for utfylling'!L116," ") -> 
A61: ='Sjekkliste for utfylling'!A117 -> 60 | B61: =IF('Sjekkliste for utfylling'!J117<>"",1,0) -> 0 | C61: 0 | E61: =IF($B61=1,'Sjekkliste for utfylling'!A117,"") ->  | F61: =IF($B61=1,'Sjekkliste for utfylling'!B117,"") ->  | H61: =IF(C61=1,'Sjekkliste for utfylling'!L117," ") -> 
A62: ='Sjekkliste for utfylling'!A118 -> 61 | B62: =IF('Sjekkliste for utfylling'!J118<>"",1,0) -> 0 | C62: 0 | E62: =IF($B62=1,'Sjekkliste for utfylling'!A118,"") ->  | F62: =IF($B62=1,'Sjekkliste for utfylling'!B118,"") ->  | H62: =IF(C62=1,'Sjekkliste for utfylling'!L118," ") -> 
A63: ='Sjekkliste for utfylling'!A119 -> 62 | B63: =IF('Sjekkliste for utfylling'!J119<>"",1,0) -> 0 | C63: 0 | E63: =IF($B63=1,'Sjekkliste for utfylling'!A119,"") ->  | F63: =IF($B63=1,'Sjekkliste for utfylling'!B119,"") ->  | H63: =IF(C63=1,'Sjekkliste for utfylling'!L119," ") -> 
A64: ='Sjekkliste for utfylling'!A120 -> 63 | B64: =IF('Sjekkliste for utfylling'!J120<>"",1,0) -> 0 | C64: 0 | E64: =IF($B64=1,'Sjekkliste for utfylling'!A120,"") ->  | F64: =IF($B64=1,'Sjekkliste for utfylling'!B120,"") ->  | H64: =IF(C64=1,'Sjekkliste for utfylling'!L120," ") -> 
A65: ='Sjekkliste for utfylling'!A122 -> 64 | B65: =IF('Sjekkliste for utfylling'!J122<>"",1,0) -> 0 | C65: 0 | E65: =IF($B65=1,'Sjekkliste for utfylling'!A122,"") ->  | F65: =IF($B65=1,'Sjekkliste for utfylling'!B122,"") ->  | H65: =IF(C65=1,'Sjekkliste for utfylling'!L122," ") -> 
A66: ='Sjekkliste for utfylling'!A123 -> 65 | B66: =IF('Sjekkliste for utfylling'!J123<>"",1,0) -> 0 | C66: =SUM(B66:B66) -> 0 | E66: =IF($B66=1,'Sjekkliste for utfylling'!A123,"") ->  | F66: =IF($B66=1,'Sjekkliste for utfylling'!B123,"") ->  | H66: =IF(C66=1,'Sjekkliste for utfylling'!L123," ") -> 
A67: ='Sjekkliste for utfylling'!A125 -> 66 | B67: =IF('Sjekkliste for utfylling'!J125<>"",1,0) -> 0 | C67: 0 | E67: =IF($B67=1,'Sjekkliste for utfylling'!A125,"") ->  | F67: =IF($B67=1,'Sjekkliste for utfylling'!B125,"") ->  | H67: =IF(C67=1,'Sjekkliste for utfylling'!L125," ") -> 
A68: ='Sjekkliste for utfylling'!A126 -> 67 | B68: =IF('Sjekkliste for utfylling'!J126<>"",1,0) -> 0 | C68: 0 | E68: =IF($B68=1,'Sjekkliste for utfylling'!A126,"") ->  | F68: =IF($B68=1,'Sjekkliste for utfylling'!B126,"") ->  | H68: =IF(C68=1,'Sjekkliste for utfylling'!L126," ") -> 
A69: ='Sjekkliste for utfylling'!A127 -> 68 | B69: =IF('Sjekkliste for utfylling'!J127<>"",1,0) -> 0 | C69: 0 | E69: =IF($B69=1,'Sjekkliste for utfylling'!A127,"") ->  | F69: =IF($B69=1,'Sjekkliste for utfylling'!B127,"") ->  | H69: =IF(C69=1,'Sjekkliste for utfylling'!L127," ") -> 
A70: ='Sjekkliste for utfylling'!A128 -> 69 | B70: =IF('Sjekkliste for utfylling'!J128<>"",1,0) -> 0 | C70: 0 | E70: =IF($B70=1,'Sjekkliste for utfylling'!A128,"") ->  | F70: =IF($B70=1,'Sjekkliste for utfylling'!B128,"") ->  | H70: =IF(C70=1,'Sjekkliste for utfylling'!L128," ") -> 
A71: ='Sjekkliste for utfylling'!A130 -> 70 | B71: =IF('Sjekkliste for utfylling'!J130<>"",1,0) -> 0 | C71: 0 | E71: =IF($B71=1,'Sjekkliste for utfylling'!A130,"") ->  | F71: =IF($B71=1,'Sjekkliste for utfylling'!B130,"") ->  | H71: =IF(C71=1,'Sjekkliste for utfylling'!L130," ") -> 
A72: ='Sjekkliste for utfylling'!A131 -> 71 | B72: =IF('Sjekkliste for utfylling'!J131<>"",1,0) -> 0 | C72: 0 | E72: =IF($B72=1,'Sjekkliste for utfylling'!A131,"") ->  | F72: =IF($B72=1,'Sjekkliste for utfylling'!B131,"") ->  | H72: =IF(C72=1,'Sjekkliste for utfylling'!L131," ") -> 
A73: ='Sjekkliste for utfylling'!A132 -> 72 | B73: =IF('Sjekkliste for utfylling'!J132<>"",1,0) -> 0 | C73: 0 | E73: =IF($B73=1,'Sjekkliste for utfylling'!A132,"") ->  | F73: =IF($B73=1,'Sjekkliste for utfylling'!B132,"") ->  | H73: =IF(C73=1,'Sjekkliste for utfylling'!L132," ") -> 
A74: ='Sjekkliste for utfylling'!A133 -> 73 | B74: =IF('Sjekkliste for utfylling'!J133<>"",1,0) -> 0 | C74: 0 | E74: =IF($B74=1,'Sjekkliste for utfylling'!A133,"") ->  | F74: =IF($B74=1,'Sjekkliste for utfylling'!B133,"") ->  | H74: =IF(C74=1,'Sjekkliste for utfylling'!L133," ") -> 
A75: ='Sjekkliste for utfylling'!A136 -> 74 | B75: =IF('Sjekkliste for utfylling'!J136<>"",1,0) -> 0 | C75: 0 | E75: =IF($B75=1,'Sjekkliste for utfylling'!A136,"") ->  | F75: =IF($B75=1,'Sjekkliste for utfylling'!B136,"") ->  | H75: =IF(C75=1,'Sjekkliste for utfylling'!L136," ") -> 
A76: ='Sjekkliste for utfylling'!A137 -> 75 | B76: =IF('Sjekkliste for utfylling'!J137<>"",1,0) -> 0 | C76: 0 | E76: =IF($B76=1,'Sjekkliste for utfylling'!A137,"") ->  | F76: =IF($B76=1,'Sjekkliste for utfylling'!B137,"") ->  | H76: =IF(C76=1,'Sjekkliste for utfylling'!L137," ") -> 
A77: ='Sjekkliste for utfylling'!A138 -> 76 | B77: =IF('Sjekkliste for utfylling'!J138<>"",1,0) -> 0 | C77: 0 | E77: =IF($B77=1,'Sjekkliste for utfylling'!A138,"") ->  | F77: =IF($B77=1,'Sjekkliste for utfylling'!B138,"") ->  | H77: =IF(C77=1,'Sjekkliste for utfylling'!L138," ") -> 
A78: ='Sjekkliste for utfylling'!A141 -> 77 | B78: =IF('Sjekkliste for utfylling'!J141<>"",1,0) -> 0 | C78: 0 | E78: =IF($B78=1,'Sjekkliste for utfylling'!A141,"") ->  | F78: =IF($B78=1,'Sjekkliste for utfylling'!B141,"") ->  | H78: =IF(C78=1,'Sjekkliste for utfylling'!L141," ") -> 
A79: ='Sjekkliste for utfylling'!A142 -> 78 | B79: =IF('Sjekkliste for utfylling'!J142<>"",1,0) -> 0 | C79: 0 | E79: =IF($B79=1,'Sjekkliste for utfylling'!A142,"") ->  | F79: =IF($B79=1,'Sjekkliste for utfylling'!B142,"") ->  | H79: =IF(C79=1,'Sjekkliste for utfylling'!L142," ") -> 
A80: ='Sjekkliste for utfylling'!A144 -> 79 | B80: =IF('Sjekkliste for utfylling'!J144<>"",1,0) -> 0 | C80: 0 | E80: =IF($B80=1,'Sjekkliste for utfylling'!A144,"") ->  | F80: =IF($B80=1,'Sjekkliste for utfylling'!B144,"") ->  | H80: =IF(C80=1,'Sjekkliste for utfylling'!L144," ") -> 
A81: ='Sjekkliste for utfylling'!A145 -> 80 | B81: =IF('Sjekkliste for utfylling'!J145<>"",1,0) -> 0 | C81: 0 | E81: =IF($B81=1,'Sjekkliste for utfylling'!A145,"") ->  | F81: =IF($B81=1,'Sjekkliste for utfylling'!B145,"") ->  | H81: =IF(C81=1,'Sjekkliste for utfylling'!L145," ") -> 
A82: ='Sjekkliste for utfylling'!A146 -> 81 | B82: =IF('Sjekkliste for utfylling'!J146<>"",1,0) -> 0 | C82: 0 | E82: =IF($B82=1,'Sjekkliste for utfylling'!A146,"") ->  | F82: =IF($B82=1,'Sjekkliste for utfylling'!B146,"") ->  | H82: =IF(C82=1,'Sjekkliste for utfylling'!L146," ") -> 
A83: ='Sjekkliste for utfylling'!A147 -> 82 | B83: =IF('Sjekkliste for utfylling'!J147<>"",1,0) -> 0 | C83: 0 | E83: =IF($B83=1,'Sjekkliste for utfylling'!A147,"") ->  | F83: =IF($B83=1,'Sjekkliste for utfylling'!B147,"") ->  | H83: =IF(C83=1,'Sjekkliste for utfylling'!L147," ") -> 
A84: ='Sjekkliste for utfylling'!A148 -> 83 | B84: =IF('Sjekkliste for utfylling'!J148<>"",1,0) -> 0 | C84: 0 | E84: =IF($B84=1,'Sjekkliste for utfylling'!A148,"") ->  | F84: =IF($B84=1,'Sjekkliste for utfylling'!B148,"") ->  | H84: =IF(C84=1,'Sjekkliste for utfylling'!L148," ") -> 
A85: ='Sjekkliste for utfylling'!A150 -> 84 | B85: =IF('Sjekkliste for utfylling'!J150<>"",1,0) -> 0 | C85: 0 | E85: =IF($B85=1,'Sjekkliste for utfylling'!A150,"") ->  | F85: =IF($B85=1,'Sjekkliste for utfylling'!B150,"") ->  | H85: =IF(C85=1,'Sjekkliste for utfylling'!L150," ") -> 
A86: ='Sjekkliste for utfylling'!A151 -> 85 | B86: =IF('Sjekkliste for utfylling'!J151<>"",1,0) -> 0 | C86: 0 | E86: =IF($B86=1,'Sjekkliste for utfylling'!A151,"") ->  | F86: =IF($B86=1,'Sjekkliste for utfylling'!B151,"") ->  | H86: =IF(C86=1,'Sjekkliste for utfylling'!L151," ") -> 
A87: ='Sjekkliste for utfylling'!A153 -> 86 | B87: =IF('Sjekkliste for utfylling'!J153<>"",1,0) -> 0 | C87: 0 | E87: =IF($B87=1,'Sjekkliste for utfylling'!A153,"") ->  | F87: =IF($B87=1,'Sjekkliste for utfylling'!B153,"") ->  | H87: =IF(C87=1,'Sjekkliste for utfylling'!L153," ") -> 
A88: ='Sjekkliste for utfylling'!A154 -> 87 | B88: =IF('Sjekkliste for utfylling'!J154<>"",1,0) -> 0 | C88: 0 | E88: =IF($B88=1,'Sjekkliste for utfylling'!A154,"") ->  | F88: =IF($B88=1,'Sjekkliste for utfylling'!B154,"") ->  | H88: =IF(C88=1,'Sjekkliste for utfylling'!L154," ") -> 
A89: ='Sjekkliste for utfylling'!A155 -> 88 | B89: =IF('Sjekkliste for utfylling'!J155<>"",1,0) -> 0 | C89: 0 | E89: =IF($B89=1,'Sjekkliste for utfylling'!A155,"") ->  | F89: =IF($B89=1,'Sjekkliste for utfylling'!B155,"") ->  | H89: =IF(C89=1,'Sjekkliste for utfylling'!L155," ") -> 
A90: ='Sjekkliste for utfylling'!A156 -> 89 | B90: =IF('Sjekkliste for utfylling'!J156<>"",1,0) -> 0 | C90: 0 | E90: =IF($B90=1,'Sjekkliste for utfylling'!A156,"") ->  | F90: =IF($B90=1,'Sjekkliste for utfylling'!B156,"") ->  | H90: =IF(C90=1,'Sjekkliste for utfylling'!L156," ") -> 
A91: ='Sjekkliste for utfylling'!A157 -> 90 | B91: =IF('Sjekkliste for utfylling'!J157<>"",1,0) -> 0 | C91: 0 | E91: =IF($B91=1,'Sjekkliste for utfylling'!A157,"") ->  | F91: =IF($B91=1,'Sjekkliste for utfylling'!B157,"") ->  | H91: =IF(C91=1,'Sjekkliste for utfylling'!L157," ") -> 
A92: ='Sjekkliste for utfylling'!A158 -> 91 | B92: =IF('Sjekkliste for utfylling'!J158<>"",1,0) -> 0 | C92: 0 | E92: =IF($B92=1,'Sjekkliste for utfylling'!A158,"") ->  | F92: =IF($B92=1,'Sjekkliste for utfylling'!B158,"") ->  | H92: =IF(C92=1,'Sjekkliste for utfylling'!L158," ") -> 
A93: ='Sjekkliste for utfylling'!A159 -> 92 | B93: =IF('Sjekkliste for utfylling'!J159<>"",1,0) -> 0 | C93: 0 | E93: =IF($B93=1,'Sjekkliste for utfylling'!A159,"") ->  | F93: =IF($B93=1,'Sjekkliste for utfylling'!B159,"") ->  | H93: =IF(C93=1,'Sjekkliste for utfylling'!L159," ") -> 
A94: ='Sjekkliste for utfylling'!A160 -> 93 | B94: =IF('Sjekkliste for utfylling'!J160<>"",1,0) -> 0 | C94: 0 | E94: =IF($B94=1,'Sjekkliste for utfylling'!A160,"") ->  | F94: =IF($B94=1,'Sjekkliste for utfylling'!B160,"") ->  | H94: =IF(C94=1,'Sjekkliste for utfylling'!L160," ") -> 
A95: ='Sjekkliste for utfylling'!A162 -> 94 | B95: =IF('Sjekkliste for utfylling'!J162<>"",1,0) -> 0 | C95: 0 | E95: =IF($B95=1,'Sjekkliste for utfylling'!A162,"") ->  | F95: =IF($B95=1,'Sjekkliste for utfylling'!B162,"") ->  | H95: =IF(C95=1,'Sjekkliste for utfylling'!L162," ") -> 
A96: ='Sjekkliste for utfylling'!A164 -> 95 | B96: =IF('Sjekkliste for utfylling'!J164<>"",1,0) -> 0 | C96: 0 | E96: =IF($B96=1,'Sjekkliste for utfylling'!A164,"") ->  | F96: =IF($B96=1,'Sjekkliste for utfylling'!B164,"") ->  | H96: =IF(C96=1,'Sjekkliste for utfylling'!L164," ") -> 
A97: ='Sjekkliste for utfylling'!A170 -> 96 | B97: =IF('Sjekkliste for utfylling'!J170<>"",1,0) -> 0 | C97: 0 | E97: =IF($B97=1,'Sjekkliste for utfylling'!A170,"") ->  | F97: =IF($B97=1,'Sjekkliste for utfylling'!B170,"") ->  | H97: =IF(C97=1,'Sjekkliste for utfylling'!L170," ") -> 
A98: ='Sjekkliste for utfylling'!A171 -> 97 | B98: =IF('Sjekkliste for utfylling'!J171<>"",1,0) -> 0 | C98: 0 | E98: =IF($B98=1,'Sjekkliste for utfylling'!A171,"") ->  | F98: =IF($B98=1,'Sjekkliste for utfylling'!B171,"") ->  | H98: =IF(C98=1,'Sjekkliste for utfylling'!L171," ") -> 
A99: ='Sjekkliste for utfylling'!A172 -> 98 | B99: =IF('Sjekkliste for utfylling'!J172<>"",1,0) -> 0 | C99: 0 | E99: =IF($B99=1,'Sjekkliste for utfylling'!A172,"") ->  | F99: =IF($B99=1,'Sjekkliste for utfylling'!B172,"") ->  | H99: =IF(C99=1,'Sjekkliste for utfylling'!L172," ") -> 
A100: ='Sjekkliste for utfylling'!A173 -> 99 | B100: =IF('Sjekkliste for utfylling'!J173<>"",1,0) -> 0 | C100: 0 | E100: =IF($B100=1,'Sjekkliste for utfylling'!A173,"") ->  | F100: =IF($B100=1,'Sjekkliste for utfylling'!B173,"") ->  | H100: =IF(C100=1,'Sjekkliste for utfylling'!L173," ") -> 
A101: ='Sjekkliste for utfylling'!A174 -> 100 | B101: =IF('Sjekkliste for utfylling'!J174<>"",1,0) -> 0 | C101: 0 | E101: =IF($B101=1,'Sjekkliste for utfylling'!A174,"") ->  | F101: =IF($B101=1,'Sjekkliste for utfylling'!B174,"") ->  | H101: =IF(C101=1,'Sjekkliste for utfylling'!L174," ") -> 
A102: ='Sjekkliste for utfylling'!A175 -> 101 | B102: =IF('Sjekkliste for utfylling'!J175<>"",1,0) -> 0 | C102: 0 | E102: =IF($B102=1,'Sjekkliste for utfylling'!A175,"") ->  | F102: =IF($B102=1,'Sjekkliste for utfylling'!B175,"") ->  | H102: =IF(C102=1,'Sjekkliste for utfylling'!L175," ") -> 
A103: ='Sjekkliste for utfylling'!A176 -> 102 | B103: =IF('Sjekkliste for utfylling'!J176<>"",1,0) -> 0 | C103: 0 | E103: =IF($B103=1,'Sjekkliste for utfylling'!A176,"") ->  | F103: =IF($B103=1,'Sjekkliste for utfylling'!B176,"") ->  | H103: =IF(C103=1,'Sjekkliste for utfylling'!L176," ") -> 
A104: ='Sjekkliste for utfylling'!A177 -> 103 | B104: =IF('Sjekkliste for utfylling'!J177<>"",1,0) -> 0 | C104: 0 | E104: =IF($B104=1,'Sjekkliste for utfylling'!A177,"") ->  | F104: =IF($B104=1,'Sjekkliste for utfylling'!B177,"") ->  | H104: =IF(C104=1,'Sjekkliste for utfylling'!L177," ") -> 
A105: ='Sjekkliste for utfylling'!A178 -> 104 | B105: =IF('Sjekkliste for utfylling'!J178<>"",1,0) -> 0 | C105: 0 | E105: =IF($B105=1,'Sjekkliste for utfylling'!A178,"") ->  | F105: =IF($B105=1,'Sjekkliste for utfylling'!B178,"") ->  | H105: =IF(C105=1,'Sjekkliste for utfylling'!L178," ") -> 
A106: ='Sjekkliste for utfylling'!A181 -> 105 | B106: =IF('Sjekkliste for utfylling'!J181<>"",1,0) -> 0 | C106: 0 | E106: =IF($B106=1,'Sjekkliste for utfylling'!A181,"") ->  | F106: =IF($B106=1,'Sjekkliste for utfylling'!B181,"") ->  | H106: =IF(C106=1,'Sjekkliste for utfylling'!L181," ") -> 
A107: ='Sjekkliste for utfylling'!A182 -> 106 | B107: =IF('Sjekkliste for utfylling'!J182<>"",1,0) -> 0 | C107: 0 | E107: =IF($B107=1,'Sjekkliste for utfylling'!A182,"") ->  | F107: =IF($B107=1,'Sjekkliste for utfylling'!B182,"") ->  | H107: =IF(C107=1,'Sjekkliste for utfylling'!L182," ") -> 
A108: ='Sjekkliste for utfylling'!A184 -> 107 | B108: =IF('Sjekkliste for utfylling'!J184<>"",1,0) -> 0 | C108: 0 | E108: =IF($B108=1,'Sjekkliste for utfylling'!A184,"") ->  | F108: =IF($B108=1,'Sjekkliste for utfylling'!B184,"") ->  | H108: =IF(C108=1,'Sjekkliste for utfylling'!L184," ") -> 
A109: ='Sjekkliste for utfylling'!A185 -> 108 | B109: =IF('Sjekkliste for utfylling'!J185<>"",1,0) -> 0 | C109: 0 | E109: =IF($B109=1,'Sjekkliste for utfylling'!A185,"") ->  | F109: =IF($B109=1,'Sjekkliste for utfylling'!B185,"") ->  | H109: =IF(C109=1,'Sjekkliste for utfylling'!L185," ") -> 
A110: ='Sjekkliste for utfylling'!A187 -> 109 | B110: =IF('Sjekkliste for utfylling'!J187<>"",1,0) -> 0 | C110: 0 | E110: =IF($B110=1,'Sjekkliste for utfylling'!A187,"") ->  | F110: =IF($B110=1,'Sjekkliste for utfylling'!B187,"") ->  | H110: =IF(C110=1,'Sjekkliste for utfylling'!L187," ") -> 
A111: ='Sjekkliste for utfylling'!A188 -> 110 | B111: =IF('Sjekkliste for utfylling'!J188<>"",1,0) -> 0 | C111: 0 | E111: =IF($B111=1,'Sjekkliste for utfylling'!A188,"") ->  | F111: =IF($B111=1,'Sjekkliste for utfylling'!B188,"") ->  | H111: =IF(C111=1,'Sjekkliste for utfylling'!L188," ") -> 
A112: ='Sjekkliste for utfylling'!A190 -> 111 | B112: =IF('Sjekkliste for utfylling'!J190<>"",1,0) -> 0 | C112: 0 | E112: =IF($B112=1,'Sjekkliste for utfylling'!A190,"") ->  | F112: =IF($B112=1,'Sjekkliste for utfylling'!B190,"") ->  | H112: =IF(C112=1,'Sjekkliste for utfylling'!L190," ") -> 
A113: ='Sjekkliste for utfylling'!A191 -> 112 | B113: =IF('Sjekkliste for utfylling'!J191<>"",1,0) -> 0 | C113: 0 | E113: =IF($B113=1,'Sjekkliste for utfylling'!A191,"") ->  | F113: =IF($B113=1,'Sjekkliste for utfylling'!B191,"") ->  | H113: =IF(C113=1,'Sjekkliste for utfylling'!L191," ") -> 
A114: ='Sjekkliste for utfylling'!A192 -> 113 | B114: =IF('Sjekkliste for utfylling'!J192<>"",1,0) -> 0 | C114: 0 | E114: =IF($B114=1,'Sjekkliste for utfylling'!A192,"") ->  | F114: =IF($B114=1,'Sjekkliste for utfylling'!B192,"") ->  | H114: =IF(C114=1,'Sjekkliste for utfylling'!L192," ") -> 
A115: ='Sjekkliste for utfylling'!A195 -> 114 | B115: =IF('Sjekkliste for utfylling'!J195<>"",1,0) -> 0 | C115: 0 | E115: =IF($B115=1,'Sjekkliste for utfylling'!A195,"") ->  | F115: =IF($B115=1,'Sjekkliste for utfylling'!B195,"") ->  | H115: =IF(C115=1,'Sjekkliste for utfylling'!L195," ") -> 
A116: ='Sjekkliste for utfylling'!A196 -> 115 | B116: =IF('Sjekkliste for utfylling'!J196<>"",1,0) -> 0 | C116: 0 | E116: =IF($B116=1,'Sjekkliste for utfylling'!A196,"") ->  | F116: =IF($B116=1,'Sjekkliste for utfylling'!B196,"") ->  | H116: =IF(C116=1,'Sjekkliste for utfylling'!L196," ") -> 
A117: ='Sjekkliste for utfylling'!A198 -> 116 | B117: =IF('Sjekkliste for utfylling'!J198<>"",1,0) -> 0 | C117: 0 | E117: =IF($B117=1,'Sjekkliste for utfylling'!A198,"") ->  | F117: =IF($B117=1,'Sjekkliste for utfylling'!B198,"") ->  | H117: =IF(C117=1,'Sjekkliste for utfylling'!L198," ") -> 
A118: ='Sjekkliste for utfylling'!A200 -> 117 | B118: =IF('Sjekkliste for utfylling'!J200<>"",1,0) -> 0 | C118: 0 | E118: =IF($B118=1,'Sjekkliste for utfylling'!A200,"") ->  | F118: =IF($B118=1,'Sjekkliste for utfylling'!B200,"") ->  | H118: =IF(C118=1,'Sjekkliste for utfylling'!L200," ") -> 
A119: ='Sjekkliste for utfylling'!A202 -> 118 | B119: =IF('Sjekkliste for utfylling'!J202<>"",1,0) -> 0 | C119: 0 | E119: =IF($B119=1,'Sjekkliste for utfylling'!A202,"") ->  | F119: =IF($B119=1,'Sjekkliste for utfylling'!B202,"") ->  | H119: =IF(C119=1,'Sjekkliste for utfylling'!L202," ") -> 
A120: ='Sjekkliste for utfylling'!A209 -> 119 | B120: =IF('Sjekkliste for utfylling'!J209<>"",1,0) -> 0 | C120: 0 | E120: =IF($B120=1,'Sjekkliste for utfylling'!A209,"") ->  | F120: =IF($B120=1,'Sjekkliste for utfylling'!B209,"") ->  | H120: =IF(C120=1,'Sjekkliste for utfylling'!L209," ") -> 
A121: ='Sjekkliste for utfylling'!A218 -> 120 | B121: =IF('Sjekkliste for utfylling'!J218<>"",1,0) -> 0 | C121: 0 | E121: =IF($B121=1,'Sjekkliste for utfylling'!A218,"") ->  | F121: =IF($B121=1,'Sjekkliste for utfylling'!B218,"") ->  | H121: =IF(C121=1,'Sjekkliste for utfylling'!L218," ") -> 
A122: ='Sjekkliste for utfylling'!A221 -> 121 | B122: =IF('Sjekkliste for utfylling'!J221<>"",1,0) -> 0 | C122: 0 | E122: =IF($B122=1,'Sjekkliste for utfylling'!A221,"") ->  | F122: =IF($B122=1,'Sjekkliste for utfylling'!B221,"") ->  | H122: =IF(C122=1,'Sjekkliste for utfylling'!L221," ") -> 
A123: ='Sjekkliste for utfylling'!A223 -> 122 | B123: =IF('Sjekkliste for utfylling'!J223<>"",1,0) -> 0 | C123: 0 | E123: =IF($B123=1,'Sjekkliste for utfylling'!A223,"") ->  | F123: =IF($B123=1,'Sjekkliste for utfylling'!B223,"") ->  | H123: =IF(C123=1,'Sjekkliste for utfylling'!L223," ") -> 
A124: ='Sjekkliste for utfylling'!A224 -> 123 | B124: =IF('Sjekkliste for utfylling'!J224<>"",1,0) -> 0 | C124: 0 | E124: =IF($B124=1,'Sjekkliste for utfylling'!A224,"") ->  | F124: =IF($B124=1,'Sjekkliste for utfylling'!B224,"") ->  | H124: =IF(C124=1,'Sjekkliste for utfylling'!L224," ") -> 
A125: ='Sjekkliste for utfylling'!A225 -> 124 | B125: =IF('Sjekkliste for utfylling'!J225<>"",1,0) -> 0 | C125: 0 | E125: =IF($B125=1,'Sjekkliste for utfylling'!A225,"") ->  | F125: =IF($B125=1,'Sjekkliste for utfylling'!B225,"") ->  | H125: =IF(C125=1,'Sjekkliste for utfylling'!L225," ") -> 
A126: ='Sjekkliste for utfylling'!A227 -> 125 | B126: =IF('Sjekkliste for utfylling'!J227<>"",1,0) -> 0 | C126: 0 | E126: =IF($B126=1,'Sjekkliste for utfylling'!A227,"") ->  | F126: =IF($B126=1,'Sjekkliste for utfylling'!B227,"") ->  | H126: =IF(C126=1,'Sjekkliste for utfylling'!L227," ") -> 
A127: ='Sjekkliste for utfylling'!A228 -> 126 | B127: =IF('Sjekkliste for utfylling'!J228<>"",1,0) -> 0 | C127: 0 | E127: =IF($B127=1,'Sjekkliste for utfylling'!A228,"") ->  | F127: =IF($B127=1,'Sjekkliste for utfylling'!B228,"") ->  | H127: =IF(C127=1,'Sjekkliste for utfylling'!L228," ") -> 
A128: ='Sjekkliste for utfylling'!A229 -> 127 | B128: =IF('Sjekkliste for utfylling'!J229<>"",1,0) -> 0 | C128: 0 | E128: =IF($B128=1,'Sjekkliste for utfylling'!A229,"") ->  | F128: =IF($B128=1,'Sjekkliste for utfylling'!B229,"") ->  | H128: =IF(C128=1,'Sjekkliste for utfylling'!L229," ") -> 
A129: ='Sjekkliste for utfylling'!A230 -> 128 | B129: =IF('Sjekkliste for utfylling'!J230<>"",1,0) -> 0 | C129: 0 | E129: =IF($B129=1,'Sjekkliste for utfylling'!A230,"") ->  | F129: =IF($B129=1,'Sjekkliste for utfylling'!B230,"") ->  | H129: =IF(C129=1,'Sjekkliste for utfylling'!L230," ") -> 
A130: ='Sjekkliste for utfylling'!A232 -> 129 | B130: =IF('Sjekkliste for utfylling'!J232<>"",1,0) -> 0 | C130: =SUM(B130:B130) -> 0 | E130: =IF($B130=1,'Sjekkliste for utfylling'!A232,"") ->  | F130: =IF($B130=1,'Sjekkliste for utfylling'!B232,"") ->  | H130: =IF(C130=1,'Sjekkliste for utfylling'!L232," ") -> 
A131: ='Sjekkliste for utfylling'!A233 -> 130 | B131: =IF('Sjekkliste for utfylling'!J233<>"",1,0) -> 0 | C131: 0 | E131: =IF($B131=1,'Sjekkliste for utfylling'!A233,"") ->  | F131: =IF($B131=1,'Sjekkliste for utfylling'!B233,"") ->  | H131: =IF(C131=1,'Sjekkliste for utfylling'!L233," ") -> 
A132: ='Sjekkliste for utfylling'!A235 -> 131 | B132: =IF('Sjekkliste for utfylling'!J235<>"",1,0) -> 0 | C132: 0 | E132: =IF($B132=1,'Sjekkliste for utfylling'!A235,"") ->  | F132: =IF($B132=1,'Sjekkliste for utfylling'!B235,"") ->  | H132: =IF(C132=1,'Sjekkliste for utfylling'!L235," ") -> 
A133: ='Sjekkliste for utfylling'!A237 -> 132 | B133: =IF('Sjekkliste for utfylling'!J237<>"",1,0) -> 0 | C133: 0 | E133: =IF($B133=1,'Sjekkliste for utfylling'!A237,"") ->  | F133: =IF($B133=1,'Sjekkliste for utfylling'!B237,"") ->  | H133: =IF(C133=1,'Sjekkliste for utfylling'!L237," ") -> 
A134: ='Sjekkliste for utfylling'!A240 -> 133 | B134: =IF('Sjekkliste for utfylling'!J240<>"",1,0) -> 0 | C134: 0 | E134: =IF($B134=1,'Sjekkliste for utfylling'!A240,"") ->  | F134: =IF($B134=1,'Sjekkliste for utfylling'!B240,"") ->  | H134: =IF(C134=1,'Sjekkliste for utfylling'!L240," ") -> 
A135: ='Sjekkliste for utfylling'!A242 -> 134 | B135: =IF('Sjekkliste for utfylling'!J242<>"",1,0) -> 0 | C135: 0 | E135: =IF($B135=1,'Sjekkliste for utfylling'!A242,"") ->  | F135: =IF($B135=1,'Sjekkliste for utfylling'!B242,"") ->  | H135: =IF(C135=1,'Sjekkliste for utfylling'!L242," ") -> 
A136: ='Sjekkliste for utfylling'!A243 -> 135 | B136: =IF('Sjekkliste for utfylling'!J243<>"",1,0) -> 0 | C136: 0 | E136: =IF($B136=1,'Sjekkliste for utfylling'!A243,"") ->  | F136: =IF($B136=1,'Sjekkliste for utfylling'!B243,"") ->  | H136: =IF(C136=1,'Sjekkliste for utfylling'!L243," ") -> 
A137: ='Sjekkliste for utfylling'!A245 -> 136 | B137: =IF('Sjekkliste for utfylling'!J245<>"",1,0) -> 0 | C137: 0 | E137: =IF($B137=1,'Sjekkliste for utfylling'!A245,"") ->  | F137: =IF($B137=1,'Sjekkliste for utfylling'!B245,"") ->  | H137: =IF(C137=1,'Sjekkliste for utfylling'!L245," ") -> 
A138: ='Sjekkliste for utfylling'!A246 -> 137 | B138: =IF('Sjekkliste for utfylling'!J246<>"",1,0) -> 0 | C138: 0 | E138: =IF($B138=1,'Sjekkliste for utfylling'!A246,"") ->  | F138: =IF($B138=1,'Sjekkliste for utfylling'!B246,"") ->  | H138: =IF(C138=1,'Sjekkliste for utfylling'!L246," ") -> 
A139: ='Sjekkliste for utfylling'!A247 -> 138 | B139: =IF('Sjekkliste for utfylling'!J247<>"",1,0) -> 0 | C139: 0 | E139: =IF($B139=1,'Sjekkliste for utfylling'!A247,"") ->  | F139: =IF($B139=1,'Sjekkliste for utfylling'!B247,"") ->  | H139: =IF(C139=1,'Sjekkliste for utfylling'!L247," ") -> 
A140: ='Sjekkliste for utfylling'!A249 -> 139 | B140: =IF('Sjekkliste for utfylling'!J249<>"",1,0) -> 0 | C140: 0 | E140: =IF($B140=1,'Sjekkliste for utfylling'!A249,"") ->  | F140: =IF($B140=1,'Sjekkliste for utfylling'!B249,"") ->  | H140: =IF(C140=1,'Sjekkliste for utfylling'!L249," ") -> 
A141: ='Sjekkliste for utfylling'!A250 -> 140 | B141: =IF('Sjekkliste for utfylling'!J250<>"",1,0) -> 0 | C141: 0 | E141: =IF($B141=1,'Sjekkliste for utfylling'!A250,"") ->  | F141: =IF($B141=1,'Sjekkliste for utfylling'!B250,"") ->  | H141: =IF(C141=1,'Sjekkliste for utfylling'!L250," ") -> 
A142: ='Sjekkliste for utfylling'!A251 -> 141 | B142: =IF('Sjekkliste for utfylling'!J251<>"",1,0) -> 0 | C142: 0 | E142: =IF($B142=1,'Sjekkliste for utfylling'!A251,"") ->  | F142: =IF($B142=1,'Sjekkliste for utfylling'!B251,"") ->  | H142: =IF(C142=1,'Sjekkliste for utfylling'!L251," ") -> 
A143: ='Sjekkliste for utfylling'!A252 -> 142 | B143: =IF('Sjekkliste for utfylling'!J252<>"",1,0) -> 0 | C143: 0 | E143: =IF($B143=1,'Sjekkliste for utfylling'!A252,"") ->  | F143: =IF($B143=1,'Sjekkliste for utfylling'!B252,"") ->  | H143: =IF(C143=1,'Sjekkliste for utfylling'!L252," ") -> 
A144: ='Sjekkliste for utfylling'!A255 -> 143 | B144: =IF('Sjekkliste for utfylling'!J255<>"",1,0) -> 0 | C144: 0 | E144: =IF($B144=1,'Sjekkliste for utfylling'!A255,"") ->  | F144: =IF($B144=1,'Sjekkliste for utfylling'!B255,"") ->  | H144: =IF(C144=1,'Sjekkliste for utfylling'!L255," ") -> 
A145: ='Sjekkliste for utfylling'!A256 -> 144 | B145: =IF('Sjekkliste for utfylling'!J256<>"",1,0) -> 0 | C145: 0 | E145: =IF($B145=1,'Sjekkliste for utfylling'!A256,"") ->  | F145: =IF($B145=1,'Sjekkliste for utfylling'!B256,"") ->  | H145: =IF(C145=1,'Sjekkliste for utfylling'!L256," ") -> 
A146: ='Sjekkliste for utfylling'!A258 -> 145 | B146: =IF('Sjekkliste for utfylling'!J258<>"",1,0) -> 0 | C146: 0 | E146: =IF($B146=1,'Sjekkliste for utfylling'!A258,"") ->  | F146: =IF($B146=1,'Sjekkliste for utfylling'!B258,"") ->  | H146: =IF(C146=1,'Sjekkliste for utfylling'!L258," ") -> 
A147: ='Sjekkliste for utfylling'!A260 -> 146 | B147: =IF('Sjekkliste for utfylling'!J260<>"",1,0) -> 0 | C147: 0 | E147: =IF($B147=1,'Sjekkliste for utfylling'!A260,"") ->  | F147: =IF($B147=1,'Sjekkliste for utfylling'!B260,"") ->  | H147: =IF(C147=1,'Sjekkliste for utfylling'!L260," ") -> 
A148: ='Sjekkliste for utfylling'!A261 -> 147 | B148: =IF('Sjekkliste for utfylling'!J261<>"",1,0) -> 0 | C148: 0 | E148: =IF($B148=1,'Sjekkliste for utfylling'!A261,"") ->  | F148: =IF($B148=1,'Sjekkliste for utfylling'!B261,"") ->  | H148: =IF(C148=1,'Sjekkliste for utfylling'!L261," ") -> 
A149: ='Sjekkliste for utfylling'!A263 -> 148 | B149: =IF('Sjekkliste for utfylling'!J263<>"",1,0) -> 0 | C149: 0 | E149: =IF($B149=1,'Sjekkliste for utfylling'!A263,"") ->  | F149: =IF($B149=1,'Sjekkliste for utfylling'!B263,"") ->  | H149: =IF(C149=1,'Sjekkliste for utfylling'!L263," ") -> 
A150: ='Sjekkliste for utfylling'!A264 -> 149 | B150: =IF('Sjekkliste for utfylling'!J264<>"",1,0) -> 0 | C150: 0 | E150: =IF($B150=1,'Sjekkliste for utfylling'!A264,"") ->  | F150: =IF($B150=1,'Sjekkliste for utfylling'!B264,"") ->  | H150: =IF(C150=1,'Sjekkliste for utfylling'!L264," ") -> 
A151: ='Sjekkliste for utfylling'!A266 -> 150 | B151: =IF('Sjekkliste for utfylling'!J266<>"",1,0) -> 0 | C151: 0 | E151: =IF($B151=1,'Sjekkliste for utfylling'!A266,"") ->  | F151: =IF($B151=1,'Sjekkliste for utfylling'!B266,"") ->  | H151: =IF(C151=1,'Sjekkliste for utfylling'!L266," ") -> 
A152: ='Sjekkliste for utfylling'!A267 -> 151 | B152: =IF('Sjekkliste for utfylling'!J267<>"",1,0) -> 0 | C152: 0 | E152: =IF($B152=1,'Sjekkliste for utfylling'!A267,"") ->  | F152: =IF($B152=1,'Sjekkliste for utfylling'!B267,"") ->  | H152: =IF(C152=1,'Sjekkliste for utfylling'!L267," ") -> 
A153: ='Sjekkliste for utfylling'!A269 -> 152 | B153: =IF('Sjekkliste for utfylling'!J269<>"",1,0) -> 0 | C153: 0 | E153: =IF($B153=1,'Sjekkliste for utfylling'!A269,"") ->  | F153: =IF($B153=1,'Sjekkliste for utfylling'!B269,"") ->  | H153: =IF(C153=1,'Sjekkliste for utfylling'!L269," ") -> 
A154: ='Sjekkliste for utfylling'!A271 -> 153 | B154: =IF('Sjekkliste for utfylling'!J271<>"",1,0) -> 0 | C154: 0 | E154: =IF($B154=1,'Sjekkliste for utfylling'!A271,"") ->  | F154: =IF($B154=1,'Sjekkliste for utfylling'!B271,"") ->  | H154: =IF(C154=1,'Sjekkliste for utfylling'!L271," ") -> 
A155: ='Sjekkliste for utfylling'!A273 -> 154 | B155: =IF('Sjekkliste for utfylling'!J273<>"",1,0) -> 0 | C155: 0 | E155: =IF($B155=1,'Sjekkliste for utfylling'!A273,"") ->  | F155: =IF($B155=1,'Sjekkliste for utfylling'!B273,"") ->  | H155: =IF(C155=1,'Sjekkliste for utfylling'!L273," ") -> 
A156: ='Sjekkliste for utfylling'!A274 -> 155 | B156: =IF('Sjekkliste for utfylling'!J274<>"",1,0) -> 0 | C156: 0 | E156: =IF($B156=1,'Sjekkliste for utfylling'!A274,"") ->  | F156: =IF($B156=1,'Sjekkliste for utfylling'!B274,"") ->  | H156: =IF(C156=1,'Sjekkliste for utfylling'!L274," ") -> 
A157: ='Sjekkliste for utfylling'!A275 -> 156 | B157: =IF('Sjekkliste for utfylling'!J275<>"",1,0) -> 0 | C157: 0 | E157: =IF($B157=1,'Sjekkliste for utfylling'!A275,"") ->  | F157: =IF($B157=1,'Sjekkliste for utfylling'!B275,"") ->  | H157: =IF(C157=1,'Sjekkliste for utfylling'!L275," ") -> 
A158: ='Sjekkliste for utfylling'!A276 -> 157 | B158: =IF('Sjekkliste for utfylling'!J276<>"",1,0) -> 0 | C158: 0 | E158: =IF($B158=1,'Sjekkliste for utfylling'!A276,"") ->  | F158: =IF($B158=1,'Sjekkliste for utfylling'!B276,"") ->  | H158: =IF(C158=1,'Sjekkliste for utfylling'!L276," ") -> 
A159: ='Sjekkliste for utfylling'!A277 -> 158 | B159: =IF('Sjekkliste for utfylling'!J277<>"",1,0) -> 0 | C159: 0 | E159: =IF($B159=1,'Sjekkliste for utfylling'!A277,"") ->  | F159: =IF($B159=1,'Sjekkliste for utfylling'!B277,"") ->  | H159: =IF(C159=1,'Sjekkliste for utfylling'!L277," ") -> 
A160: ='Sjekkliste for utfylling'!A278 -> 159 | B160: =IF('Sjekkliste for utfylling'!J278<>"",1,0) -> 0 | C160: 0 | E160: =IF($B160=1,'Sjekkliste for utfylling'!A278,"") ->  | F160: =IF($B160=1,'Sjekkliste for utfylling'!B278,"") ->  | H160: =IF(C160=1,'Sjekkliste for utfylling'!L278," ") -> 
A161: ='Sjekkliste for utfylling'!A279 -> 160 | B161: =IF('Sjekkliste for utfylling'!J279<>"",1,0) -> 0 | C161: 0 | E161: =IF($B161=1,'Sjekkliste for utfylling'!A279,"") ->  | F161: =IF($B161=1,'Sjekkliste for utfylling'!B279,"") ->  | H161: =IF(C161=1,'Sjekkliste for utfylling'!L279," ") -> 
A162: ='Sjekkliste for utfylling'!A280 -> 161 | B162: =IF('Sjekkliste for utfylling'!J280<>"",1,0) -> 0 | C162: 0 | E162: =IF($B162=1,'Sjekkliste for utfylling'!A280,"") ->  | F162: =IF($B162=1,'Sjekkliste for utfylling'!B280,"") ->  | H162: =IF(C162=1,'Sjekkliste for utfylling'!L280," ") -> 
A163: ='Sjekkliste for utfylling'!A281 -> 162 | B163: =IF('Sjekkliste for utfylling'!J281<>"",1,0) -> 0 | C163: 0 | E163: =IF($B163=1,'Sjekkliste for utfylling'!A281,"") ->  | F163: =IF($B163=1,'Sjekkliste for utfylling'!B281,"") ->  | H163: =IF(C163=1,'Sjekkliste for utfylling'!L281," ") -> 
A164: ='Sjekkliste for utfylling'!A282 -> 163 | B164: =IF('Sjekkliste for utfylling'!J282<>"",1,0) -> 0 | C164: 0 | E164: =IF($B164=1,'Sjekkliste for utfylling'!A282,"") ->  | F164: =IF($B164=1,'Sjekkliste for utfylling'!B282,"") ->  | H164: =IF(C164=1,'Sjekkliste for utfylling'!L282," ") -> 
A165: ='Sjekkliste for utfylling'!A283 -> 164 | B165: =IF('Sjekkliste for utfylling'!J283<>"",1,0) -> 0 | C165: 0 | E165: =IF($B165=1,'Sjekkliste for utfylling'!A283,"") ->  | F165: =IF($B165=1,'Sjekkliste for utfylling'!B283,"") ->  | H165: =IF(C165=1,'Sjekkliste for utfylling'!L283," ") -> 
A166: ='Sjekkliste for utfylling'!A284 -> 165 | B166: =IF('Sjekkliste for utfylling'!J284<>"",1,0) -> 0 | C166: 0 | E166: =IF($B166=1,'Sjekkliste for utfylling'!A284,"") ->  | F166: =IF($B166=1,'Sjekkliste for utfylling'!B284,"") ->  | H166: =IF(C166=1,'Sjekkliste for utfylling'!L284," ") -> 
A167: ='Sjekkliste for utfylling'!A286 -> 166 | B167: =IF('Sjekkliste for utfylling'!J286<>"",1,0) -> 0 | C167: 0 | E167: =IF($B167=1,'Sjekkliste for utfylling'!A286,"") ->  | F167: =IF($B167=1,'Sjekkliste for utfylling'!B286,"") ->  | H167: =IF(C167=1,'Sjekkliste for utfylling'!L286," ") -> 
A168: ='Sjekkliste for utfylling'!A287 -> 167 | B168: =IF('Sjekkliste for utfylling'!J287<>"",1,0) -> 0 | C168: 0 | E168: =IF($B168=1,'Sjekkliste for utfylling'!A287,"") ->  | F168: =IF($B168=1,'Sjekkliste for utfylling'!B287,"") ->  | H168: =IF(C168=1,'Sjekkliste for utfylling'!L287," ") -> 
A169: ='Sjekkliste for utfylling'!A288 -> 168 | B169: =IF('Sjekkliste for utfylling'!J288<>"",1,0) -> 0 | C169: 0 | E169: =IF($B169=1,'Sjekkliste for utfylling'!A288,"") ->  | F169: =IF($B169=1,'Sjekkliste for utfylling'!B288,"") ->  | H169: =IF(C169=1,'Sjekkliste for utfylling'!L288," ") -> 
A170: ='Sjekkliste for utfylling'!A290 -> 169 | B170: =IF('Sjekkliste for utfylling'!J290<>"",1,0) -> 0 | C170: 0 | E170: =IF($B170=1,'Sjekkliste for utfylling'!A290,"") ->  | F170: =IF($B170=1,'Sjekkliste for utfylling'!B290,"") ->  | H170: =IF(C170=1,'Sjekkliste for utfylling'!L290," ") -> 
A171: ='Sjekkliste for utfylling'!A291 -> 170 | B171: =IF('Sjekkliste for utfylling'!J291<>"",1,0) -> 0 | C171: 0 | E171: =IF($B171=1,'Sjekkliste for utfylling'!A291,"") ->  | F171: =IF($B171=1,'Sjekkliste for utfylling'!B291,"") ->  | H171: =IF(C171=1,'Sjekkliste for utfylling'!L291," ") -> 
A172: ='Sjekkliste for utfylling'!A295 -> 171 | B172: =IF('Sjekkliste for utfylling'!J295<>"",1,0) -> 0 | C172: 0 | E172: =IF($B172=1,'Sjekkliste for utfylling'!A295,"") ->  | F172: =IF($B172=1,'Sjekkliste for utfylling'!B295,"") ->  | H172: =IF(C172=1,'Sjekkliste for utfylling'!L295," ") -> 
A173: ='Sjekkliste for utfylling'!A296 -> 172 | B173: =IF('Sjekkliste for utfylling'!J296<>"",1,0) -> 0 | C173: 0 | E173: =IF($B173=1,'Sjekkliste for utfylling'!A296,"") ->  | F173: =IF($B173=1,'Sjekkliste for utfylling'!B296,"") ->  | H173: =IF(C173=1,'Sjekkliste for utfylling'!L296," ") -> 
A174: ='Sjekkliste for utfylling'!A297 -> 173 | B174: =IF('Sjekkliste for utfylling'!J297<>"",1,0) -> 0 | C174: 0 | E174: =IF($B174=1,'Sjekkliste for utfylling'!A297,"") ->  | F174: =IF($B174=1,'Sjekkliste for utfylling'!B297,"") ->  | H174: =IF(C174=1,'Sjekkliste for utfylling'!L297," ") -> 
A175: ='Sjekkliste for utfylling'!A301 -> 174 | B175: =IF('Sjekkliste for utfylling'!J301<>"",1,0) -> 0 | C175: 0 | E175: =IF($B175=1,'Sjekkliste for utfylling'!A301,"") ->  | F175: =IF($B175=1,'Sjekkliste for utfylling'!B301,"") ->  | H175: =IF(C175=1,'Sjekkliste for utfylling'!L301," ") -> 
A176: ='Sjekkliste for utfylling'!A303 -> 175 | B176: =IF('Sjekkliste for utfylling'!J303<>"",1,0) -> 0 | C176: 0 | E176: =IF($B176=1,'Sjekkliste for utfylling'!A303,"") ->  | F176: =IF($B176=1,'Sjekkliste for utfylling'!B303,"") ->  | H176: =IF(C176=1,'Sjekkliste for utfylling'!L303," ") -> 
A177: ='Sjekkliste for utfylling'!A304 -> 176 | B177: =IF('Sjekkliste for utfylling'!J304<>"",1,0) -> 0 | C177: 0 | E177: =IF($B177=1,'Sjekkliste for utfylling'!A304,"") ->  | F177: =IF($B177=1,'Sjekkliste for utfylling'!B304,"") ->  | H177: =IF(C177=1,'Sjekkliste for utfylling'!L304," ") -> 
A178: ='Sjekkliste for utfylling'!A307 -> 177 | B178: =IF('Sjekkliste for utfylling'!J307<>"",1,0) -> 0 | C178: 0 | E178: =IF($B178=1,'Sjekkliste for utfylling'!A307,"") ->  | F178: =IF($B178=1,'Sjekkliste for utfylling'!B307,"") ->  | H178: =IF(C178=1,'Sjekkliste for utfylling'!L307," ") -> 
A179: ='Sjekkliste for utfylling'!A308 -> 178 | B179: =IF('Sjekkliste for utfylling'!J308<>"",1,0) -> 0 | C179: 0 | E179: =IF($B179=1,'Sjekkliste for utfylling'!A308,"") ->  | F179: =IF($B179=1,'Sjekkliste for utfylling'!B308,"") ->  | H179: =IF(C179=1,'Sjekkliste for utfylling'!L308," ") -> 
A180: ='Sjekkliste for utfylling'!A309 -> 179 | B180: =IF('Sjekkliste for utfylling'!J309<>"",1,0) -> 0 | C180: 0 | E180: =IF($B180=1,'Sjekkliste for utfylling'!A309,"") ->  | F180: =IF($B180=1,'Sjekkliste for utfylling'!B309,"") ->  | H180: =IF(C180=1,'Sjekkliste for utfylling'!L309," ") -> 
A181: ='Sjekkliste for utfylling'!A310 -> 180 | B181: =IF('Sjekkliste for utfylling'!J310<>"",1,0) -> 0 | C181: 0 | E181: =IF($B181=1,'Sjekkliste for utfylling'!A310,"") ->  | F181: =IF($B181=1,'Sjekkliste for utfylling'!B310,"") ->  | H181: =IF(C181=1,'Sjekkliste for utfylling'!L310," ") -> 
A182: ='Sjekkliste for utfylling'!A312 -> 181 | B182: =IF('Sjekkliste for utfylling'!J312<>"",1,0) -> 0 | C182: 0 | E182: =IF($B182=1,'Sjekkliste for utfylling'!A312,"") ->  | F182: =IF($B182=1,'Sjekkliste for utfylling'!B312,"") ->  | H182: =IF(C182=1,'Sjekkliste for utfylling'!L312," ") -> 
A183: ='Sjekkliste for utfylling'!A313 -> 182 | B183: =IF('Sjekkliste for utfylling'!J313<>"",1,0) -> 0 | C183: 0 | E183: =IF($B183=1,'Sjekkliste for utfylling'!A313,"") ->  | F183: =IF($B183=1,'Sjekkliste for utfylling'!B313,"") ->  | H183: =IF(C183=1,'Sjekkliste for utfylling'!L313," ") -> 
A184: ='Sjekkliste for utfylling'!A315 -> 183 | B184: =IF('Sjekkliste for utfylling'!J315<>"",1,0) -> 0 | C184: 0 | E184: =IF($B184=1,'Sjekkliste for utfylling'!A315,"") ->  | F184: =IF($B184=1,'Sjekkliste for utfylling'!B315,"") ->  | H184: =IF(C184=1,'Sjekkliste for utfylling'!L315," ") -> 
A185: ='Sjekkliste for utfylling'!A316 -> 184 | B185: =IF('Sjekkliste for utfylling'!J316<>"",1,0) -> 0 | C185: 0 | E185: =IF($B185=1,'Sjekkliste for utfylling'!A316,"") ->  | F185: =IF($B185=1,'Sjekkliste for utfylling'!B316,"") ->  | H185: =IF(C185=1,'Sjekkliste for utfylling'!L316," ") -> 
A186: ='Sjekkliste for utfylling'!A317 -> 185 | B186: =IF('Sjekkliste for utfylling'!J317<>"",1,0) -> 0 | C186: 0 | E186: =IF($B186=1,'Sjekkliste for utfylling'!A317,"") ->  | F186: =IF($B186=1,'Sjekkliste for utfylling'!B317,"") ->  | H186: =IF(C186=1,'Sjekkliste for utfylling'!L317," ") -> 
A187: ='Sjekkliste for utfylling'!A318 -> 186 | B187: =IF('Sjekkliste for utfylling'!J318<>"",1,0) -> 0 | C187: 0 | E187: =IF($B187=1,'Sjekkliste for utfylling'!A318,"") ->  | F187: =IF($B187=1,'Sjekkliste for utfylling'!B318,"") ->  | H187: =IF(C187=1,'Sjekkliste for utfylling'!L318," ") -> 
A188: ='Sjekkliste for utfylling'!A319 -> 187 | B188: =IF('Sjekkliste for utfylling'!J319<>"",1,0) -> 0 | C188: 0 | E188: =IF($B188=1,'Sjekkliste for utfylling'!A319,"") ->  | F188: =IF($B188=1,'Sjekkliste for utfylling'!B319,"") ->  | H188: =IF(C188=1,'Sjekkliste for utfylling'!L319," ") -> 
A189: ='Sjekkliste for utfylling'!A321 -> 188 | B189: =IF('Sjekkliste for utfylling'!J321<>"",1,0) -> 0 | C189: 0 | E189: =IF($B189=1,'Sjekkliste for utfylling'!A321,"") ->  | F189: =IF($B189=1,'Sjekkliste for utfylling'!B321,"") ->  | H189: =IF(C189=1,'Sjekkliste for utfylling'!L321," ") -> 
A190: ='Sjekkliste for utfylling'!A322 -> 189 | B190: =IF('Sjekkliste for utfylling'!J322<>"",1,0) -> 0 | C190: 0 | E190: =IF($B190=1,'Sjekkliste for utfylling'!A322,"") ->  | F190: =IF($B190=1,'Sjekkliste for utfylling'!B322,"") ->  | H190: =IF(C190=1,'Sjekkliste for utfylling'!L322," ") -> 
A191: ='Sjekkliste for utfylling'!A324 -> 190 | B191: =IF('Sjekkliste for utfylling'!J324<>"",1,0) -> 0 | C191: 0 | E191: =IF($B191=1,'Sjekkliste for utfylling'!A324,"") ->  | F191: =IF($B191=1,'Sjekkliste for utfylling'!B324,"") ->  | H191: =IF(C191=1,'Sjekkliste for utfylling'!L324," ") -> 
A192: ='Sjekkliste for utfylling'!A325 -> 191 | B192: =IF('Sjekkliste for utfylling'!J325<>"",1,0) -> 0 | C192: 0 | E192: =IF($B192=1,'Sjekkliste for utfylling'!A325,"") ->  | F192: =IF($B192=1,'Sjekkliste for utfylling'!B325,"") ->  | H192: =IF(C192=1,'Sjekkliste for utfylling'!L325," ") -> 
A193: ='Sjekkliste for utfylling'!A326 -> 192 | B193: =IF('Sjekkliste for utfylling'!J326<>"",1,0) -> 0 | C193: 0 | E193: =IF($B193=1,'Sjekkliste for utfylling'!A326,"") ->  | F193: =IF($B193=1,'Sjekkliste for utfylling'!B326,"") ->  | H193: =IF(C193=1,'Sjekkliste for utfylling'!L326," ") -> 
A194: ='Sjekkliste for utfylling'!A327 -> 193 | B194: =IF('Sjekkliste for utfylling'!J327<>"",1,0) -> 0 | C194: =SUM(B194:B194) -> 0 | E194: =IF($B194=1,'Sjekkliste for utfylling'!A327,"") ->  | F194: =IF($B194=1,'Sjekkliste for utfylling'!B327,"") ->  | H194: =IF(C194=1,'Sjekkliste for utfylling'!L327," ") -> 
A195: ='Sjekkliste for utfylling'!A328 -> 194 | B195: =IF('Sjekkliste for utfylling'!J328<>"",1,0) -> 0 | C195: 0 | E195: =IF($B195=1,'Sjekkliste for utfylling'!A328,"") ->  | F195: =IF($B195=1,'Sjekkliste for utfylling'!B328,"") ->  | H195: =IF(C195=1,'Sjekkliste for utfylling'!L328," ") -> 
A196: ='Sjekkliste for utfylling'!A329 -> 195 | B196: =IF('Sjekkliste for utfylling'!J329<>"",1,0) -> 0 | C196: 0 | E196: =IF($B196=1,'Sjekkliste for utfylling'!A329,"") ->  | F196: =IF($B196=1,'Sjekkliste for utfylling'!B329,"") ->  | H196: =IF(C196=1,'Sjekkliste for utfylling'!L329," ") -> 
A197: ='Sjekkliste for utfylling'!A330 -> 196 | B197: =IF('Sjekkliste for utfylling'!J330<>"",1,0) -> 0 | C197: 0 | E197: =IF($B197=1,'Sjekkliste for utfylling'!A330,"") ->  | F197: =IF($B197=1,'Sjekkliste for utfylling'!B330,"") ->  | H197: =IF(C197=1,'Sjekkliste for utfylling'!L330," ") -> 
A198: ='Sjekkliste for utfylling'!A331 -> 197 | B198: =IF('Sjekkliste for utfylling'!J331<>"",1,0) -> 0 | C198: 0 | E198: =IF($B198=1,'Sjekkliste for utfylling'!A331,"") ->  | F198: =IF($B198=1,'Sjekkliste for utfylling'!B331,"") ->  | H198: =IF(C198=1,'Sjekkliste for utfylling'!L331," ") -> 
A199: ='Sjekkliste for utfylling'!A332 -> 198 | B199: =IF('Sjekkliste for utfylling'!J332<>"",1,0) -> 0 | C199: 0 | E199: =IF($B199=1,'Sjekkliste for utfylling'!A332,"") ->  | F199: =IF($B199=1,'Sjekkliste for utfylling'!B332,"") ->  | H199: =IF(C199=1,'Sjekkliste for utfylling'!L332," ") -> 
A200: ='Sjekkliste for utfylling'!A333 -> 199 | B200: =IF('Sjekkliste for utfylling'!J333<>"",1,0) -> 0 | C200: 0 | E200: =IF($B200=1,'Sjekkliste for utfylling'!A333,"") ->  | F200: =IF($B200=1,'Sjekkliste for utfylling'!B333,"") ->  | H200: =IF(C200=1,'Sjekkliste for utfylling'!L333," ") -> 
... 253 more rows

Sheet IA-svar (hidden)
C1: =COUNTIF(C2:C507,"=1")-D1 -> 0 | D1: =SUM(D2:D507) -> 152 | E1: IA-svar | F1: ='Sjekkliste for utfylling'!B2 -> 0 | G1: ='Sjekkliste for utfylling'!B3 -> 2024 | H1: Kommentarer
A2: ='Sjekkliste for utfylling'!A28 -> 1 | B2: =IF('Sjekkliste for utfylling'!K28<>"",1,0) -> 0 | C2: =SUM(B2:B2) -> 0 | E2: =IF($C2=1,'Sjekkliste for utfylling'!A28,"") ->  | F2: =IF($C2=1,'Sjekkliste for utfylling'!B28,"") ->  | H2: =IF(C2=1,'Sjekkliste for utfylling'!L28," ") -> 
A3: ='Sjekkliste for utfylling'!A29 -> 2 | B3: =IF('Sjekkliste for utfylling'!K29<>"",1,0) -> 0 | C3: 0 | E3: =IF($C3=1,'Sjekkliste for utfylling'!A29,"") ->  | F3: =IF($C3=1,'Sjekkliste for utfylling'!B29,"") ->  | H3: =IF(C3=1,'Sjekkliste for utfylling'!L29," ") -> 
A4: ='Sjekkliste for utfylling'!A30 -> 3 | B4: =IF('Sjekkliste for utfylling'!K30<>"",1,0) -> 0 | C4: 0 | E4: =IF($C4=1,'Sjekkliste for utfylling'!A30,"") ->  | F4: =IF($C4=1,'Sjekkliste for utfylling'!B30,"") ->  | H4: =IF(C4=1,'Sjekkliste for utfylling'!L30," ") -> 
A5: ='Sjekkliste for utfylling'!A31 -> 4 | B5: =IF('Sjekkliste for utfylling'!K31<>"",1,0) -> 0 | C5: 0 | E5: =IF($C5=1,'Sjekkliste for utfylling'!A31,"") ->  | F5: =IF($C5=1,'Sjekkliste for utfylling'!B31,"") ->  | H5: =IF(C5=1,'Sjekkliste for utfylling'!L31," ") -> 
A6: ='Sjekkliste for utfylling'!A36 -> 5 | B6: =IF('Sjekkliste for utfylling'!K36<>"",1,0) -> 0 | C6: 0 | E6: =IF($C6=1,'Sjekkliste for utfylling'!A36,"") ->  | F6: =IF($C6=1,'Sjekkliste for utfylling'!B36,"") ->  | H6: =IF(C6=1,'Sjekkliste for utfylling'!L36," ") -> 
A7: ='Sjekkliste for utfylling'!A37 -> 6 | B7: =IF('Sjekkliste for utfylling'!K37<>"",1,0) -> 0 | C7: 0 | E7: =IF($C7=1,'Sjekkliste for utfylling'!A37,"") ->  | F7: =IF($C7=1,'Sjekkliste for utfylling'!B37,"") ->  | H7: =IF(C7=1,'Sjekkliste for utfylling'!L37," ") -> 
A8: ='Sjekkliste for utfylling'!A38 -> 7 | B8: =IF('Sjekkliste for utfylling'!K38<>"",1,0) -> 0 | C8: 0 | E8: =IF($C8=1,'Sjekkliste for utfylling'!A38,"") ->  | F8: =IF($C8=1,'Sjekkliste for utfylling'!B38,"") ->  | H8: =IF(C8=1,'Sjekkliste for utfylling'!L38," ") -> 
A9: ='Sjekkliste for utfylling'!A39 -> 8 | B9: =IF('Sjekkliste for utfylling'!K39<>"",1,0) -> 0 | C9: 0 | E9: =IF($C9=1,'Sjekkliste for utfylling'!A39,"") ->  | F9: =IF($C9=1,'Sjekkliste for utfylling'!B39,"") ->  | H9: =IF(C9=1,'Sjekkliste for utfylling'!L39," ") -> 
A10: ='Sjekkliste for utfylling'!A40 -> 9 | B10: =IF('Sjekkliste for utfylling'!K40<>"",1,0) -> 0 | C10: 0 | E10: =IF($C10=1,'Sjekkliste for utfylling'!A40,"") ->  | F10: =IF($C10=1,'Sjekkliste for utfylling'!B40,"") ->  | H10: =IF(C10=1,'Sjekkliste for utfylling'!L40," ") -> 
A11: ='Sjekkliste for utfylling'!A41 -> 10 | B11: =IF('Sjekkliste for utfylling'!K41<>"",1,0) -> 0 | C11: 0 | E11: =IF($C11=1,'Sjekkliste for utfylling'!A41,"") ->  | F11: =IF($C11=1,'Sjekkliste for utfylling'!B41,"") ->  | H11: =IF(C11=1,'Sjekkliste for utfylling'!L41," ") -> 
A12: ='Sjekkliste for utfylling'!A42 -> 11 | B12: =IF('Sjekkliste for utfylling'!K42<>"",1,0) -> 0 | C12: 0 | E12: =IF($C12=1,'Sjekkliste for utfylling'!A42,"") ->  | F12: =IF($C12=1,'Sjekkliste for utfylling'!B42,"") ->  | H12: =IF(C12=1,'Sjekkliste for utfylling'!L42," ") -> 
A13: ='Sjekkliste for utfylling'!A43 -> 12 | B13: =IF('Sjekkliste for utfylling'!K43<>"",1,0) -> 0 | C13: 0 | E13: =IF($C13=1,'Sjekkliste for utfylling'!A43,"") ->  | F13: =IF($C13=1,'Sjekkliste for utfylling'!B43,"") ->  | H13: =IF(C13=1,'Sjekkliste for utfylling'!L43," ") -> 
A14: ='Sjekkliste for utfylling'!A45 -> 13 | B14: =IF('Sjekkliste for utfylling'!K45<>"",1,0) -> 0 | C14: 0 | E14: =IF($C14=1,'Sjekkliste for utfylling'!A45,"") ->  | F14: =IF($C14=1,'Sjekkliste for utfylling'!B45,"") ->  | H14: =IF(C14=1,'Sjekkliste for utfylling'!L45," ") -> 
A15: ='Sjekkliste for utfylling'!A46 -> 14 | B15: =IF('Sjekkliste for utfylling'!K46<>"",1,0) -> 0 | C15: 0 | E15: =IF($C15=1,'Sjekkliste for utfylling'!A46,"") ->  | F15: =IF($C15=1,'Sjekkliste for utfylling'!B46,"") ->  | H15: =IF(C15=1,'Sjekkliste for utfylling'!L46," ") -> 
A16: ='Sjekkliste for utfylling'!A47 -> 15 | B16: =IF('Sjekkliste for utfylling'!K47<>"",1,0) -> 0 | C16: 0 | E16: =IF($C16=1,'Sjekkliste for utfylling'!A47,"") ->  | F16: =IF($C16=1,'Sjekkliste for utfylling'!B47,"") ->  | H16: =IF(C16=1,'Sjekkliste for utfylling'!L47," ") -> 
A17: ='Sjekkliste for utfylling'!A48 -> 16 | B17: =IF('Sjekkliste for utfylling'!K48<>"",1,0) -> 0 | C17: 0 | E17: =IF($C17=1,'Sjekkliste for utfylling'!A48,"") ->  | F17: =IF($C17=1,'Sjekkliste for utfylling'!B48,"") ->  | H17: =IF(C17=1,'Sjekkliste for utfylling'!L48," ") -> 
A18: ='Sjekkliste for utfylling'!A49 -> 17 | B18: =IF('Sjekkliste for utfylling'!K49<>"",1,0) -> 0 | C18: 0 | E18: =IF($C18=1,'Sjekkliste for utfylling'!A49,"") ->  | F18: =IF($C18=1,'Sjekkliste for utfylling'!B49,"") ->  | H18: =IF(C18=1,'Sjekkliste for utfylling'!L49," ") -> 
A19: ='Sjekkliste for utfylling'!A50 -> 18 | B19: =IF('Sjekkliste for utfylling'!K50<>"",1,0) -> 0 | C19: 0 | E19: =IF($C19=1,'Sjekkliste for utfylling'!A50,"") ->  | F19: =IF($C19=1,'Sjekkliste for utfylling'!B50,"") ->  | H19: =IF(C19=1,'Sjekkliste for utfylling'!L50," ") -> 
A20: ='Sjekkliste for utfylling'!A51 -> 19 | B20: =IF('Sjekkliste for utfylling'!K51<>"",1,0) -> 0 | C20: 0 | E20: =IF($C20=1,'Sjekkliste for utfylling'!A51,"") ->  | F20: =IF($C20=1,'Sjekkliste for utfylling'!B51,"") ->  | H20: =IF(C20=1,'Sjekkliste for utfylling'!L51," ") -> 
A21: ='Sjekkliste for utfylling'!A55 -> 20 | B21: =IF('Sjekkliste for utfylling'!K55<>"",1,0) -> 0 | C21: 0 | E21: =IF($C21=1,'Sjekkliste for utfylling'!A55,"") ->  | F21: =IF($C21=1,'Sjekkliste for utfylling'!B55,"") ->  | H21: =IF(C21=1,'Sjekkliste for utfylling'!L55," ") -> 
A22: ='Sjekkliste for utfylling'!A56 -> 21 | B22: =IF('Sjekkliste for utfylling'!K56<>"",1,0) -> 0 | C22: 0 | E22: =IF($C22=1,'Sjekkliste for utfylling'!A56,"") ->  | F22: =IF($C22=1,'Sjekkliste for utfylling'!B56,"") ->  | H22: =IF(C22=1,'Sjekkliste for utfylling'!L56," ") -> 
A23: ='Sjekkliste for utfylling'!A57 -> 22 | B23: =IF('Sjekkliste for utfylling'!K57<>"",1,0) -> 0 | C23: 0 | E23: =IF($C23=1,'Sjekkliste for utfylling'!A57,"") ->  | F23: =IF($C23=1,'Sjekkliste for utfylling'!B57,"") ->  | H23: =IF(C23=1,'Sjekkliste for utfylling'!L57," ") -> 
A24: ='Sjekkliste for utfylling'!A58 -> 23 | B24: =IF('Sjekkliste for utfylling'!K58<>"",1,0) -> 0 | C24: 0 | E24: =IF($C24=1,'Sjekkliste for utfylling'!A58,"") ->  | F24: =IF($C24=1,'Sjekkliste for utfylling'!B58,"") ->  | H24: =IF(C24=1,'Sjekkliste for utfylling'!L58," ") -> 
A25: ='Sjekkliste for utfylling'!A61 -> 24 | B25: =IF('Sjekkliste for utfylling'!K61<>"",1,0) -> 0 | C25: 0 | E25: =IF($C25=1,'Sjekkliste for utfylling'!A61,"") ->  | F25: =IF($C25=1,'Sjekkliste for utfylling'!B61,"") ->  | H25: =IF(C25=1,'Sjekkliste for utfylling'!L61," ") -> 
A26: ='Sjekkliste for utfylling'!A62 -> 25 | B26: =IF('Sjekkliste for utfylling'!K62<>"",1,0) -> 0 | C26: 0 | E26: =IF($C26=1,'Sjekkliste for utfylling'!A62,"") ->  | F26: =IF($C26=1,'Sjekkliste for utfylling'!B62,"") ->  | H26: =IF(C26=1,'Sjekkliste for utfylling'!L62," ") -> 
A27: ='Sjekkliste for utfylling'!A63 -> 26 | B27: =IF('Sjekkliste for utfylling'!K63<>"",1,0) -> 0 | C27: 0 | E27: =IF($C27=1,'Sjekkliste for utfylling'!A63,"") ->  | F27: =IF($C27=1,'Sjekkliste for utfylling'!B63,"") ->  | H27: =IF(C27=1,'Sjekkliste for utfylling'!L63," ") -> 
A28: ='Sjekkliste for utfylling'!A66 -> 27 | B28: =IF('Sjekkliste for utfylling'!K66<>"",1,0) -> 0 | C28: 0 | E28: =IF($C28=1,'Sjekkliste for utfylling'!A66,"") ->  | F28: =IF($C28=1,'Sjekkliste for utfylling'!B66,"") ->  | H28: =IF(C28=1,'Sjekkliste for utfylling'!L66," ") -> 
A29: ='Sjekkliste for utfylling'!A67 -> 28 | B29: =IF('Sjekkliste for utfylling'!K67<>"",1,0) -> 0 | C29: 0 | E29: =IF($C29=1,'Sjekkliste for utfylling'!A67,"") ->  | F29: =IF($C29=1,'Sjekkliste for utfylling'!B67,"") ->  | H29: =IF(C29=1,'Sjekkliste for utfylling'!L67," ") -> 
A30: ='Sjekkliste for utfylling'!A69 -> 29 | B30: =IF('Sjekkliste for utfylling'!K69<>"",1,0) -> 0 | C30: 0 | E30: =IF($C30=1,'Sjekkliste for utfylling'!A69,"") ->  | F30: =IF($C30=1,'Sjekkliste for utfylling'!B69,"") ->  | H30: =IF(C30=1,'Sjekkliste for utfylling'!L69," ") -> 
A31: ='Sjekkliste for utfylling'!A70 -> 30 | B31: =IF('Sjekkliste for utfylling'!K70<>"",1,0) -> 0 | C31: 0 | E31: =IF($C31=1,'Sjekkliste for utfylling'!A70,"") ->  | F31: =IF($C31=1,'Sjekkliste for utfylling'!B70,"") ->  | H31: =IF(C31=1,'Sjekkliste for utfylling'!L70," ") -> 
A32: ='Sjekkliste for utfylling'!A76 -> 31 | B32: =IF('Sjekkliste for utfylling'!K76<>"",1,0) -> 0 | C32: 0 | E32: =IF($C32=1,'Sjekkliste for utfylling'!A76,"") ->  | F32: =IF($C32=1,'Sjekkliste for utfylling'!B76,"") ->  | H32: =IF(C32=1,'Sjekkliste for utfylling'!L76," ") -> 
A33: ='Sjekkliste for utfylling'!A77 -> 32 | B33: =IF('Sjekkliste for utfylling'!K77<>"",1,0) -> 0 | C33: 0 | E33: =IF($C33=1,'Sjekkliste for utfylling'!A77,"") ->  | F33: =IF($C33=1,'Sjekkliste for utfylling'!B77,"") ->  | H33: =IF(C33=1,'Sjekkliste for utfylling'!L77," ") -> 
A34: ='Sjekkliste for utfylling'!A81 -> 33 | B34: =IF('Sjekkliste for utfylling'!K81<>"",1,0) -> 0 | C34: 0 | E34: =IF($C34=1,'Sjekkliste for utfylling'!A81,"") ->  | F34: =IF($C34=1,'Sjekkliste for utfylling'!B81,"") ->  | H34: =IF(C34=1,'Sjekkliste for utfylling'!L81," ") -> 
A35: ='Sjekkliste for utfylling'!A82 -> 34 | B35: =IF('Sjekkliste for utfylling'!K82<>"",1,0) -> 0 | C35: 0 | E35: =IF($C35=1,'Sjekkliste for utfylling'!A82,"") ->  | F35: =IF($C35=1,'Sjekkliste for utfylling'!B82,"") ->  | H35: =IF(C35=1,'Sjekkliste for utfylling'!L82," ") -> 
A36: ='Sjekkliste for utfylling'!A83 -> 35 | B36: =IF('Sjekkliste for utfylling'!K83<>"",1,0) -> 0 | C36: 0 | E36: =IF($C36=1,'Sjekkliste for utfylling'!A83,"") ->  | F36: =IF($C36=1,'Sjekkliste for utfylling'!B83,"") ->  | H36: =IF(C36=1,'Sjekkliste for utfylling'!L83," ") -> 
A37: ='Sjekkliste for utfylling'!A84 -> 36 | B37: =IF('Sjekkliste for utfylling'!K84<>"",1,0) -> 0 | C37: 0 | E37: =IF($C37=1,'Sjekkliste for utfylling'!A84,"") ->  | F37: =IF($C37=1,'Sjekkliste for utfylling'!B84,"") ->  | H37: =IF(C37=1,'Sjekkliste for utfylling'!L84," ") -> 
A38: ='Sjekkliste for utfylling'!A85 -> 37 | B38: =IF('Sjekkliste for utfylling'!K85<>"",1,0) -> 0 | C38: 0 | E38: =IF($C38=1,'Sjekkliste for utfylling'!A85,"") ->  | F38: =IF($C38=1,'Sjekkliste for utfylling'!B85,"") ->  | H38: =IF(C38=1,'Sjekkliste for utfylling'!L85," ") -> 
A39: ='Sjekkliste for utfylling'!A86 -> 38 | B39: =IF('Sjekkliste for utfylling'!K86<>"",1,0) -> 0 | C39: 0 | E39: =IF($C39=1,'Sjekkliste for utfylling'!A86,"") ->  | F39: =IF($C39=1,'Sjekkliste for utfylling'!B86,"") ->  | H39: =IF(C39=1,'Sjekkliste for utfylling'!L86," ") -> 
A40: ='Sjekkliste for utfylling'!A87 -> 39 | B40: =IF('Sjekkliste for utfylling'!K87<>"",1,0) -> 0 | C40: 0 | E40: =IF($C40=1,'Sjekkliste for utfylling'!A87,"") ->  | F40: =IF($C40=1,'Sjekkliste for utfylling'!B87,"") ->  | H40: =IF(C40=1,'Sjekkliste for utfylling'!L87," ") -> 
A41: ='Sjekkliste for utfylling'!A89 -> 40 | B41: =IF('Sjekkliste for utfylling'!K89<>"",1,0) -> 0 | C41: 0 | E41: =IF($C41=1,'Sjekkliste for utfylling'!A89,"") ->  | F41: =IF($C41=1,'Sjekkliste for utfylling'!B89,"") ->  | H41: =IF(C41=1,'Sjekkliste for utfylling'!L89," ") -> 
A42: ='Sjekkliste for utfylling'!A90 -> 41 | B42: =IF('Sjekkliste for utfylling'!K90<>"",1,0) -> 0 | C42: 0 | E42: =IF($C42=1,'Sjekkliste for utfylling'!A90,"") ->  | F42: =IF($C42=1,'Sjekkliste for utfylling'!B90,"") ->  | H42: =IF(C42=1,'Sjekkliste for utfylling'!L90," ") -> 
A43: ='Sjekkliste for utfylling'!A92 -> 42 | B43: =IF('Sjekkliste for utfylling'!K92<>"",1,0) -> 0 | C43: 0 | E43: =IF($C43=1,'Sjekkliste for utfylling'!A92,"") ->  | F43: =IF($C43=1,'Sjekkliste for utfylling'!B92,"") ->  | H43: =IF(C43=1,'Sjekkliste for utfylling'!L92," ") -> 
A44: ='Sjekkliste for utfylling'!A93 -> 43 | B44: =IF('Sjekkliste for utfylling'!K93<>"",1,0) -> 0 | C44: 0 | E44: =IF($C44=1,'Sjekkliste for utfylling'!A93,"") ->  | F44: =IF($C44=1,'Sjekkliste for utfylling'!B93,"") ->  | H44: =IF(C44=1,'Sjekkliste for utfylling'!L93," ") -> 
A45: ='Sjekkliste for utfylling'!A95 -> 44 | B45: =IF('Sjekkliste for utfylling'!K95<>"",1,0) -> 0 | C45: 0 | E45: =IF($C45=1,'Sjekkliste for utfylling'!A95,"") ->  | F45: =IF($C45=1,'Sjekkliste for utfylling'!B95,"") ->  | H45: =IF(C45=1,'Sjekkliste for utfylling'!L95," ") -> 
A46: ='Sjekkliste for utfylling'!A96 -> 45 | B46: =IF('Sjekkliste for utfylling'!K96<>"",1,0) -> 0 | C46: 0 | E46: =IF($C46=1,'Sjekkliste for utfylling'!A96,"") ->  | F46: =IF($C46=1,'Sjekkliste for utfylling'!B96,"") ->  | H46: =IF(C46=1,'Sjekkliste for utfylling'!L96," ") -> 
A47: ='Sjekkliste for utfylling'!A98 -> 46 | B47: =IF('Sjekkliste for utfylling'!K98<>"",1,0) -> 0 | C47: 0 | E47: =IF($C47=1,'Sjekkliste for utfylling'!A98,"") ->  | F47: =IF($C47=1,'Sjekkliste for utfylling'!B98,"") ->  | H47: =IF(C47=1,'Sjekkliste for utfylling'!L98," ") -> 
A48: ='Sjekkliste for utfylling'!A100 -> 47 | B48: =IF('Sjekkliste for utfylling'!K100<>"",1,0) -> 0 | C48: 0 | E48: =IF($C48=1,'Sjekkliste for utfylling'!A100,"") ->  | F48: =IF($C48=1,'Sjekkliste for utfylling'!B100,"") ->  | H48: =IF(C48=1,'Sjekkliste for utfylling'!L100," ") -> 
A49: ='Sjekkliste for utfylling'!A101 -> 48 | B49: =IF('Sjekkliste for utfylling'!K101<>"",1,0) -> 0 | C49: 0 | E49: =IF($C49=1,'Sjekkliste for utfylling'!A101,"") ->  | F49: =IF($C49=1,'Sjekkliste for utfylling'!B101,"") ->  | H49: =IF(C49=1,'Sjekkliste for utfylling'!L101," ") -> 
A50: ='Sjekkliste for utfylling'!A102 -> 49 | B50: =IF('Sjekkliste for utfylling'!K102<>"",1,0) -> 0 | C50: 0 | E50: =IF($C50=1,'Sjekkliste for utfylling'!A102,"") ->  | F50: =IF($C50=1,'Sjekkliste for utfylling'!B102,"") ->  | H50: =IF(C50=1,'Sjekkliste for utfylling'!L102," ") -> 
A51: ='Sjekkliste for utfylling'!A103 -> 50 | B51: =IF('Sjekkliste for utfylling'!K103<>"",1,0) -> 0 | C51: 0 | E51: =IF($C51=1,'Sjekkliste for utfylling'!A103,"") ->  | F51: =IF($C51=1,'Sjekkliste for utfylling'!B103,"") ->  | H51: =IF(C51=1,'Sjekkliste for utfylling'!L103," ") -> 
A52: ='Sjekkliste for utfylling'!A104 -> 51 | B52: =IF('Sjekkliste for utfylling'!K104<>"",1,0) -> 0 | C52: 0 | E52: =IF($C52=1,'Sjekkliste for utfylling'!A104,"") ->  | F52: =IF($C52=1,'Sjekkliste for utfylling'!B104,"") ->  | H52: =IF(C52=1,'Sjekkliste for utfylling'!L104," ") -> 
A53: ='Sjekkliste for utfylling'!A105 -> 52 | B53: =IF('Sjekkliste for utfylling'!K105<>"",1,0) -> 0 | C53: 0 | E53: =IF($C53=1,'Sjekkliste for utfylling'!A105,"") ->  | F53: =IF($C53=1,'Sjekkliste for utfylling'!B105,"") ->  | H53: =IF(C53=1,'Sjekkliste for utfylling'!L105," ") -> 
A54: ='Sjekkliste for utfylling'!A107 -> 53 | B54: =IF('Sjekkliste for utfylling'!K107<>"",1,0) -> 0 | C54: 0 | E54: =IF($C54=1,'Sjekkliste for utfylling'!A107,"") ->  | F54: =IF($C54=1,'Sjekkliste for utfylling'!B107,"") ->  | H54: =IF(C54=1,'Sjekkliste for utfylling'!L107," ") -> 
A55: ='Sjekkliste for utfylling'!A108 -> 54 | B55: =IF('Sjekkliste for utfylling'!K108<>"",1,0) -> 0 | C55: 0 | E55: =IF($C55=1,'Sjekkliste for utfylling'!A108,"") ->  | F55: =IF($C55=1,'Sjekkliste for utfylling'!B108,"") ->  | H55: =IF(C55=1,'Sjekkliste for utfylling'!L108," ") -> 
A56: ='Sjekkliste for utfylling'!A110 -> 55 | B56: =IF('Sjekkliste for utfylling'!K110<>"",1,0) -> 0 | C56: 0 | E56: =IF($C56=1,'Sjekkliste for utfylling'!A110,"") ->  | F56: =IF($C56=1,'Sjekkliste for utfylling'!B110,"") ->  | H56: =IF(C56=1,'Sjekkliste for utfylling'!L110," ") -> 
A57: ='Sjekkliste for utfylling'!A111 -> 56 | B57: =IF('Sjekkliste for utfylling'!K111<>"",1,0) -> 0 | C57: 0 | E57: =IF($C57=1,'Sjekkliste for utfylling'!A111,"") ->  | F57: =IF($C57=1,'Sjekkliste for utfylling'!B111,"") ->  | H57: =IF(C57=1,'Sjekkliste for utfylling'!L111," ") -> 
A58: ='Sjekkliste for utfylling'!A113 -> 57 | B58: =IF('Sjekkliste for utfylling'!K113<>"",1,0) -> 0 | C58: 0 | E58: =IF($C58=1,'Sjekkliste for utfylling'!A113,"") ->  | F58: =IF($C58=1,'Sjekkliste for utfylling'!B113,"") ->  | H58: =IF(C58=1,'Sjekkliste for utfylling'!L113," ") -> 
A59: ='Sjekkliste for utfylling'!A115 -> 58 | B59: =IF('Sjekkliste for utfylling'!K115<>"",1,0) -> 0 | C59: 0 | E59: =IF($C59=1,'Sjekkliste for utfylling'!A115,"") ->  | F59: =IF($C59=1,'Sjekkliste for utfylling'!B115,"") ->  | H59: =IF(C59=1,'Sjekkliste for utfylling'!L115," ") -> 
A60: ='Sjekkliste for utfylling'!A116 -> 59 | B60: =IF('Sjekkliste for utfylling'!K116<>"",1,0) -> 0 | C60: 0 | E60: =IF($C60=1,'Sjekkliste for utfylling'!A116,"") ->  | F60: =IF($C60=1,'Sjekkliste for utfylling'!B116,"") ->  | H60: =IF(C60=1,'Sjekkliste for utfylling'!L116," ") -> 
A61: ='Sjekkliste for utfylling'!A117 -> 60 | B61: =IF('Sjekkliste for utfylling'!K117<>"",1,0) -> 0 | C61: 0 | E61: =IF($C61=1,'Sjekkliste for utfylling'!A117,"") ->  | F61: =IF($C61=1,'Sjekkliste for utfylling'!B117,"") ->  | H61: =IF(C61=1,'Sjekkliste for utfylling'!L117," ") -> 
A62: ='Sjekkliste for utfylling'!A118 -> 61 | B62: =IF('Sjekkliste for utfylling'!K118<>"",1,0) -> 0 | C62: 0 | E62: =IF($C62=1,'Sjekkliste for utfylling'!A118,"") ->  | F62: =IF($C62=1,'Sjekkliste for utfylling'!B118,"") ->  | H62: =IF(C62=1,'Sjekkliste for utfylling'!L118," ") -> 
A63: ='Sjekkliste for utfylling'!A119 -> 62 | B63: =IF('Sjekkliste for utfylling'!K119<>"",1,0) -> 0 | C63: 0 | E63: =IF($C63=1,'Sjekkliste for utfylling'!A119,"") ->  | F63: =IF($C63=1,'Sjekkliste for utfylling'!B119,"") ->  | H63: =IF(C63=1,'Sjekkliste for utfylling'!L119," ") -> 
A64: ='Sjekkliste for utfylling'!A120 -> 63 | B64: =IF('Sjekkliste for utfylling'!K120<>"",1,0) -> 0 | C64: 0 | E64: =IF($C64=1,'Sjekkliste for utfylling'!A120,"") ->  | F64: =IF($C64=1,'Sjekkliste for utfylling'!B120,"") ->  | H64: =IF(C64=1,'Sjekkliste for utfylling'!L120," ") -> 
A65: ='Sjekkliste for utfylling'!A122 -> 64 | B65: =IF('Sjekkliste for utfylling'!K122<>"",1,0) -> 0 | C65: 0 | E65: =IF($C65=1,'Sjekkliste for utfylling'!A122,"") ->  | F65: =IF($C65=1,'Sjekkliste for utfylling'!B122,"") ->  | H65: =IF(C65=1,'Sjekkliste for utfylling'!L122," ") -> 
A66: ='Sjekkliste for utfylling'!A123 -> 65 | B66: =IF('Sjekkliste for utfylling'!K123<>"",1,0) -> 0 | C66: =SUM(B66:B66) -> 0 | E66: =IF($C66=1,'Sjekkliste for utfylling'!A123,"") ->  | F66: =IF($C66=1,'Sjekkliste for utfylling'!B123,"") ->  | H66: =IF(C66=1,'Sjekkliste for utfylling'!L123," ") -> 
A67: ='Sjekkliste for utfylling'!A125 -> 66 | B67: =IF('Sjekkliste for utfylling'!K125<>"",1,0) -> 0 | C67: 0 | E67: =IF($C67=1,'Sjekkliste for utfylling'!A125,"") ->  | F67: =IF($C67=1,'Sjekkliste for utfylling'!B125,"") ->  | H67: =IF(C67=1,'Sjekkliste for utfylling'!L125," ") -> 
A68: ='Sjekkliste for utfylling'!A126 -> 67 | B68: =IF('Sjekkliste for utfylling'!K126<>"",1,0) -> 0 | C68: 0 | E68: =IF($C68=1,'Sjekkliste for utfylling'!A126,"") ->  | F68: =IF($C68=1,'Sjekkliste for utfylling'!B126,"") ->  | H68: =IF(C68=1,'Sjekkliste for utfylling'!L126," ") -> 
A69: ='Sjekkliste for utfylling'!A127 -> 68 | B69: =IF('Sjekkliste for utfylling'!K127<>"",1,0) -> 0 | C69: 0 | E69: =IF($C69=1,'Sjekkliste for utfylling'!A127,"") ->  | F69: =IF($C69=1,'Sjekkliste for utfylling'!B127,"") ->  | H69: =IF(C69=1,'Sjekkliste for utfylling'!L127," ") -> 
A70: ='Sjekkliste for utfylling'!A128 -> 69 | B70: =IF('Sjekkliste for utfylling'!K128<>"",1,0) -> 0 | C70: 0 | E70: =IF($C70=1,'Sjekkliste for utfylling'!A128,"") ->  | F70: =IF($C70=1,'Sjekkliste for utfylling'!B128,"") ->  | H70: =IF(C70=1,'Sjekkliste for utfylling'!L128," ") -> 
A71: ='Sjekkliste for utfylling'!A130 -> 70 | B71: =IF('Sjekkliste for utfylling'!K130<>"",1,0) -> 0 | C71: 0 | E71: =IF($C71=1,'Sjekkliste for utfylling'!A130,"") ->  | F71: =IF($C71=1,'Sjekkliste for utfylling'!B130,"") ->  | H71: =IF(C71=1,'Sjekkliste for utfylling'!L130," ") -> 
A72: ='Sjekkliste for utfylling'!A131 -> 71 | B72: =IF('Sjekkliste for utfylling'!K131<>"",1,0) -> 0 | C72: 0 | E72: =IF($C72=1,'Sjekkliste for utfylling'!A131,"") ->  | F72: =IF($C72=1,'Sjekkliste for utfylling'!B131,"") ->  | H72: =IF(C72=1,'Sjekkliste for utfylling'!L131," ") -> 
A73: ='Sjekkliste for utfylling'!A132 -> 72 | B73: =IF('Sjekkliste for utfylling'!K132<>"",1,0) -> 0 | C73: 0 | E73: =IF($C73=1,'Sjekkliste for utfylling'!A132,"") ->  | F73: =IF($C73=1,'Sjekkliste for utfylling'!B132,"") ->  | H73: =IF(C73=1,'Sjekkliste for utfylling'!L132," ") -> 
A74: ='Sjekkliste for utfylling'!A133 -> 73 | B74: =IF('Sjekkliste for utfylling'!K133<>"",1,0) -> 0 | C74: 0 | E74: =IF($C74=1,'Sjekkliste for utfylling'!A133,"") ->  | F74: =IF($C74=1,'Sjekkliste for utfylling'!B133,"") ->  | H74: =IF(C74=1,'Sjekkliste for utfylling'!L133," ") -> 
A75: ='Sjekkliste for utfylling'!A136 -> 74 | B75: =IF('Sjekkliste for utfylling'!K136<>"",1,0) -> 0 | C75: 0 | E75: =IF($C75=1,'Sjekkliste for utfylling'!A136,"") ->  | F75: =IF($C75=1,'Sjekkliste for utfylling'!B136,"") ->  | H75: =IF(C75=1,'Sjekkliste for utfylling'!L136," ") -> 
A76: ='Sjekkliste for utfylling'!A137 -> 75 | B76: =IF('Sjekkliste for utfylling'!K137<>"",1,0) -> 0 | C76: 0 | E76: =IF($C76=1,'Sjekkliste for utfylling'!A137,"") ->  | F76: =IF($C76=1,'Sjekkliste for utfylling'!B137,"") ->  | H76: =IF(C76=1,'Sjekkliste for utfylling'!L137," ") -> 
A77: ='Sjekkliste for utfylling'!A138 -> 76 | B77: =IF('Sjekkliste for utfylling'!K138<>"",1,0) -> 0 | C77: 0 | E77: =IF($C77=1,'Sjekkliste for utfylling'!A138,"") ->  | F77: =IF($C77=1,'Sjekkliste for utfylling'!B138,"") ->  | H77: =IF(C77=1,'Sjekkliste for utfylling'!L138," ") -> 
A78: ='Sjekkliste for utfylling'!A141 -> 77 | B78: =IF('Sjekkliste for utfylling'!K141<>"",1,0) -> 0 | C78: 0 | E78: =IF($C78=1,'Sjekkliste for utfylling'!A141,"") ->  | F78: =IF($C78=1,'Sjekkliste for utfylling'!B141,"") ->  | H78: =IF(C78=1,'Sjekkliste for utfylling'!L141," ") -> 
A79: ='Sjekkliste for utfylling'!A142 -> 78 | B79: =IF('Sjekkliste for utfylling'!K142<>"",1,0) -> 0 | C79: 0 | E79: =IF($C79=1,'Sjekkliste for utfylling'!A142,"") ->  | F79: =IF($C79=1,'Sjekkliste for utfylling'!B142,"") ->  | H79: =IF(C79=1,'Sjekkliste for utfylling'!L142," ") -> 
A80: ='Sjekkliste for utfylling'!A144 -> 79 | B80: =IF('Sjekkliste for utfylling'!K144<>"",1,0) -> 0 | C80: 0 | E80: =IF($C80=1,'Sjekkliste for utfylling'!A144,"") ->  | F80: =IF($C80=1,'Sjekkliste for utfylling'!B144,"") ->  | H80: =IF(C80=1,'Sjekkliste for utfylling'!L144," ") -> 
A81: ='Sjekkliste for utfylling'!A145 -> 80 | B81: =IF('Sjekkliste for utfylling'!K145<>"",1,0) -> 0 | C81: 0 | E81: =IF($C81=1,'Sjekkliste for utfylling'!A145,"") ->  | F81: =IF($C81=1,'Sjekkliste for utfylling'!B145,"") ->  | H81: =IF(C81=1,'Sjekkliste for utfylling'!L145," ") -> 
A82: ='Sjekkliste for utfylling'!A146 -> 81 | B82: =IF('Sjekkliste for utfylling'!K146<>"",1,0) -> 0 | C82: 0 | E82: =IF($C82=1,'Sjekkliste for utfylling'!A146,"") ->  | F82: =IF($C82=1,'Sjekkliste for utfylling'!B146,"") ->  | H82: =IF(C82=1,'Sjekkliste for utfylling'!L146," ") -> 
A83: ='Sjekkliste for utfylling'!A147 -> 82 | B83: =IF('Sjekkliste for utfylling'!K147<>"",1,0) -> 0 | C83: 0 | E83: =IF($C83=1,'Sjekkliste for utfylling'!A147,"") ->  | F83: =IF($C83=1,'Sjekkliste for utfylling'!B147,"") ->  | H83: =IF(C83=1,'Sjekkliste for utfylling'!L147," ") -> 
A84: ='Sjekkliste for utfylling'!A148 -> 83 | B84: =IF('Sjekkliste for utfylling'!K148<>"",1,0) -> 0 | C84: 0 | E84: =IF($C84=1,'Sjekkliste for utfylling'!A148,"") ->  | F84: =IF($C84=1,'Sjekkliste for utfylling'!B148,"") ->  | H84: =IF(C84=1,'Sjekkliste for utfylling'!L148," ") -> 
A85: ='Sjekkliste for utfylling'!A150 -> 84 | B85: =IF('Sjekkliste for utfylling'!K150<>"",1,0) -> 0 | C85: 0 | E85: =IF($C85=1,'Sjekkliste for utfylling'!A150,"") ->  | F85: =IF($C85=1,'Sjekkliste for utfylling'!B150,"") ->  | H85: =IF(C85=1,'Sjekkliste for utfylling'!L150," ") -> 
A86: ='Sjekkliste for utfylling'!A151 -> 85 | B86: =IF('Sjekkliste for utfylling'!K151<>"",1,0) -> 0 | C86: 0 | E86: =IF($C86=1,'Sjekkliste for utfylling'!A151,"") ->  | F86: =IF($C86=1,'Sjekkliste for utfylling'!B151,"") ->  | H86: =IF(C86=1,'Sjekkliste for utfylling'!L151," ") -> 
A87: ='Sjekkliste for utfylling'!A153 -> 86 | B87: =IF('Sjekkliste for utfylling'!K153<>"",1,0) -> 0 | C87: 0 | E87: =IF($C87=1,'Sjekkliste for utfylling'!A153,"") ->  | F87: =IF($C87=1,'Sjekkliste for utfylling'!B153,"") ->  | H87: =IF(C87=1,'Sjekkliste for utfylling'!L153," ") -> 
A88: ='Sjekkliste for utfylling'!A154 -> 87 | B88: =IF('Sjekkliste for utfylling'!K154<>"",1,0) -> 0 | C88: 0 | E88: =IF($C88=1,'Sjekkliste for utfylling'!A154,"") ->  | F88: =IF($C88=1,'Sjekkliste for utfylling'!B154,"") ->  | H88: =IF(C88=1,'Sjekkliste for utfylling'!L154," ") -> 
A89: ='Sjekkliste for utfylling'!A155 -> 88 | B89: =IF('Sjekkliste for utfylling'!K155<>"",1,0) -> 0 | C89: 0 | E89: =IF($C89=1,'Sjekkliste for utfylling'!A155,"") ->  | F89: =IF($C89=1,'Sjekkliste for utfylling'!B155,"") ->  | H89: =IF(C89=1,'Sjekkliste for utfylling'!L155," ") -> 
A90: ='Sjekkliste for utfylling'!A156 -> 89 | B90: =IF('Sjekkliste for utfylling'!K156<>"",1,0) -> 0 | C90: 0 | E90: =IF($C90=1,'Sjekkliste for utfylling'!A156,"") ->  | F90: =IF($C90=1,'Sjekkliste for utfylling'!B156,"") ->  | H90: =IF(C90=1,'Sjekkliste for utfylling'!L156," ") -> 
A91: ='Sjekkliste for utfylling'!A157 -> 90 | B91: =IF('Sjekkliste for utfylling'!K157<>"",1,0) -> 0 | C91: 0 | E91: =IF($C91=1,'Sjekkliste for utfylling'!A157,"") ->  | F91: =IF($C91=1,'Sjekkliste for utfylling'!B157,"") ->  | H91: =IF(C91=1,'Sjekkliste for utfylling'!L157," ") -> 
A92: ='Sjekkliste for utfylling'!A158 -> 91 | B92: =IF('Sjekkliste for utfylling'!K158<>"",1,0) -> 0 | C92: 0 | E92: =IF($C92=1,'Sjekkliste for utfylling'!A158,"") ->  | F92: =IF($C92=1,'Sjekkliste for utfylling'!B158,"") ->  | H92: =IF(C92=1,'Sjekkliste for utfylling'!L158," ") -> 
A93: ='Sjekkliste for utfylling'!A159 -> 92 | B93: =IF('Sjekkliste for utfylling'!K159<>"",1,0) -> 0 | C93: 0 | E93: =IF($C93=1,'Sjekkliste for utfylling'!A159,"") ->  | F93: =IF($C93=1,'Sjekkliste for utfylling'!B159,"") ->  | H93: =IF(C93=1,'Sjekkliste for utfylling'!L159," ") -> 
A94: ='Sjekkliste for utfylling'!A160 -> 93 | B94: =IF('Sjekkliste for utfylling'!K160<>"",1,0) -> 0 | C94: 0 | E94: =IF($C94=1,'Sjekkliste for utfylling'!A160,"") ->  | F94: =IF($C94=1,'Sjekkliste for utfylling'!B160,"") ->  | H94: =IF(C94=1,'Sjekkliste for utfylling'!L160," ") -> 
A95: ='Sjekkliste for utfylling'!A162 -> 94 | B95: =IF('Sjekkliste for utfylling'!K162<>"",1,0) -> 0 | C95: 0 | E95: =IF($C95=1,'Sjekkliste for utfylling'!A162,"") ->  | F95: =IF($C95=1,'Sjekkliste for utfylling'!B162,"") ->  | H95: =IF(C95=1,'Sjekkliste for utfylling'!L162," ") -> 
A96: ='Sjekkliste for utfylling'!A164 -> 95 | B96: =IF('Sjekkliste for utfylling'!K164<>"",1,0) -> 0 | C96: 0 | E96: =IF($C96=1,'Sjekkliste for utfylling'!A164,"") ->  | F96: =IF($C96=1,'Sjekkliste for utfylling'!B164,"") ->  | H96: =IF(C96=1,'Sjekkliste for utfylling'!L164," ") -> 
A97: ='Sjekkliste for utfylling'!A170 -> 96 | B97: =IF('Sjekkliste for utfylling'!K170<>"",1,0) -> 0 | C97: 0 | E97: =IF($C97=1,'Sjekkliste for utfylling'!A170,"") ->  | F97: =IF($C97=1,'Sjekkliste for utfylling'!B170,"") ->  | H97: =IF(C97=1,'Sjekkliste for utfylling'!L170," ") -> 
A98: ='Sjekkliste for utfylling'!A171 -> 97 | B98: =IF('Sjekkliste for utfylling'!K171<>"",1,0) -> 0 | C98: 0 | E98: =IF($C98=1,'Sjekkliste for utfylling'!A171,"") ->  | F98: =IF($C98=1,'Sjekkliste for utfylling'!B171,"") ->  | H98: =IF(C98=1,'Sjekkliste for utfylling'!L171," ") -> 
A99: ='Sjekkliste for utfylling'!A172 -> 98 | B99: =IF('Sjekkliste for utfylling'!K172<>"",1,0) -> 0 | C99: 0 | E99: =IF($C99=1,'Sjekkliste for utfylling'!A172,"") ->  | F99: =IF($C99=1,'Sjekkliste for utfylling'!B172,"") ->  | H99: =IF(C99=1,'Sjekkliste for utfylling'!L172," ") -> 
A100: ='Sjekkliste for utfylling'!A173 -> 99 | B100: =IF('Sjekkliste for utfylling'!K173<>"",1,0) -> 0 | C100: 0 | E100: =IF($C100=1,'Sjekkliste for utfylling'!A173,"") ->  | F100: =IF($C100=1,'Sjekkliste for utfylling'!B173,"") ->  | H100: =IF(C100=1,'Sjekkliste for utfylling'!L173," ") -> 
A101: ='Sjekkliste for utfylling'!A174 -> 100 | B101: =IF('Sjekkliste for utfylling'!K174<>"",1,0) -> 0 | C101: 0 | E101: =IF($C101=1,'Sjekkliste for utfylling'!A174,"") ->  | F101: =IF($C101=1,'Sjekkliste for utfylling'!B174,"") ->  | H101: =IF(C101=1,'Sjekkliste for utfylling'!L174," ") -> 
A102: ='Sjekkliste for utfylling'!A175 -> 101 | B102: =IF('Sjekkliste for utfylling'!K175<>"",1,0) -> 0 | C102: 0 | E102: =IF($C102=1,'Sjekkliste for utfylling'!A175,"") ->  | F102: =IF($C102=1,'Sjekkliste for utfylling'!B175,"") ->  | H102: =IF(C102=1,'Sjekkliste for utfylling'!L175," ") -> 
